Workbook

Sheet 2016
A1: USAGE | C1: Powerbill | D1: Total | E1: Residential | F1: GS<50 | G1: GS>50 | H1: USL | I1: SL
C2: =SUM(B3:B745) -> 3040740.447 | D2: =SUM(E2:I2) -> 2818255 | E2: 1887078 | F2: 432722 | G2: 449564 | H2: 7857 | I2: 41034
A3: 01/01/2016 01:00 EST | B3: 3478.9054 | E3: =(B3/$C$2)*$E$2 -> 2159.002375 | F3: =(B3/$C$2)*$F$2 -> 495.0764227 | G3: =(B3/$C$2)*$G$2 -> 514.345323 | H3: =(B3/$C$2)*$H$2 -> 8.989178856 | I3: =(B3/$C$2)*$I$2 -> 46.94692187
A4: 01/01/2016 02:00 EST | B4: 3211.5544 | E4: =(B4/$C$2)*$E$2 -> 1993.084829 | F4: 457.0302094 | G4: 474.8183108 | H4: 8.298367902 | I4: 43.33908979
A5: 01/01/2016 03:00 EST | B5: 3051.1437 | E5: 1893.53424 | F5: 434.2024673 | G5: 451.1020886 | H5: 7.883881072 | I5: 41.1743892
A6: 01/01/2016 04:00 EST | B6: 2977.6222 | E6: 1847.906931 | F6: 423.7397622 | G6: 440.2321639 | H6: 7.693908124 | I6: 40.18223571
A7: 01/01/2016 05:00 EST | B7: 3014.383 | E7: 1870.720617 | F7: 428.9711218 | G7: 445.6671337 | H7: 7.788894727 | I7: 40.67831313
A8: 01/01/2016 06:00 EST | B8: 3074.537 | E8: 1908.05208 | F8: 437.5315234 | G8: 454.5607151 | H8: 7.944327256 | I8: 41.49007568
A9: 01/01/2016 07:00 EST | B9: 3104.614 | E9: 1926.717811 | F9: 441.8117241 | G9: 459.0075059 | H9: 8.022043521 | I9: 41.89595696
A10: 01/01/2016 08:00 EST | B10: 3158.0842 | E10: 1959.90132 | F10: 449.4209668 | G10: 466.9129083 | H10: 8.160205712 | I10: 42.61752338
A11: 01/01/2016 09:00 EST | B11: 3331.8623 | E11: 2067.747694 | F11: 474.1509983 | G11: 492.6054589 | H11: 8.609232702 | I11: 44.96261356
A12: 01/01/2016 10:00 EST | B12: 3435.4609 | E12: 2132.040797 | F12: 488.8939183 | G12: 507.9221891 | H12: 8.876922173 | I12: 46.36064967
A13: 01/01/2016 11:00 EST | B13: 3625.9485 | E13: 2250.257055 | F13: 516.0018471 | G13: 536.0851872 | H13: 9.369125009 | I13: 48.93123019
A14: 01/01/2016 12:00 EST | B14: 3786.3591 | E14: 2349.807583 | F14: 538.829575 | G14: 559.8013946 | H14: 9.783611581 | I14: 51.09592944
A15: 01/01/2016 13:00 EST | B15: 3786.3591 | E15: 2349.807583 | F15: 538.829575 | G15: 559.8013946 | H15: 9.783611581 | I15: 51.09592944
A16: 01/01/2016 14:00 EST | B16: 3889.9576 | E16: 2414.100624 | F16: 553.5724808 | G16: 575.11811 | H16: 10.05130079 | I16: 52.49396421
A17: 01/01/2016 15:00 EST | B17: 3816.4361 | E17: 2368.473314 | F17: 543.1097758 | G17: 564.2481853 | H17: 9.861327846 | I17: 51.50181072
A18: 01/01/2016 16:00 EST | B18: 3863.2225 | E18: 2397.508869 | F18: 549.7678595 | G18: 571.1654087 | H18: 9.982219698 | I18: 52.133181
A19: 01/01/2016 17:00 EST | B19: 4331.0868 | E19: 2687.864604 | F19: 616.3487398 | G19: 640.3376876 | H19: 11.191139 | I19: 58.44688782
A20: 01/01/2016 18:00 EST | B20: 4665.2756 | E20: 2895.261567 | F20: 663.9065135 | G20: 689.7464604 | H20: 12.05465282 | I20: 62.95667859
A21: 01/01/2016 19:00 EST | B21: 4438.0273 | E21: 2754.231684 | F21: 631.5672393 | G21: 656.1485073 | H21: 11.46746364 | I21: 59.890022
A22: 01/01/2016 20:00 EST | B22: 4264.2491 | E22: 2646.385249 | F22: 606.8371936 | G22: 630.4559419 | H22: 11.01843639 | I22: 57.54493047
A23: 01/01/2016 21:00 EST | B23: 4190.7276 | E23: 2600.757939 | F23: 596.3744885 | G23: 619.5860173 | H23: 10.82846344 | I23: 56.55277698
A24: 01/01/2016 22:00 EST | B24: 4040.3426 | E24: 2507.429281 | F24: 574.9734847 | G24: 597.3520636 | H24: 10.43988212 | I24: 54.5233706
A25: 01/01/2016 23:00 EST | B25: 3776.3334 | E25: 2343.585651 | F25: 537.4028367 | G25: 558.3191261 | H25: 9.757706074 | I25: 50.96063523
A26: 01/02/2016 00:00 EST | B26: 3428.7771 | E26: 2127.892843 | F26: 487.9427595 | G26: 506.9340101 | H26: 8.859651834 | I26: 46.27045353
A27: 01/02/2016 01:00 EST | B27: 3298.4435 | E27: 2047.008047 | F27: 469.3952323 | G27: 487.6645935 | H27: 8.522881527 | I27: 44.51163556
A28: 01/02/2016 02:00 EST | B28: 3087.9045 | E28: 1916.347926 | F28: 439.4338269 | G28: 456.5370583 | H28: 7.978867675 | I28: 41.67046661
A29: 01/02/2016 03:00 EST | B29: 3037.7762 | E29: 1885.238394 | F29: 432.3001637 | G29: 449.1257454 | H29: 7.849340653 | I29: 40.99399827
A30: 01/02/2016 04:00 EST | B30: 3037.7762 | E30: 1885.238394 | F30: 432.3001637 | G30: 449.1257454 | H30: 7.849340653 | I30: 40.99399827
A31: 01/02/2016 05:00 EST | B31: 3057.8275 | E31: 1897.682194 | F31: 435.1536261 | G31: 452.0902676 | H31: 7.90115141 | I31: 41.26458533
A32: 01/02/2016 06:00 EST | B32: 3154.7423 | E32: 1957.827343 | F32: 448.9453873 | G32: 466.4188188 | H32: 8.151570543 | I32: 42.57242531
A33: 01/02/2016 07:00 EST | B33: 3228.2638 | E33: 2003.454653 | F33: 459.4080924 | G33: 477.2887435 | H33: 8.34154349 | I33: 43.56457879
A34: 01/02/2016 08:00 EST | B34: 3432.119 | E34: 2129.96682 | F34: 488.4183389 | G34: 507.4280996 | H34: 8.868287004 | I34: 46.3155516
A35: 01/02/2016 09:00 EST | B35: 3562.4526 | E35: 2210.851615 | F35: 506.9658661 | G35: 526.6975162 | H35: 9.205057311 | I35: 48.07436957
A36: 01/02/2016 10:00 EST | B36: 3823.1199 | E36: 2372.621268 | F36: 544.0609347 | G36: 565.2363643 | H36: 9.878598184 | I36: 51.59200686
A37: 01/02/2016 11:00 EST | B37: 3873.2482 | E37: 2403.7308 | F37: 551.1945979 | G37: 572.6476772 | H37: 10.00812521 | I37: 52.26847521
A38: 01/02/2016 12:00 EST | B38: 3980.1886 | E38: 2470.097818 | F38: 566.4130832 | G38: 588.4584822 | H38: 10.28444959 | I38: 53.71160804
A39: 01/02/2016 13:00 EST | B39: 4123.8898 | E39: 2559.278522 | F39: 586.8629281 | G39: 609.7042568 | H39: 10.65576057 | I39: 55.65081829
A40: 01/02/2016 14:00 EST | B40: 4130.5736 | E40: 2563.426476 | F40: 587.814087 | G40: 610.6924358 | H40: 10.67303091 | I40: 55.74101443
A41: 01/02/2016 15:00 EST | B41: 4103.8385 | E41: 2546.834722 | F41: 584.0094657 | G41: 606.7397346 | H41: 10.60394981 | I41: 55.38023122
A42: 01/02/2016 16:00 EST | B42: 4117.206 | E42: 2555.130568 | F42: 585.9117692 | G42: 608.7160778 | H42: 10.63849023 | I42: 55.56062215
A43: 01/02/2016 17:00 EST | B43: 4484.8137 | E43: 2783.267239 | F43: 638.2253231 | G43: 663.0657308 | H43: 11.58835549 | I43: 60.52139227
A44: 01/02/2016 18:00 EST | B44: 4859.1052 | E44: 3015.551864 | F44: 691.4900358 | G44: 718.4035627 | H44: 12.55549108 | I44: 65.57235854
A45: 01/02/2016 19:00 EST | B45: 4698.6945 | E45: 2916.001275 | F45: 668.6622937 | G45: 694.6873406 | H45: 12.14100425 | I45: 63.40765794
A46: 01/02/2016 20:00 EST | B46: 4488.1556 | E46: 2785.341216 | F46: 638.7009025 | G46: 663.5598203 | H46: 11.59699066 | I46: 60.56649034
A47: 01/02/2016 21:00 EST | B47: 4337.7706 | E47: 2692.012558 | F47: 617.2998987 | G47: 641.3258666 | H47: 11.20840933 | I47: 58.53708395
A48: 01/02/2016 22:00 EST | B48: 4080.4452 | E48: 2532.316882 | F48: 580.6804096 | G48: 603.2811081 | H48: 10.54350363 | I48: 55.06454473
A49: 01/02/2016 23:00 EST | B49: 3759.624 | E49: 2333.215828 | F49: 535.0249537 | G49: 555.8486933 | H49: 9.714530486 | I49: 50.73514624
A50: 01/03/2016 00:00 EST | B50: 3415.4095 | E50: 2119.596934 | F50: 486.0404417 | G50: 504.9576521 | H50: 8.825111158 | I50: 46.09006125
A51: 01/03/2016 01:00 EST | B51: 3194.8449 | E51: 1982.714944 | F51: 454.6523122 | G51: 472.3478633 | H51: 8.255192056 | I51: 43.11359944
A52: 01/03/2016 02:00 EST | B52: 3024.4086 | E52: 1876.942486 | F52: 430.3978459 | G52: 447.1493874 | H52: 7.814799977 | I52: 40.81360599
A53: 01/03/2016 03:00 EST | B53: 2890.7331 | E53: 1793.983713 | F53: 411.3747393 | G53: 427.3858812 | H53: 7.4693945 | I53: 39.00968995
A54: 01/03/2016 04:00 EST | B54: 2930.8358 | E54: 1818.871376 | F54: 417.0816784 | G54: 433.3149405 | H54: 7.573016272 | I54: 39.55086543
A55: 01/03/2016 05:00 EST | B55: 2907.4426 | E55: 1804.353598 | F55: 413.7526365 | G55: 429.8563288 | H55: 7.512570346 | I55: 39.23518029
A56: 01/03/2016 06:00 EST | B56: 2967.5965 | E56: 1841.685 | F56: 422.3130238 | G56: 438.7498954 | H56: 7.668002617 | I56: 40.0469415
A57: 01/03/2016 07:00 EST | B57: 3107.9558 | E57: 1928.791726 | F57: 442.2872893 | G57: 459.5015806 | H57: 8.030678432 | I57: 41.94105368
A58: 01/03/2016 08:00 EST | B58: 3301.7853 | E58: 2049.081962 | F58: 469.8707975 | G58: 488.1586682 | H58: 8.531516438 | I58: 44.55673228
A59: 01/03/2016 09:00 EST | B59: 3559.1107 | E59: 2208.777638 | F59: 506.4902866 | G59: 526.2034267 | H59: 9.196422142 | I59: 48.0292715
A60: 01/03/2016 10:00 EST | B60: 3762.9659 | E60: 2335.289805 | F60: 535.5005331 | G60: 556.3427828 | H60: 9.723165655 | I60: 50.7802443
A61: 01/03/2016 11:00 EST | B61: 3886.6157 | E61: 2412.026646 | F61: 553.0969014 | G61: 574.6240205 | H61: 10.04266562 | I61: 52.44886614
A62: 01/03/2016 12:00 EST | B62: 4037.0007 | E62: 2505.355304 | F62: 574.4979052 | G62: 596.8579741 | H62: 10.43124695 | I62: 54.47827253
A63: 01/03/2016 13:00 EST | B63: 3996.898 | E63: 2480.467642 | F63: 568.7909661 | G63: 590.9289149 | H63: 10.32762518 | I63: 53.93709704
A64: 01/03/2016 14:00 EST | B64: 4010.2656 | E64: 2488.76355 | F64: 570.6932839 | G64: 592.9052729 | H64: 10.36216585 | I64: 54.11748932
A65: 01/03/2016 15:00 EST | B65: 4033.6588 | E65: 2503.281327 | F65: 574.0223258 | G65: 596.3638846 | H65: 10.42261178 | I65: 54.43317446
A66: 01/03/2016 16:00 EST | B66: 4224.1464 | E66: 2621.497586 | F66: 601.1302545 | G66: 624.5268827 | H66: 10.91481461 | I66: 57.00375498
A67: 01/03/2016 17:00 EST | B67: 4795.6093 | E67: =(B67/$C$2)*$E$2 -> 2976.146424 | F67: =(B67/$C$2)*$F$2 -> 682.4540549 | G67: =(B67/$C$2)*$G$2 -> 709.0158918 | H67: =(B67/$C$2)*$H$2 -> 12.39142338 | I67: =(B67/$C$2)*$I$2 -> 64.71549791
A68: 01/03/2016 18:00 EST | B68: 5336.9951 | E68: 3312.129469 | F68: 759.4976402 | G68: 789.0580953 | H68: 13.79031563 | I68: 72.02135821
A69: 01/03/2016 19:00 EST | B69: 5226.7128 | E69: 3243.688473 | F69: 743.8035755 | G69: 772.7532009 | H69: 13.50535608 | I69: 70.53312731
A70: 01/03/2016 20:00 EST | B70: 5179.9264 | E70: 3214.652919 | F70: 737.1454917 | G70: 765.8359775 | H70: 13.38446423 | I70: 69.90175703
A71: 01/03/2016 21:00 EST | B71: 4979.4131 | E71: 3090.214729 | F71: 708.6108247 | G71: 736.1907109 | H71: 12.86635588 | I71: 67.1958823
A72: 01/03/2016 22:00 EST | B72: 4651.9081 | E72: 2886.96572 | F72: 662.0042099 | G72: 687.7701171 | H72: 12.0201124 | I72: 62.77628766
A73: 01/03/2016 23:00 EST | B73: 4260.9072 | E73: 2644.311272 | F73: 606.3616142 | G73: 629.9618524 | H73: 11.00980122 | I73: 57.4998324
A74: 01/04/2016 00:00 EST | B74: 3863.2225 | E74: 2397.508869 | F74: 549.7678595 | G74: 571.1654087 | H74: 9.982219698 | I74: 52.133181
A75: 01/04/2016 01:00 EST | B75: 3672.7349 | E75: 2279.29261 | F75: 522.6599308 | G75: 543.0024106 | H75: 9.490016862 | I75: 49.56260047
A76: 01/04/2016 02:00 EST | B76: 3562.4526 | E76: 2210.851615 | F76: 506.9658661 | G76: 526.6975162 | H76: 9.205057311 | I76: 48.07436957
A77: 01/04/2016 03:00 EST | B77: 3525.6918 | E77: 2188.037929 | F77: 501.7345064 | G77: 521.2625465 | H77: 9.110070708 | I77: 47.57829215
A78: 01/04/2016 04:00 EST | B78: 3609.239 | E78: 2239.88717 | F78: 513.6239498 | G78: 533.6147397 | H78: 9.325949163 | I78: 48.70573985
A79: 01/04/2016 05:00 EST | B79: 3686.1025 | E79: 2287.588519 | F79: 524.5622486 | G79: 544.9787686 | H79: 9.524557539 | I79: 49.74299275
A80: 01/04/2016 06:00 EST | B80: 3970.1629 | E80: 2463.875887 | F80: 564.9863448 | G80: 586.9762136 | H80: 10.25854408 | I80: 53.57631383
A81: 01/04/2016 07:00 EST | B81: 4468.1043 | E81: 2772.897416 | F81: 635.8474401 | G81: 660.595298 | H81: 11.5451799 | I81: 60.29590327
A82: 01/04/2016 08:00 EST | B82: 4645.2243 | E82: 2882.817766 | F82: 661.053051 | G82: 686.7819381 | H82: 12.00284206 | I82: 62.68609152
A83: 01/04/2016 09:00 EST | B83: 4491.4975 | E83: 2787.415193 | F83: 639.176482 | G83: 664.0539098 | H83: 11.60562583 | I83: 60.61158841
A84: 01/04/2016 10:00 EST | B84: 4397.9246 | E84: 2729.344021 | F84: 625.8603002 | G84: 650.2194481 | H84: 11.36384186 | I84: 59.34884651
A85: 01/04/2016 11:00 EST | B85: 4287.6423 | E85: 2660.903026 | F85: 610.1662355 | G85: 633.9145537 | H85: 11.07888231 | I85: 57.86061561
A86: 01/04/2016 12:00 EST | B86: 4167.3343 | E86: 2586.2401 | F86: 593.0454324 | G86: 616.1273907 | H86: 10.76801725 | I86: 56.2370905
A87: 01/04/2016 13:00 EST | B87: 4157.3087 | E87: 2580.018231 | F87: 591.6187083 | G87: 614.645137 | H87: 10.74211201 | I87: 56.10179764
A88: 01/04/2016 14:00 EST | B88: 4093.8128 | E88: 2540.612791 | F88: 582.5827273 | G88: 605.2574661 | H88: 10.57804431 | I88: 55.24493701
A89: 01/04/2016 15:00 EST | B89: 4177.36 | E89: 2592.462031 | F89: 594.4721708 | G89: 617.6096593 | H89: 10.79392276 | I89: 56.37238471
A90: 01/04/2016 16:00 EST | B90: 4464.7624 | E90: 2770.823439 | F90: 635.3718607 | G90: 660.1012085 | H90: 11.53654473 | I90: 60.25080521
A91: 01/04/2016 17:00 EST | B91: 5290.2087 | E91: 3283.093914 | F91: 752.8395565 | G91: 782.1408719 | H91: 13.66942378 | I91: 71.38998794
A92: 01/04/2016 18:00 EST | B92: 5971.9539 | E92: 3706.183747 | F92: 849.8574216 | G92: 882.9347754 | H92: 15.43099209 | I92: 80.58996177
A93: 01/04/2016 19:00 EST | B93: 5754.7311 | E93: 3571.375672 | F93: 818.9448573 | G93: 850.8190613 | H93: 14.8697079 | I93: 77.65859668
A94: 01/04/2016 20:00 EST | B94: 5664.5002 | E94: 3515.378539 | F94: 806.1042692 | G94: 837.4787039 | H94: 14.63655937 | I94: 76.4409542
A95: 01/04/2016 21:00 EST | B95: 5490.722 | E95: 3407.532104 | F95: 781.3742235 | G95: 811.7861385 | H95: 14.18753212 | I95: 74.09586267
A96: 01/04/2016 22:00 EST | B96: 5083.0116 | E96: 3154.50777 | F96: 723.3537305 | G96: 751.5074263 | H96: 13.13404509 | I96: 68.59391706
A97: 01/04/2016 23:00 EST | B97: 4631.8568 | E97: 2874.52192 | F97: 659.1507475 | G97: 684.8055949 | H97: 11.96830164 | I97: 62.50570059
A98: 01/05/2016 00:00 EST | B98: 4294.3261 | E98: 2665.05098 | F98: 611.1173944 | G98: 634.9027327 | H98: 11.09615265 | I98: 57.95081175
A99: 01/05/2016 01:00 EST | B99: 4063.7358 | E99: 2521.947059 | F99: 578.3025266 | G99: 600.8106753 | H99: 10.50032804 | I99: 54.83905573
A100: 01/05/2016 02:00 EST | B100: 3966.8211 | E100: 2461.801972 | F100: 564.5107796 | G100: 586.4821389 | H100: 10.24990917 | I100: 53.53121711
A101: 01/05/2016 03:00 EST | B101: 3950.1116 | E101: 2451.432087 | F101: 562.1328824 | G101: 584.0116914 | H101: 10.20673332 | I101: 53.30572676
A102: 01/05/2016 04:00 EST | B102: 4000.2399 | E102: 2482.541619 | F102: 569.2665456 | G102: 591.4230044 | H102: 10.33626034 | I102: 53.98219511
A103: 01/05/2016 05:00 EST | B103: 4090.4709 | E103: 2538.538813 | F103: 582.1071479 | G103: 604.7633766 | H103: 10.56940914 | I103: 55.19983894
A104: 01/05/2016 06:00 EST | B104: 4361.1638 | E104: 2706.530336 | F104: 620.6289406 | G104: 644.7844783 | H104: 11.26885526 | I104: 58.85276909
A105: 01/05/2016 07:00 EST | B105: 4832.37 | E105: 2998.960048 | F105: 687.6854003 | G105: 714.4508467 | H105: 12.48640973 | I105: 65.21157398
A106: 01/05/2016 08:00 EST | B106: 4989.4388 | E106: 3096.43666 | F106: 710.037563 | G106: 737.6729794 | H106: 12.89226139 | I106: 67.33117651
A107: 01/05/2016 09:00 EST | B107: 4778.8998 | E107: 2965.776539 | F107: 680.0761576 | G107: 706.5454443 | H107: 12.34824754 | I107: 64.49000756
A108: 01/05/2016 10:00 EST | B108: 4628.5149 | E108: 2872.447943 | F108: 658.675168 | G108: 684.3115054 | H108: 11.95966647 | I108: 62.46060252
A109: 01/05/2016 11:00 EST | B109: 4558.3352 | E109: 2828.894549 | F109: 648.6880282 | G109: 673.9356554 | H109: 11.77832844 | I109: 61.51354576
A110: 01/05/2016 12:00 EST | B110: 4524.9164 | E110: 2808.154902 | F110: 643.9322622 | G110: 668.99479 | H110: 11.69197726 | I110: 61.06256776
A111: 01/05/2016 13:00 EST | B111: 4357.822 | E111: 2704.456421 | F111: 620.1533754 | G111: 644.2904036 | H111: 11.26022035 | I111: 58.80767237
A112: 01/05/2016 14:00 EST | B112: 4227.4883 | E112: 2623.571563 | F112: 601.605834 | G112: 625.0209722 | H112: 10.92344978 | I112: 57.04885305
A113: 01/05/2016 15:00 EST | B113: 4197.4113 | E113: 2604.905832 | F113: 597.3256332 | G113: 620.5741815 | H113: 10.84573352 | I113: 56.64297177
A114: 01/05/2016 16:00 EST | B114: 4417.9759 | E114: 2741.787822 | F114: 628.7137627 | G114: 653.1839703 | H114: 11.41565262 | I114: 59.61943358
A115: 01/05/2016 17:00 EST | B115: 5253.4479 | E115: 3260.280228 | F115: 747.6081968 | G115: 776.7059022 | H115: 13.57443717 | I115: 70.89391052
A116: 01/05/2016 18:00 EST | B116: 5774.7825 | E116: 3583.819534 | F116: 821.798334 | G116: 853.7835983 | H116: 14.92151892 | I116: 77.9291851
A117: 01/05/2016 19:00 EST | B117: 5584.2948 | E117: 3465.603213 | F117: 794.690391 | G117: 825.6205854 | H117: 14.42931582 | I117: 75.35860323
A118: 01/05/2016 20:00 EST | B118: 5601.0043 | E118: 3475.973099 | F118: 797.0682883 | G118: 828.0910329 | H118: 14.47249167 | I118: 75.58409358
A119: 01/05/2016 21:00 EST | B119: 5387.1235 | E119: 3343.239063 | F119: 766.6313177 | G119: 796.4694231 | H119: 13.91984291 | I119: 72.69782791
A120: 01/05/2016 22:00 EST | B120: 4922.601 | E120: 3054.957243 | F120: 700.5260026 | G120: 727.7912189 | H120: 12.71955852 | I120: 66.42921781
A121: 01/05/2016 23:00 EST | B121: 4431.3435 | E121: 2750.08373 | F121: 630.6160804 | G121: 655.1603283 | H121: 11.4501933 | I121: 59.79982586
A122: 01/06/2016 00:00 EST | B122: 4043.6845 | E122: 2509.503259 | F122: 575.4490641 | G122: 597.8461531 | H122: 10.44851729 | I122: 54.56846866
A123: 01/06/2016 01:00 EST | B123: 3772.9916 | E123: 2341.511736 | F123: 536.9272715 | G123: 557.8250513 | H123: 9.749071163 | I123: 50.91553851
A124: 01/06/2016 02:00 EST | B124: 3575.8202 | E124: 2219.147523 | F124: 508.8681839 | G124: 528.6738742 | H124: 9.239597988 | I124: 48.25476185
A125: 01/06/2016 03:00 EST | B125: 3539.0594 | E125: 2196.333838 | F125: 503.6368242 | G125: 523.2389045 | H125: 9.144611385 | I125: 47.75868443
A126: 01/06/2016 04:00 EST | B126: 3592.5296 | E126: 2229.517347 | F126: 511.2460668 | G126: 531.144307 | H126: 9.282773576 | I126: 48.48025085
A127: 01/06/2016 05:00 EST | B127: 3642.6579 | E127: 2260.626879 | F127: 518.37973 | G127: 538.5556199 | H127: 9.412300597 | I127: 49.15671919
A128: 01/06/2016 06:00 EST | B128: 3913.3508 | E128: 2428.618401 | F128: 556.9015227 | G128: 578.5767217 | H128: 10.11174672 | I128: 52.80964934
A129: 01/06/2016 07:00 EST | B129: 4361.1638 | E129: 2706.530336 | F129: 620.6289406 | G129: 644.7844783 | H129: 11.26885526 | I129: 58.85276909
A130: 01/06/2016 08:00 EST | B130: 4468.1043 | E130: 2772.897416 | F130: 635.8474401 | G130: 660.595298 | H130: 11.5451799 | I130: 60.29590327
A131: 01/06/2016 09:00 EST | B131: 4200.7532 | E131: =(B131/$C$2)*$E$2 -> 2606.979809 | F131: =(B131/$C$2)*$F$2 -> 597.8012126 | G131: =(B131/$C$2)*$G$2 -> 621.068271 | H131: =(B131/$C$2)*$H$2 -> 10.85436869 | I131: =(B131/$C$2)*$I$2 -> 56.68806984
A132: 01/06/2016 10:00 EST | B132: 4033.6588 | E132: 2503.281327 | F132: 574.0223258 | G132: 596.3638846 | H132: 10.42261178 | I132: 54.43317446
A133: 01/06/2016 11:00 EST | B133: 3933.4022 | E133: 2441.062263 | F133: 559.7549994 | G133: 581.5412587 | H133: 10.16355774 | I133: 53.08023776
A134: 01/06/2016 12:00 EST | B134: 3829.8036 | E134: 2376.76916 | F134: 545.0120793 | G134: 566.2245285 | H134: 9.895868265 | I134: 51.68220165
A135: 01/06/2016 13:00 EST | B135: 3702.8119 | E135: 2297.958342 | F135: 526.9401316 | G135: 547.4492014 | H135: 9.567733126 | I135: 49.96848175
A136: 01/06/2016 14:00 EST | B136: 3652.6836 | E136: 2266.84881 | F136: 519.8064684 | G136: 540.0378884 | H136: 9.438206105 | I136: 49.2920134
A137: 01/06/2016 15:00 EST | B137: 3709.4957 | E137: 2302.106296 | F137: 527.8912905 | G137: 548.4373804 | H137: 9.585003465 | I137: 50.05867789
A138: 01/06/2016 16:00 EST | B138: 3920.0346 | E138: 2432.766355 | F138: 557.8526816 | G138: 579.5649007 | H138: 10.12901706 | I138: 52.89984548
A139: 01/06/2016 17:00 EST | B139: 4544.9677 | E139: 2820.598702 | F139: 646.7857246 | G139: 671.9593122 | H139: 11.74378802 | I139: 61.33315483
A140: 01/06/2016 18:00 EST | B140: 5256.7898 | E140: 3262.354205 | F140: 748.0837763 | G140: 777.1999917 | H140: 13.58307234 | I140: 70.93900859
A141: 01/06/2016 19:00 EST | B141: 5066.3022 | E141: 3144.137946 | F141: 720.9758475 | G141: 749.0369936 | H141: 13.09086951 | I141: 68.36842806
A142: 01/06/2016 20:00 EST | B142: 5009.4901 | E142: 3108.88046 | F142: 712.8910255 | G142: 740.6375016 | H142: 12.94407215 | I142: 67.60176358
A143: 01/06/2016 21:00 EST | B143: 4889.1821 | E143: 3034.217534 | F143: 695.7702224 | G143: 722.8503387 | H143: 12.63320709 | I143: 65.97823847
A144: 01/06/2016 22:00 EST | B144: 4511.5488 | E144: 2799.858994 | F144: 642.0299444 | G144: 667.018432 | H144: 11.65743658 | I144: 60.88217548
A145: 01/06/2016 23:00 EST | B145: 3990.2143 | E145: 2476.31975 | F145: 567.8398215 | G145: 589.9407507 | H145: 10.31035509 | I145: 53.84690225
A146: 01/07/2016 00:00 EST | B146: 3515.6662 | E146: 2181.81606 | F146: 500.3077823 | G146: 519.7802928 | H146: 9.084165459 | I146: 47.44299929
A147: 01/07/2016 01:00 EST | B147: 3238.2895 | E147: 2009.676584 | F147: 460.8348308 | G147: 478.771012 | H147: 8.367448998 | I147: 43.699873
A148: 01/07/2016 02:00 EST | B148: 3191.503 | E148: 1980.640967 | F148: 454.1767328 | G148: 471.8537738 | H148: 8.246556887 | I148: 43.06850138
A149: 01/07/2016 03:00 EST | B149: 3164.7679 | E149: 1964.049212 | F149: 450.3721114 | G149: 467.9010725 | H149: 8.177475792 | I149: 42.70771817
A150: 01/07/2016 04:00 EST | B150: 3234.9476 | E150: 2007.602607 | F150: 460.3592513 | G150: 478.2769225 | H150: 8.358813829 | I150: 43.65477493
A151: 01/07/2016 05:00 EST | B151: 3305.1272 | E151: 2051.155939 | F151: 470.3463769 | G151: 488.6527577 | H151: 8.540151607 | I151: 44.60183035
A152: 01/07/2016 06:00 EST | B152: 3602.5553 | E152: 2235.739278 | F152: 512.6728052 | G152: 532.6265755 | H152: 9.308679083 | I152: 48.61554506
A153: 01/07/2016 07:00 EST | B153: 4030.3169 | E153: 2501.20735 | F153: 573.5467464 | G153: 595.8697951 | H153: 10.41397661 | I153: 54.38807639
A154: 01/07/2016 08:00 EST | B154: 4210.7789 | E154: 2613.20174 | F154: 599.227951 | G154: 622.5505395 | H154: 10.8802742 | I154: 56.82336405
A155: 01/07/2016 09:00 EST | B155: 4010.2656 | E155: 2488.76355 | F155: 570.6932839 | G155: 592.9052729 | H155: 10.36216585 | I155: 54.11748932
A156: 01/07/2016 10:00 EST | B156: 3970.1629 | E156: 2463.875887 | F156: 564.9863448 | G156: 586.9762136 | H156: 10.25854408 | I156: 53.57631383
A157: 01/07/2016 11:00 EST | B157: 3843.1712 | E157: 2385.065069 | F157: 546.9143971 | G157: 568.2008865 | H157: 9.930408941 | I157: 51.86259393
A158: 01/07/2016 12:00 EST | B158: 3742.9146 | E158: 2322.846005 | F158: 532.6470707 | G158: 553.3782606 | H158: 9.671354898 | I158: 50.50965724
A159: 01/07/2016 13:00 EST | B159: 3749.5983 | E159: 2326.993897 | F159: 533.5982153 | G159: 554.3664248 | H159: 9.688624979 | I159: 50.59985203
A160: 01/07/2016 14:00 EST | B160: 3575.8202 | E160: 2219.147523 | F160: 508.8681839 | G160: 528.6738742 | H160: 9.239597988 | I160: 48.25476185
A161: 01/07/2016 15:00 EST | B161: 3716.1795 | E161: 2306.25425 | F161: 528.8424494 | G161: 549.4255594 | H161: 9.602273803 | I161: 50.14887403
A162: 01/07/2016 16:00 EST | B162: 3853.1969 | E162: 2391.287 | F162: 548.3411354 | G162: 569.683155 | H162: 9.956314449 | I162: 51.99788814
A163: 01/07/2016 17:00 EST | B163: 4327.745 | E163: 2685.790689 | F163: 615.8731746 | G163: 639.8436129 | H163: 11.18250409 | I163: 58.40179109
A164: 01/07/2016 18:00 EST | B164: 5026.1996 | E164: 3119.250346 | F164: 715.2689227 | G164: 743.1079491 | H164: 12.98724799 | I164: 67.82725393
A165: 01/07/2016 19:00 EST | B165: 5049.5928 | E165: 3133.768123 | F165: 718.5979646 | G165: 746.5665608 | H165: 13.04769392 | I165: 68.14293906
A166: 01/07/2016 20:00 EST | B166: 4982.755 | E166: 3092.288706 | F166: 709.0864041 | G166: 736.6848004 | H166: 12.87499105 | I166: 67.24098037
A167: 01/07/2016 21:00 EST | B167: 4768.8742 | E167: 2959.55467 | F167: 678.6494335 | G167: 705.0631906 | H167: 12.32234229 | I167: 64.3547147
A168: 01/07/2016 22:00 EST | B168: 4458.0786 | E168: 2766.675485 | F168: 634.4207018 | G168: 659.1130295 | H168: 11.51927439 | I168: 60.16060907
A169: 01/07/2016 23:00 EST | B169: 3950.1116 | E169: 2451.432087 | F169: 562.1328824 | G169: 584.0116914 | H169: 10.20673332 | I169: 53.30572676
A170: 01/08/2016 00:00 EST | B170: 3542.4013 | E170: 2198.407815 | F170: 504.1124036 | G170: 523.732994 | H170: 9.153246554 | I170: 47.8037825
A171: 01/08/2016 01:00 EST | B171: 3371.965 | E171: 2092.635356 | F171: 479.8579374 | G171: 498.5345181 | H171: 8.712854474 | I171: 45.50378904
A172: 01/08/2016 02:00 EST | B172: 3248.3151 | E172: 2015.898453 | F172: 462.2615549 | G172: 480.2532657 | H172: 8.393354247 | I172: 43.83516586
A173: 01/08/2016 03:00 EST | B173: 3174.7936 | E173: 1970.271144 | F173: 451.7988498 | G173: 469.383341 | H173: 8.203381299 | I173: 42.84301238
A174: 01/08/2016 04:00 EST | B174: 3188.1612 | E174: 1978.567052 | F174: 453.7011675 | G174: 471.359699 | H174: 8.237921976 | I174: 43.02340466
A175: 01/08/2016 05:00 EST | B175: 3298.4435 | E175: 2047.008047 | F175: 469.3952323 | G175: 487.6645935 | H175: 8.522881527 | I175: 44.51163556
A176: 01/08/2016 06:00 EST | B176: 3545.7432 | E176: 2200.481792 | F176: 504.5879831 | G176: 524.2270835 | H176: 9.161881723 | I176: 47.84888057
A177: 01/08/2016 07:00 EST | B177: 4010.2656 | E177: 2488.76355 | F177: 570.6932839 | G177: 592.9052729 | H177: 10.36216585 | I177: 54.11748932
A178: 01/08/2016 08:00 EST | B178: 4214.1208 | E178: 2615.275717 | F178: 599.7035304 | G178: 623.044629 | H178: 10.88890937 | I178: 56.86846212
A179: 01/08/2016 09:00 EST | B179: 4050.3683 | E179: 2513.651213 | F179: 576.400223 | G179: 598.8343321 | H179: 10.46578762 | I179: 54.6586648
A180: 01/08/2016 10:00 EST | B180: 3993.5562 | E180: 2478.393727 | F180: 568.3154009 | G180: 590.4348402 | H180: 10.31899026 | I180: 53.89200032
A181: 01/08/2016 11:00 EST | B181: 3783.0172 | E181: 2347.733605 | F181: 538.3539956 | G181: 559.3073051 | H181: 9.774976412 | I181: 51.05083137
A182: 01/08/2016 12:00 EST | B182: 3849.855 | E182: 2389.213023 | F182: 547.865556 | G182: 569.1890655 | H182: 9.94767928 | I182: 51.95279007
A183: 01/08/2016 13:00 EST | B183: 3729.547 | E183: 2314.550096 | F183: 530.7447529 | G183: 551.4019026 | H183: 9.636814222 | I183: 50.32926496
A184: 01/08/2016 14:00 EST | B184: 3739.5727 | E184: 2320.772028 | F184: 532.1714912 | G184: 552.8841711 | H184: 9.662719729 | I184: 50.46455917
A185: 01/08/2016 15:00 EST | B185: 3836.4874 | E185: 2380.917114 | F185: 545.9632382 | G185: 567.2127075 | H185: 9.913138603 | I185: 51.77239779
A186: 01/08/2016 16:00 EST | B186: 3950.1116 | E186: 2451.432087 | F186: 562.1328824 | G186: 584.0116914 | H186: 10.20673332 | I186: 53.30572676
A187: 01/08/2016 17:00 EST | B187: 4444.711 | E187: 2758.379576 | F187: 632.518384 | G187: 657.1366715 | H187: 11.48473372 | I187: 59.98021679
A188: 01/08/2016 18:00 EST | B188: 4919.2591 | E188: 3052.883266 | F188: 700.0504232 | G188: 727.2971294 | H188: 12.71092335 | I188: 66.38411974
A189: 01/08/2016 19:00 EST | B189: 4845.7376 | E189: 3007.255956 | F189: 689.5877181 | G189: 716.4272047 | H189: 12.5209504 | I189: 65.39196626
A190: 01/08/2016 20:00 EST | B190: 4621.8311 | E190: 2868.299989 | F190: 657.7240091 | G190: 683.3233264 | H190: 11.94239613 | I190: 62.37040638
A191: 01/08/2016 21:00 EST | B191: 4521.5745 | E191: 2806.080925 | F191: 643.4566827 | G191: 668.5007005 | H191: 11.68334209 | I191: 61.01746969
A192: 01/08/2016 22:00 EST | B192: 4317.7193 | E192: 2679.568758 | F192: 614.4464363 | G192: 638.3613444 | H192: 11.15659858 | I192: 58.26649689
A193: 01/08/2016 23:00 EST | B193: 3930.0603 | E193: 2438.988286 | F193: 559.2794199 | G193: 581.0471692 | H193: 10.15492257 | I193: 53.03513969
A194: 01/09/2016 00:00 EST | B194: 3545.7432 | E194: 2200.481792 | F194: 504.5879831 | G194: 524.2270835 | H194: 9.161881723 | I194: 47.84888057
A195: 01/09/2016 01:00 EST | B195: 3285.0759 | E195: =(B195/$C$2)*$E$2 -> 2038.712139 | F195: =(B195/$C$2)*$F$2 -> 467.4929145 | G195: =(B195/$C$2)*$G$2 -> 485.6882354 | H195: =(B195/$C$2)*$H$2 -> 8.48834085 | I195: =(B195/$C$2)*$I$2 -> 44.33124328
A196: 01/09/2016 02:00 EST | B196: 3047.8019 | E196: 1891.460325 | F196: 433.726902 | G196: 450.6080139 | H196: 7.875246161 | I196: 41.12929247
A197: 01/09/2016 03:00 EST | B197: 2967.5965 | E197: 1841.685 | F197: 422.3130238 | G197: 438.7498954 | H197: 7.668002617 | I197: 40.0469415
A198: 01/09/2016 04:00 EST | B198: 3014.383 | E198: 1870.720617 | F198: 428.9711218 | G198: 445.6671337 | H198: 7.788894727 | I198: 40.67831313
A199: 01/09/2016 05:00 EST | B199: 3017.7249 | E199: 1872.794594 | F199: 429.4467013 | G199: 446.1612232 | H199: 7.797529897 | I199: 40.7234112
A200: 01/09/2016 06:00 EST | B200: 3044.46 | E200: 1889.386348 | F200: 433.2513226 | G200: 450.1139244 | H200: 7.866610992 | I200: 41.08419441
... 8608 more rows

Sheet 2017
A1: HOURLY | B1: USAGE | C1: Powerbill | D1: Total | E1: Residential | F1: GS<50 | G1: GS>50 | H1: USL | I1: SL
C2: =SUM(B3:B745) -> 2929108.021 | D2: =SUM(E2:I2) -> 2703267 | E2: 1842617 | F2: 418476 | G2: 412618 | H2: 7757 | I2: 21799
A3: 01/01/2017 01:00 EST | B3: 3635.9741 | C3: =SUM(B3:B745) -> 2929108.021 | E3: =(B3/$C$2)*$E$2 -> 2287.285973 | F3: =(B3/$C$2)*$F$2 -> 519.4645901 | G3: =(B3/$C$2)*$G$2 -> 512.1929101 | H3: =(B3/$C$2)*$H$2 -> 9.628955605 | I3: =(B3/$C$2)*$I$2 -> 27.05963687
A4: 01/01/2017 02:00 EST | B4: 3468.8797 | E4: =(B4/$C$2)*$E$2 -> 2182.171726 | F4: =(B4/$C$2)*$F$2 -> 495.5921363 | G4: =(B4/$C$2)*$G$2 -> 488.6546327 | H4: =(B4/$C$2)*$H$2 -> 9.186448449 | I4: =(B4/$C$2)*$I$2 -> 25.81608737
A5: 01/01/2017 03:00 EST | B5: 3351.9137 | E5: =(B5/$C$2)*$E$2 -> 2108.591804 | F5: =(B5/$C$2)*$F$2 -> 478.88143 | G5: =(B5/$C$2)*$G$2 -> 472.1778498 | H5: =(B5/$C$2)*$H$2 -> 8.876693651 | I5: =(B5/$C$2)*$I$2 -> 24.94560331
A6: 01/01/2017 04:00 EST | B6: 3198.1868 | E6: 2011.886665 | F6: 456.918765 | G6: 450.5226273 | H6: 8.46958693 | I6: 23.80153738
A7: 01/01/2017 05:00 EST | B7: 3141.3747 | E7: 1976.147819 | F7: 448.8021301 | G7: 442.5196124 | H7: 8.319134486 | I7: 23.37873052
A8: 01/01/2017 06:00 EST | B8: 3201.5287 | E8: 2013.988957 | F8: 457.3962158 | G8: 450.9933945 | H8: 8.478437105 | I8: 23.82640846
A9: 01/01/2017 07:00 EST | B9: 3358.5974 | E9: 2112.796326 | F9: 479.8363173 | G9: 473.1193702 | H9: 8.894393736 | I9: 24.99534473
A10: 01/01/2017 08:00 EST | B10: 3438.8028 | E10: 2163.25122 | F10: 491.2951077 | G10: 484.4177557 | H10: 9.106797404 | I10: 25.59224914
A11: 01/01/2017 09:00 EST | B11: 3582.5039 | E11: 2253.649419 | F11: 511.825406 | G11: 504.6606625 | H11: 9.487353336 | I11: 26.66170109
A12: 01/01/2017 10:00 EST | B12: 3652.6836 | E12: 2297.797435 | F12: 521.8518441 | G12: 514.5467463 | H12: 9.67320648 | I12: 27.18399227
A13: 01/01/2017 11:00 EST | B13: 3736.2308 | E13: 2350.354558 | F13: 533.788071 | G13: 526.315885 | H13: 9.894460058 | I13: 27.80576702
A14: 01/01/2017 12:00 EST | B14: 3759.624 | E14: 2365.070543 | F14: 537.1302123 | G14: 529.6112416 | H14: 9.956411017 | I14: 27.97986383
A15: 01/01/2017 13:00 EST | B15: 3629.2904 | E15: 2283.081451 | F15: 518.5097029 | G15: 511.2513897 | H15: 9.61125552 | I15: 27.00989546
A16: 01/01/2017 14:00 EST | B16: 3709.4957 | E16: 2333.536281 | F16: 529.968479 | G16: 522.5497612 | H16: 9.823658923 | I16: 27.60679913
A17: 01/01/2017 15:00 EST | B17: 3686.1025 | E17: 2318.820297 | F17: 526.6263377 | G17: 519.2544046 | H17: 9.761707964 | I17: 27.43270232
A18: 01/01/2017 16:00 EST | B18: 3836.4874 | E18: 2413.423081 | F18: 548.1115377 | G18: 540.4388458 | H18: 10.15996425 | I18: 28.55189643
A19: 01/01/2017 17:00 EST | B19: 4314.3774 | E19: 2714.049835 | F19: 616.386758 | G19: 607.7583215 | H19: 11.42553476 | I19: 32.10844813
A20: 01/01/2017 18:00 EST | B20: 4765.5323 | E20: 2997.858313 | F20: 680.8423864 | G20: 671.3116733 | H20: 12.62030413 | I20: 35.46603194
A21: 01/01/2017 19:00 EST | B21: 4668.6175 | E21: 2936.89202 | F21: 666.9963563 | G21: 657.6594656 | H21: 12.36364985 | I21: 34.74477287
A22: 01/01/2017 20:00 EST | B22: 4528.2582 | E22: 2848.596051 | F22: 646.9434944 | G22: 637.887312 | H22: 11.99194383 | I22: 33.70019125
A23: 01/01/2017 21:00 EST | B23: 4337.7706 | E23: 2728.76582 | F23: 619.7288993 | G23: 611.053678 | H23: 11.48748571 | I23: 32.28254494
A24: 01/01/2017 22:00 EST | B24: 4244.1978 | E24: 2669.901882 | F24: 606.3603343 | G24: 597.8722517 | H24: 11.23968188 | I24: 31.58615769
A25: 01/01/2017 23:00 EST | B25: 3849.855 | E25: 2421.832251 | F25: 550.0213408 | G25: 542.3219148 | H25: 10.19536495 | I25: 28.65138075
A26: 01/02/2017 00:00 EST | B26: 3565.7945 | E26: 2243.138019 | F26: 509.4381664 | G26: 502.3068404 | H26: 9.443102727 | I26: 26.53734644
A27: 01/02/2017 01:00 EST | B27: 3371.965 | E27: 2121.205496 | F27: 481.7461204 | G27: 475.0024392 | H27: 8.929794436 | I27: 25.09482905
A28: 01/02/2017 02:00 EST | B28: 3308.4691 | E28: 2081.262065 | F28: 472.674584 | G28: 466.0578898 | H28: 8.761641642 | I28: 24.62228003
A29: 01/02/2017 03:00 EST | B29: 3281.734 | E29: 2064.443788 | F29: 468.8549919 | G29: 462.291766 | H29: 8.690840508 | I29: 24.42331213
A30: 01/02/2017 04:00 EST | B30: 3244.9732 | E30: 2041.318634 | F30: 463.6030475 | G30: 457.1133404 | H30: 8.593488849 | I30: 24.14973101
A31: 01/02/2017 05:00 EST | B31: 3325.1786 | E31: 2091.773527 | F31: 475.0618379 | G31: 468.411726 | H31: 8.805892517 | I31: 24.74663542
A32: 01/02/2017 06:00 EST | B32: 3418.7514 | E32: 2150.637465 | F32: 488.430403 | G32: 481.5931523 | H32: 9.053696355 | I32: 25.44302267
A33: 01/02/2017 07:00 EST | B33: 3612.5809 | E33: 2272.569988 | F33: 516.1224489 | G33: 508.8975535 | H33: 9.567004646 | I33: 26.88554006
A34: 01/02/2017 08:00 EST | B34: 3712.8376 | E34: 2335.638574 | F34: 530.4459298 | G34: 523.0205284 | H34: 9.832509098 | I34: 27.63167021
A35: 01/02/2017 09:00 EST | B35: 3823.1199 | E35: 2405.013974 | F35: 546.2017488 | G35: 538.555791 | H35: 10.12456381 | I35: 28.45241285
A36: 01/02/2017 10:00 EST | B36: 3893.2995 | E36: 2449.161927 | F36: 556.2281726 | G36: 548.4418607 | H36: 10.31041669 | I36: 28.97470329
A37: 01/02/2017 11:00 EST | B37: 3863.2225 | E37: 2430.241358 | F37: 551.9311297 | G37: 544.2049696 | H37: 10.23076538 | I37: 28.75086432
A38: 01/02/2017 12:00 EST | B38: 3956.7954 | E38: 2489.105358 | F38: 565.299709 | G38: 557.3864101 | H38: 10.47856948 | I38: 29.44725231
A39: 01/02/2017 13:00 EST | B39: 3786.3591 | E39: 2381.88882 | F39: 540.9498044 | G39: 533.3773654 | H39: 10.02721215 | I39: 28.17883173
A40: 01/02/2017 14:00 EST | B40: 3682.7606 | E40: 2316.718004 | F40: 526.1488869 | G40: 518.7836374 | H40: 9.752857789 | I40: 27.40783124
A41: 01/02/2017 15:00 EST | B41: 3652.6836 | E41: 2297.797435 | F41: 521.8518441 | G41: 514.5467463 | H41: 9.67320648 | I41: 27.18399227
A42: 01/02/2017 16:00 EST | B42: 3806.4104 | E42: 2394.502511 | F42: 543.8144948 | G42: 536.2019548 | H42: 10.08031294 | I42: 28.32805746
A43: 01/02/2017 17:00 EST | B43: 4377.8733 | E43: 2753.993267 | F43: 625.4582945 | G43: 616.7028708 | H43: 11.59368755 | I43: 32.58099715
A44: 01/02/2017 18:00 EST | B44: 4909.2335 | E44: 3088.256575 | F44: 701.372699 | G44: 691.5545941 | H44: 13.00086033 | I44: 36.53548463
A45: 01/02/2017 19:00 EST | B45: 4715.404 | E45: 2966.324052 | F45: 673.6806531 | G45: 664.2501929 | H45: 12.48755204 | I45: 35.09296723
A46: 01/02/2017 20:00 EST | B46: 4685.327 | E46: 2947.403482 | F46: 669.3836102 | G46: 660.0133018 | H46: 12.40790073 | I46: 34.86912826
A47: 01/02/2017 21:00 EST | B47: 4501.5231 | E47: 2831.777774 | F47: 643.1239024 | G47: 634.1211882 | H47: 11.9211427 | I47: 33.50122336
A48: 01/02/2017 22:00 EST | B48: 4217.4627 | E48: 2653.083605 | F48: 602.5407422 | G48: 594.1061279 | H48: 11.16888074 | I48: 31.3871898
A49: 01/02/2017 23:00 EST | B49: 3960.1373 | E49: 2491.207651 | F49: 565.7771598 | G49: 557.8571773 | H49: 10.48741966 | I49: 29.47212339
A50: 01/03/2017 00:00 EST | B50: 3525.6918 | E50: 2217.910573 | F50: 503.7087712 | G50: 496.6576476 | H50: 9.336900892 | I50: 26.23889423
A51: 01/03/2017 01:00 EST | B51: 3208.2125 | E51: 2018.193542 | F51: 458.3511174 | G51: 451.934929 | H51: 8.496137454 | I51: 23.87615062
A52: 01/03/2017 02:00 EST | B52: 3011.0411 | E52: 1894.158727 | F52: 430.1816206 | G52: 424.1597605 | H52: 7.973978989 | I52: 22.40876215
A53: 01/03/2017 03:00 EST | B53: 3027.7505 | E53: 1904.670126 | F53: 432.5688603 | G53: 426.5135826 | H53: 8.018229598 | I53: 22.5331168
A54: 01/03/2017 04:00 EST | B54: 3034.4343 | E54: 1908.874711 | F54: 433.5237619 | G54: 427.4551171 | H54: 8.035929948 | I54: 22.58285896
A55: 01/03/2017 05:00 EST | B55: 3084.5626 | E55: 1940.408972 | F55: 440.6854952 | G55: 434.5165975 | H55: 8.168682042 | I55: 22.95592366
A56: 01/03/2017 06:00 EST | B56: 3311.811 | E56: 2083.364357 | F56: 473.1520348 | G56: 466.528657 | H56: 8.770491817 | I56: 24.6471511
A57: 01/03/2017 07:00 EST | B57: 3559.1107 | E57: 2238.933434 | F57: 508.4832648 | G57: 501.3653059 | H57: 9.425402377 | I57: 26.48760428
A58: 01/03/2017 08:00 EST | B58: 3706.1538 | E58: 2331.433989 | F58: 529.4910282 | G58: 522.078994 | H58: 9.814808748 | I58: 27.58192805
A59: 01/03/2017 09:00 EST | B59: 3759.624 | E59: 2365.070543 | F59: 537.1302123 | G59: 529.6112416 | H59: 9.956411017 | I59: 27.97986383
A60: 01/03/2017 10:00 EST | B60: 3950.1116 | E60: 2484.900773 | F60: 564.3448074 | G60: 556.4448756 | H60: 10.46086913 | I60: 29.39751015
A61: 01/03/2017 11:00 EST | B61: 3923.3765 | E61: 2468.082497 | F61: 560.5252154 | G61: 552.6787518 | H61: 10.390068 | I61: 29.19854226
A62: 01/03/2017 12:00 EST | B62: 4006.9237 | E62: 2520.63962 | F62: 572.4614423 | G62: 564.4478905 | H62: 10.61132158 | I62: 29.82031701
A63: 01/03/2017 13:00 EST | B63: 4123.8898 | E63: 2594.219605 | F63: 589.1721629 | G63: 580.9246875 | H63: 10.92107664 | I63: 30.69080181
A64: 01/03/2017 14:00 EST | B64: 4057.052 | E64: 2552.173881 | F64: 579.6231756 | G64: 571.5093709 | H64: 10.74407367 | I64: 30.19338171
A65: 01/03/2017 15:00 EST | B65: 4016.9494 | E65: 2526.946497 | F65: 573.8937947 | G65: 565.8601922 | H65: 10.6378721 | I65: 29.89493025
A66: 01/03/2017 16:00 EST | B66: 4197.4113 | E66: 2640.46985 | F66: 599.6760375 | G66: 591.2815245 | H66: 11.11577969 | I66: 31.23796333
A67: 01/03/2017 17:00 EST | B67: 4752.1647 | E67: 2989.449143 | F67: 678.9325832 | G67: 669.4286043 | H67: 12.58490343 | I67: 35.36654762
A68: 01/03/2017 18:00 EST | B68: 5089.6954 | E68: 3201.779928 | F68: 727.1549418 | G68: 716.9759264 | H68: 13.47876792 | I68: 37.87851771
A69: 01/03/2017 19:00 EST | B69: 4778.8998 | E69: =(B69/$C$2)*$E$2 -> 3006.26742 | F69: =(B69/$C$2)*$F$2 -> 682.7521753 | G69: =(B69/$C$2)*$G$2 -> 673.1947281 | H69: =(B69/$C$2)*$H$2 -> 12.65570456 | I69: =(B69/$C$2)*$I$2 -> 35.56551551
A70: 01/03/2017 20:00 EST | B70: 4839.0538 | E70: 3044.108559 | F70: 691.3462609 | G70: 681.6685103 | H70: 12.81500718 | I70: 36.01319345
A71: 01/03/2017 21:00 EST | B71: 4591.7541 | E71: 2888.539482 | F71: 656.0150309 | G71: 646.8318614 | H71: 12.16009662 | I71: 34.17274027
A72: 01/03/2017 22:00 EST | B72: 4220.8045 | E72: 2655.185835 | F72: 603.0181787 | G72: 594.576881 | H72: 11.17773065 | I72: 31.41206014
A73: 01/03/2017 23:00 EST | B73: 3883.2739 | E73: 2442.855113 | F73: 554.7958345 | G73: 547.0295731 | H73: 10.28386643 | I73: 28.90009079
A74: 01/04/2017 00:00 EST | B74: 3408.7258 | E74: 2144.330651 | F74: 486.9980649 | G74: 480.1808647 | H74: 9.027146095 | I74: 25.36841017
A75: 01/04/2017 01:00 EST | B75: 3107.9558 | E75: 1955.124957 | F75: 444.0276365 | G75: 437.8119541 | H75: 8.230633002 | I75: 23.13002047
A76: 01/04/2017 02:00 EST | B76: 2967.5965 | E76: 1866.828987 | F76: 423.9747746 | G76: 418.0398005 | H76: 7.85892698 | I76: 22.08543886
A77: 01/04/2017 03:00 EST | B77: 2947.5452 | E77: 1854.215295 | F77: 421.1100842 | G77: 415.2152112 | H77: 7.805826195 | I77: 21.93621313
A78: 01/04/2017 04:00 EST | B78: 2924.152 | E78: 1839.499311 | F78: 417.7679429 | G78: 411.9198546 | H78: 7.743875236 | I78: 21.76211632
A79: 01/04/2017 05:00 EST | B79: 2960.9128 | E79: 1862.624465 | F79: 423.0198873 | G79: 417.0982801 | H79: 7.841226895 | I79: 22.03569744
A80: 01/04/2017 06:00 EST | B80: 3228.2638 | E80: 2030.807234 | F80: 461.2158078 | G80: 454.7595183 | H80: 8.549238239 | I80: 24.02537635
A81: 01/04/2017 07:00 EST | B81: 3472.2216 | E81: 2184.274019 | F81: 496.0695871 | G81: 489.1254 | H81: 9.195298624 | I81: 25.84095845
A82: 01/04/2017 08:00 EST | B82: 3492.273 | E82: 2196.887774 | F82: 498.9342918 | G82: 491.9500034 | H82: 9.248399673 | I82: 25.99018493
A83: 01/04/2017 09:00 EST | B83: 3549.0851 | E83: 2232.62662 | F83: 507.0509267 | G83: 499.9530183 | H83: 9.398852117 | I83: 26.41299179
A84: 01/04/2017 10:00 EST | B84: 3592.5296 | E84: 2259.956296 | F84: 513.2577584 | G84: 506.0729642 | H84: 9.513903861 | I84: 26.73631433
A85: 01/04/2017 11:00 EST | B85: 3736.2308 | E85: 2350.354558 | F85: 533.788071 | G85: 526.315885 | H85: 9.894460058 | I85: 27.80576702
A86: 01/04/2017 12:00 EST | B86: 3712.8376 | E86: 2335.638574 | F86: 530.4459298 | G86: 523.0205284 | H86: 9.832509098 | I86: 27.63167021
A87: 01/04/2017 13:00 EST | B87: 3582.5039 | E87: 2253.649419 | F87: 511.825406 | G87: 504.6606625 | H87: 9.487353336 | I87: 26.66170109
A88: 01/04/2017 14:00 EST | B88: 3428.7771 | E88: 2156.944342 | F88: 489.8627553 | G88: 483.005454 | H88: 9.08024688 | I88: 25.51763591
A89: 01/04/2017 15:00 EST | B89: 3388.6744 | E89: 2131.716896 | F89: 484.1333601 | G89: 477.3562613 | H89: 8.974045045 | I89: 25.2191837
A90: 01/04/2017 16:00 EST | B90: 3702.8119 | E90: 2329.331696 | F90: 529.0135774 | G90: 521.6082267 | H90: 9.805958574 | I90: 27.55705697
A91: 01/04/2017 17:00 EST | B91: 4364.5057 | E91: 2745.584097 | F91: 623.5484914 | G91: 614.8198019 | H91: 11.55828685 | I91: 32.48151283
A92: 01/04/2017 18:00 EST | B92: 4879.1565 | E92: 3069.336006 | F92: 697.0756562 | G92: 687.317703 | H92: 12.92120902 | I92: 36.31164566
A93: 01/04/2017 19:00 EST | B93: 4758.8485 | E93: 2993.653728 | F93: 679.8874848 | G93: 670.3701388 | H93: 12.60260378 | I93: 35.41628978
A94: 01/04/2017 20:00 EST | B94: 4715.404 | E94: 2966.324052 | F94: 673.6806531 | G94: 664.2501929 | H94: 12.48755204 | I94: 35.09296723
A95: 01/04/2017 21:00 EST | B95: 4638.5405 | E95: 2917.971451 | F95: 662.6993134 | G95: 653.4225746 | H95: 12.28399854 | I95: 34.5209339
A96: 01/04/2017 22:00 EST | B96: 4397.9246 | E96: 2766.606959 | F96: 628.322985 | G96: 619.5274602 | H96: 11.64678833 | I96: 32.73022288
A97: 01/04/2017 23:00 EST | B97: 3990.2143 | E97: 2510.12822 | F97: 570.0742027 | G97: 562.0940684 | H97: 10.56707097 | I97: 29.69596236
A98: 01/05/2017 00:00 EST | B98: 3622.6066 | E98: 2278.876866 | F98: 517.5548013 | G98: 510.3098553 | H98: 9.59355517 | I98: 26.9601533
A99: 01/05/2017 01:00 EST | B99: 3392.0163 | E99: 2133.819188 | F99: 484.6108109 | G99: 477.8270285 | H99: 8.98289522 | I99: 25.24405478
A100: 01/05/2017 02:00 EST | B100: 3224.9219 | E100: 2028.704942 | F100: 460.738357 | G100: 454.2887511 | H100: 8.540388064 | I100: 24.00050527
A101: 01/05/2017 03:00 EST | B101: 3191.503 | E101: 2007.68208 | F101: 455.9638634 | G101: 449.5810928 | H101: 8.45188658 | I101: 23.75179522
A102: 01/05/2017 04:00 EST | B102: 3234.9476 | E102: 2035.011819 | F102: 462.1707094 | G102: 455.7010528 | H102: 8.566938589 | I102: 24.07511851
A103: 01/05/2017 05:00 EST | B103: 3355.2556 | E103: 2110.694097 | F103: 479.3588808 | G103: 472.648617 | H103: 8.885543826 | I103: 24.97047439
A104: 01/05/2017 06:00 EST | B104: 3585.8458 | E104: 2255.751711 | F104: 512.3028568 | G104: 505.1314297 | H104: 9.496203511 | I104: 26.68657217
A105: 01/05/2017 07:00 EST | B105: 3859.8806 | E105: 2428.139065 | F105: 551.4536789 | G105: 543.7342024 | H105: 10.22191521 | I105: 28.72599324
A106: 01/05/2017 08:00 EST | B106: 3960.1373 | E106: 2491.207651 | F106: 565.7771598 | G106: 557.8571773 | H106: 10.48741966 | I106: 29.47212339
A107: 01/05/2017 09:00 EST | B107: 4003.5818 | E107: 2518.537327 | F107: 571.9839915 | G107: 563.9771232 | H107: 10.6024714 | I107: 29.79544593
A108: 01/05/2017 10:00 EST | B108: 3869.9063 | E108: 2434.445943 | F108: 552.8860313 | G108: 545.1465041 | H108: 10.24846573 | I108: 28.80060648
A109: 01/05/2017 11:00 EST | B109: 3789.701 | E109: 2383.991112 | F109: 541.4272551 | G109: 533.8481327 | H109: 10.03606233 | I109: 28.2037028
A110: 01/05/2017 12:00 EST | B110: 3973.5048 | E110: 2499.616758 | F110: 567.6869487 | G110: 559.7402322 | H110: 10.52282009 | I110: 29.57160696
A111: 01/05/2017 13:00 EST | B111: 3950.1116 | E111: 2484.900773 | F111: 564.3448074 | G111: 556.4448756 | H111: 10.46086913 | I111: 29.39751015
A112: 01/05/2017 14:00 EST | B112: 3916.6927 | E112: 2463.877912 | F112: 559.5703138 | G112: 551.7372173 | H112: 10.37236765 | I112: 29.1488001
A113: 01/05/2017 15:00 EST | B113: 4026.975 | E113: 2533.253312 | F113: 575.3261328 | G113: 567.2724798 | H113: 10.66442236 | I113: 29.96954274
A114: 01/05/2017 16:00 EST | B114: 4184.0438 | E114: 2632.060743 | F114: 597.7662486 | G114: 589.3984696 | H114: 11.08037926 | I114: 31.13847975
A115: 01/05/2017 17:00 EST | B115: 4678.6432 | E115: 2943.198898 | F115: 668.4287086 | G115: 659.0717673 | H115: 12.39020038 | I115: 34.81938611
A116: 01/05/2017 18:00 EST | B116: 5166.5588 | E116: 3250.132467 | F116: 738.1362671 | G116: 727.8035306 | H116: 13.68232115 | I116: 38.4505503
A117: 01/05/2017 19:00 EST | B117: 4992.7807 | E117: 3140.813698 | F117: 713.3089259 | G117: 703.3237328 | H117: 13.22211391 | I117: 37.15725938
A118: 01/05/2017 20:00 EST | B118: 4989.4388 | E118: 3138.711406 | F118: 712.8314751 | G118: 702.8529656 | H118: 13.21326373 | I118: 37.1323883
A119: 01/05/2017 21:00 EST | B119: 4832.37 | E119: 3039.903974 | F119: 690.3913594 | G119: 680.7269758 | H119: 12.79730683 | I119: 35.96345129
A120: 01/05/2017 22:00 EST | B120: 4568.3609 | E120: 2873.823497 | F120: 652.6728897 | G120: 643.5365048 | H120: 12.09814566 | I120: 33.99864346
A121: 01/05/2017 23:00 EST | B121: 4207.437 | E121: 2646.776728 | F121: 601.1083898 | G121: 592.6938262 | H121: 11.14233022 | I121: 31.31257656
A122: 01/06/2017 00:00 EST | B122: 3843.1712 | E122: 2417.627666 | F122: 549.0664392 | G122: 541.3803803 | H122: 10.1776646 | I122: 28.60163859
A123: 01/06/2017 01:00 EST | B123: 3498.9567 | E123: 2201.092296 | F123: 499.8891791 | G123: 492.8915238 | H123: 9.266099758 | I123: 26.03992634
A124: 01/06/2017 02:00 EST | B124: 3378.6488 | E124: 2125.410081 | F124: 482.701022 | G124: 475.9439736 | H124: 8.947494786 | I124: 25.1445712
A125: 01/06/2017 03:00 EST | B125: 3361.9393 | E125: 2114.898619 | F125: 480.3137681 | G125: 473.5901374 | H125: 8.903243911 | I125: 25.02021581
A126: 01/06/2017 04:00 EST | B126: 3458.8541 | E126: 2175.864912 | F126: 494.1597982 | G126: 487.2423451 | H126: 9.159898189 | I126: 25.74147488
A127: 01/06/2017 05:00 EST | B127: 3525.6918 | E127: 2217.910573 | F127: 503.7087712 | G127: 496.6576476 | H127: 9.336900892 | I127: 26.23889423
A128: 01/06/2017 06:00 EST | B128: 3849.855 | E128: 2421.832251 | F128: 550.0213408 | G128: 542.3219148 | H128: 10.19536495 | I128: 28.65138075
A129: 01/06/2017 07:00 EST | B129: 4010.2656 | E129: 2522.741912 | F129: 572.9388931 | G129: 564.9186577 | H129: 10.62017175 | I129: 29.84518809
A130: 01/06/2017 08:00 EST | B130: 4194.0694 | E130: 2638.367558 | F130: 599.1985867 | G130: 590.8107572 | H130: 11.10692952 | I130: 31.21309225
A131: 01/06/2017 09:00 EST | B131: 4214.1208 | E131: 2650.981313 | F131: 602.0632914 | G131: 593.6353607 | H131: 11.16003057 | I131: 31.36231872
A132: 01/06/2017 10:00 EST | B132: 4157.3087 | E132: 2615.242467 | F132: 593.9466565 | G132: 585.6323458 | H132: 11.00957812 | I132: 30.93951186
A133: 01/06/2017 11:00 EST | B133: 4117.206 | E133: =(B133/$C$2)*$E$2 -> 2590.01502 | F133: =(B133/$C$2)*$F$2 -> 588.2172613 | G133: =(B133/$C$2)*$G$2 -> 579.983153 | H133: =(B133/$C$2)*$H$2 -> 10.90337629 | I133: =(B133/$C$2)*$I$2 -> 30.64105965
A134: 01/06/2017 12:00 EST | B134: 4006.9237 | E134: 2520.63962 | F134: 572.4614423 | G134: 564.4478905 | H134: 10.61132158 | I134: 29.82031701
A135: 01/06/2017 13:00 EST | B135: 3863.2225 | E135: 2430.241358 | F135: 551.9311297 | G135: 544.2049696 | H135: 10.23076538 | I135: 28.75086432
A136: 01/06/2017 14:00 EST | B136: 3823.1199 | E136: 2405.013974 | F136: 546.2017488 | G136: 538.555791 | H136: 10.12456381 | I136: 28.45241285
A137: 01/06/2017 15:00 EST | B137: 3839.8293 | E137: 2415.525373 | F137: 548.5889885 | G137: 540.9096131 | H137: 10.16881442 | I137: 28.57676751
A138: 01/06/2017 16:00 EST | B138: 4053.7101 | E138: 2550.071589 | F138: 579.1457248 | G138: 571.0386036 | H138: 10.7352235 | I138: 30.16851063
A139: 01/06/2017 17:00 EST | B139: 4625.173 | E139: 2909.562344 | F139: 660.7895245 | G139: 651.5395197 | H139: 12.24859811 | I139: 34.42145032
A140: 01/06/2017 18:00 EST | B140: 5159.8751 | E140: 3245.927945 | F140: 737.1813798 | G140: 726.8620102 | H140: 13.66462106 | I140: 38.40080888
A141: 01/06/2017 19:00 EST | B141: 4999.4644 | E141: 3145.01822 | F141: 714.2638132 | G141: 704.2652532 | H141: 13.23981399 | I141: 37.2070008
A142: 01/06/2017 20:00 EST | B142: 4976.0712 | E142: 3130.302236 | F142: 710.921672 | G142: 700.9698966 | H142: 13.17786303 | I142: 37.03290398
A143: 01/06/2017 21:00 EST | B143: 4939.3105 | E143: 3107.177144 | F143: 705.6697418 | G143: 695.7914852 | H143: 13.08051164 | I143: 36.7593236
A144: 01/06/2017 22:00 EST | B144: 4722.0877 | E144: 2970.528574 | F144: 674.6355404 | G144: 665.1917133 | H144: 12.50525212 | I144: 35.14270865
A145: 01/06/2017 23:00 EST | B145: 4401.2665 | E145: 2768.709251 | F145: 628.8004358 | G145: 619.9982274 | H145: 11.65563851 | I145: 32.75509396
A146: 01/07/2017 00:00 EST | B146: 4110.5222 | E146: 2585.810435 | F146: 587.2623597 | G146: 579.0416185 | H146: 10.88567594 | I146: 30.59131749
A147: 01/07/2017 01:00 EST | B147: 3856.5388 | E147: 2426.036836 | F147: 550.9762424 | G147: 543.2634493 | H147: 10.2130653 | I147: 28.7011229
A148: 01/07/2017 02:00 EST | B148: 3762.9659 | E148: 2367.172835 | F148: 537.6076631 | G148: 530.0820088 | H148: 9.965261192 | I148: 28.00473491
A149: 01/07/2017 03:00 EST | B149: 3739.5727 | E149: 2352.456851 | F149: 534.2655218 | G149: 526.7866523 | H149: 9.903310233 | I149: 27.8306381
A150: 01/07/2017 04:00 EST | B150: 3803.0685 | E150: 2392.400219 | F150: 543.337044 | G150: 535.7311875 | H150: 10.07146276 | I150: 28.30318638
A151: 01/07/2017 05:00 EST | B151: 3826.4618 | E151: 2407.116266 | F151: 546.6791996 | G151: 539.0265582 | H151: 10.13341399 | I151: 28.47728393
A152: 01/07/2017 06:00 EST | B152: 3923.3765 | E152: 2468.082497 | F152: 560.5252154 | G152: 552.6787518 | H152: 10.390068 | I152: 29.19854226
A153: 01/07/2017 07:00 EST | B153: 4160.6506 | E153: 2617.344759 | F153: 594.4241073 | G153: 586.103113 | H153: 11.0184283 | I153: 30.96438294
A154: 01/07/2017 08:00 EST | B154: 4454.7367 | E154: 2802.345805 | F154: 636.4396199 | G154: 627.530475 | H154: 11.79724078 | I154: 33.15302974
A155: 01/07/2017 09:00 EST | B155: 4802.2931 | E155: 3020.983467 | F155: 686.0943308 | G155: 676.4900988 | H155: 12.71765579 | I155: 35.73961307
A156: 01/07/2017 10:00 EST | B156: 4869.1308 | E156: 3063.029128 | F156: 695.6433038 | G156: 685.9054013 | H156: 12.89465849 | I156: 36.23703242
A157: 01/07/2017 11:00 EST | B157: 4845.7376 | E157: 3048.313144 | F157: 692.3011625 | G157: 682.6100447 | H157: 12.83270753 | I157: 36.06293561
A158: 01/07/2017 12:00 EST | B158: 4852.4214 | E158: 3052.517729 | F158: 693.2560641 | G158: 683.5515792 | H158: 12.85040788 | I158: 36.11267777
A159: 01/07/2017 13:00 EST | B159: 4745.481 | E159: 2985.244621 | F159: 677.9776959 | G159: 668.4870839 | H159: 12.56720335 | I159: 35.3168062
A160: 01/07/2017 14:00 EST | B160: 4765.5323 | E160: 2997.858313 | F160: 680.8423864 | G160: 671.3116733 | H160: 12.62030413 | I160: 35.46603194
A161: 01/07/2017 15:00 EST | B161: 4671.9594 | E161: 2938.994313 | F161: 667.4738071 | G161: 658.1302329 | H161: 12.37250003 | I161: 34.76964395
A162: 01/07/2017 16:00 EST | B162: 4718.7459 | E162: 2968.426344 | F162: 674.1581039 | G162: 664.7209601 | H162: 12.49640221 | I162: 35.11783831
A163: 01/07/2017 17:00 EST | B163: 5119.7724 | E163: 3220.700498 | F163: 731.4519846 | G163: 721.2128174 | H163: 13.55841923 | I163: 38.10235668
A164: 01/07/2017 18:00 EST | B164: 5590.9786 | E164: 3517.122667 | F164: 798.7723034 | G164: 787.5907586 | H164: 14.80628939 | I164: 41.60916622
A165: 01/07/2017 19:00 EST | B165: 5564.2435 | E165: 3500.304391 | F165: 794.9527114 | G165: 783.8246348 | H165: 14.73548825 | I165: 41.41019833
A166: 01/07/2017 20:00 EST | B166: 5260.1317 | E166: 3308.996467 | F166: 751.5048464 | G166: 740.984971 | H166: 13.93012525 | I166: 39.14693829
A167: 01/07/2017 21:00 EST | B167: 5193.294 | E167: 3266.950806 | F167: 741.9558735 | G167: 731.5696685 | H167: 13.75312255 | I167: 38.64951893
A168: 01/07/2017 22:00 EST | B168: 5096.3792 | E168: 3205.984513 | F168: 728.1098433 | G168: 717.9174608 | H168: 13.49646827 | I168: 37.92825986
A169: 01/07/2017 23:00 EST | B169: 4738.7972 | E169: 2981.040036 | F169: 677.0227943 | G169: 667.5455494 | H169: 12.549503 | I169: 35.26706405
A170: 01/08/2017 00:00 EST | B170: 4371.1895 | E170: 2749.788682 | F170: 624.5033929 | G170: 615.7613363 | H170: 11.5759872 | I170: 32.53125499
A171: 01/08/2017 01:00 EST | B171: 4067.0777 | E171: 2558.480758 | F171: 581.055528 | G171: 572.9216726 | H171: 10.7706242 | I171: 30.26799495
A172: 01/08/2017 02:00 EST | B172: 3913.3508 | E172: 2461.775619 | F172: 559.092863 | G172: 551.2664501 | H172: 10.36351747 | I172: 29.12392902
A173: 01/08/2017 03:00 EST | B173: 3849.855 | E173: 2421.832251 | F173: 550.0213408 | G173: 542.3219148 | H173: 10.19536495 | I173: 28.65138075
A174: 01/08/2017 04:00 EST | B174: 3849.855 | E174: 2421.832251 | F174: 550.0213408 | G174: 542.3219148 | H174: 10.19536495 | I174: 28.65138075
A175: 01/08/2017 05:00 EST | B175: 3903.3252 | E175: 2455.468805 | F175: 557.6605249 | G175: 549.8541624 | H175: 10.33696721 | I175: 29.04931653
A176: 01/08/2017 06:00 EST | B176: 3943.4278 | E176: 2480.696188 | F176: 563.3899059 | G176: 555.5033411 | H176: 10.44316878 | I176: 29.34776799
A177: 01/08/2017 07:00 EST | B177: 4123.8898 | E177: 2594.219605 | F177: 589.1721629 | G177: 580.9246875 | H177: 10.92107664 | I177: 30.69080181
A178: 01/08/2017 08:00 EST | B178: 4387.8989 | E178: 2760.300081 | F178: 626.8906326 | G178: 618.1151584 | H178: 11.62023781 | I178: 32.65560964
A179: 01/08/2017 09:00 EST | B179: 4534.942 | E179: 2852.800636 | F179: 647.898396 | G179: 638.8288465 | H179: 12.00964418 | I179: 33.74993341
A180: 01/08/2017 10:00 EST | B180: 4852.4214 | E180: 3052.517729 | F180: 693.2560641 | G180: 683.5515792 | H180: 12.85040788 | I180: 36.11267777
A181: 01/08/2017 11:00 EST | B181: 4899.2078 | E181: 3081.949698 | F181: 699.9403466 | G181: 690.1422924 | H181: 12.9743098 | I181: 36.46087139
A182: 01/08/2017 12:00 EST | B182: 5042.909 | E182: 3172.34796 | F182: 720.4706592 | G182: 710.3852132 | H182: 13.354866 | I182: 37.53032408
A183: 01/08/2017 13:00 EST | B183: 4865.7889 | E183: 3060.926836 | F183: 695.165853 | G183: 685.4346341 | H183: 12.88580832 | I183: 36.21216134
A184: 01/08/2017 14:00 EST | B184: 4748.8228 | E184: 2987.346851 | F184: 678.4551324 | G184: 668.9578371 | H184: 12.57605326 | I184: 35.34167654
A185: 01/08/2017 15:00 EST | B185: 4829.0282 | E185: 3037.801744 | F185: 689.9139229 | G185: 680.2562226 | H185: 12.78845692 | I185: 35.93858096
A186: 01/08/2017 16:00 EST | B186: 4845.7376 | E186: 3048.313144 | F186: 692.3011625 | G186: 682.6100447 | H186: 12.83270753 | I186: 36.06293561
A187: 01/08/2017 17:00 EST | B187: 5410.5167 | E187: 3403.599314 | F187: 772.9900606 | G187: 762.1694263 | H187: 14.3283818 | I187: 40.26613314
A188: 01/08/2017 18:00 EST | B188: 5821.5689 | E188: 3662.180345 | F188: 831.7162938 | G188: 820.0735853 | H188: 15.41694934 | I188: 43.32526474
A189: 01/08/2017 19:00 EST | B189: 5734.6798 | E189: 3607.520929 | F189: 819.302616 | G189: 807.8336794 | H189: 15.18684558 | I189: 42.67861891
A190: 01/08/2017 20:00 EST | B190: 5611.03 | E190: 3529.736422 | F190: 801.6370082 | G190: 790.415362 | H190: 14.85939044 | I190: 41.75839269
A191: 01/08/2017 21:00 EST | B191: 5336.9951 | E191: 3357.349005 | F191: 762.4861718 | G191: 751.8125752 | H191: 14.13367848 | I191: 39.71897088
A192: 01/08/2017 22:00 EST | B192: 5012.832 | E192: 3153.42739 | F192: 716.1736164 | G192: 706.1483221 | H192: 13.27521469 | I192: 37.30648511
A193: 01/08/2017 23:00 EST | B193: 4575.0447 | E193: 2878.028082 | F193: 653.6277912 | G193: 644.4780393 | H193: 12.11584601 | I193: 34.04838562
A194: 01/09/2017 00:00 EST | B194: 4254.2234 | E194: 2676.208697 | F194: 607.7926724 | G194: 599.2845393 | H194: 11.26623214 | I194: 31.66077019
A195: 01/09/2017 01:00 EST | B195: 4070.4196 | E195: 2560.583051 | F195: 581.5329788 | G195: 573.3924398 | H195: 10.77947437 | I195: 30.29286603
A196: 01/09/2017 02:00 EST | B196: 4020.2913 | E196: 2529.04879 | F196: 574.3712455 | G196: 566.3309594 | H196: 10.64672228 | I196: 29.91980133
A197: 01/09/2017 03:00 EST | B197: 3950.1116 | E197: =(B197/$C$2)*$E$2 -> 2484.900773 | F197: =(B197/$C$2)*$F$2 -> 564.3448074 | G197: =(B197/$C$2)*$G$2 -> 556.4448756 | H197: =(B197/$C$2)*$H$2 -> 10.46086913 | I197: =(B197/$C$2)*$I$2 -> 29.39751015
A198: 01/09/2017 04:00 EST | B198: 3996.898 | E198: 2514.332742 | F198: 571.02909 | G198: 563.0355888 | H198: 10.58477105 | I198: 29.74570377
A199: 01/09/2017 05:00 EST | B199: 4117.206 | E199: 2590.01502 | F199: 588.2172613 | G199: 579.983153 | H199: 10.90337629 | I199: 30.64105965
A200: 01/09/2017 06:00 EST | B200: 4397.9246 | E200: 2766.606959 | F200: 628.322985 | G200: 619.5274602 | H200: 11.64678833 | I200: 32.73022288
... 8584 more rows

Sheet 2018
A1: HOURLY | B1: USAGE | C1: Powerbill | D1: Total | E1: Residential | F1: GS<50 | G1: GS>50 | H1: USL | I1: SL
C2: =SUM(B3:B745) -> 3269222.616 | D2: =SUM(E2:I2) -> 3040635 | E2: 2089573 | F2: 467734 | G2: 453772 | H2: 7757 | I2: 21799
A3: 01/01/2017 01:00 EST | B3: 4870.5536 | C3: =SUM(B3:B745) -> 3269222.616 | E3: =(B3/$C$2)*$E$2 -> 3113.087878 | F3: =(B3/$C$2)*$F$2 -> 696.8395197 | G3: =(B3/$C$2)*$G$2 -> 676.0386513 | H3: =(B3/$C$2)*$H$2 -> 11.5565346 | I3: =(B3/$C$2)*$I$2 -> 32.4765886
A4: 01/01/2017 02:00 EST | B4: 4689.3968 | E4: =(B4/$C$2)*$E$2 -> 2997.298774 | F4: =(B4/$C$2)*$F$2 -> 670.9210661 | G4: =(B4/$C$2)*$G$2 -> 650.8938713 | H4: =(B4/$C$2)*$H$2 -> 11.12669746 | I4: =(B4/$C$2)*$I$2 -> 31.26864483
A5: 01/01/2017 03:00 EST | B5: 4605.0224 | E5: =(B5/$C$2)*$E$2 -> 2943.369602 | F5: =(B5/$C$2)*$F$2 -> 658.8494576 | G5: =(B5/$C$2)*$G$2 -> 639.1826039 | H5: =(B5/$C$2)*$H$2 -> 10.92649934 | I5: =(B5/$C$2)*$I$2 -> 30.70604088
A6: 01/01/2017 04:00 EST | B6: 4489.2144 | E6: 2869.349171 | F6: 642.2805831 | G6: 623.1083153 | H6: 10.65171761 | I6: 29.93383939
A7: 01/01/2017 05:00 EST | B7: 4426.3472 | E7: 2829.16665 | F7: 633.2860513 | G7: 614.382273 | H7: 10.50255038 | I7: 29.51464429
A8: 01/01/2017 06:00 EST | B8: 4518.9936 | E8: 2888.382996 | F8: 646.5411508 | G8: 627.2417038 | H8: 10.72237577 | I8: 30.13240549
A9: 01/01/2017 07:00 EST | B9: 4653 | E9: 2974.03521 | F9: 665.7137056 | G9: 645.841952 | H9: 11.04033749 | I9: 31.02595293
A10: 01/01/2017 08:00 EST | B10: 4743.1648 | E10: 3031.665403 | F10: 678.6137578 | G10: 658.3569339 | H10: 11.25427469 | I10: 31.62716695
A11: 01/01/2017 09:00 EST | B11: 4783.6976 | E11: 3057.572554 | F11: 684.4128639 | G11: 663.9829349 | H11: 11.3504483 | I11: 31.89743747
A12: 01/01/2017 10:00 EST | B12: 4882.9616 | E12: 3121.018639 | F12: 698.6147563 | G12: 677.7608965 | H12: 11.5859755 | I12: 32.55932447
A13: 01/01/2017 11:00 EST | B13: 4909.432 | E13: 3137.937595 | F13: 702.4019276 | G13: 681.4350196 | H13: 11.64878275 | I13: 32.73582767
A14: 01/01/2017 12:00 EST | B14: 5016.1408 | E14: 3206.142136 | F14: 717.6689619 | G14: 696.2463284 | H14: 11.90197449 | I14: 33.44735619
A15: 01/01/2017 13:00 EST | B15: 4975.608 | E15: 3180.234984 | F15: 711.8698558 | G15: 690.6203274 | H15: 11.80580089 | I15: 33.17708567
A16: 01/01/2017 14:00 EST | B16: 4903.6416 | E16: 3134.236573 | F16: 701.5734838 | G16: 680.6313052 | H16: 11.63504367 | I16: 32.69721759
A17: 01/01/2017 15:00 EST | B17: 4976.4352 | E17: 3180.763702 | F17: 711.9882049 | G17: 690.7351437 | H17: 11.80776361 | I17: 33.18260139
A18: 01/01/2017 16:00 EST | B18: 4950.792 | E18: 3164.373463 | F18: 708.3193827 | G18: 687.175837 | H18: 11.74691909 | I18: 33.01161392
A19: 01/01/2017 17:00 EST | B19: 5375.9728 | E19: 3436.134192 | F19: 769.1508218 | G19: 746.1914394 | H19: 12.75576059 | I19: 35.84669655
A20: 01/01/2017 18:00 EST | B20: 5932.6784 | E20: 3791.960982 | F20: 848.7997682 | G20: 823.4628409 | H20: 14.07667564 | I20: 39.55877945
A21: 01/01/2017 19:00 EST | B21: 5927.7152 | E21: 3788.788678 | F21: 848.0896736 | G21: 822.7739428 | H21: 14.06489928 | I21: 39.5256851
A22: 01/01/2017 20:00 EST | B22: 5763.9296 | E22: 3684.102639 | F22: 824.6565512 | G22: 800.0403061 | H22: 13.6762794 | I22: 38.43357156
A23: 01/01/2017 21:00 EST | B23: 5711.816 | E23: 3650.793444 | F23: 817.2005577 | G23: 792.8068762 | H23: 13.55262762 | I23: 38.08608088
A24: 01/01/2017 22:00 EST | B24: 5519.9056 | E24: 3528.131014 | F24: 789.7435657 | G24: 766.1694837 | H24: 13.09727503 | I24: 36.80643269
A25: 01/01/2017 23:00 EST | B25: 5211.36 | E25: 3330.919435 | F25: 745.5993502 | G25: 723.3429863 | H25: 12.36517799 | I25: 34.74906728
A26: 01/02/2017 00:00 EST | B26: 4777.9072 | E26: 3053.871533 | F26: 683.5844201 | G26: 663.1792205 | H26: 11.33670921 | I26: 31.8588274
A27: 01/02/2017 01:00 EST | B27: 4525.6112 | E27: 2892.612735 | F27: 647.4879437 | G27: 628.1602346 | H27: 10.73807758 | I27: 30.17653128
A28: 01/02/2017 02:00 EST | B28: 4446.2 | E28: 2841.855867 | F28: 636.1264298 | G28: 617.1378653 | H28: 10.54965582 | I28: 29.64702169
A29: 01/02/2017 03:00 EST | B29: 4484.2512 | E29: 2866.176866 | F29: 641.5704885 | G29: 622.4194173 | H29: 10.63994125 | I29: 29.90074504
A30: 01/02/2017 04:00 EST | B30: 4446.2 | E30: 2841.855867 | F30: 636.1264298 | G30: 617.1378653 | H30: 10.54965582 | I30: 29.64702169
A31: 01/02/2017 05:00 EST | B31: 4484.2512 | E31: 2866.176866 | F31: 641.5704885 | G31: 622.4194173 | H31: 10.63994125 | I31: 29.90074504
A32: 01/02/2017 06:00 EST | B32: 4584.3424 | E32: 2930.151668 | F32: 655.89073 | G32: 636.3121952 | H32: 10.87743117 | I32: 30.56814776
A33: 01/02/2017 07:00 EST | B33: 4852.3552 | E33: 3101.456096 | F33: 694.2358394 | G33: 673.5126917 | H33: 11.51335461 | I33: 32.35524265
A34: 01/02/2017 08:00 EST | B34: 4946.656 | E34: 3161.729876 | F34: 707.7276372 | G34: 686.6017552 | H34: 11.73710545 | I34: 32.98403529
A35: 01/02/2017 09:00 EST | B35: 4961.5456 | E35: 3171.246789 | F35: 709.8579211 | G35: 688.6684495 | H35: 11.77243453 | I35: 33.08331834
A36: 01/02/2017 10:00 EST | B36: 5055.0192 | E36: 3230.991852 | F36: 723.2313697 | G36: 701.6426967 | H36: 11.99422265 | I36: 33.70659526
A37: 01/02/2017 11:00 EST | B37: 5188.1984 | E37: 3316.115349 | F37: 742.2855753 | G37: 720.1281286 | H37: 12.31022164 | I37: 34.59462698
A38: 01/02/2017 12:00 EST | B38: 5260.992 | E38: 3362.642477 | F38: 752.7002964 | G38: 730.2319671 | H38: 12.48294159 | I38: 35.08001078
A39: 01/02/2017 13:00 EST | B39: 5256.856 | E39: 3359.99889 | F39: 752.1085509 | G39: 729.6578854 | H39: 12.47312795 | I39: 35.05243215
A40: 01/02/2017 14:00 EST | B40: 5149.32 | E40: 3291.265632 | F40: 736.7231675 | G40: 714.7317603 | H40: 12.21797349 | I40: 34.33538791
A41: 01/02/2017 15:00 EST | B41: 5149.32 | E41: 3291.265632 | F41: 736.7231675 | G41: 714.7317603 | H41: 12.21797349 | I41: 34.33538791
A42: 01/02/2017 16:00 EST | B42: 5058.328 | E42: 3233.106722 | F42: 723.7047661 | G42: 702.1019621 | H42: 12.00207355 | I42: 33.72865816
A43: 01/02/2017 17:00 EST | B43: 5395.8256 | E43: 3448.823409 | F43: 771.9912002 | G43: 748.9470317 | H43: 12.80286603 | I43: 35.97907395
A44: 01/02/2017 18:00 EST | B44: 5924.4064 | E44: 3786.673809 | F44: 847.6162772 | G44: 822.3146774 | H44: 14.05704837 | I44: 39.5036222
A45: 01/02/2017 19:00 EST | B45: 6012.9168 | E45: 3843.246567 | F45: 860.2796312 | G45: 834.6000266 | H45: 14.26706012 | I45: 40.09380477
A46: 01/02/2017 20:00 EST | B46: 5889.664 | E46: 3764.467679 | F46: 842.6456149 | G46: 817.4923909 | H46: 13.97461385 | I46: 39.27196175
A47: 01/02/2017 21:00 EST | B47: 5680.3824 | E47: 3630.702184 | F47: 812.7032917 | G47: 788.4438551 | H47: 13.478044 | I47: 37.87648334
A48: 01/02/2017 22:00 EST | B48: 5371.0096 | E48: 3432.961888 | F48: 768.4407271 | G48: 745.5025413 | H48: 12.74398423 | I48: 35.8136022
A49: 01/02/2017 23:00 EST | B49: 4951.6192 | E49: 3164.902181 | F49: 708.4377318 | G49: 687.2906533 | H49: 11.74888181 | I49: 33.01712964
A50: 01/03/2017 00:00 EST | B50: 4477.6336 | E50: 2861.947127 | F50: 640.6236957 | G50: 621.5008865 | H50: 10.62423943 | I50: 29.85661924
A51: 01/03/2017 01:00 EST | B51: 4155.8528 | E51: 2656.27607 | F51: 594.5858945 | G51: 576.8373275 | H51: 9.860738762 | I51: 27.71100223
A52: 01/03/2017 02:00 EST | B52: 3881.2224 | E52: 2480.741903 | F52: 555.2939923 | G52: 538.7183003 | H52: 9.209113509 | I52: 25.87978154
A53: 01/03/2017 03:00 EST | B53: 3770.3776 | E53: 2409.893775 | F53: 539.4352124 | G53: 523.3329098 | H53: 8.946108136 | I53: 25.14067439
A54: 01/03/2017 04:00 EST | B54: 3751.352 | E54: 2397.733276 | F54: 536.7131831 | G54: 520.6921338 | H54: 8.900965423 | I54: 25.01381272
A55: 01/03/2017 05:00 EST | B55: 3757.1424 | E55: 2401.434297 | F55: 537.5416268 | G55: 521.4958482 | H55: 8.914704509 | I55: 25.05242279
A56: 01/03/2017 06:00 EST | B56: 3866.3328 | E56: 2471.22499 | F56: 553.1637084 | G56: 536.651606 | H56: 9.173784429 | I56: 25.78049849
A57: 01/03/2017 07:00 EST | B57: 4062.3792 | E57: 2596.531007 | F57: 581.2124459 | G57: 563.8630803 | H57: 9.638950648 | I57: 27.0877253
A58: 01/03/2017 08:00 EST | B58: 4274.1424 | E58: 2731.882654 | F58: 611.5098163 | G58: 593.2560651 | H58: 10.14140867 | I58: 28.4997509
A59: 01/03/2017 09:00 EST | B59: 4363.48 | E59: 2788.98413 | F59: 624.2915194 | G59: 605.6562306 | H59: 10.35338315 | I59: 29.09544919
A60: 01/03/2017 10:00 EST | B60: 4520.648 | E60: 2889.440431 | F60: 646.777849 | G60: 627.4713365 | H60: 10.72630122 | I60: 30.14343694
A61: 01/03/2017 11:00 EST | B61: 4616.6032 | E61: 2950.771646 | F61: 660.506345 | G61: 640.7900328 | H61: 10.95397751 | I61: 30.78326103
A62: 01/03/2017 12:00 EST | B62: 4578.552 | E62: 2926.450647 | F62: 655.0622863 | G62: 635.5084808 | H62: 10.86369209 | I62: 30.52953768
A63: 01/03/2017 13:00 EST | B63: 4592.6144 | E63: 2935.438842 | F63: 657.074221 | G63: 637.4603587 | H63: 10.89705844 | I63: 30.62330501
A64: 01/03/2017 14:00 EST | B64: 4552.9088 | E64: 2910.060408 | F64: 651.3934641 | G64: 631.9491741 | H64: 10.80284756 | I64: 30.35855021
A65: 01/03/2017 15:00 EST | B65: 4528.92 | E65: 2894.727604 | F65: 647.9613401 | G65: 628.6195 | H65: 10.74592849 | I65: 30.19859418
A66: 01/03/2017 16:00 EST | B66: 4494.1776 | E66: 2872.521475 | F66: 642.9906777 | G66: 623.7972134 | H66: 10.66349397 | I66: 29.96693374
A67: 01/03/2017 17:00 EST | B67: 4813.4768 | E67: 3076.60638 | F67: 688.6734316 | G67: 668.1163234 | H67: 11.42110646 | I67: 32.09600357
A68: 01/03/2017 18:00 EST | B68: 5504.1888 | E68: 3518.085384 | F68: 787.4949328 | G68: 763.9879731 | H68: 13.05998322 | I68: 36.70163392
A69: 01/03/2017 19:00 EST | B69: 5582.7728 | E69: =(B69/$C$2)*$E$2 -> 3568.313535 | F69: =(B69/$C$2)*$F$2 -> 798.7380976 | G69: =(B69/$C$2)*$G$2 -> 774.8955261 | H69: =(B69/$C$2)*$H$2 -> 13.24644226 | I69: =(B69/$C$2)*$I$2 -> 37.22562779
A70: 01/03/2017 20:00 EST | B70: 5356.9472 | E70: 3423.973692 | F70: 766.4287924 | G70: 743.5506634 | H70: 12.71061788 | I70: 35.71983487
A71: 01/03/2017 21:00 EST | B71: 5293.2528 | E71: 3383.262455 | F71: 757.3159114 | G71: 734.7098047 | H71: 12.55948792 | I71: 35.29512405
A72: 01/03/2017 22:00 EST | B72: 5006.2144 | E72: 3199.797527 | F72: 716.2487726 | G72: 694.8685322 | H72: 11.87842177 | I72: 33.38116749
A73: 01/03/2017 23:00 EST | B73: 4619.912 | E73: 2952.886515 | F73: 660.9797414 | G73: 641.2492982 | H73: 10.96182842 | I73: 30.80532393
A74: 01/04/2017 00:00 EST | B74: 4211.2752 | E74: 2691.700134 | F74: 602.5152844 | G74: 584.5300227 | H74: 9.992241448 | I74: 28.0805558
A75: 01/04/2017 01:00 EST | B75: 3899.4208 | E75: 2492.373685 | F75: 557.8976725 | G75: 541.2442599 | H75: 9.252293496 | I75: 26.00112749
A76: 01/04/2017 02:00 EST | B76: 3587.5664 | E76: 2293.047237 | F76: 513.2800606 | G76: 497.9584971 | H76: 8.512345543 | I76: 23.92169917
A77: 01/04/2017 03:00 EST | B77: 3547.8608 | E77: 2267.668803 | F77: 507.5993037 | G77: 492.4473124 | H77: 8.418134663 | I77: 23.65694438
A78: 01/04/2017 04:00 EST | B78: 3499.056 | E78: 2236.474478 | F78: 500.6167066 | G78: 485.6731479 | H78: 8.30233379 | I78: 23.3315166
A79: 01/04/2017 05:00 EST | B79: 3538.7616 | E79: 2261.852912 | F79: 506.2974635 | G79: 491.1843326 | H79: 8.39654467 | I79: 23.5962714
A80: 01/04/2017 06:00 EST | B80: 3685.176 | E80: 2355.435886 | F80: 527.2452548 | G80: 511.506826 | H80: 8.74394729 | I80: 24.57255472
A81: 01/04/2017 07:00 EST | B81: 3906.8656 | E81: 2497.132142 | F81: 558.9628145 | G81: 542.277607 | H81: 9.269958036 | I81: 26.05076901
A82: 01/04/2017 08:00 EST | B82: 4078.9232 | E82: 2607.105355 | F82: 583.5794279 | G82: 566.1594072 | H82: 9.678205182 | I82: 27.1980398
A83: 01/04/2017 09:00 EST | B83: 4197.2128 | E83: 2682.711939 | F83: 600.5033497 | G83: 582.5781448 | H83: 9.958875095 | I83: 27.98678847
A84: 01/04/2017 10:00 EST | B84: 4242.7088 | E84: 2711.791394 | F84: 607.0125504 | G84: 588.8930439 | H84: 10.06682506 | I84: 28.29015335
A85: 01/04/2017 11:00 EST | B85: 4350.2448 | E85: 2780.524652 | F85: 622.3979338 | G85: 603.819169 | H85: 10.32197953 | I85: 29.00719759
A86: 01/04/2017 12:00 EST | B86: 4489.2144 | E86: 2869.349171 | F86: 642.2805831 | G86: 623.1083153 | H86: 10.65171761 | I86: 29.93383939
A87: 01/04/2017 13:00 EST | B87: 4523.1296 | E87: 2891.026583 | F87: 647.1328964 | G87: 627.8157856 | H87: 10.7321894 | I87: 30.15998411
A88: 01/04/2017 14:00 EST | B88: 4389.9504 | E88: 2805.903086 | F88: 628.0786907 | G88: 609.3303537 | H88: 10.41619041 | I88: 29.27195239
A89: 01/04/2017 15:00 EST | B89: 4284.0688 | E89: 2738.227263 | F89: 612.9300055 | G89: 594.6338613 | H89: 10.16496139 | I89: 28.56593959
A90: 01/04/2017 16:00 EST | B90: 4485.9056 | E90: 2867.234301 | F90: 641.8071867 | G90: 622.6490499 | H90: 10.6438667 | I90: 29.91177649
A91: 01/04/2017 17:00 EST | B91: 4662.9264 | E91: 2980.379818 | F91: 667.1338948 | G91: 647.2197482 | H91: 11.06389021 | I91: 31.09214163
A92: 01/04/2017 18:00 EST | B92: 5314.76 | E92: 3397.009106 | F92: 760.3929881 | G92: 737.6950297 | H92: 12.61051882 | I92: 35.4385329
A93: 01/04/2017 19:00 EST | B93: 5445.4576 | E93: 3480.546451 | F93: 779.0921464 | G93: 755.8360125 | H93: 12.92062963 | I93: 36.31001745
A94: 01/04/2017 20:00 EST | B94: 5481.0272 | E94: 3503.281298 | F94: 784.1811579 | G94: 760.7731154 | H94: 13.00502688 | I94: 36.54719362
A95: 01/04/2017 21:00 EST | B95: 5573.6736 | E95: 3562.497643 | F95: 797.4362574 | G95: 773.6325463 | H95: 13.22485226 | I95: 37.16495482
A96: 01/04/2017 22:00 EST | B96: 5318.0688 | E96: 3399.123976 | F96: 760.8663845 | G96: 738.1542951 | H96: 12.61836972 | I96: 35.4605958
A97: 01/04/2017 23:00 EST | B97: 4874.6896 | E97: 3115.731465 | F97: 697.4312652 | G97: 676.6127331 | H97: 11.56634823 | I97: 32.50416722
A98: 01/05/2017 00:00 EST | B98: 4540.5008 | E98: 2902.129647 | F98: 649.6182275 | G98: 630.2269289 | H98: 10.77340666 | I98: 30.27581433
A99: 01/05/2017 01:00 EST | B99: 4279.9328 | E99: 2735.583676 | F99: 612.33826 | G99: 594.0597795 | H99: 10.15514776 | I99: 28.53836097
A100: 01/05/2017 02:00 EST | B100: 4083.0592 | E100: 2609.748942 | F100: 584.1711734 | G100: 566.7334889 | H100: 9.688018815 | I100: 27.22561843
A101: 01/05/2017 03:00 EST | B101: 4135.1728 | E101: 2643.058136 | F101: 591.627167 | G101: 573.9669188 | H101: 9.811670595 | I101: 27.5731091
A102: 01/05/2017 04:00 EST | B102: 4178.1872 | E102: 2670.551439 | F102: 597.7813203 | G102: 579.9373689 | H102: 9.913732381 | I102: 27.8599268
A103: 01/05/2017 05:00 EST | B103: 4241.0544 | E103: 2710.733959 | F103: 606.7758522 | G103: 588.6634112 | H103: 10.06289961 | I103: 28.2791219
A104: 01/05/2017 06:00 EST | B104: 4391.6048 | E104: 2806.960521 | F104: 628.3153889 | G104: 609.5599864 | H104: 10.42011586 | I104: 29.28298384
A105: 01/05/2017 07:00 EST | B105: 4629.8384 | E105: 2959.231124 | F105: 662.3999307 | G105: 642.6270943 | H105: 10.98538114 | I105: 30.87151263
A106: 01/05/2017 08:00 EST | B106: 4902.8144 | E106: 3133.707856 | F106: 701.4551347 | G106: 680.5164889 | H106: 11.63308094 | I106: 32.69170187
A107: 01/05/2017 09:00 EST | B107: 5012.0048 | E107: 3203.498549 | F107: 717.0772164 | G107: 695.6722467 | H107: 11.89216086 | I107: 33.41977756
A108: 01/05/2017 10:00 EST | B108: 5150.1472 | E108: 3291.79435 | F108: 736.8415166 | G108: 714.8465766 | H108: 12.21993621 | I108: 34.34090363
A109: 01/05/2017 11:00 EST | B109: 5222.9408 | E109: 3338.321478 | F109: 747.2562377 | G109: 724.9504152 | H109: 12.39265616 | I109: 34.82628743
A110: 01/05/2017 12:00 EST | B110: 5253.5472 | E110: 3357.884021 | F110: 751.6351545 | G110: 729.19862 | H110: 12.46527705 | I110: 35.03036925
A111: 01/05/2017 13:00 EST | B111: 5238.6576 | E111: 3348.367108 | F111: 749.5048706 | G111: 727.1319257 | H111: 12.42994797 | I111: 34.9310862
A112: 01/05/2017 14:00 EST | B112: 5226.2496 | E112: 3340.436348 | F112: 747.7296341 | G112: 725.4096805 | H112: 12.40050707 | I112: 34.84835033
A113: 01/05/2017 15:00 EST | B113: 5141.8752 | E113: 3286.507176 | F113: 735.6580256 | G113: 713.6984131 | H113: 12.20030895 | I113: 34.28574638
A114: 01/05/2017 16:00 EST | B114: 5291.5984 | E114: 3382.20502 | F114: 757.0792132 | G114: 734.480172 | H114: 12.55556247 | I114: 35.2840926
A115: 01/05/2017 17:00 EST | B115: 5695.272 | E115: 3640.219097 | F115: 814.8335756 | G115: 790.5105493 | H115: 13.51337308 | I115: 37.97576639
A116: 01/05/2017 18:00 EST | B116: 6294.1648 | E116: 4023.010473 | F116: 900.5183263 | G116: 873.6375846 | H116: 14.93438719 | I116: 41.96915126
A117: 01/05/2017 19:00 EST | B117: 6342.1424 | E117: 4053.676081 | F117: 907.3825743 | G117: 880.2969327 | H117: 15.04822534 | I117: 42.28906331
A118: 01/05/2017 20:00 EST | B118: 6182.4928 | E118: 3951.633628 | F118: 884.5411974 | G118: 858.1373777 | H118: 14.66941909 | I118: 41.22452839
A119: 01/05/2017 21:00 EST | B119: 6016.2256 | E119: 3845.361437 | F119: 860.7530277 | G119: 835.059292 | H119: 14.27491103 | I119: 40.11586767
A120: 01/05/2017 22:00 EST | B120: 5774.6832 | E120: 3690.975965 | F120: 826.1950895 | G120: 801.5329186 | H120: 13.70179484 | I120: 38.50527598
A121: 01/05/2017 23:00 EST | B121: 5616.688 | E121: 3589.990947 | F121: 803.5904108 | G121: 779.6029963 | H121: 13.32691405 | I121: 37.45177251
A122: 01/06/2017 00:00 EST | B122: 5242.7936 | E122: 3351.010695 | F122: 750.0966161 | G122: 727.7060075 | H122: 12.4397616 | I122: 34.95866483
A123: 01/06/2017 01:00 EST | B123: 4921.84 | E123: 3145.868355 | F123: 704.1771641 | G123: 683.1572648 | H123: 11.67822365 | I123: 32.81856354
A124: 01/06/2017 02:00 EST | B124: 4692.7056 | E124: 2999.413644 | F124: 671.3944625 | G124: 651.3531367 | H124: 11.13454837 | I124: 31.29070773
A125: 01/06/2017 03:00 EST | B125: 4686.088 | E125: 2995.183905 | F125: 670.4476697 | G125: 650.4346059 | H125: 11.11884655 | I125: 31.24658193
A126: 01/06/2017 04:00 EST | B126: 4642.2464 | E126: 2967.161884 | F126: 664.1751672 | G126: 644.3493395 | H126: 11.01482204 | I126: 30.9542485
A127: 01/06/2017 05:00 EST | B127: 4650.5184 | E127: 2972.449058 | F127: 665.3586583 | G127: 645.497503 | H127: 11.03444931 | I127: 31.00940575
A128: 01/06/2017 06:00 EST | B128: 4657.9632 | E128: 2977.207514 | F128: 666.4238002 | G128: 646.5308501 | H128: 11.05211385 | I128: 31.05904728
A129: 01/06/2017 07:00 EST | B129: 4759.7088 | E129: 3042.239751 | F129: 680.9807399 | G129: 660.6532608 | H129: 11.29352923 | I129: 31.73748145
A130: 01/06/2017 08:00 EST | B130: 5042.6112 | E130: 3223.061091 | F130: 721.4561332 | G130: 699.9204515 | H130: 11.96478175 | I130: 33.62385939
A131: 01/06/2017 09:00 EST | B131: 5358.6016 | E131: 3425.031127 | F131: 766.6654906 | G131: 743.7802961 | H131: 12.71454333 | I131: 35.73086632
A132: 01/06/2017 10:00 EST | B132: 5552.1664 | E132: 3548.750992 | F132: 794.3591808 | G132: 770.6473213 | H132: 13.17382137 | I132: 37.02154597
A133: 01/06/2017 11:00 EST | B133: 5715.1248 | E133: =(B133/$C$2)*$E$2 -> 3652.908314 | F133: =(B133/$C$2)*$F$2 -> 817.6739541 | G133: =(B133/$C$2)*$G$2 -> 793.2661416 | H133: =(B133/$C$2)*$H$2 -> 13.56047852 | I133: =(B133/$C$2)*$I$2 -> 38.10814378
A134: 01/06/2017 12:00 EST | B134: 5812.7344 | E134: 3715.296964 | F134: 831.6391483 | G134: 806.8144706 | H134: 13.79208027 | I134: 38.75899933
A135: 01/06/2017 13:00 EST | B135: 5663.0112 | E135: 3619.599119 | F135: 810.2179606 | G135: 786.0327118 | H135: 13.43682674 | I135: 37.76065311
A136: 01/06/2017 14:00 EST | B136: 5712.6432 | E136: 3651.322162 | F136: 817.3189068 | G136: 792.9216926 | H136: 13.55459034 | I136: 38.09159661
A137: 01/06/2017 15:00 EST | B137: 5729.1872 | E137: 3661.896509 | F137: 819.6858888 | G137: 795.2180195 | H137: 13.59384488 | I137: 38.20191111
A138: 01/06/2017 16:00 EST | B138: 5682.0368 | E138: 3631.759619 | F138: 812.93999 | G138: 788.6734878 | H138: 13.48196946 | I138: 37.88751479
A139: 01/06/2017 17:00 EST | B139: 5790.4 | E139: 3701.021595 | F139: 828.4437225 | G139: 803.7144292 | H139: 13.73908665 | I139: 38.61007476
A140: 01/06/2017 18:00 EST | B140: 6447.1968 | E140: 4120.823187 | F140: 922.4129104 | G140: 894.8786088 | H140: 15.29749162 | I140: 42.98956038
A141: 01/06/2017 19:00 EST | B141: 6393.4288 | E141: 4086.456558 | F141: 914.7202187 | G141: 887.4155462 | H141: 15.16991439 | I141: 42.63103826
A142: 01/06/2017 20:00 EST | B142: 6201.5184 | E142: 3963.794128 | F142: 887.2632268 | G142: 860.7781537 | H142: 14.7145618 | I142: 41.35139006
A143: 01/06/2017 21:00 EST | B143: 6007.1264 | E143: 3839.545546 | F143: 859.4511875 | G143: 833.7963121 | H143: 14.25332104 | I143: 40.0551947
A144: 01/06/2017 22:00 EST | B144: 5754.0032 | E144: 3677.75803 | F144: 823.2363619 | G144: 798.6625099 | H144: 13.65272668 | I144: 38.36738286
A145: 01/06/2017 23:00 EST | B145: 5457.8656 | E145: 3488.477212 | F145: 780.867383 | G145: 757.5582577 | H145: 12.95007053 | I145: 36.39275332
A146: 01/07/2017 00:00 EST | B146: 5110.4416 | E146: 3266.415916 | F146: 731.1607596 | G146: 709.335392 | H146: 12.12572533 | I146: 34.07614884
A147: 01/07/2017 01:00 EST | B147: 4757.2272 | E147: 3040.653599 | F147: 680.6256926 | G147: 660.3088118 | H147: 11.28764105 | I147: 31.72093428
A148: 01/07/2017 02:00 EST | B148: 4595.096 | E148: 2937.024994 | F148: 657.4292683 | G148: 637.8048078 | H148: 10.90294662 | I148: 30.63985218
A149: 01/07/2017 03:00 EST | B149: 4557.0448 | E149: 2912.703995 | F149: 651.9852096 | G149: 632.5232558 | H149: 10.81266119 | I149: 30.38612883
A150: 01/07/2017 04:00 EST | B150: 4551.2544 | E150: 2909.002973 | F150: 651.1567659 | G150: 631.7195414 | H150: 10.79892211 | I150: 30.34751876
A151: 01/07/2017 05:00 EST | B151: 4547.1184 | E151: 2906.359386 | F151: 650.5650203 | G151: 631.1454596 | H151: 10.78910847 | I151: 30.31994013
A152: 01/07/2017 06:00 EST | B152: 4570.28 | E152: 2921.163473 | F152: 653.8787952 | G152: 634.3603173 | H152: 10.84406482 | I152: 30.47438043
A153: 01/07/2017 07:00 EST | B153: 4704.2864 | E153: 3006.815687 | F153: 673.05135 | G153: 652.9605656 | H153: 11.16202654 | I153: 31.36792788
A154: 01/07/2017 08:00 EST | B154: 4933.4208 | E154: 3153.270399 | F154: 705.8340515 | G154: 684.7646937 | H154: 11.70570183 | I154: 32.89578369
A155: 01/07/2017 09:00 EST | B155: 5053.3648 | E155: 3229.934417 | F155: 722.9946715 | G155: 701.413064 | H155: 11.99029719 | I155: 33.69556381
A156: 01/07/2017 10:00 EST | B156: 5362.7376 | E156: 3427.674714 | F156: 767.2572361 | G156: 744.3543778 | H156: 12.72435696 | I156: 35.75844495
A157: 01/07/2017 11:00 EST | B157: 5671.2832 | E157: 3624.886293 | F157: 811.4014516 | G157: 787.1808752 | H157: 13.45645401 | I157: 37.81581036
A158: 01/07/2017 12:00 EST | B158: 5832.5872 | E158: 3727.98618 | F158: 834.4795267 | G158: 809.5700629 | H158: 13.83918571 | I158: 38.89137673
A159: 01/07/2017 13:00 EST | B159: 5678.728 | E159: 3629.64475 | F159: 812.4665935 | G159: 788.2142224 | H159: 13.47411855 | I159: 37.86545189
A160: 01/07/2017 14:00 EST | B160: 5695.272 | E160: 3640.219097 | F160: 814.8335756 | G160: 790.5105493 | H160: 13.51337308 | I160: 37.97576639
A161: 01/07/2017 15:00 EST | B161: 5659.7024 | E161: 3617.48425 | F161: 809.7445642 | G161: 785.5734464 | H161: 13.42897584 | I161: 37.73859021
A162: 01/07/2017 16:00 EST | B162: 5598.4896 | E162: 3578.359165 | F162: 800.9867305 | G162: 777.0770367 | H162: 13.28373406 | I162: 37.33042656
A163: 01/07/2017 17:00 EST | B163: 5974.0384 | E163: 3818.396851 | F163: 854.7172234 | G163: 829.2036583 | H163: 14.17481197 | I163: 39.8345657
A164: 01/07/2017 18:00 EST | B164: 6473.6672 | E164: 4137.742143 | F164: 926.2000817 | G164: 898.5527319 | H164: 15.36029887 | I164: 43.16606358
A165: 01/07/2017 19:00 EST | B165: 6371.9216 | E165: 4072.709906 | F165: 911.643142 | G165: 884.4303212 | H165: 15.1188835 | I165: 42.48762941
A166: 01/07/2017 20:00 EST | B166: 6115.4896 | E166: 3908.807521 | F166: 874.95492 | G166: 848.8372536 | H166: 14.51043823 | I166: 40.77775467
A167: 01/07/2017 21:00 EST | B167: 5824.3152 | E167: 3722.699007 | F167: 833.2960357 | G167: 808.4218994 | H167: 13.81955844 | I167: 38.83621948
A168: 01/07/2017 22:00 EST | B168: 5480.2 | E168: 3502.752581 | F168: 784.0628088 | G168: 760.6582991 | H168: 13.00306415 | I168: 36.54167789
A169: 01/07/2017 23:00 EST | B169: 5012.832 | E169: 3204.027266 | F169: 717.1955655 | G169: 695.787063 | H169: 11.89412359 | I169: 33.42529329
A170: 01/08/2017 00:00 EST | B170: 4497.4864 | E170: 2874.636344 | F170: 643.4640742 | G170: 624.2564788 | H170: 10.67134487 | I170: 29.98899664
A171: 01/08/2017 01:00 EST | B171: 4162.4704 | E171: 2660.505809 | F171: 595.5326874 | G171: 577.7558583 | H171: 9.876440575 | I171: 27.75512803
A172: 01/08/2017 02:00 EST | B172: 3935.8176 | E172: 2515.63725 | F172: 563.1050331 | G172: 546.2961792 | H172: 9.338653469 | I172: 26.24381938
A173: 01/08/2017 03:00 EST | B173: 3781.1312 | E173: 2416.767101 | F173: 540.9737508 | G173: 524.8255223 | H173: 8.971623583 | I173: 25.21237882
A174: 01/08/2017 04:00 EST | B174: 3732.3264 | E174: 2385.572776 | F174: 533.9911537 | G174: 518.0513578 | H174: 8.855822709 | I174: 24.88695104
A175: 01/08/2017 05:00 EST | B175: 3743.08 | E175: 2392.446102 | F175: 535.529692 | G175: 519.5439703 | H175: 8.881338156 | I175: 24.95865547
A176: 01/08/2017 06:00 EST | B176: 3934.9904 | E176: 2515.108532 | F176: 562.986684 | G176: 546.1813628 | H176: 9.336690742 | I176: 26.23830366
A177: 01/08/2017 07:00 EST | B177: 4161.6432 | E177: 2659.977092 | F177: 595.4143383 | G177: 577.6410419 | H177: 9.874477848 | I177: 27.7496123
A178: 01/08/2017 08:00 EST | B178: 4379.1968 | E178: 2799.02976 | F178: 626.5401524 | G178: 607.8377412 | H178: 10.39067496 | I178: 29.20024797
A179: 01/08/2017 09:00 EST | B179: 4281.5872 | E179: 2736.64111 | F179: 612.5749582 | G179: 594.2894122 | H179: 10.15907321 | I179: 28.54939242
A180: 01/08/2017 10:00 EST | B180: 4336.1824 | E180: 2771.536457 | F180: 620.385999 | G180: 601.8672911 | H180: 10.28861317 | I180: 28.91343027
A181: 01/08/2017 11:00 EST | B181: 4375.888 | E181: 2796.914891 | F181: 626.066756 | G181: 607.3784758 | H181: 10.38282405 | I181: 29.17818507
A182: 01/08/2017 12:00 EST | B182: 4393.2592 | E182: 2808.017956 | F182: 628.5520872 | G182: 609.7896191 | H182: 10.42404131 | I182: 29.29401529
A183: 01/08/2017 13:00 EST | B183: 4406.4944 | E183: 2816.477433 | F183: 630.4456728 | G183: 611.6266806 | H183: 10.45544494 | I183: 29.38226689
A184: 01/08/2017 14:00 EST | B184: 4301.44 | E184: 2749.330327 | F184: 615.4153367 | G184: 597.0450046 | H184: 10.20617865 | I184: 28.68176982
A185: 01/08/2017 15:00 EST | B185: 4298.9584 | E185: 2747.744175 | F185: 615.0602894 | G185: 596.7005555 | H185: 10.20029047 | I185: 28.66522264
A186: 01/08/2017 16:00 EST | B186: 4414.7664 | E186: 2821.764607 | F186: 631.6291638 | G186: 612.7748441 | H186: 10.47507221 | I186: 29.43742414
A187: 01/08/2017 17:00 EST | B187: 4528.0928 | E187: 2894.198887 | F187: 647.842991 | G187: 628.5046836 | H187: 10.74396576 | I187: 30.19307846
A188: 01/08/2017 18:00 EST | B188: 5097.2064 | E188: 3257.956438 | F188: 729.267174 | G188: 707.4983304 | H188: 12.09432171 | I188: 33.98789724
A189: 01/08/2017 19:00 EST | B189: 5224.5952 | E189: 3339.378913 | F189: 747.4929359 | G189: 725.1800478 | H189: 12.39658161 | I189: 34.83731888
A190: 01/08/2017 20:00 EST | B190: 5064.9456 | E190: 3237.33646 | F190: 724.651559 | G190: 703.0204929 | H190: 12.01777537 | I190: 33.77278396
A191: 01/08/2017 21:00 EST | B191: 4998.7696 | E191: 3195.039071 | F191: 715.1836307 | G191: 693.8351851 | H191: 11.86075723 | I191: 33.33152596
A192: 01/08/2017 22:00 EST | B192: 4614.9488 | E192: 2949.714211 | F192: 660.2696468 | G192: 640.5604001 | H192: 10.95005206 | I192: 30.77222958
A193: 01/08/2017 23:00 EST | B193: 4132.6912 | E193: 2641.471984 | F193: 591.2721196 | G193: 573.6224698 | H193: 9.805782415 | I193: 27.55656193
A194: 01/09/2017 00:00 EST | B194: 3688.4848 | E194: 2357.550756 | F194: 527.7186512 | G194: 511.9660914 | H194: 8.751798196 | I194: 24.59461762
A195: 01/09/2017 01:00 EST | B195: 3389.8656 | E195: 2166.683785 | F195: 484.994625 | G195: 470.5173901 | H195: 8.04325387 | I195: 22.60344091
A196: 01/09/2017 02:00 EST | B196: 3186.3744 | E196: 2036.619312 | F196: 455.8807456 | G196: 442.2725688 | H196: 7.560423111 | I196: 21.24657257
A197: 01/09/2017 03:00 EST | B197: 3116.8896 | E197: =(B197/$C$2)*$E$2 -> 1992.207053 | F197: =(B197/$C$2)*$F$2 -> 445.9394209 | G197: =(B197/$C$2)*$G$2 -> 432.6279956 | H197: =(B197/$C$2)*$H$2 -> 7.395554071 | I197: =(B197/$C$2)*$I$2 -> 20.78325167
A198: 01/09/2017 04:00 EST | B198: 3113.5808 | E198: 1990.092183 | F198: 445.4660245 | G198: 432.1687302 | H198: 7.387703164 | I198: 20.76118877
A199: 01/09/2017 05:00 EST | B199: 3156.5952 | E199: 2017.585486 | F199: 451.6201779 | G199: 438.1391803 | H199: 7.489764951 | I199: 21.04800647
A200: 01/09/2017 06:00 EST | B200: 3391.52 | E200: 2167.74122 | F200: 485.2313232 | G200: 470.7470228 | H200: 8.047179324 | I200: 22.61447236
... 8584 more rows

Sheet 2019
A1: HOURLY | B1: USAGE | C1: Powerbill | D1: Total | E1: Residential | F1: GS<50 | G1: GS>50 | H1: USL | I1: SL
C2: =SUM(B3:B745) -> 3248527.726 | D2: =SUM(E2:I2) -> 2999528 | E2: 2112388 | F2: 454496 | G2: 402681 | H2: 7757 | I2: 22206
A3: 01/01/2017 01:00 EST | B3: 3469.2768 | C3: =SUM(B3:B745) -> 3248527.726 | E3: =(B3/$C$2)*$E$2 -> 2255.932317 | F3: =(B3/$C$2)*$F$2 -> 485.3806282 | G3: =(B3/$C$2)*$G$2 -> 430.0446137 | H3: =(B3/$C$2)*$H$2 -> 8.284115884 | I3: =(B3/$C$2)*$I$2 -> 23.71497709
A4: 01/01/2017 02:00 EST | B4: 3287.2928 | E4: =(B4/$C$2)*$E$2 -> 2137.595381 | F4: =(B4/$C$2)*$F$2 -> 459.9195556 | G4: =(B4/$C$2)*$G$2 -> 407.486241 | H4: =(B4/$C$2)*$H$2 -> 7.849565218 | I4: =(B4/$C$2)*$I$2 -> 22.47098688
A5: 01/01/2017 03:00 EST | B5: 3159.0768 | E5: =(B5/$C$2)*$E$2 -> 2054.221631 | F5: =(B5/$C$2)*$F$2 -> 441.9810727 | G5: =(B5/$C$2)*$G$2 -> 391.5928421 | H5: =(B5/$C$2)*$H$2 -> 7.543404521 | I5: =(B5/$C$2)*$I$2 -> 21.59453923
A6: 01/01/2017 04:00 EST | B6: 3044.9232 | E6: 1979.992098 | F6: 426.0100363 | G6: 377.4425901 | H6: 7.270822739 | I6: 20.81421809
A7: 01/01/2017 05:00 EST | B7: 3002.736 | E7: 1952.559445 | F7: 420.1076968 | G7: 372.2131492 | H7: 7.170085994 | I7: 20.52583854
A8: 01/01/2017 06:00 EST | B8: 3094.5552 | E8: 2012.265808 | F8: 432.9539652 | G8: 383.5948736 | H8: 7.389336557 | I8: 21.15348815
A9: 01/01/2017 07:00 EST | B9: 3143.36 | E9: 2044.001623 | F9: 439.7821619 | G9: 389.644619 | H9: 7.505875145 | I9: 21.48710371
A10: 01/01/2017 08:00 EST | B10: 3246.76 | E10: 2111.238518 | F10: 454.2486804 | G10: 402.4618762 | H10: 7.752778933 | I10: 22.19391633
A11: 01/01/2017 09:00 EST | B11: 3515.6 | E11: 2286.054446 | F11: 491.8616285 | G11: 435.7867449 | H11: 8.394728781 | I11: 24.03162915
A12: 01/01/2017 10:00 EST | B12: 3673.5952 | E12: 2388.792423 | F12: 513.9664687 | G12: 455.3715139 | H12: 8.771997768 | I12: 25.11163884
A13: 01/01/2017 11:00 EST | B13: 3906.0384 | E13: 2539.940964 | F13: 546.4872023 | G13: 484.1847081 | H13: 9.327037483 | I13: 26.70055361
A14: 01/01/2017 12:00 EST | B14: 4059.8976 | E14: 2639.989464 | F14: 568.0133818 | G14: 503.2567868 | H14: 9.694430319 | I14: 27.75229079
A15: 01/01/2017 13:00 EST | B15: 4006.9568 | E15: 2605.564174 | F15: 560.6065243 | G15: 496.6943511 | H15: 9.56801558 | I15: 27.39040273
A16: 01/01/2017 14:00 EST | B16: 3897.7664 | E16: 2534.562012 | F16: 545.3298808 | G16: 483.1593275 | H16: 9.30728518 | I16: 26.6440086
A17: 01/01/2017 15:00 EST | B17: 3971.3872 | E17: 2582.434682 | F17: 555.6300419 | G17: 492.2852146 | H17: 9.483080677 | I17: 27.14725919
A18: 01/01/2017 16:00 EST | B18: 4118.6288 | E18: 2678.180021 | F18: 576.2303643 | G18: 510.5369889 | H18: 9.83467167 | I18: 28.15376036
A19: 01/01/2017 17:00 EST | B19: 4675.3344 | E19: 3040.183466 | F19: 654.1180998 | G19: 579.5451017 | H19: 11.16400166 | I19: 31.95923952
A20: 01/01/2017 18:00 EST | B20: 5165.0368 | E20: 3358.617403 | F20: 722.6315313 | G20: 640.2476318 | H20: 12.333338 | I20: 35.3067041
A21: 01/01/2017 19:00 EST | B21: 4997.1152 | E21: 3249.424685 | F21: 699.1379053 | G21: 619.4324061 | H21: 11.93236625 | I21: 34.1588404
A22: 01/01/2017 20:00 EST | B22: 4777.08 | E22: 3106.344571 | F22: 668.353154 | G22: 592.1572828 | H22: 11.40695499 | I22: 32.65474314
A23: 01/01/2017 21:00 EST | B23: 4642.2464 | E23: 3018.667659 | F23: 649.4888139 | G23: 575.4435794 | H23: 11.08499245 | I23: 31.73305948
A24: 01/01/2017 22:00 EST | B24: 4427.1744 | E24: 2878.814917 | F24: 619.3984554 | G24: 548.7836844 | H24: 10.57143257 | I24: 30.26288922
A25: 01/01/2017 23:00 EST | B25: 4151.7168 | E25: 2699.695827 | F25: 580.8596502 | G25: 514.6385112 | H25: 9.913680883 | I25: 28.3799404
A26: 01/02/2017 00:00 EST | B26: 3871.296 | E26: 2517.349367 | F26: 541.626452 | G26: 479.8781097 | H26: 9.24407781 | I26: 26.46306457
A27: 01/02/2017 01:00 EST | B27: 3679.3856 | E27: 2392.557689 | F27: 514.7765937 | G27: 456.0892803 | H27: 8.78582438 | I27: 25.15122034
A28: 01/02/2017 02:00 EST | B28: 3650.4336 | E28: 2373.731358 | F28: 510.7259686 | G28: 452.5004483 | H28: 8.71669132 | I28: 24.95331281
A29: 01/02/2017 03:00 EST | B29: 3583.4304 | E29: 2330.16185 | F29: 501.3516646 | G29: 444.1948656 | H29: 8.556697666 | I29: 24.49529823
A30: 01/02/2017 04:00 EST | B30: 3641.3344 | E30: 2367.814511 | F30: 509.4529149 | G30: 451.3725297 | H30: 8.694963787 | I30: 24.8911133
A31: 01/02/2017 05:00 EST | B31: 3690.1392 | E31: 2399.550326 | F31: 516.2811117 | G31: 457.4222751 | H31: 8.811502374 | I31: 25.22472885
A32: 01/02/2017 06:00 EST | B32: 3875.432 | E32: 2520.038843 | F32: 542.2051128 | G32: 480.3908 | H32: 9.253953962 | I32: 26.49133707
A33: 01/02/2017 07:00 EST | B33: 4029.2912 | E33: 2620.087343 | F33: 563.7312923 | G33: 499.4628787 | H33: 9.621346798 | I33: 27.54307425
A34: 01/02/2017 08:00 EST | B34: 4233.6096 | E34: 2752.947448 | F34: 592.3171328 | G34: 524.7897789 | H34: 10.10922868 | I34: 28.939736
A35: 01/02/2017 09:00 EST | B35: 4304.7488 | E35: 2799.206433 | F35: 602.2700975 | G35: 533.6080519 | H35: 10.27909849 | I35: 29.42602308
A36: 01/02/2017 10:00 EST | B36: 4263.3888 | E36: 2772.311674 | F36: 596.4834901 | G36: 528.481149 | H36: 10.18033697 | I36: 29.14329803
A37: 01/02/2017 11:00 EST | B37: 4294.8224 | E37: 2792.751691 | F37: 600.8813118 | G37: 532.3775952 | H37: 10.25539572 | I37: 29.35816907
A38: 01/02/2017 12:00 EST | B38: 4281.5872 | E38: 2784.145368 | F38: 599.0295974 | G38: 530.7369863 | H38: 10.22379204 | I38: 29.26769705
A39: 01/02/2017 13:00 EST | B39: 4195.5584 | E39: 2728.204271 | F39: 586.993454 | G39: 520.0730283 | H39: 10.01836809 | I39: 28.67962895
A40: 01/02/2017 14:00 EST | B40: 4194.7312 | E40: 2727.666376 | F40: 586.8777219 | G40: 519.9704902 | H40: 10.01639286 | I40: 28.67397445
A41: 01/02/2017 15:00 EST | B41: 4222.0288 | E41: 2745.416916 | F41: 590.6968827 | G41: 523.3542461 | H41: 10.08157546 | I41: 28.86057298
A42: 01/02/2017 16:00 EST | B42: 4356.0352 | E42: 2832.555933 | F42: 609.4454907 | G42: 539.9654114 | H42: 10.40156277 | I42: 29.77660214
A43: 01/02/2017 17:00 EST | B43: 5042.6112 | E43: 3279.008919 | F43: 705.5031734 | G43: 625.0719993 | H43: 12.04100392 | I43: 34.46983795
A44: 01/02/2017 18:00 EST | B44: 5591.0448 | E44: 3635.633412 | F44: 782.2335875 | G44: 693.0547315 | H44: 13.35058161 | I44: 38.2187721
A45: 01/02/2017 19:00 EST | B45: 5380.1088 | E45: 3498.470146 | F45: 752.7218898 | G45: 666.9075268 | H45: 12.84689788 | I45: 36.77687435
A46: 01/02/2017 20:00 EST | B46: 5239.4848 | E46: 3407.027968 | F46: 733.0474246 | G46: 649.476057 | H46: 12.51110873 | I46: 35.81560918
A47: 01/02/2017 21:00 EST | B47: 5065.7728 | E47: 3294.069983 | F47: 708.7436736 | G47: 627.9430649 | H47: 12.09631037 | I47: 34.62816398
A48: 01/02/2017 22:00 EST | B48: 4761.3632 | E48: 3096.124563 | F48: 666.1542432 | G48: 590.2090597 | H48: 11.36942561 | I48: 32.54730762
A49: 01/02/2017 23:00 EST | B49: 4363.48 | E49: 2837.396989 | F49: 610.48708 | G49: 540.888254 | H49: 10.41933984 | I49: 29.82749265
A50: 01/03/2017 00:00 EST | B50: 3934.1632 | E50: 2558.229399 | F50: 550.4220953 | G50: 487.6710021 | H50: 9.394195313 | I50: 26.89280664
A51: 01/03/2017 01:00 EST | B51: 3732.3264 | E51: 2426.982979 | F51: 522.1834512 | G51: 462.651716 | H51: 8.91223912 | I51: 25.5131084
A52: 01/03/2017 02:00 EST | B52: 3626.4448 | E52: 2358.132398 | F52: 507.3697363 | G52: 449.5268446 | H52: 8.659409641 | I52: 24.78933228
A53: 01/03/2017 03:00 EST | B53: 3595.8384 | E53: 2338.230277 | F53: 503.0876468 | G53: 445.7329365 | H53: 8.58632612 | I53: 24.58011574
A54: 01/03/2017 04:00 EST | B54: 3559.4416 | E54: 2314.56289 | F54: 497.9954323 | G54: 441.221262 | H54: 8.499415987 | I54: 24.3313177
A55: 01/03/2017 05:00 EST | B55: 3616.5184 | E55: 2351.677656 | F55: 505.9809505 | G55: 448.2963879 | H55: 8.635706878 | I55: 24.72147827
A56: 01/03/2017 06:00 EST | B56: 3810.9104 | E56: 2478.08302 | F56: 533.1780052 | G56: 472.3928315 | H56: 9.099885998 | I56: 26.050286
A57: 01/03/2017 07:00 EST | B57: 3983.7952 | E57: 2590.503109 | F57: 557.3660242 | G57: 493.8232855 | H57: 9.512709131 | I57: 27.2320767
A58: 01/03/2017 08:00 EST | B58: 4079.7504 | E58: 2652.898948 | F58: 570.7909533 | G58: 505.7177002 | H58: 9.741835846 | I58: 27.88799881
A59: 01/03/2017 09:00 EST | B59: 4150.8896 | E59: 2699.157932 | F59: 580.743918 | G59: 514.5359732 | H59: 9.911705652 | I59: 28.3742859
A60: 01/03/2017 10:00 EST | B60: 4284.896 | E60: 2786.296949 | F60: 599.492526 | G60: 531.1471385 | H60: 10.23169296 | I60: 29.29031506
A61: 01/03/2017 11:00 EST | B61: 4338.664 | E61: 2821.260134 | F61: 607.0151156 | G61: 537.8121122 | H61: 10.36008293 | I61: 29.65785762
A62: 01/03/2017 12:00 EST | B62: 4390.7776 | E62: 2855.14753 | F62: 614.3062409 | G62: 544.2720099 | H62: 10.48452244 | I62: 30.01409118
A63: 01/03/2017 13:00 EST | B63: 4381.6784 | E63: 2849.230683 | F63: 613.0331873 | G63: 543.1440912 | H63: 10.46279491 | I63: 29.95189167
A64: 01/03/2017 14:00 EST | B64: 4250.9808 | E64: 2764.243247 | F64: 594.7475079 | G64: 526.9430781 | H64: 10.15070852 | I64: 29.05848052
A65: 01/03/2017 15:00 EST | B65: 4247.672 | E65: 2762.091666 | F65: 594.2845793 | G65: 526.5329259 | H65: 10.1428076 | I65: 29.03586251
A66: 01/03/2017 16:00 EST | B66: 4316.3296 | E66: 2806.736965 | F66: 603.8903476 | G66: 535.0435847 | H66: 10.30675171 | I66: 29.50518609
A67: 01/03/2017 17:00 EST | B67: 4815.9584 | E67: 3131.625644 | F67: 673.7925649 | G67: 596.9765715 | H67: 11.49979081 | I67: 32.92050468
A68: 01/03/2017 18:00 EST | B68: 5321.3776 | E68: 3460.279589 | F68: 744.5049073 | G68: 659.6273247 | H68: 12.70665653 | I68: 36.37540478
A69: 01/03/2017 19:00 EST | B69: 5122.0224 | E69: =(B69/$C$2)*$E$2 -> 3330.646854 | F69: =(B69/$C$2)*$F$2 -> 716.6134596 | G69: =(B69/$C$2)*$G$2 -> 634.9156528 | H69: =(B69/$C$2)*$H$2 -> 12.23062603 | I69: =(B69/$C$2)*$I$2 -> 35.01267004
A70: 01/03/2017 20:00 EST | B70: 5024.4128 | E70: 3267.175225 | F70: 702.9570662 | G70: 622.816162 | H70: 11.99754885 | I70: 34.34543893
A71: 01/03/2017 21:00 EST | B71: 4805.2048 | E71: 3124.633007 | F71: 672.288047 | G71: 595.6435767 | H71: 11.47411282 | I71: 32.84699617
A72: 01/03/2017 22:00 EST | B72: 4425.52 | E72: 2877.739126 | F72: 619.1669911 | G72: 548.5786083 | H72: 10.56748211 | I72: 30.25158022
A73: 01/03/2017 23:00 EST | B73: 3993.7216 | E73: 2596.957851 | F73: 558.7548099 | G73: 495.0537422 | H73: 9.536411895 | I73: 27.29993071
A74: 01/04/2017 00:00 EST | B74: 3537.9344 | E74: 2300.577616 | F74: 494.9863965 | G74: 438.5552725 | H74: 8.448059999 | I74: 24.18430068
A75: 01/04/2017 01:00 EST | B75: 3346.8512 | E75: 2176.323833 | F75: 468.2522703 | G75: 414.8689811 | H75: 7.991781799 | I75: 22.87811095
A76: 01/04/2017 02:00 EST | B76: 3231.0432 | E76: 2101.01851 | F76: 452.0497696 | G76: 400.5136531 | H76: 7.715249557 | I76: 22.08648081
A77: 01/04/2017 03:00 EST | B77: 3205.4 | E77: 2084.34376 | F77: 448.462073 | G77: 397.3349733 | H77: 7.654017418 | I77: 21.91119128
A78: 01/04/2017 04:00 EST | B78: 3151.632 | E78: 2049.380574 | F78: 440.9394834 | G78: 390.6699995 | H78: 7.525627448 | I78: 21.54364872
A79: 01/04/2017 05:00 EST | B79: 3195.4736 | E79: 2077.889018 | F79: 447.0732872 | G79: 396.1045166 | H79: 7.630314654 | I79: 21.84333727
A80: 01/04/2017 06:00 EST | B80: 3389.0384 | E80: 2203.756486 | F80: 474.1546098 | G80: 420.0984221 | H80: 8.092518545 | I80: 23.1664905
A81: 01/04/2017 07:00 EST | B81: 3504.8464 | E81: 2279.061809 | F81: 490.3571105 | G81: 434.4537501 | H81: 8.369050787 | I81: 23.95812064
A82: 01/04/2017 08:00 EST | B82: 3617.3456 | E82: 2352.215551 | F82: 506.0966826 | G82: 448.398926 | H82: 8.637682108 | I82: 24.72713277
A83: 01/04/2017 09:00 EST | B83: 3695.9296 | E83: 2403.315592 | F83: 517.0912367 | G83: 458.1400415 | H83: 8.825328986 | I83: 25.26431036
A84: 01/04/2017 10:00 EST | B84: 3796.0208 | E84: 2468.400907 | F84: 531.0948266 | G84: 470.5471464 | H84: 9.064331853 | I84: 25.94850498
A85: 01/04/2017 11:00 EST | B85: 3849.7888 | E85: 2503.364092 | F85: 538.6174162 | G85: 477.2121202 | H85: 9.192721823 | I85: 26.31604754
A86: 01/04/2017 12:00 EST | B86: 3929.2 | E86: 2555.002028 | F86: 549.7277024 | G86: 487.0557737 | H86: 9.382343931 | I86: 26.85887964
A87: 01/04/2017 13:00 EST | B87: 3882.8768 | E87: 2524.879899 | F87: 543.2467021 | G87: 481.3136425 | H87: 9.271731035 | I87: 26.54222758
A88: 01/04/2017 14:00 EST | B88: 3732.3264 | E88: 2426.982979 | F88: 522.1834512 | G88: 462.651716 | H88: 8.91223912 | I88: 25.5131084
A89: 01/04/2017 15:00 EST | B89: 3821.664 | E89: 2485.075657 | F89: 534.6825232 | G89: 473.7258262 | H89: 9.125563992 | I89: 26.12379451
A90: 01/04/2017 16:00 EST | B90: 3927.5456 | E90: 2553.926238 | F90: 549.4962381 | G90: 486.8506976 | H90: 9.378393471 | I90: 26.84757063
A91: 01/04/2017 17:00 EST | B91: 4266.6976 | E91: 2774.463255 | F91: 596.9464187 | G91: 528.8913012 | H91: 10.18823789 | I91: 29.16591604
A92: 01/04/2017 18:00 EST | B92: 4713.3856 | E92: 3064.926644 | F92: 659.4417786 | G92: 584.2618523 | H92: 11.25486226 | I92: 32.21934656
A93: 01/04/2017 19:00 EST | B93: 4585.1696 | E93: 2981.552893 | F93: 641.5032957 | G93: 568.3684534 | H93: 10.94870156 | I93: 31.34289891
A94: 01/04/2017 20:00 EST | B94: 4524.784 | E94: 2942.286546 | F94: 633.0548489 | G94: 560.8831752 | H94: 10.80450975 | I94: 30.93012034
A95: 01/04/2017 21:00 EST | B95: 4336.1824 | E95: 2819.646449 | F95: 606.6679191 | G95: 537.5044981 | H95: 10.35415724 | I95: 29.64089412
A96: 01/04/2017 22:00 EST | B96: 4045.008 | E96: 2630.307351 | F96: 565.9302031 | G96: 501.4111018 | H96: 9.658876174 | I96: 27.65050977
A97: 01/04/2017 23:00 EST | B97: 3766.2416 | E97: 2449.036681 | F97: 526.9284693 | G97: 466.8557764 | H97: 8.993223562 | I97: 25.74494294
A98: 01/05/2017 00:00 EST | B98: 3424.608 | E98: 2226.885978 | F98: 479.1310922 | G98: 424.5075586 | H98: 8.177453448 | I98: 23.40963404
A99: 01/05/2017 01:00 EST | B99: 3202.9184 | E99: 2082.730074 | F99: 448.1148766 | G99: 397.0273591 | H99: 7.648091727 | I99: 21.89422778
A100: 01/05/2017 02:00 EST | B100: 3049.0592 | E100: 1982.681574 | F100: 426.5886971 | G100: 377.9552804 | H100: 7.280698891 | I100: 20.8424906
A101: 01/05/2017 03:00 EST | B101: 2970.4752 | E101: 1931.581533 | F101: 415.594143 | G101: 368.2141649 | H101: 7.093052012 | I101: 20.30531301
A102: 01/05/2017 04:00 EST | B102: 2926.6336 | E102: 1903.07309 | F102: 409.4603392 | G102: 362.7796479 | H102: 6.988364806 | I102: 20.00562445
A103: 01/05/2017 05:00 EST | B103: 2930.7696 | E103: 1905.762565 | F103: 410.0389999 | G103: 363.2923382 | H103: 6.998240958 | I103: 20.03389696
A104: 01/05/2017 06:00 EST | B104: 3006.0448 | E104: 1954.711025 | F104: 420.5706254 | G104: 372.6233014 | H104: 7.177986915 | I104: 20.54845655
A105: 01/05/2017 07:00 EST | B105: 3194.6464 | E105: 2077.351123 | F105: 446.9575551 | G105: 396.0019785 | H105: 7.628339424 | I105: 21.83768277
A106: 01/05/2017 08:00 EST | B106: 3352.6416 | E106: 2180.089099 | F106: 469.0623953 | G106: 415.5867475 | H106: 8.005608411 | I106: 22.91769246
A107: 01/05/2017 09:00 EST | B107: 3793.5392 | E107: 2466.787221 | F107: 530.7476301 | G107: 470.2395323 | H107: 9.058406162 | I107: 25.93154148
A108: 01/05/2017 10:00 EST | B108: 4006.9568 | E108: 2605.564174 | F108: 560.6065243 | G108: 496.6943511 | H108: 9.56801558 | I108: 27.39040273
A109: 01/05/2017 11:00 EST | B109: 4094.64 | E109: 2662.581061 | F109: 572.874132 | G109: 507.5633852 | H109: 9.777389992 | I109: 27.98977983
A110: 01/05/2017 12:00 EST | B110: 4201.3488 | E110: 2731.969537 | F110: 587.803579 | G110: 520.7907947 | H110: 10.0321947 | I110: 28.71921046
A111: 01/05/2017 13:00 EST | B111: 4123.592 | E111: 2681.407392 | F111: 576.9247571 | G111: 511.1522173 | H111: 9.846523052 | I111: 28.18768737
A112: 01/05/2017 14:00 EST | B112: 4054.9344 | E112: 2636.762093 | F112: 567.3189889 | G112: 502.6415585 | H112: 9.682578937 | I112: 27.71836379
A113: 01/05/2017 15:00 EST | B113: 4040.872 | E113: 2627.617875 | F113: 565.3515424 | G113: 500.8984115 | H113: 9.649000022 | I113: 27.62223727
A114: 01/05/2017 16:00 EST | B114: 4104.5664 | E114: 2669.035803 | F114: 574.2629177 | G114: 508.7938419 | H114: 9.801092755 | I114: 28.05763384
A115: 01/05/2017 17:00 EST | B115: 4378.3696 | E115: 2847.079102 | F115: 612.5702587 | G115: 542.733939 | H115: 10.45489399 | I115: 29.92927367
A116: 01/05/2017 18:00 EST | B116: 4761.3632 | E116: 3096.124563 | F116: 666.1542432 | G116: 590.2090597 | H116: 11.36942561 | I116: 32.54730762
A117: 01/05/2017 19:00 EST | B117: 4665.408 | E117: 3033.728724 | F117: 652.729314 | G117: 578.314645 | H117: 11.1402989 | I117: 31.89138551
A118: 01/05/2017 20:00 EST | B118: 4454.472 | E118: 2896.565457 | F118: 623.2176163 | G118: 552.1674403 | H118: 10.63661517 | I118: 30.44948776
A119: 01/05/2017 21:00 EST | B119: 4277.4512 | E119: 2781.455892 | F119: 598.4509366 | G119: 530.224296 | H119: 10.21391589 | I119: 29.23942455
A120: 01/05/2017 22:00 EST | B120: 4040.872 | E120: 2627.617875 | F120: 565.3515424 | G120: 500.8984115 | H120: 9.649000022 | I120: 27.62223727
A121: 01/05/2017 23:00 EST | B121: 3695.9296 | E121: 2403.315592 | F121: 517.0912367 | G121: 458.1400415 | H121: 8.825328986 | I121: 25.26431036
A122: 01/06/2017 00:00 EST | B122: 3319.5536 | E122: 2158.573292 | F122: 464.4331094 | G122: 411.4852252 | H122: 7.926599199 | I122: 22.69151242
A123: 01/06/2017 01:00 EST | B123: 3080.4928 | E123: 2003.12159 | F123: 430.9865187 | G123: 381.8517266 | H123: 7.355757642 | I123: 21.05736164
A124: 01/06/2017 02:00 EST | B124: 2950.6224 | E124: 1918.672049 | F124: 412.8165715 | G124: 365.7532515 | H124: 7.045646485 | I124: 20.16960498
A125: 01/06/2017 03:00 EST | B125: 2862.9392 | E125: 1861.655162 | F125: 400.5489638 | G125: 354.8842174 | H125: 6.836272073 | I125: 19.57022788
A126: 01/06/2017 04:00 EST | B126: 2859.6304 | E126: 1859.503581 | F126: 400.0860352 | G126: 354.4740652 | H126: 6.828371152 | I126: 19.54760987
A127: 01/06/2017 05:00 EST | B127: 2855.4944 | E127: 1856.814106 | F127: 399.5073745 | G127: 353.9613749 | H127: 6.818495 | I127: 19.51933737
A128: 01/06/2017 06:00 EST | B128: 2944.832 | E128: 1914.906783 | F128: 412.0064464 | G128: 365.0354851 | H128: 7.031819873 | I128: 20.13002348
A129: 01/06/2017 07:00 EST | B129: 3084.6288 | E129: 2005.811066 | F129: 431.5651794 | G129: 382.3644169 | H129: 7.365633794 | I129: 21.08563414
A130: 01/06/2017 08:00 EST | B130: 3285.6384 | E130: 2136.519591 | F130: 459.6880914 | G130: 407.2811649 | H130: 7.845614757 | I130: 22.45967788
A131: 01/06/2017 09:00 EST | B131: 3705.0288 | E131: 2409.232439 | F131: 518.3642903 | G131: 459.2679601 | H131: 8.84705652 | I131: 25.32650987
A132: 01/06/2017 10:00 EST | B132: 4006.9568 | E132: 2605.564174 | F132: 560.6065243 | G132: 496.6943511 | H132: 9.56801558 | I132: 27.39040273
A133: 01/06/2017 11:00 EST | B133: 4068.1696 | E133: =(B133/$C$2)*$E$2 -> 2645.368416 | F133: =(B133/$C$2)*$F$2 -> 569.1707032 | G133: =(B133/$C$2)*$G$2 -> 504.2821674 | H133: =(B133/$C$2)*$H$2 -> 9.714182622 | I133: =(B133/$C$2)*$I$2 -> 27.8088358
A134: 01/06/2017 12:00 EST | B134: 4127.728 | E134: 2684.096868 | F134: 577.5034179 | G134: 511.6649075 | H134: 9.856399204 | I134: 28.21595987
A135: 01/06/2017 13:00 EST | B135: 4367.616 | E135: 2840.086465 | F135: 611.0657408 | G135: 541.4009443 | H135: 10.42921599 | I135: 29.85576515
A136: 01/06/2017 14:00 EST | B136: 4436.2736 | E136: 2884.731764 | F136: 620.671509 | G136: 549.911603 | H136: 10.59316011 | I136: 30.32508874
A137: 01/06/2017 15:00 EST | B137: 4283.2416 | E137: 2785.221158 | F137: 599.2610617 | G137: 530.9420624 | H137: 10.2277425 | I137: 29.27900605
A138: 01/06/2017 16:00 EST | B138: 4393.2592 | E138: 2856.761215 | F138: 614.6534374 | G138: 544.579624 | H138: 10.49044813 | I138: 30.03105468
A139: 01/06/2017 17:00 EST | B139: 4936.7296 | E139: 3210.158338 | F139: 690.6894585 | G139: 611.9471279 | H139: 11.78817444 | I139: 33.74606183
A140: 01/06/2017 18:00 EST | B140: 5446.2848 | E140: 3541.501759 | F140: 761.9804616 | G140: 675.1105714 | H140: 13.0049163 | I140: 37.22923443
A141: 01/06/2017 19:00 EST | B141: 5358.6016 | E141: 3484.484871 | F141: 749.7128539 | G141: 664.2415373 | H141: 12.79554189 | I141: 36.62985732
A142: 01/06/2017 20:00 EST | B142: 5187.3712 | E142: 3373.140572 | F142: 725.7562993 | G142: 643.0161594 | H142: 12.38666922 | I142: 35.45937562
A143: 01/06/2017 21:00 EST | B143: 4879.6528 | E143: 3173.043571 | F143: 682.7039403 | G143: 604.8720019 | H143: 11.65188355 | I143: 33.35590126
A144: 01/06/2017 22:00 EST | B144: 4600.8864 | E144: 2991.772901 | F144: 643.7022065 | G144: 570.3166765 | H144: 10.98623094 | I144: 31.45033443
A145: 01/06/2017 23:00 EST | B145: 4187.2864 | E145: 2722.825319 | F145: 585.8361325 | G145: 519.0476477 | H145: 9.998615785 | I145: 28.62308394
A146: 01/07/2017 00:00 EST | B146: 3839.8624 | E146: 2496.909351 | F146: 537.2286304 | G146: 475.9816635 | H146: 9.169019059 | I146: 26.24819353
A147: 01/07/2017 01:00 EST | B147: 3743.08 | E147: 2433.975616 | F147: 523.6879691 | G147: 463.9847107 | H147: 8.937917114 | I147: 25.58661692
A148: 01/07/2017 02:00 EST | B148: 3508.1552 | E148: 2281.21339 | F148: 490.8200391 | G148: 434.8639024 | H148: 8.376951708 | I148: 23.98073864
A149: 01/07/2017 03:00 EST | B149: 3562.7504 | E149: 2316.714471 | F149: 498.4583609 | G149: 441.6314142 | H149: 8.507316908 | I149: 24.3539357
A150: 01/07/2017 04:00 EST | B150: 3597.4928 | E150: 2339.306067 | F150: 503.3191111 | G150: 445.9380126 | H150: 8.590276581 | I150: 24.59142475
A151: 01/07/2017 05:00 EST | B151: 3688.4848 | E151: 2398.474536 | F151: 516.0496474 | G151: 457.2171989 | H151: 8.807551914 | I151: 25.21341985
A152: 01/07/2017 06:00 EST | B152: 3999.512 | E152: 2600.723117 | F152: 559.564935 | G152: 495.7715086 | H152: 9.550238507 | I152: 27.33951222
A153: 01/07/2017 07:00 EST | B153: 4386.6416 | E153: 2852.458054 | F153: 613.7275802 | G153: 543.7593196 | H153: 10.47464629 | I153: 29.98581868
A154: 01/07/2017 08:00 EST | B154: 4608.3312 | E154: 2996.613958 | F154: 644.7437958 | G154: 571.239519 | H154: 11.00400801 | I154: 31.50122494
A155: 01/07/2017 09:00 EST | B155: 4420.5568 | E155: 2874.511756 | F155: 618.4725982 | G155: 547.9633799 | H155: 10.55563073 | I155: 30.21765322
A156: 01/07/2017 10:00 EST | B156: 4350.2448 | E156: 2828.790667 | F156: 608.6353657 | G156: 539.247645 | H156: 10.38773615 | I156: 29.73702063
A157: 01/07/2017 11:00 EST | B157: 4403.1856 | E157: 2863.215957 | F157: 616.0422231 | G157: 545.8100807 | H157: 10.51415089 | I157: 30.0989087
A158: 01/07/2017 12:00 EST | B158: 4402.3584 | E158: 2862.678062 | F158: 615.926491 | G158: 545.7075427 | H158: 10.51217566 | I158: 30.0932542
A159: 01/07/2017 13:00 EST | B159: 4293.9952 | E159: 2792.213795 | F159: 600.7655796 | G159: 532.2750571 | H159: 10.25342049 | I159: 29.35251457
A160: 01/07/2017 14:00 EST | B160: 4249.3264 | E160: 2763.167457 | F160: 594.5160436 | G160: 526.738002 | H160: 10.14675806 | I160: 29.04717151
A161: 01/07/2017 15:00 EST | B161: 4296.4768 | E161: 2793.827481 | F161: 601.1127761 | G161: 532.5826713 | H161: 10.25934619 | I161: 29.36947807
A162: 01/07/2017 16:00 EST | B162: 4523.1296 | E162: 2941.210756 | F162: 632.8233846 | G162: 560.6780991 | H162: 10.80055929 | I162: 30.91881134
A163: 01/07/2017 17:00 EST | B163: 5023.5856 | E163: 3266.63733 | F163: 702.841334 | G163: 622.7136239 | H163: 11.99557362 | I163: 34.33978443
A164: 01/07/2017 18:00 EST | B164: 5596.8352 | E164: 3639.398678 | F164: 783.0437125 | G164: 693.7724979 | H164: 13.36440822 | I164: 38.2583536
A165: 01/07/2017 19:00 EST | B165: 5423.9504 | E165: 3526.978589 | F165: 758.8556936 | G165: 672.3420438 | H165: 12.95158509 | I165: 37.0765629
A166: 01/07/2017 20:00 EST | B166: 5257.6832 | E166: 3418.861661 | F166: 735.5935319 | G166: 651.7318943 | H166: 12.5545638 | I166: 35.9400082
A167: 01/07/2017 21:00 EST | B167: 5138.5664 | E167: 3341.404758 | F167: 718.9281026 | G167: 636.966414 | H167: 12.27013063 | I167: 35.12576006
A168: 01/07/2017 22:00 EST | B168: 4803.5504 | E168: 3123.557216 | F168: 672.0565827 | G168: 595.4385006 | H168: 11.47016236 | I168: 32.83568717
A169: 01/07/2017 23:00 EST | B169: 4392.432 | E169: 2856.22332 | F169: 614.5377052 | G169: 544.477086 | H169: 10.4884729 | I169: 30.02540018
A170: 01/08/2017 00:00 EST | B170: 3936.6448 | E170: 2559.843085 | F170: 550.7692917 | G170: 487.9786162 | H170: 9.400121004 | I170: 26.90977015
A171: 01/08/2017 01:00 EST | B171: 3723.2272 | E171: 2421.066132 | F171: 520.9103976 | G171: 461.5237974 | H171: 8.890511586 | I171: 25.45090889
A172: 01/08/2017 02:00 EST | B172: 3580.1216 | E172: 2328.010269 | F172: 500.888736 | G172: 443.7847134 | H172: 8.548796744 | I172: 24.47268022
A173: 01/08/2017 03:00 EST | B173: 3547.0336 | E173: 2306.494463 | F173: 496.2594501 | G173: 439.6831911 | H173: 8.469787532 | I173: 24.24650019
A174: 01/08/2017 04:00 EST | B174: 3505.6736 | E174: 2279.599704 | F174: 490.4728427 | G174: 434.5562882 | H174: 8.371026017 | I174: 23.96377514
A175: 01/08/2017 05:00 EST | B175: 3542.0704 | E175: 2303.267092 | F175: 495.5650572 | G175: 439.0679627 | H175: 8.45793615 | I175: 24.21257318
A176: 01/08/2017 06:00 EST | B176: 3734.808 | E176: 2428.596665 | F176: 522.5306476 | G176: 462.9593302 | H176: 8.918164811 | I176: 25.53007191
A177: 01/08/2017 07:00 EST | B177: 4045.8352 | E177: 2630.845246 | F177: 566.0459352 | G177: 501.5136398 | H177: 9.660851404 | I177: 27.65616427
A178: 01/08/2017 08:00 EST | B178: 4183.9776 | E178: 2720.673739 | F178: 585.3732039 | G178: 518.6374955 | H178: 9.990714864 | I178: 28.60046594
A179: 01/08/2017 09:00 EST | B179: 4052.4528 | E179: 2635.148408 | F179: 566.9717924 | G179: 502.3339443 | H179: 9.676653246 | I179: 27.70140028
A180: 01/08/2017 10:00 EST | B180: 3953.1888 | E180: 2570.600988 | F180: 553.0839347 | G180: 490.0293774 | H180: 9.43962561 | I180: 27.02286017
A181: 01/08/2017 11:00 EST | B181: 3895.2848 | E181: 2532.948326 | F181: 544.9826843 | G181: 482.8517133 | H181: 9.301359489 | I181: 26.6270451
A182: 01/08/2017 12:00 EST | B182: 3843.1712 | E182: 2499.060931 | F182: 537.691559 | G182: 476.3918157 | H182: 9.17691998 | I182: 26.27081154
A183: 01/08/2017 13:00 EST | B183: 3804.2928 | E183: 2473.779858 | F183: 532.2521481 | G183: 471.572527 | H183: 9.084084156 | I183: 26.00504999
A184: 01/08/2017 14:00 EST | B184: 3683.5216 | E184: 2395.247165 | F184: 515.3552545 | G184: 456.6019706 | H184: 8.795700532 | I184: 25.17949285
A185: 01/08/2017 15:00 EST | B185: 3772.032 | E185: 2452.801947 | F185: 527.7385943 | G185: 467.5735428 | H185: 9.007050174 | I185: 25.78452445
A186: 01/08/2017 16:00 EST | B186: 3968.0784 | E186: 2580.283101 | F186: 555.1671133 | G186: 491.8750624 | H186: 9.475179756 | I186: 27.12464118
A187: 01/08/2017 17:00 EST | B187: 4431.3104 | E187: 2881.504393 | F187: 619.9771162 | G187: 549.2963747 | H187: 10.58130872 | I187: 30.29116173
A188: 01/08/2017 18:00 EST | B188: 4873.0352 | E188: 3168.74041 | F188: 681.7780831 | G188: 604.0516975 | H188: 11.63608171 | I188: 33.31066525
A189: 01/08/2017 19:00 EST | B189: 4710.0768 | E189: 3062.775063 | F189: 658.97885 | G189: 583.8517001 | H189: 11.24696134 | I189: 32.19672856
A190: 01/08/2017 20:00 EST | B190: 4709.2496 | E190: 3062.237168 | F190: 658.8631178 | G190: 583.749162 | H190: 11.24498611 | I190: 32.19107406
A191: 01/08/2017 21:00 EST | B191: 4583.5152 | E191: 2980.477103 | F191: 641.2718314 | G191: 568.1633773 | H191: 10.9447511 | I191: 31.33158991
A192: 01/08/2017 22:00 EST | B192: 4232.7824 | E192: 2752.409553 | F192: 592.2014007 | G192: 524.6872409 | H192: 10.10725345 | I192: 28.93408149
A193: 01/08/2017 23:00 EST | B193: 3700.8928 | E193: 2406.542963 | F193: 517.7856296 | G193: 458.7552698 | H193: 8.837180368 | I193: 25.29823737
A194: 01/09/2017 00:00 EST | B194: 3293.9104 | E194: 2141.898542 | F194: 460.8454128 | G194: 408.3065455 | H194: 7.86536706 | I194: 22.51622289
A195: 01/09/2017 01:00 EST | B195: 3102.8272 | E195: 2017.64476 | F195: 434.1112867 | G195: 384.6202541 | H195: 7.40908886 | I195: 21.21003316
A196: 01/09/2017 02:00 EST | B196: 2959.7216 | E196: 1924.588896 | F196: 414.0896251 | G196: 366.8811702 | H196: 7.067374018 | I196: 20.23180449
A197: 01/09/2017 03:00 EST | B197: 2961.376 | E197: =(B197/$C$2)*$E$2 -> 1925.664687 | F197: =(B197/$C$2)*$F$2 -> 414.3210894 | G197: =(B197/$C$2)*$G$2 -> 367.0862463 | H197: =(B197/$C$2)*$H$2 -> 7.071324479 | I197: =(B197/$C$2)*$I$2 -> 20.24311349
A198: 01/09/2017 04:00 EST | B198: 2963.0304 | E198: 1926.740477 | F198: 414.5525537 | G198: 367.2913224 | H198: 7.075274939 | I198: 20.2544225
A199: 01/09/2017 05:00 EST | B199: 2945.6592 | E199: 1915.444678 | F199: 412.1221786 | G199: 365.1380232 | H199: 7.033795103 | I199: 20.13567798
A200: 01/09/2017 06:00 EST | B200: 3227.7344 | E200: 2098.866929 | F200: 451.586841 | G200: 400.1035008 | H200: 7.707348636 | I200: 22.06386281
... 8584 more rows

Sheet 2020
A1: USAGE | C1: Powerbill | D1: Total | E1: Residential | F1: GS<50 | G1: GS>50 | H1: USL | I1: SL
C2: =SUM(B3:B745) -> 2970306.451 | D2: =SUM(E2:I2) -> 2705025 | E2: 1907485 | F2: 431463 | G2: 336114 | H2: 7757 | I2: 22206
A3: 01/01/2020 01:00 EST | B3: 3438.6704 | E3: =(B3/$C$2)*$E$2 -> 2208.261106 | F3: =(B3/$C$2)*$F$2 -> 499.4969614 | G3: =(B3/$C$2)*$G$2 -> 389.1131376 | H3: =(B3/$C$2)*$H$2 -> 8.980139501 | I3: =(B3/$C$2)*$I$2 -> 25.70748714
A4: 01/01/2020 02:00 EST | B4: 3264.9584 | E4: 2096.705938 | F4: 474.2637735 | G4: 369.4562314 | H4: 8.526487999 | I4: 24.40881688
A5: 01/01/2020 03:00 EST | B5: 3128.4704 | E5: 2009.055449 | F5: 454.4376974 | G5: 354.0115195 | H5: 8.170047533 | I5: 23.38843309
A6: 01/01/2020 04:00 EST | B6: 3088.7648 | E6: 1983.557125 | F6: 448.6701116 | G6: 349.5185123 | H6: 8.066355761 | I6: 23.09159418
A7: 01/01/2020 05:00 EST | B7: 3083.8016 | E7: 1980.369834 | F7: 447.9491634 | G7: 348.9568864 | H7: 8.053394289 | I7: 23.05448931
A8: 01/01/2020 06:00 EST | B8: 3123.5072 | E8: 2005.868158 | F8: 453.7167492 | G8: 353.4498936 | H8: 8.157086061 | I8: 23.35132823
A9: 01/01/2020 07:00 EST | B9: 3129.2976 | E9: 2009.586664 | F9: 454.5578554 | G9: 354.1051238 | H9: 8.172207778 | I9: 23.39461724
A10: 01/01/2020 08:00 EST | B10: 3209.536 | E10: 2061.114527 | F10: 466.213185 | G10: 363.1847423 | H10: 8.381751567 | I10: 23.99447922
A11: 01/01/2020 09:00 EST | B11: 3354.296 | E11: 2154.077167 | F11: 487.2408416 | G11: 379.5654975 | H11: 8.759794486 | I11: 25.07670444
A12: 01/01/2020 10:00 EST | B12: 3712.4736 | E12: 2384.093299 | F12: 539.2692718 | G12: 420.0961659 | H12: 9.695180679 | I12: 27.75443885
A13: 01/01/2020 11:00 EST | B13: 3826.6272 | E13: 2457.40098 | F13: 555.8510809 | G13: 433.0135613 | H13: 9.993294523 | I13: 28.60785074
A14: 01/01/2020 12:00 EST | B14: 3908.52 | E14: 2509.991274 | F14: 567.7467266 | G14: 442.2803885 | H14: 10.2071588 | I14: 29.22008101
A15: 01/01/2020 13:00 EST | B15: 3932.5088 | E15: 2525.396511 | F15: 571.2313097 | G15: 444.9949137 | H15: 10.26980591 | I15: 29.39942119
A16: 01/01/2020 14:00 EST | B16: 3985.4496 | E16: 2559.394276 | F16: 578.9214241 | G16: 450.9855898 | H16: 10.40806161 | I16: 29.79520641
A17: 01/01/2020 15:00 EST | B17: 3941.608 | E17: 2531.239877 | F17: 572.5530481 | G17: 446.0245611 | H17: 10.29356861 | I17: 29.46744677
A18: 01/01/2020 16:00 EST | B18: 3939.9536 | E18: 2530.177447 | F18: 572.3127321 | G18: 445.8373525 | H18: 10.28924812 | I18: 29.45507848
A19: 01/01/2020 17:00 EST | B19: 4356.8624 | E19: 2797.909849 | F19: 632.8723829 | G19: 493.0139273 | H19: 11.37801173 | I19: 32.57188712
A20: 01/01/2020 18:00 EST | B20: 4686.088 | E20: 3009.333453 | F20: 680.6952818 | G20: 530.2684447 | H20: 12.23778934 | I20: 35.03317649
A21: 01/01/2020 19:00 EST | B21: 4468.5344 | E21: 2869.623886 | F21: 649.0937179 | G21: 505.6505098 | H21: 11.66964484 | I21: 33.40674658
A22: 01/01/2020 20:00 EST | B22: 4493.3504 | E22: 2885.560338 | F22: 652.6984591 | G22: 508.4586393 | H22: 11.73445219 | I22: 33.59227091
A23: 01/01/2020 21:00 EST | B23: 4329.5648 | E23: 2780.379751 | F23: 628.9071677 | G23: 489.9249849 | H23: 11.30672363 | I23: 32.36781037
A24: 01/01/2020 22:00 EST | B24: 4013.5744 | E24: 2577.455589 | F24: 583.0067974 | G24: 454.1681365 | H24: 10.48150995 | I24: 30.00546731
A25: 01/01/2020 23:00 EST | B25: 3753.0064 | E25: 2410.122838 | F25: 545.1570156 | G25: 424.6827773 | H25: 9.801032696 | I25: 28.05746191
A26: 01/02/2020 00:00 EST | B26: 3492.4384 | E26: 2242.790086 | F26: 507.3072338 | G26: 395.1974181 | H26: 9.120555442 | I26: 26.10945651
A27: 01/02/2020 01:00 EST | B27: 3188.856 | E27: 2047.83415 | F27: 463.2092341 | G27: 360.8446344 | H27: 8.327745436 | I27: 23.83987562
A28: 01/02/2020 02:00 EST | B28: 3074.7024 | E28: 1974.526469 | F28: 446.6274249 | G28: 347.927239 | H28: 8.029631591 | I28: 22.98646373
A29: 01/02/2020 03:00 EST | B29: 3011.008 | E29: 1933.622907 | F29: 437.3752561 | G29: 340.7197067 | H29: 7.863292707 | I29: 22.51028463
A30: 01/02/2020 04:00 EST | B30: 3023.416 | E30: 1941.591133 | F30: 439.1776266 | G30: 342.1237714 | H30: 7.895696386 | I30: 22.60304679
A31: 01/02/2020 05:00 EST | B31: 3060.64 | E31: 1965.495812 | F31: 444.5847383 | G31: 346.3359656 | H31: 7.992907422 | I31: 22.88133328
A32: 01/02/2020 06:00 EST | B32: 3201.264 | E32: 2055.802376 | F32: 465.0116047 | G32: 362.2486992 | H32: 8.360149115 | I32: 23.93263778
A33: 01/02/2020 07:00 EST | B33: 3369.1856 | E33: 2163.639039 | F33: 489.4036863 | G33: 381.2503751 | H33: 8.7986789 | I33: 25.18801904
A34: 01/02/2020 08:00 EST | B34: 3464.3136 | E34: 2224.728773 | F34: 503.2218606 | G34: 392.0148714 | H34: 9.047107104 | I34: 25.89919561
A35: 01/02/2020 09:00 EST | B35: 3526.3536 | E35: 2264.569905 | F35: 512.2337134 | G35: 399.035195 | H35: 9.209125498 | I35: 26.36300642
A36: 01/02/2020 10:00 EST | B36: 3622.3088 | E36: 2326.190854 | F36: 526.1720457 | G36: 409.8932955 | H36: 9.459713946 | I36: 27.08036714
A37: 01/02/2020 11:00 EST | B37: 3682.6944 | E37: 2364.969555 | F37: 534.9435824 | G37: 416.7264105 | H37: 9.61741185 | I37: 27.53180966
A38: 01/02/2020 12:00 EST | B38: 3755.488 | E38: 2411.716483 | F38: 545.5174897 | G38: 424.9635902 | H38: 9.807513432 | I38: 28.07601434
A39: 01/02/2020 13:00 EST | B39: 3644.6432 | E39: 2340.533662 | F39: 529.4163127 | G39: 412.420612 | H39: 9.518040568 | I39: 27.24733903
A40: 01/02/2020 14:00 EST | B40: 3541.2432 | E40: 2274.131776 | F40: 514.396558 | G40: 400.7200727 | H40: 9.248009912 | I40: 26.47432101
A41: 01/02/2020 15:00 EST | B41: 3566.0592 | E41: 2290.068229 | F41: 518.0012992 | G41: 403.5282021 | H41: 9.312817269 | I41: 26.65984534
A42: 01/02/2020 16:00 EST | B42: 3760.4512 | E42: 2414.903773 | F42: 546.2384379 | G42: 425.5252161 | H42: 9.820474903 | I42: 28.11311921
A43: 01/02/2020 17:00 EST | B43: 4421.384 | E43: 2839.344626 | F43: 642.2447098 | G43: 500.3150638 | H43: 11.54651086 | I43: 33.05425037
A44: 01/02/2020 18:00 EST | B44: 4789.488 | E44: 3075.735338 | F44: 695.7150364 | G44: 541.968984 | H44: 12.50781999 | I44: 35.8061945
A45: 01/02/2020 19:00 EST | B45: 4510.7216 | E45: 2896.715855 | F45: 655.2217778 | G45: 510.4243299 | H45: 11.77981734 | I45: 33.72213793
A46: 01/02/2020 20:00 EST | B46: 4461.0896 | E46: 2864.84295 | F46: 648.0122956 | G46: 504.808071 | H46: 11.65020263 | I46: 33.35108928
A47: 01/02/2020 21:00 EST | B47: 4391.6048 | E47: 2820.220883 | F47: 637.9190205 | G47: 496.9453085 | H47: 11.46874203 | I47: 32.83162118
A48: 01/02/2020 22:00 EST | B48: 3992.8944 | E48: 2564.175212 | F48: 580.0028464 | G48: 451.8280287 | H48: 10.42750382 | I48: 29.85086371
A49: 01/02/2020 23:00 EST | B49: 3674.4224 | E49: 2359.657405 | F49: 533.7420021 | G49: 415.7903674 | H49: 9.595809397 | I49: 27.46996822
A50: 01/03/2020 00:00 EST | B50: 3338.5792 | E50: 2143.98408 | F50: 484.9578389 | G50: 377.7870155 | H50: 8.718749826 | I50: 24.9592057
A51: 01/03/2020 01:00 EST | B51: 3062.2944 | E51: 1966.558242 | F51: 444.8250544 | G51: 346.5231742 | H51: 7.997227913 | I51: 22.89370156
A52: 01/03/2020 02:00 EST | B52: 2972.9568 | E52: 1909.187013 | F52: 431.8479864 | G52: 336.4139082 | H52: 7.763921426 | I52: 22.225814
A53: 01/03/2020 03:00 EST | B53: 2895.2 | E53: 1859.252795 | F53: 420.5531308 | G53: 327.6151026 | H53: 7.560858372 | I53: 21.64450445
A54: 01/03/2020 04:00 EST | B54: 2856.3216 | E54: 1834.285686 | F54: 414.9057031 | G54: 323.2156998 | H54: 7.459326846 | I54: 21.35384968
A55: 01/03/2020 05:00 EST | B55: 2886.928 | E55: 1853.940644 | F55: 419.3515505 | G55: 326.6790595 | H55: 7.53925592 | I55: 21.58266301
A56: 01/03/2020 06:00 EST | B56: 3005.2176 | E56: 1929.904401 | F56: 436.5341498 | G56: 340.0644765 | H56: 7.84817099 | I56: 22.46699562
A57: 01/03/2020 07:00 EST | B57: 3159.0768 | E57: 2028.710407 | F57: 458.8835448 | G57: 357.4748791 | H57: 8.249976607 | I57: 23.61724643
A58: 01/03/2020 08:00 EST | B58: 3317.072 | E58: 2130.172488 | F58: 481.8337299 | G58: 375.3533033 | H58: 8.662583449 | I58: 24.79841796
A59: 01/03/2020 09:00 EST | B59: 3413.0272 | E59: 2191.793438 | F59: 495.7720622 | G59: 386.2114038 | H59: 8.913171898 | I59: 25.51577867
A60: 01/03/2020 10:00 EST | B60: 3524.6992 | E60: 2263.507474 | F60: 511.9933973 | G60: 398.8479864 | H60: 9.204805007 | I60: 26.35063813
A61: 01/03/2020 11:00 EST | B61: 3658.7056 | E61: 2349.564318 | F61: 531.4589993 | G61: 414.0118854 | H61: 9.554764737 | I61: 27.35246948
A62: 01/03/2020 12:00 EST | B62: 3621.4816 | E62: 2325.659639 | F62: 526.0518877 | G62: 409.7996912 | H62: 9.457553701 | I62: 27.07418299
A63: 01/03/2020 13:00 EST | B63: 3626.4448 | E63: 2328.84693 | F63: 526.7728359 | G63: 410.3613171 | H63: 9.470515173 | I63: 27.11128786
A64: 01/03/2020 14:00 EST | B64: 3524.6992 | E64: 2263.507474 | F64: 511.9933973 | G64: 398.8479864 | H64: 9.204805007 | I64: 26.35063813
A65: 01/03/2020 15:00 EST | B65: 3587.5664 | E65: 2303.879821 | F65: 521.1254081 | G65: 405.9619143 | H65: 9.368983646 | I65: 26.82063309
A66: 01/03/2020 16:00 EST | B66: 3783.6128 | E66: 2429.777796 | F66: 549.602863 | G66: 428.146137 | H66: 9.88096177 | I66: 28.28627524
A67: 01/03/2020 17:00 EST | B67: 4185.632 | E67: =(B67/$C$2)*$E$2 -> 2687.948327 | F67: =(B67/$C$2)*$F$2 -> 607.9996692 | G67: =(B67/$C$2)*$G$2 -> 473.6378341 | H67: =(B67/$C$2)*$H$2 -> 10.93084096 | I67: =(B67/$C$2)*$I$2 -> 31.29176929
A68: 01/03/2020 18:00 EST | B68: 4598.4048 | E68: 2953.024654 | F68: 667.9585298 | G68: 520.3463873 | H68: 12.00880334 | I68: 34.37765721
A69: 01/03/2020 19:00 EST | B69: 4347.7632 | E69: 2792.066483 | F69: 631.5506445 | G69: 491.9842798 | H69: 11.35424903 | I69: 32.50386154
A70: 01/03/2020 20:00 EST | B70: 4283.2416 | E70: 2750.631707 | F70: 622.1783176 | G70: 484.6831432 | H70: 11.1857499 | I70: 32.0214983
A71: 01/03/2020 21:00 EST | B71: 4140.9632 | E71: 2659.262712 | F71: 601.5111351 | G71: 468.5832011 | H71: 10.81418772 | I71: 30.95782551
A72: 01/03/2020 22:00 EST | B72: 3877.0864 | E72: 2489.8051 | F72: 563.1807212 | G72: 438.7234246 | H72: 10.12506948 | I72: 28.98508353
A73: 01/03/2020 23:00 EST | B73: 3616.5184 | E73: 2322.472349 | F73: 525.3309394 | G73: 409.2380653 | H73: 9.44459223 | I73: 27.03707813
A74: 01/04/2020 00:00 EST | B74: 3240.9696 | E74: 2081.3007 | F74: 470.7791905 | G74: 366.7417063 | H74: 8.463840887 | I74: 24.2294767
A75: 01/04/2020 01:00 EST | B75: 2989.5008 | E75: 1919.811315 | F75: 434.2511471 | G75: 338.2859945 | H75: 7.807126331 | I75: 22.34949688
A76: 01/04/2020 02:00 EST | B76: 2853.0128 | E76: 1832.160826 | F76: 414.4250709 | G76: 322.8412825 | H76: 7.450685865 | I76: 21.3291131
A77: 01/04/2020 03:00 EST | B77: 2770.2928 | E77: 1779.039317 | F77: 402.4092672 | G77: 313.480851 | H77: 7.23466134 | I77: 20.71069869
A78: 01/04/2020 04:00 EST | B78: 2752.9216 | E78: 1767.883801 | F78: 399.8859484 | G78: 311.5151604 | H78: 7.189296189 | I78: 20.58083166
A79: 01/04/2020 05:00 EST | B79: 2764.5024 | E79: 1775.320812 | F79: 401.5681609 | G79: 312.8256208 | H79: 7.219539623 | I79: 20.66740968
A80: 01/04/2020 06:00 EST | B80: 2818.2704 | E80: 1809.849792 | F80: 409.3784334 | G80: 318.9099013 | H80: 7.359955564 | I80: 21.06937905
A81: 01/04/2020 07:00 EST | B81: 2987.8464 | E81: 1918.748885 | F81: 434.010831 | G81: 338.0987859 | H81: 7.80280584 | I81: 22.33712859
A82: 01/04/2020 08:00 EST | B82: 3272.4032 | E82: 2101.486874 | F82: 475.3451959 | G82: 370.2986703 | H82: 8.545930206 | I82: 24.46447417
A83: 01/04/2020 09:00 EST | B83: 3565.232 | E83: 2289.537014 | F83: 517.8811411 | G83: 403.4345978 | H83: 9.310657024 | I83: 26.65366119
A84: 01/04/2020 10:00 EST | B84: 3867.9872 | E84: 2483.961734 | F84: 561.8589828 | G84: 437.6937771 | H84: 10.10130679 | I84: 28.91705794
A85: 01/04/2020 11:00 EST | B85: 4096.2944 | E85: 2630.577098 | F85: 595.0226011 | G85: 463.528568 | H85: 10.69753447 | I85: 30.62388172
A86: 01/04/2020 12:00 EST | B86: 4266.6976 | E86: 2740.007405 | F86: 619.7751568 | G86: 482.8110569 | H86: 11.142545 | I86: 31.89781541
A87: 01/04/2020 13:00 EST | B87: 4249.3264 | E87: 2728.851888 | F87: 617.251838 | G87: 480.8453663 | H87: 11.09717985 | I87: 31.76794839
A88: 01/04/2020 14:00 EST | B88: 4197.2128 | E88: 2695.385338 | F88: 609.6818817 | G88: 474.9482945 | H88: 10.96108439 | I88: 31.37834731
A89: 01/04/2020 15:00 EST | B89: 4058.2432 | E89: 2606.141204 | F89: 589.4953314 | G89: 459.2227695 | H89: 10.59816319 | I89: 30.33941109
A90: 01/04/2020 16:00 EST | B90: 4077.2688 | E90: 2618.359151 | F90: 592.2589663 | G90: 461.3756688 | H90: 10.64784883 | I90: 30.48164641
A91: 01/04/2020 17:00 EST | B91: 4559.5264 | E91: 2928.057545 | F91: 662.3111021 | G91: 515.9469845 | H91: 11.90727181 | I91: 34.08700244
A92: 01/04/2020 18:00 EST | B92: 4800.2416 | E92: 3082.641134 | F92: 697.2770909 | G92: 543.1858401 | H92: 12.53590318 | I92: 35.88658838
A93: 01/04/2020 19:00 EST | B93: 4507.4128 | E93: 2894.590995 | F93: 654.7411457 | G93: 510.0499126 | H93: 11.77117636 | I93: 33.69740136
A94: 01/04/2020 20:00 EST | B94: 4418.0752 | E94: 2837.219765 | F94: 641.7640777 | G94: 499.9406466 | H94: 11.53786988 | I94: 33.02951379
A95: 01/04/2020 21:00 EST | B95: 4231.9552 | E95: 2717.696372 | F95: 614.7285192 | G95: 478.8796757 | H95: 11.0518147 | I95: 31.63808136
A96: 01/04/2020 22:00 EST | B96: 4058.2432 | E96: 2606.141204 | F96: 589.4953314 | G96: 459.2227695 | H96: 10.59816319 | I96: 30.33941109
A97: 01/04/2020 23:00 EST | B97: 3753.0064 | E97: 2410.122838 | F97: 545.1570156 | G97: 424.6827773 | H97: 9.801032696 | I97: 28.05746191
A98: 01/05/2020 00:00 EST | B98: 3429.5712 | E98: 2202.41774 | F98: 498.175223 | G98: 388.0834901 | H98: 8.956376803 | I98: 25.63946156
A99: 01/05/2020 01:00 EST | B99: 3145.8416 | E99: 2020.210966 | F99: 456.9610162 | G99: 355.9772101 | H99: 8.215412683 | I99: 23.51830012
A100: 01/05/2020 02:00 EST | B100: 3009.3536 | E100: 1932.560477 | F100: 437.13494 | G100: 340.5324981 | H100: 7.858972217 | I100: 22.49791634
A101: 01/05/2020 03:00 EST | B101: 2957.24 | E101: 1899.093927 | F101: 429.5649836 | G101: 334.6354262 | H101: 7.722876766 | I101: 22.10831526
A102: 01/05/2020 04:00 EST | B102: 2977.92 | E102: 1912.374304 | F102: 432.5689346 | G102: 336.9755341 | H102: 7.776882897 | I102: 22.26291886
A103: 01/05/2020 05:00 EST | B103: 3013.4896 | E103: 1935.216552 | F103: 437.7357302 | G103: 341.0005197 | H103: 7.869773443 | I103: 22.52883706
A104: 01/05/2020 06:00 EST | B104: 3086.2832 | E104: 1981.96348 | F104: 448.3096375 | G104: 349.2376994 | H104: 8.059875025 | I104: 23.07304174
A105: 01/05/2020 07:00 EST | B105: 3259.168 | E105: 2092.987432 | F105: 473.4226673 | G105: 368.8010012 | H105: 8.511366282 | I105: 24.36552787
A106: 01/05/2020 08:00 EST | B106: 3515.6 | E106: 2257.664108 | F106: 510.6716589 | G106: 397.8183389 | H106: 9.181042309 | I106: 26.28261255
A107: 01/05/2020 09:00 EST | B107: 3762.1056 | E107: 2415.966204 | F107: 546.478754 | G107: 425.7124248 | H107: 9.824795394 | I107: 28.1254875
A108: 01/05/2020 10:00 EST | B108: 4063.2064 | E108: 2609.328494 | F108: 590.2162796 | G108: 459.7843954 | H108: 10.61112466 | I108: 30.37651596
A109: 01/05/2020 11:00 EST | B109: 4205.4848 | E109: 2700.697489 | F109: 610.8834621 | G109: 475.8843376 | H109: 10.98268685 | I109: 31.44018875
A110: 01/05/2020 12:00 EST | B110: 4296.4768 | E110: 2759.131148 | F110: 624.1008462 | G110: 486.1808123 | H110: 11.22031382 | I110: 32.1204446
A111: 01/05/2020 13:00 EST | B111: 4354.3808 | E111: 2796.316204 | F111: 632.5119088 | G111: 492.7331143 | H111: 11.37153099 | I111: 32.55333469
A112: 01/05/2020 14:00 EST | B112: 4308.0576 | E112: 2766.568159 | F112: 625.7830587 | G112: 487.4912727 | H112: 11.25055726 | I112: 32.20702262
A113: 01/05/2020 15:00 EST | B113: 4298.9584 | E113: 2760.724793 | F113: 624.4613203 | G113: 486.4616252 | H113: 11.22679456 | I113: 32.13899704
A114: 01/05/2020 16:00 EST | B114: 4412.2848 | E114: 2833.50126 | F114: 640.9229714 | G114: 499.2854164 | H114: 11.52274816 | I114: 32.98622478
A115: 01/05/2020 17:00 EST | B115: 4979.744 | E115: 3197.914808 | F115: 723.351385 | G115: 563.4979765 | H115: 13.0046764 | I115: 37.22854765
A116: 01/05/2020 18:00 EST | B116: 5448.7664 | E116: 3499.113761 | F116: 791.4809922 | G116: 616.5716231 | H116: 14.22953546 | I116: 40.73495737
A117: 01/05/2020 19:00 EST | B117: 5160.0736 | E117: 3313.719696 | F117: 749.5458372 | G117: 583.9037172 | H117: 13.47560986 | I117: 38.57669107
A118: 01/05/2020 20:00 EST | B118: 5012.832 | E118: 3219.163411 | F118: 728.1577065 | G118: 567.2421491 | H118: 13.09108621 | I118: 37.47591342
A119: 01/05/2020 21:00 EST | B119: 4761.3632 | E119: 3057.674025 | F119: 691.6296632 | G119: 538.7864373 | H119: 12.43437165 | I119: 35.5959336
A120: 01/05/2020 22:00 EST | B120: 4470.1888 | E120: 2870.686316 | F120: 649.334034 | G120: 505.8377184 | H120: 11.67396533 | I120: 33.41911487
A121: 01/05/2020 23:00 EST | B121: 4107.8752 | E121: 2638.014109 | F121: 596.7048136 | G121: 464.8390284 | H121: 10.72777791 | I121: 30.71045974
A122: 01/06/2020 00:00 EST | B122: 3733.9808 | E122: 2397.904891 | F122: 542.3933807 | G122: 422.5298781 | H122: 9.751347055 | I122: 27.9152266
A123: 01/06/2020 01:00 EST | B123: 3451.9056 | E123: 2216.760547 | F123: 501.41949 | G123: 390.6108066 | H123: 9.014703425 | I123: 25.80643345
A124: 01/06/2020 02:00 EST | B124: 3408.064 | E124: 2188.606147 | F124: 495.051114 | G124: 385.6497779 | H124: 8.900210427 | I124: 25.47867381
A125: 01/06/2020 03:00 EST | B125: 3347.6784 | E125: 2149.827446 | F125: 486.2795773 | G125: 378.8166629 | H125: 8.742512524 | I125: 25.02723129
A126: 01/06/2020 04:00 EST | B126: 3354.296 | E126: 2154.077167 | F126: 487.2408416 | G126: 379.5654975 | H126: 8.759794486 | I126: 25.07670444
A127: 01/06/2020 05:00 EST | B127: 3405.5824 | E127: 2187.012502 | F127: 494.6906399 | G127: 385.368965 | H127: 8.893729691 | I127: 25.46012138
A128: 01/06/2020 06:00 EST | B128: 3599.9744 | E128: 2311.848047 | F128: 522.9277787 | G128: 407.365979 | H128: 9.401387325 | I128: 26.91339525
A129: 01/06/2020 07:00 EST | B129: 3942.4352 | E129: 2531.771092 | F129: 572.6732062 | G129: 446.1181654 | H129: 10.29572886 | I129: 29.47363092
A130: 01/06/2020 08:00 EST | B130: 4105.3936 | E130: 2636.420464 | F130: 596.3443395 | G130: 464.5582155 | H130: 10.72129717 | I130: 30.69190731
A131: 01/06/2020 09:00 EST | B131: 4155.8528 | E131: =(B131/$C$2)*$E$2 -> 2668.824584 | F131: =(B131/$C$2)*$F$2 -> 603.6739798 | G131: =(B131/$C$2)*$G$2 -> 470.2680787 | H131: =(B131/$C$2)*$H$2 -> 10.85307213 | I131: =(B131/$C$2)*$I$2 -> 31.0691401
A132: 01/06/2020 10:00 EST | B132: 4194.7312 | E132: 2693.791693 | F132: 609.3214076 | G132: 474.6674815 | H132: 10.95460366 | I132: 31.35979488
A133: 01/06/2020 11:00 EST | B133: 4247.672 | E133: 2727.789458 | F133: 617.011522 | G133: 480.6581577 | H133: 11.09285935 | I133: 31.7555801
A134: 01/06/2020 12:00 EST | B134: 4260.9072 | E134: 2736.288899 | F134: 618.9340506 | G134: 482.1558267 | H134: 11.12742328 | I134: 31.85452641
A135: 01/06/2020 13:00 EST | B135: 4173.224 | E135: 2679.980101 | F135: 606.1972986 | G135: 472.2337693 | H135: 10.89843728 | I135: 31.19900713
A136: 01/06/2020 14:00 EST | B136: 3975.5232 | E136: 2553.019695 | F136: 577.4795277 | G136: 449.862338 | H136: 10.38213867 | I136: 29.72099668
A137: 01/06/2020 15:00 EST | B137: 3971.3872 | E137: 2550.36362 | F137: 576.8787375 | G137: 449.3943165 | H137: 10.37133744 | I137: 29.69007596
A138: 01/06/2020 16:00 EST | B138: 4200.5216 | E138: 2697.510198 | F138: 610.1625138 | G138: 475.3227117 | H138: 10.96972538 | I138: 31.40308388
A139: 01/06/2020 17:00 EST | B139: 4657.9632 | E139: 2991.27214 | F139: 676.6099085 | G139: 527.0858979 | H139: 12.164341 | I139: 34.82291559
A140: 01/06/2020 18:00 EST | B140: 5278.3632 | E140: 3389.683453 | F140: 766.7284365 | G140: 597.2891342 | H140: 13.78452494 | I140: 39.46102368
A141: 01/06/2020 19:00 EST | B141: 5044.2656 | E141: 3239.349584 | F141: 732.723712 | G141: 570.7991131 | H141: 13.17317553 | I141: 37.7109109
A142: 01/06/2020 20:00 EST | B142: 4951.6192 | E142: 3179.853495 | F142: 719.2660118 | G142: 560.3154298 | H142: 12.93122806 | I142: 37.01828675
A143: 01/06/2020 21:00 EST | B143: 4767.9808 | E143: 3061.923746 | F143: 692.5909275 | G143: 539.5352718 | H143: 12.45165362 | I143: 35.64540676
A144: 01/06/2020 22:00 EST | B144: 4464.3984 | E144: 2866.96781 | F144: 648.4929278 | G144: 505.1824882 | H144: 11.65884361 | I144: 33.37582586
A145: 01/06/2020 23:00 EST | B145: 4054.1072 | E145: 2603.485128 | F145: 588.8945412 | G145: 458.754748 | H145: 10.58736197 | I145: 30.30849037
A146: 01/07/2020 00:00 EST | B146: 3659.5328 | E146: 2350.095533 | F146: 531.5791574 | G146: 414.1054897 | H146: 9.556924983 | I146: 27.35865362
A147: 01/07/2020 01:00 EST | B147: 3416.336 | E147: 2193.918298 | F147: 496.2526944 | G147: 386.5858211 | H147: 8.921812879 | I147: 25.54051525
A148: 01/07/2020 02:00 EST | B148: 3302.1824 | E148: 2120.610617 | F148: 479.6708852 | G148: 373.6684256 | H148: 8.623699035 | I148: 24.68710336
A149: 01/07/2020 03:00 EST | B149: 3212.0176 | E149: 2062.708173 | F149: 466.5736592 | G149: 363.4655553 | H149: 8.388232303 | I149: 24.01303165
A150: 01/07/2020 04:00 EST | B150: 3216.9808 | E150: 2065.895463 | F150: 467.2946074 | G150: 364.0271812 | H150: 8.401193774 | I150: 24.05013652
A151: 01/07/2020 05:00 EST | B151: 3281.5024 | E151: 2107.33024 | F151: 476.6669343 | G151: 371.3283177 | H151: 8.569692904 | I151: 24.53249976
A152: 01/07/2020 06:00 EST | B152: 3493.2656 | E152: 2243.321301 | F152: 507.4273919 | G152: 395.2910224 | H152: 9.122715688 | I152: 26.11564065
A153: 01/07/2020 07:00 EST | B153: 3791.0576 | E153: 2434.558732 | F153: 550.6842853 | G153: 428.9885758 | H153: 9.900403977 | I153: 28.34193254
A154: 01/07/2020 08:00 EST | B154: 3943.2624 | E154: 2532.302307 | F154: 572.7933642 | G154: 446.2117698 | H154: 10.2978891 | I154: 29.47981506
A155: 01/07/2020 09:00 EST | B155: 3887.0128 | E155: 2496.179681 | F155: 564.6226177 | G155: 439.8466763 | H155: 10.15099243 | I155: 29.05929326
A156: 01/07/2020 10:00 EST | B156: 3912.656 | E156: 2512.647349 | F156: 568.3475168 | G156: 442.7484101 | H156: 10.21796003 | I156: 29.25100173
A157: 01/07/2020 11:00 EST | B157: 3778.6496 | E157: 2426.590505 | F157: 548.8819148 | G157: 427.5845111 | H157: 9.868000299 | I157: 28.24917038
A158: 01/07/2020 12:00 EST | B158: 3738.1168 | E158: 2400.560966 | F158: 542.9941709 | G158: 422.9978996 | H158: 9.762148281 | I158: 27.94614732
A159: 01/07/2020 13:00 EST | B159: 3637.1984 | E159: 2335.752726 | F159: 528.3348904 | G159: 411.5781732 | H159: 9.498598361 | I159: 27.19168173
A160: 01/07/2020 14:00 EST | B160: 3584.2576 | E160: 2301.75496 | F160: 520.644776 | G160: 405.587497 | H160: 9.360342665 | I160: 26.79589651
A161: 01/07/2020 15:00 EST | B161: 3611.5552 | E161: 2319.285058 | F161: 524.6099912 | G161: 408.6764394 | H161: 9.431630758 | I161: 26.99997326
A162: 01/07/2020 16:00 EST | B162: 3896.9392 | E162: 2502.554262 | F162: 566.0645141 | G162: 440.9699281 | H162: 10.17691537 | I162: 29.13350299
A163: 01/07/2020 17:00 EST | B163: 4435.4464 | E163: 2848.375282 | F163: 644.2873964 | G163: 501.9063372 | H163: 11.58323503 | I163: 33.15938082
A164: 01/07/2020 18:00 EST | B164: 4940.8656 | E164: 3172.947699 | F164: 717.7039573 | G164: 559.0985737 | H164: 12.90314487 | I164: 36.93789288
A165: 01/07/2020 19:00 EST | B165: 4790.3152 | E165: 3076.266553 | F165: 695.8351945 | G165: 542.0625884 | H165: 12.50998024 | I165: 35.81237865
A166: 01/07/2020 20:00 EST | B166: 4705.1136 | E166: 3021.5514 | F166: 683.4589166 | G166: 532.4213439 | H166: 12.28747498 | I166: 35.1754118
A167: 01/07/2020 21:00 EST | B167: 4467.7072 | E167: 2869.092671 | F167: 648.9735599 | G167: 505.5569055 | H167: 11.66748459 | I167: 33.40056244
A168: 01/07/2020 22:00 EST | B168: 4299.7856 | E168: 2761.256008 | F168: 624.5814783 | G168: 486.5552295 | H168: 11.22895481 | I168: 32.14518118
A169: 01/07/2020 23:00 EST | B169: 3830.7632 | E169: 2460.057056 | F169: 556.4518711 | G169: 433.4815829 | H169: 10.00409575 | I169: 28.63877146
A170: 01/08/2020 00:00 EST | B170: 3444.4608 | E170: 2211.979611 | F170: 500.3380677 | G170: 389.7683678 | H170: 8.995261218 | I170: 25.75077615
A171: 01/08/2020 01:00 EST | B171: 3208.7088 | E171: 2060.583312 | F171: 466.093027 | G171: 363.091138 | H171: 8.379591322 | I171: 23.98829507
A172: 01/08/2020 02:00 EST | B172: 3089.592 | E172: 1984.08834 | F172: 448.7902696 | G172: 349.6121166 | H172: 8.068516006 | I172: 23.09777832
A173: 01/08/2020 03:00 EST | B173: 2980.4016 | E173: 1913.967949 | F173: 432.9294087 | G173: 337.2563471 | H173: 7.783363633 | I173: 22.28147129
A174: 01/08/2020 04:00 EST | B174: 3001.0816 | E174: 1927.248326 | F174: 435.9333596 | G174: 339.5964549 | H174: 7.837369764 | I174: 22.4360749
A175: 01/08/2020 05:00 EST | B175: 3069.7392 | E175: 1971.339178 | F175: 445.9064767 | G175: 347.3656131 | H175: 8.01667012 | I175: 22.94935886
A176: 01/08/2020 06:00 EST | B176: 3331.1344 | E176: 2139.203145 | F176: 483.8764165 | G176: 376.9445766 | H176: 8.699307619 | I176: 24.90354841
A177: 01/08/2020 07:00 EST | B177: 3611.5552 | E177: 2319.285058 | F177: 524.6099912 | G177: 408.6764394 | H177: 9.431630758 | I177: 26.99997326
A178: 01/08/2020 08:00 EST | B178: 3726.536 | E178: 2393.123955 | F178: 541.3119584 | G178: 421.6874392 | H178: 9.731904848 | I178: 27.8595693
A179: 01/08/2020 09:00 EST | B179: 3645.4704 | E179: 2341.064877 | F179: 529.5364707 | G179: 412.5142163 | H179: 9.520200813 | I179: 27.25352317
A180: 01/08/2020 10:00 EST | B180: 3709.1648 | E180: 2381.968438 | F180: 538.7886396 | G180: 419.7217486 | H180: 9.686539698 | I180: 27.72970227
A181: 01/08/2020 11:00 EST | B181: 3733.1536 | E181: 2397.373676 | F181: 542.2732227 | G181: 422.4362737 | H181: 9.74918681 | I181: 27.90904245
A182: 01/08/2020 12:00 EST | B182: 3712.4736 | E182: 2384.093299 | F182: 539.2692718 | G182: 420.0961659 | H182: 9.695180679 | I182: 27.75443885
A183: 01/08/2020 13:00 EST | B183: 3712.4736 | E183: 2384.093299 | F183: 539.2692718 | G183: 420.0961659 | H183: 9.695180679 | I183: 27.75443885
A184: 01/08/2020 14:00 EST | B184: 3645.4704 | E184: 2341.064877 | F184: 529.5364707 | G184: 412.5142163 | H184: 9.520200813 | I184: 27.25352317
A185: 01/08/2020 15:00 EST | B185: 3582.6032 | E185: 2300.69253 | F185: 520.4044599 | G185: 405.4002884 | H185: 9.356022174 | I185: 26.78352822
A186: 01/08/2020 16:00 EST | B186: 3843.1712 | E186: 2468.025282 | F186: 558.2542417 | G186: 434.8856476 | H186: 10.03649943 | I186: 28.73153362
A187: 01/08/2020 17:00 EST | B187: 4515.6848 | E187: 2899.903145 | F187: 655.9427261 | G187: 510.9859558 | H187: 11.79277882 | I187: 33.7592428
A188: 01/08/2020 18:00 EST | B188: 5153.456 | E188: 3309.469975 | F188: 748.5845729 | G188: 583.1548826 | H188: 13.4583279 | I188: 38.52721792
A189: 01/08/2020 19:00 EST | B189: 5153.456 | E189: 3309.469975 | F189: 748.5845729 | G189: 583.1548826 | H189: 13.4583279 | I189: 38.52721792
A190: 01/08/2020 20:00 EST | B190: 5171.6544 | E190: 3321.156707 | F190: 751.2280497 | G190: 585.2141776 | H190: 13.5058533 | I190: 38.66326909
A191: 01/08/2020 21:00 EST | B191: 5034.3392 | E191: 3232.975003 | F191: 731.2818155 | G191: 569.6758613 | H191: 13.14725259 | I191: 37.63670117
A192: 01/08/2020 22:00 EST | B192: 4643.0736 | E192: 2981.710268 | F192: 674.4470638 | G192: 525.4010203 | H192: 12.12545658 | I192: 34.71160099
A193: 01/08/2020 23:00 EST | B193: 4142.6176 | E193: 2660.325142 | F193: 601.7514512 | G193: 468.7704097 | H193: 10.81850821 | I193: 30.9701938
A194: 01/09/2020 00:00 EST | B194: 3837.3808 | E194: 2464.306776 | F194: 557.4131354 | G194: 434.2304174 | H194: 10.02137771 | I194: 28.68824461
A195: 01/09/2020 01:00 EST | B195: 3646.2976 | E195: =(B195/$C$2)*$E$2 -> 2341.596092 | F195: =(B195/$C$2)*$F$2 -> 529.6566288 | G195: =(B195/$C$2)*$G$2 -> 412.6078207 | H195: =(B195/$C$2)*$H$2 -> 9.522361059 | I195: =(B195/$C$2)*$I$2 -> 27.25970732
A196: 01/09/2020 02:00 EST | B196: 3635.544 | E196: 2334.690296 | F196: 528.0945743 | G196: 411.3909646 | H196: 9.49427787 | I196: 27.17931344
A197: 01/09/2020 03:00 EST | B197: 3617.3456 | E197: 2323.003564 | F197: 525.4510975 | G197: 409.3316696 | H197: 9.446752475 | I197: 27.04326227
A198: 01/09/2020 04:00 EST | B198: 3641.3344 | E198: 2338.408801 | F198: 528.9356806 | G198: 412.0461948 | H198: 9.509399587 | I198: 27.22260245
A199: 01/09/2020 05:00 EST | B199: 3713.3008 | E199: 2384.624514 | F199: 539.3894298 | G199: 420.1897702 | H199: 9.697340924 | I199: 27.76062299
A200: 01/09/2020 06:00 EST | B200: 3982.1408 | E200: 2557.269416 | F200: 578.440792 | G200: 450.6111726 | H200: 10.39942063 | I200: 29.77046983
... 8607 more rows

Sheet 5yrAvg
A1: USAGE | C1: Residential | D1: GS<50 | E1: GS>50 | F1: USL | G1: SL
A2: 01/01/2016 01:00 EST | B2: =LEFT(A2,5) -> 01/01 | C2: =AVERAGE('2016'!E3,'2017'!E3,'2018'!E3,'2019'!E3,'2020 '!E3) -> 2404.71393 | D2: =AVERAGE('2016'!F3,'2017'!F3,'2018'!F3,'2019'!F3,'2020 '!F3) -> 539.2516244 | E2: =AVERAGE('2016'!G3,'2017'!G3,'2018'!G3,'2019'!G3,'2020 '!G3) -> 504.3469271 | F2: =AVERAGE('2016'!H3,'2017'!H3,'2018'!H3,'2019'!H3,'2020 '!H3) -> 9.487784889 | G2: =AVERAGE('2016'!I3,'2017'!I3,'2018'!I3,'2019'!I3,'2020 '!I3) -> 31.18112232
A3: 01/01/2016 02:00 EST | B3: 01/01 | C3: =AVERAGE('2016'!E4,'2017'!E4,'2018'!E4,'2019'!E4,'2020 '!E4) -> 2281.37133 | D3: =AVERAGE('2016'!F4,'2017'!F4,'2018'!F4,'2019'!F4,'2020 '!F4) -> 511.5453482 | E3: =AVERAGE('2016'!G4,'2017'!G4,'2018'!G4,'2019'!G4,'2020 '!G4) -> 478.2618574 | F3: =AVERAGE('2016'!H4,'2017'!H4,'2018'!H4,'2019'!H4,'2020 '!H4) -> 8.997513406 | G3: =AVERAGE('2016'!I4,'2017'!I4,'2018'!I4,'2019'!I4,'2020 '!I4) -> 29.46072515
A4: 01/01/2016 03:00 EST | B4: 01/01 | C4: =AVERAGE('2016'!E5,'2017'!E5,'2018'!E5,'2019'!E5,'2020 '!E5) -> 2201.754545 | D4: =AVERAGE('2016'!F5,'2017'!F5,'2018'!F5,'2019'!F5,'2020 '!F5) -> 493.670425 | E4: =AVERAGE('2016'!G5,'2017'!G5,'2018'!G5,'2019'!G5,'2020 '!G5) -> 461.6133808 | F4: =AVERAGE('2016'!H5,'2017'!H5,'2018'!H5,'2019'!H5,'2020 '!H5) -> 8.680105223 | G4: =AVERAGE('2016'!I5,'2017'!I5,'2018'!I5,'2019'!I5,'2020 '!I5) -> 28.36180114
A5: 01/01/2016 04:00 EST | B5: 01/01 | C5: =AVERAGE('2016'!E6,'2017'!E6,'2018'!E6,'2019'!E6,'2020 '!E6) -> 2138.538398 | D5: =AVERAGE('2016'!F6,'2017'!F6,'2018'!F6,'2019'!F6,'2020 '!F6) -> 479.5238516 | E5: =AVERAGE('2016'!G6,'2017'!G6,'2018'!G6,'2019'!G6,'2020 '!G6) -> 448.1648418 | F5: =AVERAGE('2016'!H6,'2017'!H6,'2018'!H6,'2019'!H6,'2020 '!H6) -> 8.430478232 | G5: =AVERAGE('2016'!I6,'2017'!I6,'2018'!I6,'2019'!I6,'2020 '!I6) -> 27.56468495
A6: 01/01/2016 05:00 EST | B6: 01/01 | C6: =AVERAGE('2016'!E7,'2017'!E7,'2018'!E7,'2019'!E7,'2020 '!E7) -> 2121.792873 | D6: =AVERAGE('2016'!F7,'2017'!F7,'2018'!F7,'2019'!F7,'2020 '!F7) -> 475.8232327 | E6: =AVERAGE('2016'!G7,'2017'!G7,'2018'!G7,'2019'!G7,'2020 '!G7) -> 444.7478109 | F6: =AVERAGE('2016'!H7,'2017'!H7,'2018'!H7,'2019'!H7,'2020 '!H7) -> 8.366811975 | G6: =AVERAGE('2016'!I7,'2017'!I7,'2018'!I7,'2019'!I7,'2020 '!I7) -> 27.43040316
A7: 01/01/2016 06:00 EST | B7: 01/01 | C7: =AVERAGE('2016'!E8,'2017'!E8,'2018'!E8,'2019'!E8,'2020 '!E8) -> 2165.7116 | D7: =AVERAGE('2016'!F8,'2017'!F8,'2018'!F8,'2019'!F8,'2020 '!F8) -> 485.6279209 | E7: =AVERAGE('2016'!G8,'2017'!G8,'2018'!G8,'2019'!G8,'2020 '!G8) -> 453.9681161 | F7: =AVERAGE('2016'!H8,'2017'!H8,'2018'!H8,'2019'!H8,'2020 '!H8) -> 8.538312549 | G7: =AVERAGE('2016'!I8,'2017'!I8,'2018'!I8,'2019'!I8,'2020 '!I8) -> 27.9907412
A8: 01/01/2016 07:00 EST | B8: 01/01 | C8: =AVERAGE('2016'!E9,'2017'!E9,'2018'!E9,'2019'!E9,'2020 '!E9) -> 2213.427527 | D8: =AVERAGE('2016'!F9,'2017'!F9,'2018'!F9,'2019'!F9,'2020 '!F9) -> 496.3403529 | E8: =AVERAGE('2016'!G9,'2017'!G9,'2018'!G9,'2019'!G9,'2020 '!G9) -> 464.3437142 | F8: =AVERAGE('2016'!H9,'2017'!H9,'2018'!H9,'2019'!H9,'2020 '!H9) -> 8.726971533 | G8: =AVERAGE('2016'!I9,'2017'!I9,'2018'!I9,'2019'!I9,'2020 '!I9) -> 28.55979511
A9: 01/01/2016 08:00 EST | B9: 01/01 | C9: =AVERAGE('2016'!E10,'2017'!E10,'2018'!E10,'2019'!E10,'2020 '!E10) -> 2265.434198 | D9: =AVERAGE('2016'!F10,'2017'!F10,'2018'!F10,'2019'!F10,'2020 '!F10) -> 507.9583395 | E9: =AVERAGE('2016'!G10,'2017'!G10,'2018'!G10,'2019'!G10,'2020 '!G10) -> 475.0668433 | F9: =AVERAGE('2016'!H10,'2017'!H10,'2018'!H10,'2019'!H10,'2020 '!H10) -> 8.931161662 | G9: =AVERAGE('2016'!I10,'2017'!I10,'2018'!I10,'2019'!I10,'2020 '!I10) -> 29.205067
A10: 01/01/2016 09:00 EST | B10: 01/01 | C10: =AVERAGE('2016'!E11,'2017'!E11,'2018'!E11,'2019'!E11,'2020 '!E11) -> 2363.820256 | D10: =AVERAGE('2016'!F11,'2017'!F11,'2018'!F11,'2019'!F11,'2020 '!F11) -> 529.8983476 | E10: =AVERAGE('2016'!G11,'2017'!G11,'2018'!G11,'2019'!G11,'2020 '!G11) -> 495.3202597 | F10: =AVERAGE('2016'!H11,'2017'!H11,'2018'!H11,'2019'!H11,'2020 '!H11) -> 9.320311521 | G10: =AVERAGE('2016'!I11,'2017'!I11,'2018'!I11,'2019'!I11,'2020 '!I11) -> 30.52601714
A11: 01/01/2016 10:00 EST | B11: 01/01 | C11: =AVERAGE('2016'!E12,'2017'!E12,'2018'!E12,'2019'!E12,'2020 '!E12) -> 2464.748518 | D11: =AVERAGE('2016'!F12,'2017'!F12,'2018'!F12,'2019'!F12,'2020 '!F12) -> 552.5192518 | E11: =AVERAGE('2016'!G12,'2017'!G12,'2018'!G12,'2019'!G12,'2020 '!G12) -> 515.1395023 | F11: =AVERAGE('2016'!H12,'2017'!H12,'2018'!H12,'2019'!H12,'2020 '!H12) -> 9.72065652 | G11: =AVERAGE('2016'!I12,'2017'!I12,'2018'!I12,'2019'!I12,'2020 '!I12) -> 31.79400882
A12: 01/01/2016 11:00 EST | B12: 01/01 | C12: =AVERAGE('2016'!E13,'2017'!E13,'2018'!E13,'2019'!E13,'2020 '!E13) -> 2547.17823 | D12: =AVERAGE('2016'!F13,'2017'!F13,'2018'!F13,'2019'!F13,'2020 '!F13) -> 570.9060258 | E12: =AVERAGE('2016'!G13,'2017'!G13,'2018'!G13,'2019'!G13,'2020 '!G13) -> 532.2068723 | F12: =AVERAGE('2016'!H13,'2017'!H13,'2018'!H13,'2019'!H13,'2020 '!H13) -> 10.04653997 | G12: =AVERAGE('2016'!I13,'2017'!I13,'2018'!I13,'2019'!I13,'2020 '!I13) -> 32.95624585
A13: 01/01/2016 12:00 EST | B13: 01/01 | C13: =AVERAGE('2016'!E14,'2017'!E14,'2018'!E14,'2019'!E14,'2020 '!E14) -> 2614.2002 | D13: =AVERAGE('2016'!F14,'2017'!F14,'2018'!F14,'2019'!F14,'2020 '!F14) -> 585.8777715 | E13: =AVERAGE('2016'!G14,'2017'!G14,'2018'!G14,'2019'!G14,'2020 '!G14) -> 546.239228 | F13: =AVERAGE('2016'!H14,'2017'!H14,'2018'!H14,'2019'!H14,'2020 '!H14) -> 10.30871724 | G13: =AVERAGE('2016'!I14,'2017'!I14,'2018'!I14,'2019'!I14,'2020 '!I14) -> 33.89910425
A14: 01/01/2016 13:00 EST | B14: 01/01 | C14: =AVERAGE('2016'!E15,'2017'!E15,'2018'!E15,'2019'!E15,'2020 '!E15) -> 2588.81694 | D14: =AVERAGE('2016'!F15,'2017'!F15,'2018'!F15,'2019'!F15,'2020 '!F15) -> 580.2093935 | E14: =AVERAGE('2016'!G15,'2017'!G15,'2018'!G15,'2019'!G15,'2020 '!G15) -> 540.6724753 | F14: =AVERAGE('2016'!H15,'2017'!H15,'2018'!H15,'2019'!H15,'2020 '!H15) -> 10.2076979 | G14: =AVERAGE('2016'!I15,'2017'!I15,'2018'!I15,'2019'!I15,'2020 '!I15) -> 33.6145469
A15: 01/01/2016 14:00 EST | B15: 01/01 | C15: =AVERAGE('2016'!E16,'2017'!E16,'2018'!E16,'2019'!E16,'2020 '!E16) -> 2595.165953 | D15: =AVERAGE('2016'!F16,'2017'!F16,'2018'!F16,'2019'!F16,'2020 '!F16) -> 581.8731497 | E15: =AVERAGE('2016'!G16,'2017'!G16,'2018'!G16,'2019'!G16,'2020 '!G16) -> 542.4888187 | F15: =AVERAGE('2016'!H16,'2017'!H16,'2018'!H16,'2019'!H16,'2020 '!H16) -> 10.24507003 | G15: =AVERAGE('2016'!I16,'2017'!I16,'2018'!I16,'2019'!I16,'2020 '!I16) -> 33.84743919
A16: 01/01/2016 15:00 EST | B16: 01/01 | C16: =AVERAGE('2016'!E17,'2017'!E17,'2018'!E17,'2019'!E17,'2020 '!E17) -> 2596.346374 | D16: =AVERAGE('2016'!F17,'2017'!F17,'2018'!F17,'2019'!F17,'2020 '!F17) -> 581.9814817 | E16: =AVERAGE('2016'!G17,'2017'!G17,'2018'!G17,'2019'!G17,'2020 '!G17) -> 542.5095019 | F16: =AVERAGE('2016'!H17,'2017'!H17,'2018'!H17,'2019'!H17,'2020 '!H17) -> 10.24148974 | G16: =AVERAGE('2016'!I17,'2017'!I17,'2018'!I17,'2019'!I17,'2020 '!I17) -> 33.74636408
A17: 01/01/2016 16:00 EST | B17: 01/01 | C17: =AVERAGE('2016'!E18,'2017'!E18,'2018'!E18,'2019'!E18,'2020 '!E18) -> 2636.732576 | D17: =AVERAGE('2016'!F18,'2017'!F18,'2018'!F18,'2019'!F18,'2020 '!F18) -> 590.9483752 | E17: =AVERAGE('2016'!G18,'2017'!G18,'2018'!G18,'2019'!G18,'2020 '!G18) -> 551.0308866 | F17: =AVERAGE('2016'!H18,'2017'!H18,'2018'!H18,'2019'!H18,'2020 '!H18) -> 10.40260456 | G17: =AVERAGE('2016'!I18,'2017'!I18,'2018'!I18,'2019'!I18,'2020 '!I18) -> 34.26110604
A18: 01/01/2016 17:00 EST | B18: 01/01 | C18: =AVERAGE('2016'!E19,'2017'!E19,'2018'!E19,'2019'!E19,'2020 '!E19) -> 2935.228389 | D18: =AVERAGE('2016'!F19,'2017'!F19,'2018'!F19,'2019'!F19,'2020 '!F19) -> 657.7753605 | E18: =AVERAGE('2016'!G19,'2017'!G19,'2018'!G19,'2019'!G19,'2020 '!G19) -> 613.3692955 | F18: =AVERAGE('2016'!H19,'2017'!H19,'2018'!H19,'2019'!H19,'2020 '!H19) -> 11.58288955 | G18: =AVERAGE('2016'!I19,'2017'!I19,'2018'!I19,'2019'!I19,'2020 '!I19) -> 38.18663183
A19: 01/01/2016 18:00 EST | B19: 01/01 | C19: =AVERAGE('2016'!E20,'2017'!E20,'2018'!E20,'2019'!E20,'2020 '!E20) -> 3210.606344 | D19: =AVERAGE('2016'!F20,'2017'!F20,'2018'!F20,'2019'!F20,'2020 '!F20) -> 719.3750962 | E19: =AVERAGE('2016'!G20,'2017'!G20,'2018'!G20,'2019'!G20,'2020 '!G20) -> 671.0074102 | F19: =AVERAGE('2016'!H20,'2017'!H20,'2018'!H20,'2019'!H20,'2020 '!H20) -> 12.66455198 | G19: =AVERAGE('2016'!I20,'2017'!I20,'2018'!I20,'2019'!I20,'2020 '!I20) -> 41.66427411
A20: 01/01/2016 19:00 EST | B20: 01/01 | C20: =AVERAGE('2016'!E21,'2017'!E21,'2018'!E21,'2019'!E21,'2020 '!E21) -> 3119.792191 | D20: =AVERAGE('2016'!F21,'2017'!F21,'2018'!F21,'2019'!F21,'2020 '!F21) -> 698.9769785 | E20: =AVERAGE('2016'!G21,'2017'!G21,'2018'!G21,'2019'!G21,'2020 '!G21) -> 652.3329663 | F20: =AVERAGE('2016'!H21,'2017'!H21,'2018'!H21,'2019'!H21,'2020 '!H21) -> 12.29960477 | G20: =AVERAGE('2016'!I21,'2017'!I21,'2018'!I21,'2019'!I21,'2020 '!I21) -> 40.34521339
A21: 01/01/2016 20:00 EST | B21: 01/01 | C21: =AVERAGE('2016'!E22,'2017'!E22,'2018'!E22,'2019'!E22,'2020 '!E22) -> 3034.197769 | D21: =AVERAGE('2016'!F22,'2017'!F22,'2018'!F22,'2019'!F22,'2020 '!F22) -> 679.8977704 | E21: =AVERAGE('2016'!G22,'2017'!G22,'2018'!G22,'2019'!G22,'2020 '!G22) -> 633.7998964 | F21: =AVERAGE('2016'!H22,'2017'!H22,'2018'!H22,'2019'!H22,'2020 '!H22) -> 11.96561336 | G21: =AVERAGE('2016'!I22,'2017'!I22,'2018'!I22,'2019'!I22,'2020 '!I22) -> 39.18514146
A22: 01/01/2016 21:00 EST | B22: 01/01 | C22: =AVERAGE('2016'!E23,'2017'!E23,'2018'!E23,'2019'!E23,'2020 '!E23) -> 2955.872923 | D22: =AVERAGE('2016'!F23,'2017'!F23,'2018'!F23,'2019'!F23,'2020 '!F23) -> 662.3399854 | E22: =AVERAGE('2016'!G23,'2017'!G23,'2018'!G23,'2019'!G23,'2020 '!G23) -> 617.7630272 | F22: =AVERAGE('2016'!H23,'2017'!H23,'2018'!H23,'2019'!H23,'2020 '!H23) -> 11.65205857 | G22: =AVERAGE('2016'!I23,'2017'!I23,'2018'!I23,'2019'!I23,'2020 '!I23) -> 38.20445453
A23: 01/01/2016 22:00 EST | B23: 01/01 | C23: =AVERAGE('2016'!E24,'2017'!E24,'2018'!E24,'2019'!E24,'2020 '!E24) -> 2832.346537 | D23: =AVERAGE('2016'!F24,'2017'!F24,'2018'!F24,'2019'!F24,'2020 '!F24) -> 634.6965275 | E23: =AVERAGE('2016'!G24,'2017'!G24,'2018'!G24,'2019'!G24,'2020 '!G24) -> 592.869124 | F23: =AVERAGE('2016'!H24,'2017'!H24,'2018'!H24,'2019'!H24,'2020 '!H24) -> 11.16595631 | G23: =AVERAGE('2016'!I24,'2017'!I24,'2018'!I24,'2019'!I24,'2020 '!I24) -> 36.6368635
A24: 01/01/2016 23:00 EST | B24: 01/01 | C24: =AVERAGE('2016'!E25,'2017'!E25,'2018'!E25,'2019'!E25,'2020 '!E25) -> 2641.2312 | D24: =AVERAGE('2016'!F25,'2017'!F25,'2018'!F25,'2019'!F25,'2020 '!F25) -> 591.8080387 | E24: =AVERAGE('2016'!G25,'2017'!G25,'2018'!G25,'2019'!G25,'2020 '!G25) -> 552.6610631 | F24: =AVERAGE('2016'!H25,'2017'!H25,'2018'!H25,'2019'!H25,'2020 '!H25) -> 10.40659252 | G24: =AVERAGE('2016'!I25,'2017'!I25,'2018'!I25,'2019'!I25,'2020 '!I25) -> 34.15969711
A25: 01/02/2016 00:00 EST | B25: 01/02 | C25: =AVERAGE('2016'!E26,'2017'!E26,'2018'!E26,'2019'!E26,'2020 '!E26) -> 2437.00837 | D25: =AVERAGE('2016'!F26,'2017'!F26,'2018'!F26,'2019'!F26,'2020 '!F26) -> 545.9798064 | E25: =AVERAGE('2016'!G26,'2017'!G26,'2018'!G26,'2019'!G26,'2020 '!G26) -> 509.4991197 | F25: =AVERAGE('2016'!H26,'2017'!H26,'2018'!H26,'2019'!H26,'2020 '!H26) -> 9.600819405 | G25: =AVERAGE('2016'!I26,'2017'!I26,'2018'!I26,'2019'!I26,'2020 '!I26) -> 31.44782969
A26: 01/02/2016 01:00 EST | B26: 01/02 | C26: =AVERAGE('2016'!E27,'2017'!E27,'2018'!E27,'2019'!E27,'2020 '!E27) -> 2300.243623 | D26: =AVERAGE('2016'!F27,'2017'!F27,'2018'!F27,'2019'!F27,'2020 '!F27) -> 515.3230248 | E26: =AVERAGE('2016'!G27,'2017'!G27,'2018'!G27,'2019'!G27,'2020 '!G27) -> 481.5522364 | F26: =AVERAGE('2016'!H27,'2017'!H27,'2018'!H27,'2019'!H27,'2020 '!H27) -> 9.060864672 | G26: =AVERAGE('2016'!I27,'2017'!I27,'2018'!I27,'2019'!I27,'2020 '!I27) -> 29.75481837
A27: 01/02/2016 02:00 EST | B27: 01/02 | C27: =AVERAGE('2016'!E28,'2017'!E28,'2018'!E28,'2019'!E28,'2020 '!E28) -> 2237.544737 | D27: =AVERAGE('2016'!F28,'2017'!F28,'2018'!F28,'2019'!F28,'2020 '!F28) -> 501.1176468 | E27: =AVERAGE('2016'!G28,'2017'!G28,'2018'!G28,'2019'!G28,'2020 '!G28) -> 468.0321001 | F27: =AVERAGE('2016'!H28,'2017'!H28,'2018'!H28,'2019'!H28,'2020 '!H28) -> 8.80729761 | G27: =AVERAGE('2016'!I28,'2017'!I28,'2018'!I28,'2019'!I28,'2020 '!I28) -> 28.77590897
A28: 01/02/2016 03:00 EST | B28: 01/02 | C28: =AVERAGE('2016'!E29,'2017'!E29,'2018'!E29,'2019'!E29,'2020 '!E29) -> 2215.928761 | D28: =AVERAGE('2016'!F29,'2017'!F29,'2018'!F29,'2019'!F29,'2020 '!F29) -> 496.290513 | E28: =AVERAGE('2016'!G29,'2017'!G29,'2018'!G29,'2019'!G29,'2020 '!G29) -> 463.7503002 | F28: =AVERAGE('2016'!H29,'2017'!H29,'2018'!H29,'2019'!H29,'2020 '!H29) -> 8.720022556 | G28: =AVERAGE('2016'!I29,'2017'!I29,'2018'!I29,'2019'!I29,'2020 '!I29) -> 28.46472766
A29: 01/02/2016 04:00 EST | B29: 01/02 | C29: =AVERAGE('2016'!E30,'2017'!E30,'2018'!E30,'2019'!E30,'2020 '!E30) -> 2215.563708 | D29: =AVERAGE('2016'!F30,'2017'!F30,'2018'!F30,'2019'!F30,'2020 '!F30) -> 496.1320365 | E29: =AVERAGE('2016'!G30,'2017'!G30,'2018'!G30,'2019'!G30,'2020 '!G30) -> 463.3746504 | F29: =AVERAGE('2016'!H30,'2017'!H30,'2018'!H30,'2019'!H30,'2020 '!H30) -> 8.716629099 | G29: =AVERAGE('2016'!I30,'2017'!I30,'2018'!I30,'2019'!I30,'2020 '!I30) -> 28.45698221
A30: 01/02/2016 05:00 EST | B30: 01/02 | C30: =AVERAGE('2016'!E31,'2017'!E31,'2018'!E31,'2019'!E31,'2020 '!E31) -> 2244.135745 | D30: =AVERAGE('2016'!F31,'2017'!F31,'2018'!F31,'2019'!F31,'2020 '!F31) -> 502.5303605 | E30: =AVERAGE('2016'!G31,'2017'!G31,'2018'!G31,'2019'!G31,'2020 '!G31) -> 469.3359303 | F30: =AVERAGE('2016'!H31,'2017'!H31,'2018'!H31,'2019'!H31,'2020 '!H31) -> 8.830278994 | G30: =AVERAGE('2016'!I31,'2017'!I31,'2018'!I31,'2019'!I31,'2020 '!I31) -> 28.80360558
A31: 01/02/2016 06:00 EST | B31: 01/02 | C31: =AVERAGE('2016'!E32,'2017'!E32,'2018'!E32,'2019'!E32,'2020 '!E32) -> 2322.891539 | D31: =AVERAGE('2016'!F32,'2017'!F32,'2018'!F32,'2019'!F32,'2020 '!F32) -> 520.0966475 | E31: =AVERAGE('2016'!G32,'2017'!G32,'2018'!G32,'2019'!G32,'2020 '!G32) -> 485.3927331 | F31: =AVERAGE('2016'!H32,'2017'!H32,'2018'!H32,'2019'!H32,'2020 '!H32) -> 9.139360229 | G31: =AVERAGE('2016'!I32,'2017'!I32,'2018'!I32,'2019'!I32,'2020 '!I32) -> 29.80151412
A32: 01/02/2016 07:00 EST | B32: 01/02 | C32: =AVERAGE('2016'!E33,'2017'!E33,'2018'!E33,'2019'!E33,'2020 '!E33) -> 2432.241424 | D32: =AVERAGE('2016'!F33,'2017'!F33,'2018'!F33,'2019'!F33,'2020 '!F33) -> 544.5802719 | E32: =AVERAGE('2016'!G33,'2017'!G33,'2018'!G33,'2019'!G33,'2020 '!G33) -> 508.0824485 | F32: =AVERAGE('2016'!H33,'2017'!H33,'2018'!H33,'2019'!H33,'2020 '!H33) -> 9.568385689 | G32: =AVERAGE('2016'!I33,'2017'!I33,'2018'!I33,'2019'!I33,'2020 '!I33) -> 31.10729096
A33: 01/02/2016 08:00 EST | B33: 01/02 | C33: =AVERAGE('2016'!E34,'2017'!E34,'2018'!E34,'2019'!E34,'2020 '!E34) -> 2521.002298 | D33: =AVERAGE('2016'!F34,'2017'!F34,'2018'!F34,'2019'!F34,'2020 '!F34) -> 564.4261799 | E33: =AVERAGE('2016'!G34,'2017'!G34,'2018'!G34,'2019'!G34,'2020 '!G34) -> 526.7710067 | F33: =AVERAGE('2016'!H34,'2017'!H34,'2018'!H34,'2019'!H34,'2020 '!H34) -> 9.918847468 | G33: =AVERAGE('2016'!I34,'2017'!I34,'2018'!I34,'2019'!I34,'2020 '!I34) -> 32.35403774
A34: 01/02/2016 09:00 EST | B34: 01/02 | C34: =AVERAGE('2016'!E35,'2017'!E35,'2018'!E35,'2019'!E35,'2020 '!E35) -> 2570.177743 | D34: =AVERAGE('2016'!F35,'2017'!F35,'2018'!F35,'2019'!F35,'2020 '!F35) -> 575.5058694 | E34: =AVERAGE('2016'!G35,'2017'!G35,'2018'!G35,'2019'!G35,'2020 '!G35) -> 537.3130007 | F34: =AVERAGE('2016'!H35,'2017'!H35,'2018'!H35,'2019'!H35,'2020 '!H35) -> 10.11805593 | G34: =AVERAGE('2016'!I35,'2017'!I35,'2018'!I35,'2019'!I35,'2020 '!I35) -> 33.07982605
A35: 01/02/2016 10:00 EST | B35: 01/02 | C35: =AVERAGE('2016'!E36,'2017'!E36,'2018'!E36,'2019'!E36,'2020 '!E36) -> 2630.255515 | D35: =AVERAGE('2016'!F36,'2017'!F36,'2018'!F36,'2019'!F36,'2020 '!F36) -> 589.2352026 | E35: =AVERAGE('2016'!G36,'2017'!G36,'2018'!G36,'2019'!G36,'2020 '!G36) -> 550.7390732 | F35: =AVERAGE('2016'!H36,'2017'!H36,'2018'!H36,'2019'!H36,'2020 '!H36) -> 10.36465769 | G35: =AVERAGE('2016'!I36,'2017'!I36,'2018'!I36,'2019'!I36,'2020 '!I36) -> 34.09939412
A36: 01/02/2016 11:00 EST | B36: 01/02 | C36: =AVERAGE('2016'!E37,'2017'!E37,'2018'!E37,'2019'!E37,'2020 '!E37) -> 2661.561751 | D36: =AVERAGE('2016'!F37,'2017'!F37,'2018'!F37,'2019'!F37,'2020 '!F37) -> 596.2472394 | E36: =AVERAGE('2016'!G37,'2017'!G37,'2018'!G37,'2019'!G37,'2020 '!G37) -> 557.2169562 | F36: =AVERAGE('2016'!H37,'2017'!H37,'2018'!H37,'2019'!H37,'2020 '!H37) -> 10.48438396 | G36: =AVERAGE('2016'!I37,'2017'!I37,'2018'!I37,'2019'!I37,'2020 '!I37) -> 34.50078905
A37: 01/02/2016 12:00 EST | B37: 01/02 | C37: =AVERAGE('2016'!E38,'2017'!E38,'2018'!E38,'2019'!E38,'2020 '!E38) -> 2703.541501 | D37: =AVERAGE('2016'!F38,'2017'!F38,'2018'!F38,'2019'!F38,'2020 '!F38) -> 605.7920351 | E37: =AVERAGE('2016'!G38,'2017'!G38,'2018'!G38,'2019'!G38,'2020 '!G38) -> 566.3554872 | F37: =AVERAGE('2016'!H38,'2017'!H38,'2018'!H38,'2019'!H38,'2020 '!H38) -> 10.65545323 | G37: =AVERAGE('2016'!I38,'2017'!I38,'2018'!I38,'2019'!I38,'2020 '!I38) -> 35.1165165
A38: 01/02/2016 13:00 EST | B38: 01/02 | C38: =AVERAGE('2016'!E39,'2017'!E39,'2018'!E39,'2019'!E39,'2020 '!E39) -> 2673.980833 | D38: =AVERAGE('2016'!F39,'2017'!F39,'2018'!F39,'2019'!F39,'2020 '!F39) -> 599.26621 | E38: =AVERAGE('2016'!G39,'2017'!G39,'2018'!G39,'2019'!G39,'2020 '!G39) -> 561.0466296 | F38: =AVERAGE('2016'!H39,'2017'!H39,'2018'!H39,'2019'!H39,'2020 '!H39) -> 10.53850187 | G38: =AVERAGE('2016'!I39,'2017'!I39,'2018'!I39,'2019'!I39,'2020 '!I39) -> 34.96181003
A39: 01/02/2016 14:00 EST | B39: 01/02 | C39: =AVERAGE('2016'!E40,'2017'!E40,'2018'!E40,'2019'!E40,'2020 '!E40) -> 2634.641653 | D39: =AVERAGE('2016'!F40,'2017'!F40,'2018'!F40,'2019'!F40,'2020 '!F40) -> 590.3920843 | E39: =AVERAGE('2016'!G40,'2017'!G40,'2018'!G40,'2019'!G40,'2020 '!G40) -> 552.9796793 | F39: =AVERAGE('2016'!H40,'2017'!H40,'2018'!H40,'2019'!H40,'2020 '!H40) -> 10.38165299 | G39: =AVERAGE('2016'!I40,'2017'!I40,'2018'!I40,'2019'!I40,'2020 '!I40) -> 34.52650581
A40: 01/02/2016 15:00 EST | B40: 01/02 | C40: =AVERAGE('2016'!E41,'2017'!E41,'2018'!E41,'2019'!E41,'2020 '!E41) -> 2634.276587 | D40: =AVERAGE('2016'!F41,'2017'!F41,'2018'!F41,'2019'!F41,'2020 '!F41) -> 590.2565318 | E40: =AVERAGE('2016'!G41,'2017'!G41,'2018'!G41,'2019'!G41,'2020 '!G41) -> 552.5801379 | F40: =AVERAGE('2016'!H41,'2017'!H41,'2018'!H41,'2019'!H41,'2020 '!H41) -> 10.3779045 | G40: =AVERAGE('2016'!I41,'2017'!I41,'2018'!I41,'2019'!I41,'2020 '!I41) -> 34.48400594
A41: 01/02/2016 16:00 EST | B41: 01/02 | C41: =AVERAGE('2016'!E42,'2017'!E42,'2018'!E42,'2019'!E42,'2020 '!E42) -> 2686.039901 | D41: =AVERAGE('2016'!F42,'2017'!F42,'2018'!F42,'2019'!F42,'2020 '!F42) -> 601.8229918 | E41: =AVERAGE('2016'!G42,'2017'!G42,'2018'!G42,'2019'!G42,'2020 '!G42) -> 562.5021244 | F41: =AVERAGE('2016'!H42,'2017'!H42,'2018'!H42,'2019'!H42,'2020 '!H42) -> 10.58858288 | G41: =AVERAGE('2016'!I42,'2017'!I42,'2018'!I42,'2019'!I42,'2020 '!I42) -> 35.10141182
A42: 01/02/2016 17:00 EST | B42: 01/02 | C42: =AVERAGE('2016'!E43,'2017'!E43,'2018'!E43,'2019'!E43,'2020 '!E43) -> 3020.887492 | D42: =AVERAGE('2016'!F43,'2017'!F43,'2018'!F43,'2019'!F43,'2020 '!F43) -> 676.6845402 | E42: =AVERAGE('2016'!G43,'2017'!G43,'2018'!G43,'2019'!G43,'2020 '!G43) -> 630.8205393 | F42: =AVERAGE('2016'!H43,'2017'!H43,'2018'!H43,'2019'!H43,'2020 '!H43) -> 11.91448477 | G42: =AVERAGE('2016'!I43,'2017'!I43,'2018'!I43,'2019'!I43,'2020 '!I43) -> 39.32111034
A43: 01/02/2016 18:00 EST | B43: 01/02 | C43: =AVERAGE('2016'!E44,'2017'!E44,'2018'!E44,'2019'!E44,'2020 '!E44) -> 3320.3702 | D43: =AVERAGE('2016'!F44,'2017'!F44,'2018'!F44,'2019'!F44,'2020 '!F44) -> 743.6855272 | E43: =AVERAGE('2016'!G44,'2017'!G44,'2018'!G44,'2019'!G44,'2020 '!G44) -> 693.45931 | F43: =AVERAGE('2016'!H44,'2017'!H44,'2018'!H44,'2019'!H44,'2020 '!H44) -> 13.09436028 | G43: =AVERAGE('2016'!I44,'2017'!I44,'2018'!I44,'2019'!I44,'2020 '!I44) -> 43.12728639
A44: 01/02/2016 19:00 EST | B44: 01/02 | C44: =AVERAGE('2016'!E45,'2017'!E45,'2018'!E45,'2019'!E45,'2020 '!E45) -> 3224.151579 | D44: =AVERAGE('2016'!F45,'2017'!F45,'2018'!F45,'2019'!F45,'2020 '!F45) -> 722.1132491 | E44: =AVERAGE('2016'!G45,'2017'!G45,'2018'!G45,'2019'!G45,'2020 '!G45) -> 674.1738833 | F44: =AVERAGE('2016'!H45,'2017'!H45,'2018'!H45,'2019'!H45,'2020 '!H45) -> 12.70446633 | G44: =AVERAGE('2016'!I45,'2017'!I45,'2018'!I45,'2019'!I45,'2020 '!I45) -> 41.81868845
A45: 01/02/2016 20:00 EST | B45: 01/02 | C45: =AVERAGE('2016'!E46,'2017'!E46,'2018'!E46,'2019'!E46,'2020 '!E46) -> 3153.816659 | D45: =AVERAGE('2016'!F46,'2017'!F46,'2018'!F46,'2019'!F46,'2020 '!F46) -> 706.3579696 | E45: =AVERAGE('2016'!G46,'2017'!G46,'2018'!G46,'2019'!G46,'2020 '!G46) -> 659.0699282 | F45: =AVERAGE('2016'!H46,'2017'!H46,'2018'!H46,'2019'!H46,'2020 '!H46) -> 12.42816332 | G45: =AVERAGE('2016'!I46,'2017'!I46,'2018'!I46,'2019'!I46,'2020 '!I46) -> 40.77485577
A46: 01/02/2016 21:00 EST | B46: 01/02 | C46: =AVERAGE('2016'!E47,'2017'!E47,'2018'!E47,'2019'!E47,'2020 '!E47) -> 3053.756676 | D46: =AVERAGE('2016'!F47,'2017'!F47,'2018'!F47,'2019'!F47,'2020 '!F47) -> 683.9579574 | E46: =AVERAGE('2016'!G47,'2017'!G47,'2018'!G47,'2019'!G47,'2020 '!G47) -> 637.7558567 | F46: =AVERAGE('2016'!H47,'2017'!H47,'2018'!H47,'2019'!H47,'2020 '!H47) -> 12.03452969 | G46: =AVERAGE('2016'!I47,'2017'!I47,'2018'!I47,'2019'!I47,'2020 '!I47) -> 39.47491516
A47: 01/02/2016 22:00 EST | B47: 01/02 | C47: =AVERAGE('2016'!E48,'2017'!E48,'2018'!E48,'2019'!E48,'2020 '!E48) -> 2855.73243 | D47: =AVERAGE('2016'!F48,'2017'!F48,'2018'!F48,'2019'!F48,'2020 '!F48) -> 639.5637937 | E47: =AVERAGE('2016'!G48,'2017'!G48,'2018'!G48,'2019'!G48,'2020 '!G48) -> 596.9853731 | F47: =AVERAGE('2016'!H48,'2017'!H48,'2018'!H48,'2019'!H48,'2020 '!H48) -> 11.25065961 | G47: =AVERAGE('2016'!I48,'2017'!I48,'2018'!I48,'2019'!I48,'2020 '!I48) -> 36.93270161
A48: 01/02/2016 23:00 EST | B48: 01/02 | C48: =AVERAGE('2016'!E49,'2017'!E49,'2018'!E49,'2019'!E49,'2020 '!E49) -> 2637.276011 | D48: =AVERAGE('2016'!F49,'2017'!F49,'2018'!F49,'2019'!F49,'2020 '!F49) -> 590.6937855 | E48: =AVERAGE('2016'!G49,'2017'!G49,'2018'!G49,'2019'!G49,'2020 '!G49) -> 551.5350291 | F48: =AVERAGE('2016'!H49,'2017'!H49,'2018'!H49,'2019'!H49,'2020 '!H49) -> 10.39319624 | G48: =AVERAGE('2016'!I49,'2017'!I49,'2018'!I49,'2019'!I49,'2020 '!I49) -> 34.10437203
A49: 01/03/2016 00:00 EST | B49: 01/03 | C49: =AVERAGE('2016'!E50,'2017'!E50,'2018'!E50,'2019'!E50,'2020 '!E50) -> 2380.333623 | D49: =AVERAGE('2016'!F50,'2017'!F50,'2018'!F50,'2019'!F50,'2020 '!F50) -> 533.1505685 | E49: =AVERAGE('2016'!G50,'2017'!G50,'2018'!G50,'2019'!G50,'2020 '!G50) -> 497.7148407 | F49: =AVERAGE('2016'!H50,'2017'!H50,'2018'!H50,'2019'!H50,'2020 '!H50) -> 9.379839325 | G49: =AVERAGE('2016'!I50,'2017'!I50,'2018'!I50,'2019'!I50,'2020 '!I50) -> 30.80751741
A50: 01/03/2016 01:00 EST | B50: 01/03 | C50: =AVERAGE('2016'!E51,'2017'!E51,'2018'!E51,'2019'!E51,'2020 '!E51) -> 2210.145156 | D50: =AVERAGE('2016'!F51,'2017'!F51,'2018'!F51,'2019'!F51,'2020 '!F51) -> 494.9195659 | E50: =AVERAGE('2016'!G51,'2017'!G51,'2018'!G51,'2019'!G51,'2020 '!G51) -> 462.059002 | F50: =AVERAGE('2016'!H51,'2017'!H51,'2018'!H51,'2019'!H51,'2020 '!H51) -> 8.704307061 | G50: =AVERAGE('2016'!I51,'2017'!I51,'2018'!I51,'2019'!I51,'2020 '!I51) -> 28.62151245
A51: 01/03/2016 02:00 EST | B51: 01/03 | C51: =AVERAGE('2016'!E52,'2017'!E52,'2018'!E52,'2019'!E52,'2020 '!E52) -> 2103.832505 | D51: =AVERAGE('2016'!F52,'2017'!F52,'2018'!F52,'2019'!F52,'2020 '!F52) -> 471.0182363 | E51: =AVERAGE('2016'!G52,'2017'!G52,'2018'!G52,'2019'!G52,'2020 '!G52) -> 439.1936402 | F51: =AVERAGE('2016'!H52,'2017'!H52,'2018'!H52,'2019'!H52,'2020 '!H52) -> 8.284244708 | G51: =AVERAGE('2016'!I52,'2017'!I52,'2018'!I52,'2019'!I52,'2020 '!I52) -> 27.22345919
A52: 01/03/2016 03:00 EST | B52: 01/03 | C52: =AVERAGE('2016'!E53,'2017'!E53,'2018'!E53,'2019'!E53,'2020 '!E53) -> 2061.206137 | D52: =AVERAGE('2016'!F53,'2017'!F53,'2018'!F53,'2019'!F53,'2020 '!F53) -> 461.4039179 | E52: =AVERAGE('2016'!G53,'2017'!G53,'2018'!G53,'2019'!G53,'2020 '!G53) -> 430.1160825 | F52: =AVERAGE('2016'!H53,'2017'!H53,'2018'!H53,'2019'!H53,'2020 '!H53) -> 8.116183345 | G52: =AVERAGE('2016'!I53,'2017'!I53,'2018'!I53,'2019'!I53,'2020 '!I53) -> 26.58162027
A53: 01/03/2016 04:00 EST | B53: 01/03 | C53: =AVERAGE('2016'!E54,'2017'!E54,'2018'!E54,'2019'!E54,'2020 '!E54) -> 2054.865588 | D53: =AVERAGE('2016'!F54,'2017'!F54,'2018'!F54,'2019'!F54,'2020 '!F54) -> 460.0439517 | E53: =AVERAGE('2016'!G54,'2017'!G54,'2018'!G54,'2019'!G54,'2020 '!G54) -> 429.1798306 | F53: =AVERAGE('2016'!H54,'2017'!H54,'2018'!H54,'2019'!H54,'2020 '!H54) -> 8.093730895 | G53: =AVERAGE('2016'!I54,'2017'!I54,'2018'!I54,'2019'!I54,'2020 '!I54) -> 26.5665409
A54: 01/03/2016 05:00 EST | B54: 01/03 | C54: =AVERAGE('2016'!E55,'2017'!E55,'2018'!E55,'2019'!E55,'2020 '!E55) -> 2070.363034 | D54: =AVERAGE('2016'!F55,'2017'!F55,'2018'!F55,'2019'!F55,'2020 '!F55) -> 463.4624519 | E54: =AVERAGE('2016'!G55,'2017'!G55,'2018'!G55,'2019'!G55,'2020 '!G55) -> 432.1688444 | F54: =AVERAGE('2016'!H55,'2017'!H55,'2018'!H55,'2019'!H55,'2020 '!H55) -> 8.154183939 | G54: =AVERAGE('2016'!I55,'2017'!I55,'2018'!I55,'2019'!I55,'2020 '!I55) -> 26.7095336
A55: 01/03/2016 06:00 EST | B55: 01/03 | C55: =AVERAGE('2016'!E56,'2017'!E56,'2018'!E56,'2019'!E56,'2020 '!E56) -> 2160.852354 | D55: =AVERAGE('2016'!F56,'2017'!F56,'2018'!F56,'2019'!F56,'2020 '!F56) -> 483.6681844 | E55: =AVERAGE('2016'!G56,'2017'!G56,'2018'!G56,'2019'!G56,'2020 '!G56) -> 450.8774933 | F55: =AVERAGE('2016'!H56,'2017'!H56,'2018'!H56,'2019'!H56,'2020 '!H56) -> 8.51206717 | G55: =AVERAGE('2016'!I56,'2017'!I56,'2018'!I56,'2019'!I56,'2020 '!I56) -> 27.79837454
A56: 01/03/2016 07:00 EST | B56: 01/03 | C56: =AVERAGE('2016'!E57,'2017'!E57,'2018'!E57,'2019'!E57,'2020 '!E57) -> 2276.693937 | D56: =AVERAGE('2016'!F57,'2017'!F57,'2018'!F57,'2019'!F57,'2020 '!F57) -> 509.6465138 | E56: =AVERAGE('2016'!G57,'2017'!G57,'2018'!G57,'2019'!G57,'2020 '!G57) -> 475.2056263 | F56: =AVERAGE('2016'!H57,'2017'!H57,'2018'!H57,'2019'!H57,'2020 '!H57) -> 8.971543439 | G56: =AVERAGE('2016'!I57,'2017'!I57,'2018'!I57,'2019'!I57,'2020 '!I57) -> 29.27314128
A57: 01/03/2016 08:00 EST | B57: 01/03 | C57: =AVERAGE('2016'!E58,'2017'!E58,'2018'!E58,'2019'!E58,'2020 '!E58) -> 2379.094008 | D57: =AVERAGE('2016'!F58,'2017'!F58,'2018'!F58,'2019'!F58,'2020 '!F58) -> 532.699265 | E57: =AVERAGE('2016'!G58,'2017'!G58,'2018'!G58,'2019'!G58,'2020 '!G58) -> 496.9129461 | F57: =AVERAGE('2016'!H58,'2017'!H58,'2018'!H58,'2019'!H58,'2020 '!H58) -> 9.378430631 | G57: =AVERAGE('2016'!I58,'2017'!I58,'2018'!I58,'2019'!I58,'2020 '!I58) -> 30.6649656
A58: 01/03/2016 09:00 EST | B58: 01/03 | C58: =AVERAGE('2016'!E59,'2017'!E59,'2018'!E59,'2019'!E59,'2020 '!E59) -> 2450.756736 | D58: =AVERAGE('2016'!F59,'2017'!F59,'2018'!F59,'2019'!F59,'2020 '!F59) -> 548.8855997 | E58: =AVERAGE('2016'!G59,'2017'!G59,'2018'!G59,'2019'!G59,'2020 '!G59) -> 512.4436552 | F58: =AVERAGE('2016'!H59,'2017'!H59,'2018'!H59,'2019'!H59,'2020 '!H59) -> 9.666218773 | G58: =AVERAGE('2016'!I59,'2017'!I59,'2018'!I59,'2019'!I59,'2020 '!I59) -> 31.79892982
A59: 01/03/2016 10:00 EST | B59: 01/03 | C59: =AVERAGE('2016'!E60,'2017'!E60,'2018'!E60,'2019'!E60,'2020 '!E60) -> 2551.887086 | D59: =AVERAGE('2016'!F60,'2017'!F60,'2018'!F60,'2019'!F60,'2020 '!F60) -> 571.6218226 | E59: =AVERAGE('2016'!G60,'2017'!G60,'2018'!G60,'2019'!G60,'2020 '!G60) -> 534.050824 | F59: =AVERAGE('2016'!H60,'2017'!H60,'2018'!H60,'2019'!H60,'2020 '!H60) -> 10.0693668 | G59: =AVERAGE('2016'!I60,'2017'!I60,'2018'!I60,'2019'!I60,'2020 '!I60) -> 33.19242892
A60: 01/03/2016 11:00 EST | B60: 01/03 | C60: =AVERAGE('2016'!E61,'2017'!E61,'2018'!E61,'2019'!E61,'2020 '!E61) -> 2600.341048 | D60: =AVERAGE('2016'!F61,'2017'!F61,'2018'!F61,'2019'!F61,'2020 '!F61) -> 582.5205154 | E60: =AVERAGE('2016'!G61,'2017'!G61,'2018'!G61,'2019'!G61,'2020 '!G61) -> 543.9833605 | F60: =AVERAGE('2016'!H61,'2017'!H61,'2018'!H61,'2019'!H61,'2020 '!H61) -> 10.26031176 | G60: =AVERAGE('2016'!I61,'2017'!I61,'2018'!I61,'2019'!I61,'2020 '!I61) -> 33.88819931
A61: 01/03/2016 12:00 EST | B61: 01/03 | C61: =AVERAGE('2016'!E62,'2017'!E62,'2018'!E62,'2019'!E62,'2020 '!E62) -> 2626.650548 | D61: =AVERAGE('2016'!F62,'2017'!F62,'2018'!F62,'2019'!F62,'2020 '!F62) -> 588.4759525 | E61: =AVERAGE('2016'!G62,'2017'!G62,'2018'!G62,'2019'!G62,'2020 '!G62) -> 550.1772093 | F61: =AVERAGE('2016'!H62,'2017'!H62,'2018'!H62,'2019'!H62,'2020 '!H62) -> 10.36966735 | G61: =AVERAGE('2016'!I62,'2017'!I62,'2018'!I62,'2019'!I62,'2020 '!I62) -> 34.38328028
A62: 01/03/2016 13:00 EST | B62: 01/03 | C62: =AVERAGE('2016'!E63,'2017'!E63,'2018'!E63,'2019'!E63,'2020 '!E63) -> 2637.64074 | D62: =AVERAGE('2016'!F63,'2017'!F63,'2018'!F63,'2019'!F63,'2020 '!F63) -> 590.9686746 | E62: =AVERAGE('2016'!G63,'2017'!G63,'2018'!G63,'2019'!G63,'2020 '!G63) -> 552.5638739 | F62: =AVERAGE('2016'!H63,'2017'!H63,'2018'!H63,'2019'!H63,'2020 '!H63) -> 10.41581407 | G62: =AVERAGE('2016'!I63,'2017'!I63,'2018'!I63,'2019'!I63,'2020 '!I63) -> 34.46287668
A63: 01/03/2016 14:00 EST | B63: 01/03 | C63: =AVERAGE('2016'!E64,'2017'!E64,'2018'!E64,'2019'!E64,'2020 '!E64) -> 2595.749712 | D63: =AVERAGE('2016'!F64,'2017'!F64,'2018'!F64,'2019'!F64,'2020 '!F64) -> 581.6901658 | E63: =AVERAGE('2016'!G64,'2017'!G64,'2018'!G64,'2019'!G64,'2020 '!G64) -> 544.4309765 | F63: =AVERAGE('2016'!H64,'2017'!H64,'2018'!H64,'2019'!H64,'2020 '!H64) -> 10.25292012 | G63: =AVERAGE('2016'!I64,'2017'!I64,'2018'!I64,'2019'!I64,'2020 '!I64) -> 34.01570798
A64: 01/03/2016 15:00 EST | B64: 01/03 | C64: =AVERAGE('2016'!E65,'2017'!E65,'2018'!E65,'2019'!E65,'2020 '!E65) -> 2598.185383 | D64: =AVERAGE('2016'!F65,'2017'!F65,'2018'!F65,'2019'!F65,'2020 '!F65) -> 582.2574896 | E64: =AVERAGE('2016'!G65,'2017'!G65,'2018'!G65,'2019'!G65,'2020 '!G65) -> 544.6676834 | F64: =AVERAGE('2016'!H65,'2017'!H65,'2018'!H65,'2019'!H65,'2020 '!H65) -> 10.26364072 | G64: =AVERAGE('2016'!I65,'2017'!I65,'2018'!I65,'2019'!I65,'2020 '!I65) -> 34.0766389
A65: 01/03/2016 16:00 EST | B65: 01/03 | C65: =AVERAGE('2016'!E66,'2017'!E66,'2018'!E66,'2019'!E66,'2020 '!E66) -> 2674.200734 | D65: =AVERAGE('2016'!F66,'2017'!F66,'2018'!F66,'2019'!F66,'2020 '!F66) -> 599.4580361 | E65: =AVERAGE('2016'!G66,'2017'!G66,'2018'!G66,'2019'!G66,'2020 '!G66) -> 560.5590684 | F65: =AVERAGE('2016'!H66,'2017'!H66,'2018'!H66,'2019'!H66,'2020 '!H66) -> 10.57636035 | G65: =AVERAGE('2016'!I66,'2017'!I66,'2018'!I66,'2019'!I66,'2020 '!I66) -> 35.20002268
A66: 01/03/2016 17:00 EST | B66: =LEFT(A66,5) -> 01/03 | C66: =AVERAGE('2016'!E67,'2017'!E67,'2018'!E67,'2019'!E67,'2020 '!E67) -> 2972.355184 | D66: =AVERAGE('2016'!F67,'2017'!F67,'2018'!F67,'2019'!F67,'2020 '!F67) -> 666.3704607 | E66: =AVERAGE('2016'!G67,'2017'!G67,'2018'!G67,'2019'!G67,'2020 '!G67) -> 623.435045 | F66: =AVERAGE('2016'!H67,'2017'!H67,'2018'!H67,'2019'!H67,'2020 '!H67) -> 11.76561301 | G66: =AVERAGE('2016'!I67,'2017'!I67,'2018'!I67,'2019'!I67,'2020 '!I67) -> 39.27806462
A67: 01/03/2016 18:00 EST | B67: 01/03 | C67: =AVERAGE('2016'!E68,'2017'!E68,'2018'!E68,'2019'!E68,'2020 '!E68) -> 3289.059805 | D67: =AVERAGE('2016'!F68,'2017'!F68,'2018'!F68,'2019'!F68,'2020 '!F68) -> 737.3221904 | E67: =AVERAGE('2016'!G68,'2017'!G68,'2018'!G68,'2019'!G68,'2020 '!G68) -> 689.9991414 | F67: =AVERAGE('2016'!H68,'2017'!H68,'2018'!H68,'2019'!H68,'2020 '!H68) -> 13.00890533 | G67: =AVERAGE('2016'!I68,'2017'!I68,'2018'!I68,'2019'!I68,'2020 '!I68) -> 43.47091437
A68: 01/03/2016 19:00 EST | B68: 01/03 | C68: =AVERAGE('2016'!E69,'2017'!E69,'2018'!E69,'2019'!E69,'2020 '!E69) -> 3188.196553 | D68: =AVERAGE('2016'!F69,'2017'!F69,'2018'!F69,'2019'!F69,'2020 '!F69) -> 714.6915905 | E68: =AVERAGE('2016'!G69,'2017'!G69,'2018'!G69,'2019'!G69,'2020 '!G69) -> 669.5486776 | F68: =AVERAGE('2016'!H69,'2017'!H69,'2018'!H69,'2019'!H69,'2020 '!H69) -> 12.59847559 | G68: =AVERAGE('2016'!I69,'2017'!I69,'2018'!I69,'2019'!I69,'2020 '!I69) -> 42.16816044
A69: 01/03/2016 20:00 EST | B69: 01/03 | C69: =AVERAGE('2016'!E70,'2017'!E70,'2018'!E70,'2019'!E70,'2020 '!E70) -> 3140.10842 | D69: =AVERAGE('2016'!F70,'2017'!F70,'2018'!F70,'2019'!F70,'2020 '!F70) -> 704.0111858 | E69: =AVERAGE('2016'!G70,'2017'!G70,'2018'!G70,'2019'!G70,'2020 '!G70) -> 659.7108913 | F69: =AVERAGE('2016'!H70,'2017'!H70,'2018'!H70,'2019'!H70,'2020 '!H70) -> 12.41867761 | G69: =AVERAGE('2016'!I70,'2017'!I70,'2018'!I70,'2019'!I70,'2020 '!I70) -> 41.60034452
A70: 01/03/2016 21:00 EST | B70: 01/03 | C70: =AVERAGE('2016'!E71,'2017'!E71,'2018'!E71,'2019'!E71,'2020 '!E71) -> 3029.182477 | D70: =AVERAGE('2016'!F71,'2017'!F71,'2018'!F71,'2019'!F71,'2020 '!F71) -> 679.1481898 | E70: =AVERAGE('2016'!G71,'2017'!G71,'2018'!G71,'2019'!G71,'2020 '!G71) -> 636.3918309 | F70: =AVERAGE('2016'!H71,'2017'!H71,'2018'!H71,'2019'!H71,'2020 '!H71) -> 11.97484819 | G70: =AVERAGE('2016'!I71,'2017'!I71,'2018'!I71,'2019'!I71,'2020 '!I71) -> 40.09371366
A71: 01/03/2016 22:00 EST | B71: 01/03 | C71: =AVERAGE('2016'!E72,'2017'!E72,'2018'!E72,'2019'!E72,'2020 '!E72) -> 2821.898662 | D71: =AVERAGE('2016'!F72,'2017'!F72,'2018'!F72,'2019'!F72,'2020 '!F72) -> 632.7237747 | E71: =AVERAGE('2016'!G72,'2017'!G72,'2018'!G72,'2019'!G72,'2020 '!G72) -> 592.9035126 | F71: =AVERAGE('2016'!H72,'2017'!H72,'2018'!H72,'2019'!H72,'2020 '!H72) -> 11.15376328 | G71: =AVERAGE('2016'!I72,'2017'!I72,'2018'!I72,'2019'!I72,'2020 '!I72) -> 37.36123581
A72: 01/03/2016 23:00 EST | B72: 01/03 | C72: =AVERAGE('2016'!E73,'2017'!E73,'2018'!E73,'2019'!E73,'2020 '!E73) -> 2591.89662 | D72: =AVERAGE('2016'!F73,'2017'!F73,'2018'!F73,'2019'!F73,'2020 '!F73) -> 581.2445879 | E72: =AVERAGE('2016'!G73,'2017'!G73,'2018'!G73,'2019'!G73,'2020 '!G73) -> 544.5065062 | F72: =AVERAGE('2016'!H73,'2017'!H73,'2018'!H73,'2019'!H73,'2020 '!H73) -> 10.24730004 | G72: =AVERAGE('2016'!I73,'2017'!I73,'2018'!I73,'2019'!I73,'2020 '!I73) -> 34.30845119
A73: 01/04/2016 00:00 EST | B73: 01/04 | C73: =AVERAGE('2016'!E74,'2017'!E74,'2018'!E74,'2019'!E74,'2020 '!E74) -> 2323.083594 | D73: =AVERAGE('2016'!F74,'2017'!F74,'2018'!F74,'2019'!F74,'2020 '!F74) -> 521.0093592 | E73: =AVERAGE('2016'!G74,'2017'!G74,'2018'!G74,'2019'!G74,'2020 '!G74) -> 488.234655 | F73: =AVERAGE('2016'!H74,'2017'!H74,'2018'!H74,'2019'!H74,'2020 '!H74) -> 9.182701625 | G73: =AVERAGE('2016'!I74,'2017'!I74,'2018'!I74,'2019'!I74,'2020 '!I74) -> 30.79918487
A74: 01/04/2016 01:00 EST | B74: 01/04 | C74: =AVERAGE('2016'!E75,'2017'!E75,'2018'!E75,'2019'!E75,'2020 '!E75) -> 2164.58528 | D74: =AVERAGE('2016'!F75,'2017'!F75,'2018'!F75,'2019'!F75,'2020 '!F75) -> 485.4177314 | E74: =AVERAGE('2016'!G75,'2017'!G75,'2018'!G75,'2019'!G75,'2020 '!G75) -> 455.0427201 | F74: =AVERAGE('2016'!H75,'2017'!H75,'2018'!H75,'2019'!H75,'2020 '!H75) -> 8.554370298 | G74: =AVERAGE('2016'!I75,'2017'!I75,'2018'!I75,'2019'!I75,'2020 '!I75) -> 28.78427125
A75: 01/04/2016 02:00 EST | B75: 01/04 | C75: =AVERAGE('2016'!E76,'2017'!E76,'2018'!E76,'2019'!E76,'2020 '!E76) -> 2060.781435 | D75: =AVERAGE('2016'!F76,'2017'!F76,'2018'!F76,'2019'!F76,'2020 '!F76) -> 462.1391084 | E75: =AVERAGE('2016'!G76,'2017'!G76,'2018'!G76,'2019'!G76,'2020 '!G76) -> 433.2101499 | F75: =AVERAGE('2016'!H76,'2017'!H76,'2018'!H76,'2019'!H76,'2020 '!H76) -> 8.148453051 | G75: =AVERAGE('2016'!I76,'2017'!I76,'2018'!I76,'2019'!I76,'2020 '!I76) -> 27.4994203
A76: 01/04/2016 03:00 EST | B76: 01/04 | C76: =AVERAGE('2016'!E77,'2017'!E77,'2018'!E77,'2019'!E77,'2020 '!E77) -> 2034.661021 | D76: =AVERAGE('2016'!F77,'2017'!F77,'2018'!F77,'2019'!F77,'2020 '!F77) -> 456.2630469 | E76: =AVERAGE('2016'!G77,'2017'!G77,'2018'!G77,'2019'!G77,'2020 '!G77) -> 427.9481789 | F76: =AVERAGE('2016'!H77,'2017'!H77,'2018'!H77,'2019'!H77,'2020 '!H77) -> 8.044542065 | G76: =AVERAGE('2016'!I77,'2017'!I77,'2018'!I77,'2019'!I77,'2020 '!I77) -> 27.15866792
A77: 01/04/2016 04:00 EST | B77: 01/04 | C77: =AVERAGE('2016'!E78,'2017'!E78,'2018'!E78,'2019'!E78,'2020 '!E78) -> 2026.625067 | D77: =AVERAGE('2016'!F78,'2017'!F78,'2018'!F78,'2019'!F78,'2020 '!F78) -> 454.5668062 | E77: =AVERAGE('2016'!G78,'2017'!G78,'2018'!G78,'2019'!G78,'2020 '!G78) -> 426.6785804 | F77: =AVERAGE('2016'!H78,'2017'!H78,'2018'!H78,'2019'!H78,'2020 '!H78) -> 8.017416365 | G77: =AVERAGE('2016'!I78,'2017'!I78,'2018'!I78,'2019'!I78,'2020 '!I78) -> 27.18477063
A78: 01/04/2016 05:00 EST | B78: 01/04 | C78: =AVERAGE('2016'!E79,'2017'!E79,'2018'!E79,'2019'!E79,'2020 '!E79) -> 2053.055145 | D78: =AVERAGE('2016'!F79,'2017'!F79,'2018'!F79,'2019'!F79,'2020 '!F79) -> 460.5042095 | E78: =AVERAGE('2016'!G79,'2017'!G79,'2018'!G79,'2019'!G79,'2020 '!G79) -> 432.4383038 | F78: =AVERAGE('2016'!H79,'2017'!H79,'2018'!H79,'2019'!H79,'2020 '!H79) -> 8.122436676 | G78: =AVERAGE('2016'!I79,'2017'!I79,'2018'!I79,'2019'!I79,'2020 '!I79) -> 27.57714171
A79: 01/04/2016 06:00 EST | B79: 01/04 | C79: =AVERAGE('2016'!E80,'2017'!E80,'2018'!E80,'2019'!E80,'2020 '!E80) -> 2172.745057 | D79: =AVERAGE('2016'!F80,'2017'!F80,'2018'!F80,'2019'!F80,'2020 '!F80) -> 487.3960901 | E79: =AVERAGE('2016'!G80,'2017'!G80,'2018'!G80,'2019'!G80,'2020 '!G80) -> 458.4501763 | F79: =AVERAGE('2016'!H80,'2017'!H80,'2018'!H80,'2019'!H80,'2020 '!H80) -> 8.600840743 | G79: =AVERAGE('2016'!I80,'2017'!I80,'2018'!I80,'2019'!I80,'2020 '!I80) -> 29.28202289
A80: 01/04/2016 07:00 EST | B80: 01/04 | C80: =AVERAGE('2016'!E81,'2017'!E81,'2018'!E81,'2019'!E81,'2020 '!E81) -> 2330.422854 | D80: =AVERAGE('2016'!F81,'2017'!F81,'2018'!F81,'2019'!F81,'2020 '!F81) -> 523.0495566 | E80: =AVERAGE('2016'!G81,'2017'!G81,'2018'!G81,'2019'!G81,'2020 '!G81) -> 492.9101682 | F80: =AVERAGE('2016'!H81,'2017'!H81,'2018'!H81,'2019'!H81,'2020 '!H81) -> 9.236458637 | G80: =AVERAGE('2016'!I81,'2017'!I81,'2018'!I81,'2019'!I81,'2020 '!I81) -> 31.69657599
A81: 01/04/2016 08:00 EST | B81: 01/04 | C81: =AVERAGE('2016'!E82,'2017'!E82,'2018'!E82,'2019'!E82,'2020 '!E82) -> 2428.102664 | D81: =AVERAGE('2016'!F82,'2017'!F82,'2018'!F82,'2019'!F82,'2020 '!F82) -> 545.0017299 | E81: =AVERAGE('2016'!G82,'2017'!G82,'2018'!G82,'2019'!G82,'2020 '!G82) -> 512.717789 | F81: =AVERAGE('2016'!H82,'2017'!H82,'2018'!H82,'2019'!H82,'2020 '!H82) -> 9.622611846 | G81: =AVERAGE('2016'!I82,'2017'!I82,'2018'!I82,'2019'!I82,'2020 '!I82) -> 33.01318464
A82: 01/04/2016 09:00 EST | B82: 01/04 | C82: =AVERAGE('2016'!E83,'2017'!E83,'2018'!E83,'2019'!E83,'2020 '!E83) -> 2479.121271 | D82: =AVERAGE('2016'!F83,'2017'!F83,'2018'!F83,'2019'!F83,'2020 '!F83) -> 556.3406272 | E82: =AVERAGE('2016'!G83,'2017'!G83,'2018'!G83,'2019'!G83,'2020 '!G83) -> 521.6319424 | F82: =AVERAGE('2016'!H83,'2017'!H83,'2018'!H83,'2019'!H83,'2020 '!H83) -> 9.81986781 | G82: =AVERAGE('2016'!I83,'2017'!I83,'2018'!I83,'2019'!I83,'2020 '!I83) -> 33.38586805
A83: 01/04/2016 10:00 EST | B83: 01/04 | C83: =AVERAGE('2016'!E84,'2017'!E84,'2018'!E84,'2019'!E84,'2020 '!E84) -> 2530.690871 | D83: =AVERAGE('2016'!F84,'2017'!F84,'2018'!F84,'2019'!F84,'2020 '!F84) -> 567.8168837 | E83: =AVERAGE('2016'!G84,'2017'!G84,'2018'!G84,'2019'!G84,'2020 '!G84) -> 530.6852759 | F83: =AVERAGE('2016'!H84,'2017'!H84,'2018'!H84,'2019'!H84,'2020 '!H84) -> 10.02204188 | G83: =AVERAGE('2016'!I84,'2017'!I84,'2018'!I84,'2019'!I84,'2020 '!I84) -> 33.84817542
A84: 01/04/2016 11:00 EST | B84: 01/04 | C84: =AVERAGE('2016'!E85,'2017'!E85,'2018'!E85,'2019'!E85,'2020 '!E85) -> 2585.144685 | D84: =AVERAGE('2016'!F85,'2017'!F85,'2018'!F85,'2019'!F85,'2020 '!F85) -> 579.9984515 | E84: =AVERAGE('2016'!G85,'2017'!G85,'2018'!G85,'2019'!G85,'2020 '!G85) -> 540.9580592 | F84: =AVERAGE('2016'!H85,'2017'!H85,'2018'!H85,'2019'!H85,'2020 '!H85) -> 10.23711564 | G84: =AVERAGE('2016'!I85,'2017'!I85,'2018'!I85,'2019'!I85,'2020 '!I85) -> 34.3227019
A85: 01/04/2016 12:00 EST | B85: 01/04 | C85: =AVERAGE('2016'!E86,'2017'!E86,'2018'!E86,'2019'!E86,'2020 '!E86) -> 2617.247455 | D85: =AVERAGE('2016'!F86,'2017'!F86,'2018'!F86,'2019'!F86,'2020 '!F86) -> 587.0549609 | E85: =AVERAGE('2016'!G86,'2017'!G86,'2018'!G86,'2019'!G86,'2020 '!G86) -> 546.424613 | F85: =AVERAGE('2016'!H86,'2017'!H86,'2018'!H86,'2019'!H86,'2020 '!H86) -> 10.35542658 | G85: =AVERAGE('2016'!I86,'2017'!I86,'2018'!I86,'2019'!I86,'2020 '!I86) -> 34.51185903
A86: 01/04/2016 13:00 EST | B86: 01/04 | C86: =AVERAGE('2016'!E87,'2017'!E87,'2018'!E87,'2019'!E87,'2020 '!E87) -> 2595.685204 | D86: =AVERAGE('2016'!F87,'2017'!F87,'2018'!F87,'2019'!F87,'2020 '!F87) -> 582.2151102 | E86: =AVERAGE('2016'!G87,'2017'!G87,'2018'!G87,'2019'!G87,'2020 '!G87) -> 541.8561188 | F86: =AVERAGE('2016'!H87,'2017'!H87,'2018'!H87,'2019'!H87,'2020 '!H87) -> 10.26611312 | G86: =AVERAGE('2016'!I87,'2017'!I87,'2018'!I87,'2019'!I87,'2020 '!I87) -> 34.24673176
A87: 01/04/2016 14:00 EST | B87: 01/04 | C87: =AVERAGE('2016'!E88,'2017'!E88,'2018'!E88,'2019'!E88,'2020 '!E88) -> 2525.165707 | D87: =AVERAGE('2016'!F88,'2017'!F88,'2018'!F88,'2019'!F88,'2020 '!F88) -> 566.4779013 | E87: =AVERAGE('2016'!G88,'2017'!G88,'2018'!G88,'2019'!G88,'2020 '!G88) -> 527.0386569 | F87: =AVERAGE('2016'!H88,'2017'!H88,'2018'!H88,'2019'!H88,'2020 '!H88) -> 9.989561022 | G87: =AVERAGE('2016'!I88,'2017'!I88,'2018'!I88,'2019'!I88,'2020 '!I88) -> 33.3851962
A88: 01/04/2016 15:00 EST | B88: 01/04 | C88: =AVERAGE('2016'!E89,'2017'!E89,'2018'!E89,'2019'!E89,'2020 '!E89) -> 2510.72461 | D88: =AVERAGE('2016'!F89,'2017'!F89,'2018'!F89,'2019'!F89,'2020 '!F89) -> 563.1426782 | E88: =AVERAGE('2016'!G89,'2017'!G89,'2018'!G89,'2019'!G89,'2020 '!G89) -> 524.5096755 | F88: =AVERAGE('2016'!H89,'2017'!H89,'2018'!H89,'2019'!H89,'2020 '!H89) -> 9.931331277 | G88: =AVERAGE('2016'!I89,'2017'!I89,'2018'!I89,'2019'!I89,'2020 '!I89) -> 33.32414272
A89: 01/04/2016 16:00 EST | B89: 01/04 | C89: =AVERAGE('2016'!E90,'2017'!E90,'2018'!E90,'2019'!E90,'2020 '!E90) -> 2627.934965 | D89: =AVERAGE('2016'!F90,'2017'!F90,'2018'!F90,'2019'!F90,'2020 '!F90) -> 589.5895658 | E89: =AVERAGE('2016'!G90,'2017'!G90,'2018'!G90,'2019'!G90,'2020 '!G90) -> 550.5169703 | F89: =AVERAGE('2016'!H90,'2017'!H90,'2018'!H90,'2019'!H90,'2020 '!H90) -> 10.40252246 | G89: =AVERAGE('2016'!I90,'2017'!I90,'2018'!I90,'2019'!I90,'2020 '!I90) -> 35.00977114
A90: 01/04/2016 17:00 EST | B90: 01/04 | C90: =AVERAGE('2016'!E91,'2017'!E91,'2018'!E91,'2019'!E91,'2020 '!E91) -> 2942.315726 | D90: =AVERAGE('2016'!F91,'2017'!F91,'2018'!F91,'2019'!F91,'2020 '!F91) -> 660.5558927 | E90: =AVERAGE('2016'!G91,'2017'!G91,'2018'!G91,'2019'!G91,'2020 '!G91) -> 617.8037415 | F90: =AVERAGE('2016'!H91,'2017'!H91,'2018'!H91,'2019'!H91,'2020 '!H91) -> 11.67742211 | G90: =AVERAGE('2016'!I91,'2017'!I91,'2018'!I91,'2019'!I91,'2020 '!I91) -> 39.64331217
A91: 01/04/2016 18:00 EST | B91: 01/04 | C91: =AVERAGE('2016'!E92,'2017'!E92,'2018'!E92,'2019'!E92,'2020 '!E92) -> 3264.019327 | D91: =AVERAGE('2016'!F92,'2017'!F92,'2018'!F92,'2019'!F92,'2020 '!F92) -> 732.8089871 | E91: =AVERAGE('2016'!G92,'2017'!G92,'2018'!G92,'2019'!G92,'2020 '!G92) -> 687.0790401 | F91: =AVERAGE('2016'!H92,'2017'!H92,'2018'!H92,'2019'!H92,'2020 '!H92) -> 12.95069707 | G91: =AVERAGE('2016'!I92,'2017'!I92,'2018'!I92,'2019'!I92,'2020 '!I92) -> 44.08921505
A92: 01/04/2016 19:00 EST | B92: 01/04 | C92: =AVERAGE('2016'!E93,'2017'!E93,'2018'!E93,'2019'!E93,'2020 '!E93) -> 3184.343948 | D92: =AVERAGE('2016'!F93,'2017'!F93,'2018'!F93,'2019'!F93,'2020 '!F93) -> 714.833786 | E92: =AVERAGE('2016'!G93,'2017'!G93,'2018'!G93,'2019'!G93,'2020 '!G93) -> 671.0887157 | F92: =AVERAGE('2016'!H93,'2017'!H93,'2018'!H93,'2019'!H93,'2020 '!H93) -> 12.62256385 | G92: =AVERAGE('2016'!I93,'2017'!I93,'2018'!I93,'2019'!I93,'2020 '!I93) -> 42.88504084
A93: 01/04/2016 20:00 EST | B93: 01/04 | C93: =AVERAGE('2016'!E94,'2017'!E94,'2018'!E94,'2019'!E94,'2020 '!E94) -> 3152.89804 | D93: =AVERAGE('2016'!F94,'2017'!F94,'2018'!F94,'2019'!F94,'2020 '!F94) -> 707.7570013 | E93: =AVERAGE('2016'!G94,'2017'!G94,'2018'!G94,'2019'!G94,'2020 '!G94) -> 664.6651668 | F93: =AVERAGE('2016'!H94,'2017'!H94,'2018'!H94,'2019'!H94,'2020 '!H94) -> 12.49430358 | G93: =AVERAGE('2016'!I94,'2017'!I94,'2018'!I94,'2019'!I94,'2020 '!I94) -> 42.40814984
A94: 01/04/2016 21:00 EST | B94: 01/04 | C94: =AVERAGE('2016'!E95,'2017'!E95,'2018'!E95,'2019'!E95,'2020 '!E95) -> 3085.068804 | D94: =AVERAGE('2016'!F95,'2017'!F95,'2018'!F95,'2019'!F95,'2020 '!F95) -> 692.5812466 | E94: =AVERAGE('2016'!G95,'2017'!G95,'2018'!G95,'2019'!G95,'2020 '!G95) -> 651.0450866 | F94: =AVERAGE('2016'!H95,'2017'!H95,'2018'!H95,'2019'!H95,'2020 '!H95) -> 12.22047097 | G94: =AVERAGE('2016'!I95,'2017'!I95,'2018'!I95,'2019'!I95,'2020 '!I95) -> 41.41214537
A95: 01/04/2016 22:00 EST | B95: 01/04 | C95: =AVERAGE('2016'!E96,'2017'!E96,'2018'!E96,'2019'!E96,'2020 '!E96) -> 2911.337452 | D95: =AVERAGE('2016'!F96,'2017'!F96,'2018'!F96,'2019'!F96,'2020 '!F96) -> 653.5937269 | E95: =AVERAGE('2016'!G96,'2017'!G96,'2018'!G96,'2019'!G96,'2020 '!G96) -> 613.9646106 | F95: =AVERAGE('2016'!H96,'2017'!H96,'2018'!H96,'2019'!H96,'2020 '!H96) -> 11.5312485 | G95: =AVERAGE('2016'!I96,'2017'!I96,'2018'!I96,'2019'!I96,'2020 '!I96) -> 38.95493132
A96: 01/04/2016 23:00 EST | B96: 01/04 | C96: =AVERAGE('2016'!E97,'2017'!E97,'2018'!E97,'2019'!E97,'2020 '!E97) -> 2671.908225 | D96: =AVERAGE('2016'!F97,'2017'!F97,'2018'!F97,'2019'!F97,'2020 '!F97) -> 599.74834 | E96: =AVERAGE('2016'!G97,'2017'!G97,'2018'!G97,'2019'!G97,'2020 '!G97) -> 563.01019 | F96: =AVERAGE('2016'!H97,'2017'!H97,'2018'!H97,'2019'!H97,'2020 '!H97) -> 10.57919542 | G96: =AVERAGE('2016'!I97,'2017'!I97,'2018'!I97,'2019'!I97,'2020 '!I97) -> 35.70164701
A97: 01/05/2016 00:00 EST | B97: 01/05 | C97: =AVERAGE('2016'!E98,'2017'!E98,'2018'!E98,'2019'!E98,'2020 '!E98) -> 2455.072242 | D97: =AVERAGE('2016'!F98,'2017'!F98,'2018'!F98,'2019'!F98,'2020 '!F98) -> 551.1193477 | E97: =AVERAGE('2016'!G98,'2017'!G98,'2018'!G98,'2019'!G98,'2020 '!G98) -> 517.6061131 | F97: =AVERAGE('2016'!H98,'2017'!H98,'2018'!H98,'2019'!H98,'2020 '!H98) -> 9.719388947 | G97: =AVERAGE('2016'!I98,'2017'!I98,'2018'!I98,'2019'!I98,'2020 '!I98) -> 32.847175
A98: 01/05/2016 01:00 EST | B98: 01/05 | C98: =AVERAGE('2016'!E99,'2017'!E99,'2018'!E99,'2019'!E99,'2020 '!E99) -> 2298.858193 | D98: =AVERAGE('2016'!F99,'2017'!F99,'2018'!F99,'2019'!F99,'2020 '!F99) -> 516.065498 | E98: =AVERAGE('2016'!G99,'2017'!G99,'2018'!G99,'2019'!G99,'2020 '!G99) -> 485.1404105 | F98: =AVERAGE('2016'!H99,'2017'!H99,'2018'!H99,'2019'!H99,'2020 '!H99) -> 9.100375087 | G98: =AVERAGE('2016'!I99,'2017'!I99,'2018'!I99,'2019'!I99,'2020 '!I99) -> 30.80679988
A99: 01/05/2016 02:00 EST | B99: 01/05 | C99: =AVERAGE('2016'!E100,'2017'!E100,'2018'!E100,'2019'!E100,'2020 '!E100) -> 2203.099581 | D99: =AVERAGE('2016'!F100,'2017'!F100,'2018'!F100,'2019'!F100,'2020 '!F100) -> 494.6287894 | E99: =AVERAGE('2016'!G100,'2017'!G100,'2018'!G100,'2019'!G100,'2020 '!G100) -> 465.1984315 | F99: =AVERAGE('2016'!H100,'2017'!H100,'2018'!H100,'2019'!H100,'2020 '!H100) -> 8.723597431 | G99: =AVERAGE('2016'!I100,'2017'!I100,'2018'!I100,'2019'!I100,'2020 '!I100) -> 29.61954955
A100: 01/05/2016 03:00 EST | B100: 01/05 | C100: =AVERAGE('2016'!E101,'2017'!E101,'2018'!E101,'2019'!E101,'2020 '!E101) -> 2186.569552 | D100: =AVERAGE('2016'!F101,'2017'!F101,'2018'!F101,'2019'!F101,'2020 '!F101) -> 490.9766079 | E100: =AVERAGE('2016'!G101,'2017'!G101,'2018'!G101,'2019'!G101,'2020 '!G101) -> 462.0818588 | F100: =AVERAGE('2016'!H101,'2017'!H101,'2018'!H101,'2019'!H101,'2020 '!H101) -> 8.657243855 | G100: =AVERAGE('2016'!I101,'2017'!I101,'2018'!I101,'2019'!I101,'2020 '!I101) -> 29.40885187
A101: 01/05/2016 04:00 EST | B101: 01/05 | C101: =AVERAGE('2016'!E102,'2017'!E102,'2018'!E102,'2019'!E102,'2020 '!E102) -> 2200.710454 | D101: =AVERAGE('2016'!F102,'2017'!F102,'2018'!F102,'2019'!F102,'2020 '!F102) -> 494.2495698 | E101: =AVERAGE('2016'!G102,'2017'!G102,'2018'!G102,'2019'!G102,'2020 '!G102) -> 465.3633216 | F101: =AVERAGE('2016'!H102,'2017'!H102,'2018'!H102,'2019'!H102,'2020 '!H102) -> 8.716435804 | G101: =AVERAGE('2016'!I102,'2017'!I102,'2018'!I102,'2019'!I102,'2020 '!I102) -> 29.63715675
A102: 01/05/2016 05:00 EST | B102: 01/05 | C102: =AVERAGE('2016'!E103,'2017'!E103,'2018'!E103,'2019'!E103,'2020 '!E103) -> 2240.189197 | D102: =AVERAGE('2016'!F103,'2017'!F103,'2018'!F103,'2019'!F103,'2020 '!F103) -> 503.2033222 | E102: =AVERAGE('2016'!G103,'2017'!G103,'2018'!G103,'2019'!G103,'2020 '!G103) -> 474.0736525 | F102: =AVERAGE('2016'!H103,'2017'!H103,'2018'!H103,'2019'!H103,'2020 '!H103) -> 8.877173395 | G102: =AVERAGE('2016'!I103,'2017'!I103,'2018'!I103,'2019'!I103,'2020 '!I103) -> 30.20243385
A103: 01/05/2016 06:00 EST | B103: 01/05 | C103: =AVERAGE('2016'!E104,'2017'!E104,'2018'!E104,'2019'!E104,'2020 '!E104) -> 2341.183415 | D103: =AVERAGE('2016'!F104,'2017'!F104,'2018'!F104,'2019'!F104,'2020 '!F104) -> 526.0254898 | E103: =AVERAGE('2016'!G104,'2017'!G104,'2018'!G104,'2019'!G104,'2020 '!G104) -> 496.267379 | F103: =AVERAGE('2016'!H104,'2017'!H104,'2018'!H104,'2019'!H104,'2020 '!H104) -> 9.284607315 | G103: =AVERAGE('2016'!I104,'2017'!I104,'2018'!I104,'2019'!I104,'2020 '!I104) -> 31.68876468
A104: 01/05/2016 07:00 EST | B104: 01/05 | C104: =AVERAGE('2016'!E105,'2017'!E105,'2018'!E105,'2019'!E105,'2020 '!E105) -> 2511.333758 | D104: =AVERAGE('2016'!F105,'2017'!F105,'2018'!F105,'2019'!F105,'2020 '!F105) -> 564.3838465 | E104: =AVERAGE('2016'!G105,'2017'!G105,'2018'!G105,'2019'!G105,'2020 '!G105) -> 533.1230246 | F104: =AVERAGE('2016'!H105,'2017'!H105,'2018'!H105,'2019'!H105,'2020 '!H105) -> 9.966682356 | G104: =AVERAGE('2016'!I105,'2017'!I105,'2018'!I105,'2019'!I105,'2020 '!I105) -> 34.2024581
A105: 01/05/2016 08:00 EST | B105: 01/05 | C105: =AVERAGE('2016'!E106,'2017'!E106,'2018'!E106,'2019'!E106,'2020 '!E106) -> 2631.821075 | D105: =AVERAGE('2016'!F106,'2017'!F106,'2018'!F106,'2019'!F106,'2020 '!F106) -> 591.4007824 | E105: =AVERAGE('2016'!G106,'2017'!G106,'2018'!G106,'2019'!G106,'2020 '!G106) -> 557.8903464 | F105: =AVERAGE('2016'!H106,'2017'!H106,'2018'!H106,'2019'!H106,'2020 '!H106) -> 10.43988254 | G105: =AVERAGE('2016'!I106,'2017'!I106,'2018'!I106,'2019'!I106,'2020 '!I106) -> 35.73906135
A106: 01/05/2016 09:00 EST | B106: 01/05 | C106: =AVERAGE('2016'!E107,'2017'!E107,'2018'!E107,'2019'!E107,'2020 '!E107) -> 2714.113168 | D106: =AVERAGE('2016'!F107,'2017'!F107,'2018'!F107,'2019'!F107,'2020 '!F107) -> 609.2727499 | E106: =AVERAGE('2016'!G107,'2017'!G107,'2018'!G107,'2019'!G107,'2020 '!G107) -> 572.4293542 | F106: =AVERAGE('2016'!H107,'2017'!H107,'2018'!H107,'2019'!H107,'2020 '!H107) -> 10.74521627 | G106: =AVERAGE('2016'!I107,'2017'!I107,'2018'!I107,'2019'!I107,'2020 '!I107) -> 36.35245201
A107: 01/05/2016 10:00 EST | B107: 01/05 | C107: =AVERAGE('2016'!E108,'2017'!E108,'2018'!E108,'2019'!E108,'2020 '!E108) -> 2762.716181 | D107: =AVERAGE('2016'!F108,'2017'!F108,'2018'!F108,'2019'!F108,'2020 '!F108) -> 619.845104 | E107: =AVERAGE('2016'!G108,'2017'!G108,'2018'!G108,'2019'!G108,'2020 '!G108) -> 580.1566665 | F107: =AVERAGE('2016'!H108,'2017'!H108,'2018'!H108,'2019'!H108,'2020 '!H108) -> 10.92144173 | G107: =AVERAGE('2016'!I108,'2017'!I108,'2018'!I108,'2019'!I108,'2020 '!I108) -> 36.67380626
A108: 01/05/2016 11:00 EST | B108: 01/05 | C108: =AVERAGE('2016'!E109,'2017'!E109,'2018'!E109,'2019'!E109,'2020 '!E109) -> 2782.897138 | D108: =AVERAGE('2016'!F109,'2017'!F109,'2018'!F109,'2019'!F109,'2020 '!F109) -> 624.225823 | E108: =AVERAGE('2016'!G109,'2017'!G109,'2018'!G109,'2019'!G109,'2020 '!G109) -> 583.2363852 | F108: =AVERAGE('2016'!H109,'2017'!H109,'2018'!H109,'2019'!H109,'2020 '!H109) -> 10.99342475 | G108: =AVERAGE('2016'!I109,'2017'!I109,'2018'!I109,'2019'!I109,'2020 '!I109) -> 36.79470092
A109: 01/05/2016 12:00 EST | B109: 01/05 | C109: =AVERAGE('2016'!E110,'2017'!E110,'2018'!E110,'2019'!E110,'2020 '!E110) -> 2831.351273 | D109: =AVERAGE('2016'!F110,'2017'!F110,'2018'!F110,'2019'!F110,'2020 '!F110) -> 635.0317581 | E109: =AVERAGE('2016'!G110,'2017'!G110,'2018'!G110,'2019'!G110,'2020 '!G110) -> 592.9810498 | F109: =AVERAGE('2016'!H110,'2017'!H110,'2018'!H110,'2019'!H110,'2020 '!H110) -> 11.18651658 | G109: =AVERAGE('2016'!I110,'2017'!I110,'2018'!I110,'2019'!I110,'2020 '!I110) -> 37.30083981
A110: 01/05/2016 13:00 EST | B110: 01/05 | C110: =AVERAGE('2016'!E111,'2017'!E111,'2018'!E111,'2019'!E111,'2020 '!E111) -> 2803.08958 | D110: =AVERAGE('2016'!F111,'2017'!F111,'2018'!F111,'2019'!F111,'2020 '!F111) -> 628.6879439 | E110: =AVERAGE('2016'!G111,'2017'!G111,'2018'!G111,'2019'!G111,'2020 '!G111) -> 586.3505073 | F110: =AVERAGE('2016'!H111,'2017'!H111,'2018'!H111,'2019'!H111,'2020 '!H111) -> 11.0738183 | G110: =AVERAGE('2016'!I111,'2017'!I111,'2018'!I111,'2019'!I111,'2020 '!I111) -> 36.77545816
A111: 01/05/2016 14:00 EST | B111: 01/05 | C111: =AVERAGE('2016'!E112,'2017'!E112,'2018'!E112,'2019'!E112,'2020 '!E112) -> 2766.243215 | D111: =AVERAGE('2016'!F112,'2017'!F112,'2018'!F112,'2019'!F112,'2020 '!F112) -> 620.4015659 | E111: =AVERAGE('2016'!G112,'2017'!G112,'2018'!G112,'2019'!G112,'2020 '!G112) -> 578.4601402 | F111: =AVERAGE('2016'!H112,'2017'!H112,'2018'!H112,'2019'!H112,'2020 '!H112) -> 10.92589214 | G111: =AVERAGE('2016'!I112,'2017'!I112,'2018'!I112,'2019'!I112,'2020 '!I112) -> 36.19427798
A112: 01/05/2016 15:00 EST | B112: 01/05 | C112: =AVERAGE('2016'!E113,'2017'!E113,'2018'!E113,'2019'!E113,'2020 '!E113) -> 2762.601798 | D112: =AVERAGE('2016'!F113,'2017'!F113,'2018'!F113,'2019'!F113,'2020 '!F113) -> 619.6245308 | E112: =AVERAGE('2016'!G113,'2017'!G113,'2018'!G113,'2019'!G113,'2020 '!G113) -> 577.7810222 | F112: =AVERAGE('2016'!H113,'2017'!H113,'2018'!H113,'2019'!H113,'2020 '!H113) -> 10.91725188 | G112: =AVERAGE('2016'!I113,'2017'!I113,'2018'!I113,'2019'!I113,'2020 '!I113) -> 36.13189904
A113: 01/05/2016 16:00 EST | B113: 01/05 | C113: =AVERAGE('2016'!E114,'2017'!E114,'2018'!E114,'2019'!E114,'2020 '!E114) -> 2851.71813 | D113: =AVERAGE('2016'!F114,'2017'!F114,'2018'!F114,'2019'!F114,'2020 '!F114) -> 639.7490227 | E113: =AVERAGE('2016'!G114,'2017'!G114,'2018'!G114,'2019'!G114,'2020 '!G114) -> 597.028374 | F113: =AVERAGE('2016'!H114,'2017'!H114,'2018'!H114,'2019'!H114,'2020 '!H114) -> 11.27508705 | G113: =AVERAGE('2016'!I114,'2017'!I114,'2018'!I114,'2019'!I114,'2020 '!I114) -> 37.41717291
A114: 01/05/2016 17:00 EST | B114: 01/05 | C114: =AVERAGE('2016'!E115,'2017'!E115,'2018'!E115,'2019'!E115,'2020 '!E115) -> 3177.738426 | D114: =AVERAGE('2016'!F115,'2017'!F115,'2018'!F115,'2019'!F115,'2020 '!F115) -> 713.358425 | E114: =AVERAGE('2016'!G115,'2017'!G115,'2018'!G115,'2019'!G115,'2020 '!G115) -> 666.5040269 | F114: =AVERAGE('2016'!H115,'2017'!H115,'2018'!H115,'2019'!H115,'2020 '!H115) -> 12.5875162 | G114: =AVERAGE('2016'!I115,'2017'!I115,'2018'!I115,'2019'!I115,'2020 '!I115) -> 42.16937687
A115: 01/05/2016 18:00 EST | B115: 01/05 | C115: =AVERAGE('2016'!E116,'2017'!E116,'2018'!E116,'2019'!E116,'2020 '!E116) -> 3490.44016 | D115: =AVERAGE('2016'!F116,'2017'!F116,'2018'!F116,'2019'!F116,'2020 '!F116) -> 783.6176326 | E115: =AVERAGE('2016'!G116,'2017'!G116,'2018'!G116,'2019'!G116,'2020 '!G116) -> 732.4010792 | F115: =AVERAGE('2016'!H116,'2017'!H116,'2018'!H116,'2019'!H116,'2020 '!H116) -> 13.82743767 | G115: =AVERAGE('2016'!I116,'2017'!I116,'2018'!I116,'2019'!I116,'2020 '!I116) -> 46.32623033
A116: 01/05/2016 19:00 EST | B116: 01/05 | C116: =AVERAGE('2016'!E117,'2017'!E117,'2018'!E117,'2019'!E117,'2020 '!E117) -> 3401.508283 | D116: =AVERAGE('2016'!F117,'2017'!F117,'2018'!F117,'2019'!F117,'2020 '!F117) -> 763.5314085 | E116: =AVERAGE('2016'!G117,'2017'!G117,'2018'!G117,'2019'!G117,'2020 '!G117) -> 714.2919226 | F116: =AVERAGE('2016'!H117,'2017'!H117,'2018'!H117,'2019'!H117,'2020 '!H117) -> 13.46311277 | G116: =AVERAGE('2016'!I117,'2017'!I117,'2018'!I117,'2019'!I117,'2020 '!I117) -> 45.0546005
A117: 01/05/2016 20:00 EST | B117: 01/05 | C117: =AVERAGE('2016'!E118,'2017'!E118,'2018'!E118,'2019'!E118,'2020 '!E118) -> 3336.4094 | D117: =AVERAGE('2016'!F118,'2017'!F118,'2018'!F118,'2019'!F118,'2020 '!F118) -> 749.1632567 | E117: =AVERAGE('2016'!G118,'2017'!G118,'2018'!G118,'2019'!G118,'2020 '!G118) -> 701.6981931 | F117: =AVERAGE('2016'!H118,'2017'!H118,'2018'!H118,'2019'!H118,'2020 '!H118) -> 13.21657517 | G117: =AVERAGE('2016'!I118,'2017'!I118,'2018'!I118,'2019'!I118,'2020 '!I118) -> 44.37328229
A118: 01/05/2016 21:00 EST | B118: 01/05 | C118: =AVERAGE('2016'!E119,'2017'!E119,'2018'!E119,'2019'!E119,'2020 '!E119) -> 3213.526878 | D118: =AVERAGE('2016'!F119,'2017'!F119,'2018'!F119,'2019'!F119,'2020 '!F119) -> 721.5712609 | E118: =AVERAGE('2016'!G119,'2017'!G119,'2018'!G119,'2019'!G119,'2020 '!G119) -> 676.2532848 | F118: =AVERAGE('2016'!H119,'2017'!H119,'2018'!H119,'2019'!H119,'2020 '!H119) -> 12.72806966 | G118: =AVERAGE('2016'!I119,'2017'!I119,'2018'!I119,'2019'!I119,'2020 '!I119) -> 42.72250101
A119: 01/05/2016 22:00 EST | B119: 01/05 | C119: =AVERAGE('2016'!E120,'2017'!E120,'2018'!E120,'2019'!E120,'2020 '!E120) -> 3023.612179 | D119: =AVERAGE('2016'!F120,'2017'!F120,'2018'!F120,'2019'!F120,'2020 '!F120) -> 678.8159116 | E119: =AVERAGE('2016'!G120,'2017'!G120,'2018'!G120,'2019'!G120,'2020 '!G120) -> 635.9193545 | F119: =AVERAGE('2016'!H120,'2017'!H120,'2018'!H120,'2019'!H120,'2020 '!H120) -> 11.96849288 | G119: =AVERAGE('2016'!I120,'2017'!I120,'2018'!I120,'2019'!I120,'2020 '!I120) -> 39.99489788
A120: 01/05/2016 23:00 EST | B120: 01/05 | C120: =AVERAGE('2016'!E121,'2017'!E121,'2018'!E121,'2019'!E121,'2020 '!E121) -> 2805.636221 | D120: =AVERAGE('2016'!F121,'2017'!F121,'2018'!F121,'2019'!F121,'2020 '!F121) -> 629.8221863 | E120: =AVERAGE('2016'!G121,'2017'!G121,'2018'!G121,'2019'!G121,'2020 '!G121) -> 590.0872441 | F120: =AVERAGE('2016'!H121,'2017'!H121,'2018'!H121,'2019'!H121,'2020 '!H121) -> 11.09450889 | G120: =AVERAGE('2016'!I121,'2017'!I121,'2018'!I121,'2019'!I121,'2020 '!I121) -> 36.90778901
A121: 01/06/2016 00:00 EST | B121: 01/06 | C121: =AVERAGE('2016'!E122,'2017'!E122,'2018'!E122,'2019'!E122,'2020 '!E122) -> 2566.923961 | D121: =AVERAGE('2016'!F122,'2017'!F122,'2018'!F122,'2019'!F122,'2020 '!F122) -> 576.2877219 | E121: =AVERAGE('2016'!G122,'2017'!G122,'2018'!G122,'2019'!G122,'2020 '!G122) -> 540.1895288 | F121: =AVERAGE('2016'!H122,'2017'!H122,'2018'!H122,'2019'!H122,'2020 '!H122) -> 10.14877795 | G121: =AVERAGE('2016'!I122,'2017'!I122,'2018'!I122,'2019'!I122,'2020 '!I122) -> 33.74710222
A122: 01/06/2016 01:00 EST | B122: 01/06 | C122: =AVERAGE('2016'!E123,'2017'!E123,'2018'!E123,'2019'!E123,'2020 '!E123) -> 2381.670905 | D122: =AVERAGE('2016'!F123,'2017'!F123,'2018'!F123,'2019'!F123,'2020 '!F123) -> 534.6799247 | E122: =AVERAGE('2016'!G123,'2017'!G123,'2018'!G123,'2019'!G123,'2020 '!G123) -> 501.2672746 | F122: =AVERAGE('2016'!H123,'2017'!H123,'2018'!H123,'2019'!H123,'2020 '!H123) -> 9.412771128 | G122: =AVERAGE('2016'!I123,'2017'!I123,'2018'!I123,'2019'!I123,'2020 '!I123) -> 31.3275647
A123: 01/06/2016 02:00 EST | B123: 01/06 | C123: =AVERAGE('2016'!E124,'2017'!E124,'2018'!E124,'2019'!E124,'2020 '!E124) -> 2290.249889 | D123: =AVERAGE('2016'!F124,'2017'!F124,'2018'!F124,'2019'!F124,'2020 '!F124) -> 514.1662708 | E123: =AVERAGE('2016'!G124,'2017'!G124,'2018'!G124,'2019'!G124,'2020 '!G124) -> 481.4748028 | F123: =AVERAGE('2016'!H124,'2017'!H124,'2018'!H124,'2019'!H124,'2020 '!H124) -> 9.05349961 | G123: =AVERAGE('2016'!I124,'2017'!I124,'2018'!I124,'2019'!I124,'2020 '!I124) -> 30.06766391
A124: 01/06/2016 03:00 EST | B124: 01/06 | C124: =AVERAGE('2016'!E125,'2017'!E125,'2018'!E125,'2019'!E125,'2020 '!E125) -> 2263.579794 | D124: =AVERAGE('2016'!F125,'2017'!F125,'2018'!F125,'2019'!F125,'2020 '!F125) -> 508.2453606 | E124: =AVERAGE('2016'!G125,'2017'!G125,'2018'!G125,'2019'!G125,'2020 '!G125) -> 476.1929056 | F124: =AVERAGE('2016'!H125,'2017'!H125,'2018'!H125,'2019'!H125,'2020 '!H125) -> 8.949097289 | G124: =AVERAGE('2016'!I125,'2017'!I125,'2018'!I125,'2019'!I125,'2020 '!I125) -> 29.72458827
A125: 01/06/2016 04:00 EST | B125: 01/06 | C125: =AVERAGE('2016'!E126,'2017'!E126,'2018'!E126,'2019'!E126,'2020 '!E126) -> 2277.224978 | D125: =AVERAGE('2016'!F126,'2017'!F126,'2018'!F126,'2019'!F126,'2020 '!F126) -> 511.3815818 | E125: =AVERAGE('2016'!G126,'2017'!G126,'2018'!G126,'2019'!G126,'2020 '!G126) -> 479.3551108 | F125: =AVERAGE('2016'!H126,'2017'!H126,'2018'!H126,'2019'!H126,'2020 '!H126) -> 9.009131888 | G125: =AVERAGE('2016'!I126,'2017'!I126,'2018'!I126,'2019'!I126,'2020 '!I126) -> 29.96005771
A126: 01/06/2016 05:00 EST | B126: 01/06 | C126: =AVERAGE('2016'!E127,'2017'!E127,'2018'!E127,'2019'!E127,'2020 '!E127) -> 2298.962623 | D126: =AVERAGE('2016'!F127,'2017'!F127,'2018'!F127,'2019'!F127,'2020 '!F127) -> 516.3290348 | E126: =AVERAGE('2016'!G127,'2017'!G127,'2018'!G127,'2019'!G127,'2020 '!G127) -> 484.0082221 | F126: =AVERAGE('2016'!H127,'2017'!H127,'2018'!H127,'2019'!H127,'2020 '!H127) -> 9.099175098 | G126: =AVERAGE('2016'!I127,'2017'!I127,'2018'!I127,'2019'!I127,'2020 '!I127) -> 30.27689559
A127: 01/06/2016 06:00 EST | B127: 01/06 | C127: =AVERAGE('2016'!E128,'2017'!E128,'2018'!E128,'2019'!E128,'2020 '!E128) -> 2410.882599 | D127: =AVERAGE('2016'!F128,'2017'!F128,'2018'!F128,'2019'!F128,'2020 '!F128) -> 541.6561778 | E127: =AVERAGE('2016'!G128,'2017'!G128,'2018'!G128,'2019'!G128,'2020 '!G128) -> 507.9661902 | F127: =AVERAGE('2016'!H128,'2017'!H128,'2018'!H128,'2019'!H128,'2020 '!H128) -> 9.558486542 | G127: =AVERAGE('2016'!I128,'2017'!I128,'2018'!I128,'2019'!I128,'2020 '!I128) -> 31.91269922
A128: 01/06/2016 07:00 EST | B128: 01/06 | C128: =AVERAGE('2016'!E129,'2017'!E129,'2018'!E129,'2019'!E129,'2020 '!E129) -> 2561.818831 | D128: =AVERAGE('2016'!F129,'2017'!F129,'2018'!F129,'2019'!F129,'2020 '!F129) -> 575.7573918 | E128: =AVERAGE('2016'!G129,'2017'!G129,'2018'!G129,'2019'!G129,'2020 '!G129) -> 539.7677958 | F128: =AVERAGE('2016'!H129,'2017'!H129,'2018'!H129,'2019'!H129,'2020 '!H129) -> 10.16878378 | G128: =AVERAGE('2016'!I129,'2017'!I129,'2018'!I129,'2019'!I129,'2020 '!I129) -> 34.19894074
A129: 01/06/2016 08:00 EST | B129: 01/06 | C129: =AVERAGE('2016'!E130,'2017'!E130,'2018'!E130,'2019'!E130,'2020 '!E130) -> 2681.453224 | D129: =AVERAGE('2016'!F130,'2017'!F130,'2018'!F130,'2019'!F130,'2020 '!F130) -> 602.5069182 | E129: =AVERAGE('2016'!G130,'2017'!G130,'2018'!G130,'2019'!G130,'2020 '!G130) -> 564.6331774 | F129: =AVERAGE('2016'!H130,'2017'!H130,'2018'!H130,'2019'!H130,'2020 '!H130) -> 10.63676062 | G129: =AVERAGE('2016'!I130,'2017'!I130,'2018'!I130,'2019'!I130,'2020 '!I130) -> 35.65688802
A130: 01/06/2016 09:00 EST | B130: =LEFT(A130,5) -> 01/06 | C130: =AVERAGE('2016'!E131,'2017'!E131,'2018'!E131,'2019'!E131,'2020 '!E131) -> 2752.209854 | D130: =AVERAGE('2016'!F131,'2017'!F131,'2018'!F131,'2019'!F131,'2020 '!F131) -> 617.713653 | E130: =AVERAGE('2016'!G131,'2017'!G131,'2018'!G131,'2019'!G131,'2020 '!G131) -> 577.6039933 | F130: =AVERAGE('2016'!H131,'2017'!H131,'2018'!H131,'2019'!H131,'2020 '!H131) -> 10.88581425 | G130: =AVERAGE('2016'!I131,'2017'!I131,'2018'!I131,'2019'!I131,'2020 '!I131) -> 36.03538097
A131: 01/06/2016 10:00 EST | B131: 01/06 | C131: =AVERAGE('2016'!E132,'2017'!E132,'2018'!E132,'2019'!E132,'2020 '!E132) -> 2793.32613 | D131: =AVERAGE('2016'!F132,'2017'!F132,'2018'!F132,'2019'!F132,'2020 '!F132) -> 626.451219 | E131: =AVERAGE('2016'!G132,'2017'!G132,'2018'!G132,'2019'!G132,'2020 '!G132) -> 584.8010769 | F131: =AVERAGE('2016'!H132,'2017'!H132,'2018'!H132,'2019'!H132,'2020 '!H132) -> 11.0257261 | G131: =AVERAGE('2016'!I132,'2017'!I132,'2018'!I132,'2019'!I132,'2020 '!I132) -> 36.22888598
A132: 01/06/2016 11:00 EST | B132: 01/06 | C132: =AVERAGE('2016'!E133,'2017'!E133,'2018'!E133,'2019'!E133,'2020 '!E133) -> 2811.428694 | D132: =AVERAGE('2016'!F133,'2017'!F133,'2018'!F133,'2019'!F133,'2020 '!F133) -> 630.365688 | E132: =AVERAGE('2016'!G133,'2017'!G133,'2018'!G133,'2019'!G133,'2020 '!G133) -> 587.9461757 | F132: =AVERAGE('2016'!H133,'2017'!H133,'2018'!H133,'2019'!H133,'2020 '!H133) -> 11.08689091 | G132: =AVERAGE('2016'!I133,'2017'!I133,'2018'!I133,'2019'!I133,'2020 '!I133) -> 36.27877142
A133: 01/06/2016 12:00 EST | B133: 01/06 | C133: =AVERAGE('2016'!E134,'2017'!E134,'2018'!E134,'2019'!E134,'2020 '!E134) -> 2806.618302 | D133: =AVERAGE('2016'!F134,'2017'!F134,'2018'!F134,'2019'!F134,'2020 '!F134) -> 629.1100277 | E133: =AVERAGE('2016'!G134,'2017'!G134,'2018'!G134,'2019'!G134,'2020 '!G134) -> 586.2615248 | F133: =AVERAGE('2016'!H134,'2017'!H134,'2018'!H134,'2019'!H134,'2020 '!H134) -> 11.05661852 | G133: =AVERAGE('2016'!I134,'2017'!I134,'2018'!I134,'2019'!I134,'2020 '!I134) -> 36.06640085
A134: 01/06/2016 13:00 EST | B134: 01/06 | C134: =AVERAGE('2016'!E135,'2017'!E135,'2018'!E135,'2019'!E135,'2020 '!E135) -> 2773.573077 | D134: =AVERAGE('2016'!F135,'2017'!F135,'2018'!F135,'2019'!F135,'2020 '!F135) -> 621.2704522 | E134: =AVERAGE('2016'!G135,'2017'!G135,'2018'!G135,'2019'!G135,'2020 '!G135) -> 578.2643193 | F134: =AVERAGE('2016'!H135,'2017'!H135,'2018'!H135,'2019'!H135,'2020 '!H135) -> 10.9125957 | G134: =AVERAGE('2016'!I135,'2017'!I135,'2018'!I135,'2019'!I135,'2020 '!I135) -> 35.50695429
A135: 01/06/2016 14:00 EST | B135: 01/06 | C135: =AVERAGE('2016'!E136,'2017'!E136,'2018'!E136,'2019'!E136,'2020 '!E136) -> 2752.187281 | D135: =AVERAGE('2016'!F136,'2017'!F136,'2018'!F136,'2019'!F136,'2020 '!F136) -> 616.2956321 | E135: =AVERAGE('2016'!G136,'2017'!G136,'2018'!G136,'2019'!G136,'2020 '!G136) -> 574.2578626 | F135: =AVERAGE('2016'!H136,'2017'!H136,'2018'!H136,'2019'!H136,'2020 '!H136) -> 10.81853181 | G135: =AVERAGE('2016'!I136,'2017'!I136,'2018'!I136,'2019'!I136,'2020 '!I136) -> 35.17642166
A136: 01/06/2016 15:00 EST | B136: 01/06 | C136: =AVERAGE('2016'!E137,'2017'!E137,'2018'!E137,'2019'!E137,'2020 '!E137) -> 2743.022591 | D136: =AVERAGE('2016'!F137,'2017'!F137,'2018'!F137,'2019'!F137,'2020 '!F137) -> 614.4611934 | E136: =AVERAGE('2016'!G137,'2017'!G137,'2018'!G137,'2019'!G137,'2020 '!G137) -> 572.9802784 | F136: =AVERAGE('2016'!H137,'2017'!H137,'2018'!H137,'2019'!H137,'2020 '!H137) -> 10.78934854 | G136: =AVERAGE('2016'!I137,'2017'!I137,'2018'!I137,'2019'!I137,'2020 '!I137) -> 35.1612877
A137: 01/06/2016 16:00 EST | B137: 01/06 | C137: =AVERAGE('2016'!E138,'2017'!E138,'2018'!E138,'2019'!E138,'2020 '!E138) -> 2833.773795 | D137: =AVERAGE('2016'!F138,'2017'!F138,'2018'!F138,'2019'!F138,'2020 '!F138) -> 634.9508695 | E137: =AVERAGE('2016'!G138,'2017'!G138,'2018'!G138,'2019'!G138,'2020 '!G138) -> 591.8358656 | F137: =AVERAGE('2016'!H138,'2017'!H138,'2018'!H138,'2019'!H138,'2020 '!H138) -> 11.1612767 | G137: =AVERAGE('2016'!I138,'2017'!I138,'2018'!I138,'2019'!I138,'2020 '!I138) -> 36.47800189
A138: 01/06/2016 17:00 EST | B138: 01/06 | C138: =AVERAGE('2016'!E139,'2017'!E139,'2018'!E139,'2019'!E139,'2020 '!E139) -> 3126.522624 | D138: =AVERAGE('2016'!F139,'2017'!F139,'2018'!F139,'2019'!F139,'2020 '!F139) -> 700.6636677 | E138: =AVERAGE('2016'!G139,'2017'!G139,'2018'!G139,'2019'!G139,'2020 '!G139) -> 653.2492574 | F138: =AVERAGE('2016'!H139,'2017'!H139,'2018'!H139,'2019'!H139,'2020 '!H139) -> 12.33679764 | G138: =AVERAGE('2016'!I139,'2017'!I139,'2018'!I139,'2019'!I139,'2020 '!I139) -> 40.58673146
A139: 01/06/2016 18:00 EST | B139: 01/06 | C139: =AVERAGE('2016'!E140,'2017'!E140,'2018'!E140,'2019'!E140,'2020 '!E140) -> 3512.05811 | D139: =AVERAGE('2016'!F140,'2017'!F140,'2018'!F140,'2019'!F140,'2020 '!F140) -> 787.2773929 | E139: =AVERAGE('2016'!G140,'2017'!G140,'2018'!G140,'2019'!G140,'2020 '!G140) -> 734.2680632 | F139: =AVERAGE('2016'!H140,'2017'!H140,'2018'!H140,'2019'!H140,'2020 '!H140) -> 13.86692525 | G139: =AVERAGE('2016'!I140,'2017'!I140,'2018'!I140,'2019'!I140,'2020 '!I140) -> 45.80392719
A140: 01/06/2016 19:00 EST | B140: 01/06 | C140: =AVERAGE('2016'!E141,'2017'!E141,'2018'!E141,'2019'!E141,'2020 '!E141) -> 3419.889436 | D140: =AVERAGE('2016'!F141,'2017'!F141,'2018'!F141,'2019'!F141,'2020 '!F141) -> 766.4792891 | E140: =AVERAGE('2016'!G141,'2017'!G141,'2018'!G141,'2019'!G141,'2020 '!G141) -> 715.1516887 | F140: =AVERAGE('2016'!H141,'2017'!H141,'2018'!H141,'2019'!H141,'2020 '!H141) -> 13.49386306 | G140: =AVERAGE('2016'!I141,'2017'!I141,'2018'!I141,'2019'!I141,'2020 '!I141) -> 44.50944707
A141: 01/06/2016 20:00 EST | B141: 01/06 | C141: =AVERAGE('2016'!E142,'2017'!E142,'2018'!E142,'2019'!E142,'2020 '!E142) -> 3351.194178 | D141: =AVERAGE('2016'!F142,'2017'!F142,'2018'!F142,'2019'!F142,'2020 '!F142) -> 751.2196471 | E141: =AVERAGE('2016'!G142,'2017'!G142,'2018'!G142,'2019'!G142,'2020 '!G142) -> 701.1434282 | F141: =AVERAGE('2016'!H142,'2017'!H142,'2018'!H142,'2019'!H142,'2020 '!H142) -> 13.23087885 | G141: =AVERAGE('2016'!I142,'2017'!I142,'2018'!I142,'2019'!I142,'2020 '!I142) -> 43.692744
A142: 01/06/2016 21:00 EST | B142: 01/06 | C142: =AVERAGE('2016'!E143,'2017'!E143,'2018'!E143,'2019'!E143,'2020 '!E143) -> 3243.181508 | D142: =AVERAGE('2016'!F143,'2017'!F143,'2018'!F143,'2019'!F143,'2020 '!F143) -> 727.2372039 | E142: =AVERAGE('2016'!G143,'2017'!G143,'2018'!G143,'2019'!G143,'2020 '!G143) -> 679.3690819 | F142: =AVERAGE('2016'!H143,'2017'!H143,'2018'!H143,'2019'!H143,'2020 '!H143) -> 12.81411538 | G142: =AVERAGE('2016'!I143,'2017'!I143,'2018'!I143,'2019'!I143,'2020 '!I143) -> 42.35881296
A143: 01/06/2016 22:00 EST | B143: 01/06 | C143: =AVERAGE('2016'!E144,'2017'!E144,'2018'!E144,'2019'!E144,'2020 '!E144) -> 3061.377262 | D143: =AVERAGE('2016'!F144,'2017'!F144,'2018'!F144,'2019'!F144,'2020 '!F144) -> 686.4193962 | E143: =AVERAGE('2016'!G144,'2017'!G144,'2018'!G144,'2019'!G144,'2020 '!G144) -> 641.274364 | F143: =AVERAGE('2016'!H144,'2017'!H144,'2018'!H144,'2019'!H144,'2020 '!H144) -> 12.09209799 | G143: =AVERAGE('2016'!I144,'2017'!I144,'2018'!I144,'2019'!I144,'2020 '!I144) -> 39.84368546
A144: 01/06/2016 23:00 EST | B144: 01/06 | C144: =AVERAGE('2016'!E145,'2017'!E145,'2018'!E145,'2019'!E145,'2020 '!E145) -> 2811.963332 | D144: =AVERAGE('2016'!F145,'2017'!F145,'2018'!F145,'2019'!F145,'2020 '!F145) -> 630.4476628 | E144: =AVERAGE('2016'!G145,'2017'!G145,'2018'!G145,'2019'!G145,'2020 '!G145) -> 589.0599263 | F144: =AVERAGE('2016'!H145,'2017'!H145,'2018'!H145,'2019'!H145,'2020 '!H145) -> 11.10040838 | G144: =AVERAGE('2016'!I145,'2017'!I145,'2018'!I145,'2019'!I145,'2020 '!I145) -> 36.38526477
A145: 01/07/2016 00:00 EST | B145: 01/07 | C145: =AVERAGE('2016'!E146,'2017'!E146,'2018'!E146,'2019'!E146,'2020 '!E146) -> 2576.209459 | D145: =AVERAGE('2016'!F146,'2017'!F146,'2018'!F146,'2019'!F146,'2020 '!F146) -> 577.5077379 | E145: =AVERAGE('2016'!G146,'2017'!G146,'2018'!G146,'2019'!G146,'2020 '!G146) -> 539.6488913 | F145: =AVERAGE('2016'!H146,'2017'!H146,'2018'!H146,'2019'!H146,'2020 '!H146) -> 10.16430215 | G145: =AVERAGE('2016'!I146,'2017'!I146,'2018'!I146,'2019'!I146,'2020 '!I146) -> 33.14346256
A146: 01/07/2016 01:00 EST | B146: 01/07 | C146: =AVERAGE('2016'!E147,'2017'!E147,'2018'!E147,'2019'!E147,'2020 '!E147) -> 2420.852187 | D146: =AVERAGE('2016'!F147,'2017'!F147,'2018'!F147,'2019'!F147,'2020 '!F147) -> 542.4754858 | E146: =AVERAGE('2016'!G147,'2017'!G147,'2018'!G147,'2019'!G147,'2020 '!G147) -> 506.582761 | F146: =AVERAGE('2016'!H147,'2017'!H147,'2018'!H147,'2019'!H147,'2020 '!H147) -> 9.545577066 | G146: =AVERAGE('2016'!I147,'2017'!I147,'2018'!I147,'2019'!I147,'2020 '!I147) -> 31.04981247
A147: 01/07/2016 02:00 EST | B147: 01/07 | C147: =AVERAGE('2016'!E148,'2017'!E148,'2018'!E148,'2019'!E148,'2020 '!E148) -> 2337.332561 | D147: =AVERAGE('2016'!F148,'2017'!F148,'2018'!F148,'2019'!F148,'2020 '!F148) -> 523.9409177 | E147: =AVERAGE('2016'!G148,'2017'!G148,'2018'!G148,'2019'!G148,'2020 '!G148) -> 489.6545837 | F147: =AVERAGE('2016'!H148,'2017'!H148,'2018'!H148,'2019'!H148,'2020 '!H148) -> 9.223083089 | G147: =AVERAGE('2016'!I148,'2017'!I148,'2018'!I148,'2019'!I148,'2020 '!I148) -> 30.07618609
A148: 01/07/2016 03:00 EST | B148: 01/07 | C148: =AVERAGE('2016'!E149,'2017'!E149,'2018'!E149,'2019'!E149,'2020 '!E149) -> 2321.72654 | D148: =AVERAGE('2016'!F149,'2017'!F149,'2018'!F149,'2019'!F149,'2020 '!F149) -> 520.3309726 | E148: =AVERAGE('2016'!G149,'2017'!G149,'2018'!G149,'2019'!G149,'2020 '!G149) -> 486.46159 | F148: =AVERAGE('2016'!H149,'2017'!H149,'2018'!H149,'2019'!H149,'2020 '!H149) -> 9.157799286 | G148: =AVERAGE('2016'!I149,'2017'!I149,'2018'!I149,'2019'!I149,'2020 '!I149) -> 29.85829049
A149: 01/07/2016 04:00 EST | B149: 01/07 | C149: =AVERAGE('2016'!E150,'2017'!E150,'2018'!E150,'2019'!E150,'2020 '!E150) -> 2342.841466 | D149: =AVERAGE('2016'!F150,'2017'!F150,'2018'!F150,'2019'!F150,'2020 '!F150) -> 525.0933559 | E149: =AVERAGE('2016'!G150,'2017'!G150,'2018'!G150,'2019'!G150,'2020 '!G150) -> 491.138569 | F149: =AVERAGE('2016'!H150,'2017'!H150,'2018'!H150,'2019'!H150,'2020 '!H150) -> 9.24413381 | G149: =AVERAGE('2016'!I150,'2017'!I150,'2018'!I150,'2019'!I150,'2020 '!I150) -> 30.18940827
A150: 01/07/2016 05:00 EST | B150: 01/07 | C150: =AVERAGE('2016'!E151,'2017'!E151,'2018'!E151,'2019'!E151,'2020 '!E151) -> 2374.087273 | D150: =AVERAGE('2016'!F151,'2017'!F151,'2018'!F151,'2019'!F151,'2020 '!F151) -> 532.0614357 | E150: =AVERAGE('2016'!G151,'2017'!G151,'2018'!G151,'2019'!G151,'2020 '!G151) -> 497.4740584 | F150: =AVERAGE('2016'!H151,'2017'!H151,'2018'!H151,'2019'!H151,'2020 '!H151) -> 9.367983777 | G150: =AVERAGE('2016'!I151,'2017'!I151,'2018'!I151,'2019'!I151,'2020 '!I151) -> 30.62899481
A151: 01/07/2016 06:00 EST | B151: 01/07 | C151: =AVERAGE('2016'!E152,'2017'!E152,'2018'!E152,'2019'!E152,'2020 '!E152) -> 2493.805933 | D151: =AVERAGE('2016'!F152,'2017'!F152,'2018'!F152,'2019'!F152,'2020 '!F152) -> 558.8138285 | E151: =AVERAGE('2016'!G152,'2017'!G152,'2018'!G152,'2019'!G152,'2020 '!G152) -> 522.1456351 | F151: =AVERAGE('2016'!H152,'2017'!H152,'2018'!H152,'2019'!H152,'2020 '!H152) -> 9.843153219 | G151: =AVERAGE('2016'!I152,'2017'!I152,'2018'!I152,'2019'!I152,'2020 '!I152) -> 32.34872412
A152: 01/07/2016 07:00 EST | B152: 01/07 | C152: =AVERAGE('2016'!E153,'2017'!E153,'2018'!E153,'2019'!E153,'2020 '!E153) -> 2682.476916 | D152: =AVERAGE('2016'!F153,'2017'!F153,'2018'!F153,'2019'!F153,'2020 '!F153) -> 601.0868138 | E152: =AVERAGE('2016'!G153,'2017'!G153,'2018'!G153,'2019'!G153,'2020 '!G153) -> 561.5362738 | F152: =AVERAGE('2016'!H153,'2017'!H153,'2018'!H153,'2019'!H153,'2020 '!H153) -> 10.59389634 | G152: =AVERAGE('2016'!I153,'2017'!I153,'2018'!I153,'2019'!I153,'2020 '!I153) -> 35.00962768
A153: 01/07/2016 08:00 EST | B153: 01/07 | C153: =AVERAGE('2016'!E154,'2017'!E154,'2018'!E154,'2019'!E154,'2020 '!E154) -> 2819.546842 | D153: =AVERAGE('2016'!F154,'2017'!F154,'2018'!F154,'2019'!F154,'2020 '!F154) -> 631.8077565 | E153: =AVERAGE('2016'!G154,'2017'!G154,'2018'!G154,'2019'!G154,'2020 '!G154) -> 590.4593994 | F153: =AVERAGE('2016'!H154,'2017'!H154,'2018'!H154,'2019'!H154,'2020 '!H154) -> 11.13702278 | G153: =AVERAGE('2016'!I154,'2017'!I154,'2018'!I154,'2019'!I154,'2020 '!I154) -> 36.7706435
A154: 01/07/2016 09:00 EST | B154: 01/07 | C154: =AVERAGE('2016'!E155,'2017'!E155,'2018'!E155,'2019'!E155,'2020 '!E155) -> 2822.074574 | D154: =AVERAGE('2016'!F155,'2017'!F155,'2018'!F155,'2019'!F155,'2020 '!F155) -> 632.5755004 | E154: =AVERAGE('2016'!G155,'2017'!G155,'2018'!G155,'2019'!G155,'2020 '!G155) -> 591.7236984 | F154: =AVERAGE('2016'!H155,'2017'!H155,'2018'!H155,'2019'!H155,'2020 '!H155) -> 11.1553484 | G154: =AVERAGE('2016'!I155,'2017'!I155,'2018'!I155,'2019'!I155,'2020 '!I155) -> 36.56592253
A155: 01/07/2016 10:00 EST | B155: 01/07 | C155: =AVERAGE('2016'!E156,'2017'!E156,'2018'!E156,'2019'!E156,'2020 '!E156) -> 2859.203549 | D155: =AVERAGE('2016'!F156,'2017'!F156,'2018'!F156,'2019'!F156,'2020 '!F156) -> 640.9739534 | E155: =AVERAGE('2016'!G156,'2017'!G156,'2018'!G156,'2019'!G156,'2020 '!G156) -> 599.8464096 | F155: =AVERAGE('2016'!H156,'2017'!H156,'2018'!H156,'2019'!H156,'2020 '!H156) -> 11.29665114 | G155: =AVERAGE('2016'!I156,'2017'!I156,'2018'!I156,'2019'!I156,'2020 '!I156) -> 36.91196271
A156: 01/07/2016 11:00 EST | B156: 01/07 | C156: =AVERAGE('2016'!E157,'2017'!E157,'2018'!E157,'2019'!E157,'2020 '!E157) -> 2869.614194 | D156: =AVERAGE('2016'!F157,'2017'!F157,'2018'!F157,'2019'!F157,'2020 '!F157) -> 643.1082298 | E156: =AVERAGE('2016'!G157,'2017'!G157,'2018'!G157,'2019'!G157,'2020 '!G157) -> 602.2772797 | F156: =AVERAGE('2016'!H157,'2017'!H157,'2018'!H157,'2019'!H157,'2020 '!H157) -> 11.32034434 | G156: =AVERAGE('2016'!I157,'2017'!I157,'2018'!I157,'2019'!I157,'2020 '!I157) -> 36.81788379
A157: 01/07/2016 12:00 EST | B157: 01/07 | C157: =AVERAGE('2016'!E158,'2017'!E158,'2018'!E158,'2019'!E158,'2020 '!E158) -> 2873.317788 | D157: =AVERAGE('2016'!F158,'2017'!F158,'2018'!F158,'2019'!F158,'2020 '!F158) -> 643.8606647 | E157: =AVERAGE('2016'!G158,'2017'!G158,'2018'!G158,'2019'!G158,'2020 '!G158) -> 603.041069 | F157: =AVERAGE('2016'!H158,'2017'!H158,'2018'!H158,'2019'!H158,'2020 '!H158) -> 11.32705449 | G157: =AVERAGE('2016'!I158,'2017'!I158,'2018'!I158,'2019'!I158,'2020 '!I158) -> 36.71062265
A158: 01/07/2016 13:00 EST | B158: 01/07 | C158: =AVERAGE('2016'!E159,'2017'!E159,'2018'!E159,'2019'!E159,'2020 '!E159) -> 2813.969958 | D158: =AVERAGE('2016'!F159,'2017'!F159,'2018'!F159,'2019'!F159,'2020 '!F159) -> 630.628595 | E158: =AVERAGE('2016'!G159,'2017'!G159,'2018'!G159,'2019'!G159,'2020 '!G159) -> 590.9841923 | F158: =AVERAGE('2016'!H159,'2017'!H159,'2018'!H159,'2019'!H159,'2020 '!H159) -> 11.09639315 | G158: =AVERAGE('2016'!I159,'2017'!I159,'2018'!I159,'2019'!I159,'2020 '!I159) -> 36.06526128
A159: 01/07/2016 14:00 EST | B159: 01/07 | C159: =AVERAGE('2016'!E160,'2017'!E160,'2018'!E160,'2019'!E160,'2020 '!E160) -> 2784.42947 | D159: =AVERAGE('2016'!F160,'2017'!F160,'2018'!F160,'2019'!F160,'2020 '!F160) -> 623.9409931 | E159: =AVERAGE('2016'!G160,'2017'!G160,'2018'!G160,'2019'!G160,'2020 '!G160) -> 584.5643192 | F159: =AVERAGE('2016'!H160,'2017'!H160,'2018'!H160,'2019'!H160,'2020 '!H160) -> 10.97607518 | G159: =AVERAGE('2016'!I160,'2017'!I160,'2018'!I160,'2019'!I160,'2020 '!I160) -> 35.50792564
A160: 01/07/2016 15:00 EST | B160: 01/07 | C160: =AVERAGE('2016'!E161,'2017'!E161,'2018'!E161,'2019'!E161,'2020 '!E161) -> 2795.16907 | D160: =AVERAGE('2016'!F161,'2017'!F161,'2018'!F161,'2019'!F161,'2020 '!F161) -> 626.3567176 | E160: =AVERAGE('2016'!G161,'2017'!G161,'2018'!G161,'2019'!G161,'2020 '!G161) -> 586.8776699 | F160: =AVERAGE('2016'!H161,'2017'!H161,'2018'!H161,'2019'!H161,'2020 '!H161) -> 11.01894532 | G160: =AVERAGE('2016'!I161,'2017'!I161,'2018'!I161,'2019'!I161,'2020 '!I161) -> 35.8053119
A161: 01/07/2016 16:00 EST | B161: 01/07 | C161: =AVERAGE('2016'!E162,'2017'!E162,'2018'!E162,'2019'!E162,'2020 '!E162) -> 2876.367505 | D161: =AVERAGE('2016'!F162,'2017'!F162,'2018'!F162,'2019'!F162,'2020 '!F162) -> 644.4747737 | E161: =AVERAGE('2016'!G162,'2017'!G162,'2018'!G162,'2019'!G162,'2020 '!G162) -> 602.6258358 | F161: =AVERAGE('2016'!H162,'2017'!H162,'2018'!H162,'2019'!H162,'2020 '!H162) -> 11.34278508 | G161: =AVERAGE('2016'!I162,'2017'!I162,'2018'!I162,'2019'!I162,'2020 '!I162) -> 36.89969347
A162: 01/07/2016 17:00 EST | B162: 01/07 | C162: =AVERAGE('2016'!E163,'2017'!E163,'2018'!E163,'2019'!E163,'2020 '!E163) -> 3167.98013 | D162: =AVERAGE('2016'!F163,'2017'!F163,'2018'!F163,'2019'!F163,'2020 '!F163) -> 709.8342226 | E162: =AVERAGE('2016'!G163,'2017'!G163,'2018'!G163,'2019'!G163,'2020 '!G163) -> 662.9760099 | F162: =AVERAGE('2016'!H163,'2017'!H163,'2018'!H163,'2019'!H163,'2020 '!H163) -> 12.49890879 | G162: =AVERAGE('2016'!I163,'2017'!I163,'2018'!I163,'2019'!I163,'2020 '!I163) -> 40.76757574
A163: 01/07/2016 18:00 EST | B163: 01/07 | C163: =AVERAGE('2016'!E164,'2017'!E164,'2018'!E164,'2019'!E164,'2020 '!E164) -> 3517.292307 | D163: =AVERAGE('2016'!F164,'2017'!F164,'2018'!F164,'2019'!F164,'2020 '!F164) -> 788.1977955 | E163: =AVERAGE('2016'!G164,'2017'!G164,'2018'!G164,'2019'!G164,'2020 '!G164) -> 736.4245022 | F163: =AVERAGE('2016'!H164,'2017'!H164,'2018'!H164,'2019'!H164,'2020 '!H164) -> 13.88427787 | G163: =AVERAGE('2016'!I164,'2017'!I164,'2018'!I164,'2019'!I164,'2020 '!I164) -> 45.55974604
A164: 01/07/2016 19:00 EST | B164: 01/07 | C164: =AVERAGE('2016'!E165,'2017'!E165,'2018'!E165,'2019'!E165,'2020 '!E165) -> 3462.005512 | D164: =AVERAGE('2016'!F165,'2017'!F165,'2018'!F165,'2019'!F165,'2020 '!F165) -> 775.9769412 | E164: =AVERAGE('2016'!G165,'2017'!G165,'2018'!G165,'2019'!G165,'2020 '!G165) -> 725.8452298 | F164: =AVERAGE('2016'!H165,'2017'!H165,'2018'!H165,'2019'!H165,'2020 '!H165) -> 13.6727262 | G164: =AVERAGE('2016'!I165,'2017'!I165,'2018'!I165,'2019'!I165,'2020 '!I165) -> 44.98594167
A165: 01/07/2016 20:00 EST | B165: 01/07 | C165: =AVERAGE('2016'!E166,'2017'!E166,'2018'!E166,'2019'!E166,'2020 '!E166) -> 3350.101151 | D165: =AVERAGE('2016'!F166,'2017'!F166,'2018'!F166,'2019'!F166,'2020 '!F166) -> 750.9197238 | E165: =AVERAGE('2016'!G166,'2017'!G166,'2018'!G166,'2019'!G166,'2020 '!G166) -> 702.1320526 | F165: =AVERAGE('2016'!H166,'2017'!H166,'2018'!H166,'2019'!H166,'2020 '!H166) -> 13.23151866 | G165: =AVERAGE('2016'!I166,'2017'!I166,'2018'!I166,'2019'!I166,'2020 '!I166) -> 43.65621867
A166: 01/07/2016 21:00 EST | B166: 01/07 | C166: =AVERAGE('2016'!E167,'2017'!E167,'2018'!E167,'2019'!E167,'2020 '!E167) -> 3231.940382 | D166: =AVERAGE('2016'!F167,'2017'!F167,'2018'!F167,'2019'!F167,'2020 '!F167) -> 724.360601 | E166: =AVERAGE('2016'!G167,'2017'!G167,'2018'!G167,'2019'!G167,'2020 '!G167) -> 677.5156156 | F166: =AVERAGE('2016'!H167,'2017'!H167,'2018'!H167,'2019'!H167,'2020 '!H167) -> 12.7665277 | G166: =AVERAGE('2016'!I167,'2017'!I167,'2018'!I167,'2019'!I167,'2020 '!I167) -> 42.07335512
A167: 01/07/2016 22:00 EST | B167: 01/07 | C167: =AVERAGE('2016'!E168,'2017'!E168,'2018'!E168,'2019'!E168,'2020 '!E168) -> 3072.045161 | D167: =AVERAGE('2016'!F168,'2017'!F168,'2018'!F168,'2019'!F168,'2020 '!F168) -> 688.646283 | E167: =AVERAGE('2016'!G168,'2017'!G168,'2018'!G168,'2019'!G168,'2020 '!G168) -> 643.9365039 | F167: =AVERAGE('2016'!H168,'2017'!H168,'2018'!H168,'2019'!H168,'2020 '!H168) -> 12.1435848 | G167: =AVERAGE('2016'!I168,'2017'!I168,'2018'!I168,'2019'!I168,'2020 '!I168) -> 39.92228303
A168: 01/07/2016 23:00 EST | B168: 01/07 | C168: =AVERAGE('2016'!E169,'2017'!E169,'2018'!E169,'2019'!E169,'2020 '!E169) -> 2790.555953 | D168: =AVERAGE('2016'!F169,'2017'!F169,'2018'!F169,'2019'!F169,'2020 '!F169) -> 625.4681637 | E168: =AVERAGE('2016'!G169,'2017'!G169,'2018'!G169,'2019'!G169,'2020 '!G169) -> 585.0605946 | F168: =AVERAGE('2016'!H169,'2017'!H169,'2018'!H169,'2019'!H169,'2020 '!H169) -> 11.02858571 | G168: =AVERAGE('2016'!I169,'2017'!I169,'2018'!I169,'2019'!I169,'2020 '!I169) -> 36.13245115
A169: 01/08/2016 00:00 EST | B169: 01/08 | C169: =AVERAGE('2016'!E170,'2017'!E170,'2018'!E170,'2019'!E170,'2020 '!E170) -> 2518.931107 | D169: =AVERAGE('2016'!F170,'2017'!F170,'2018'!F170,'2019'!F170,'2020 '!F170) -> 564.637446 | E169: =AVERAGE('2016'!G170,'2017'!G170,'2018'!G170,'2019'!G170,'2020 '!G170) -> 528.2995586 | F169: =AVERAGE('2016'!H170,'2017'!H170,'2018'!H170,'2019'!H170,'2020 '!H170) -> 9.95919217 | G169: =AVERAGE('2016'!I170,'2017'!I170,'2018'!I170,'2019'!I170,'2020 '!I170) -> 32.59691608
A170: 01/08/2016 01:00 EST | B170: 01/08 | C170: =AVERAGE('2016'!E171,'2017'!E171,'2018'!E171,'2019'!E171,'2020 '!E171) -> 2358.654274 | D170: =AVERAGE('2016'!F171,'2017'!F171,'2018'!F171,'2019'!F171,'2020 '!F171) -> 528.6899155 | E170: =AVERAGE('2016'!G171,'2017'!G171,'2018'!G171,'2019'!G171,'2020 '!G171) -> 494.7653969 | F170: =AVERAGE('2016'!H171,'2017'!H171,'2018'!H171,'2019'!H171,'2020 '!H171) -> 9.326004431 | G170: =AVERAGE('2016'!I171,'2017'!I171,'2018'!I171,'2019'!I171,'2020 '!I171) -> 30.5932232
A171: 01/08/2016 02:00 EST | B171: 01/08 | C171: =AVERAGE('2016'!E172,'2017'!E172,'2018'!E172,'2019'!E172,'2020 '!E172) -> 2261.081986 | D171: =AVERAGE('2016'!F172,'2017'!F172,'2018'!F172,'2019'!F172,'2020 '!F172) -> 506.8276913 | E171: =AVERAGE('2016'!G172,'2017'!G172,'2018'!G172,'2019'!G172,'2020 '!G172) -> 474.242545 | F171: =AVERAGE('2016'!H172,'2017'!H172,'2018'!H172,'2019'!H172,'2020 '!H172) -> 8.942567588 | G171: =AVERAGE('2016'!I172,'2017'!I172,'2018'!I172,'2019'!I172,'2020 '!I172) -> 29.35467456
A172: 01/08/2016 03:00 EST | B172: 01/08 | C172: =AVERAGE('2016'!E173,'2017'!E173,'2018'!E173,'2019'!E173,'2020 '!E173) -> 2205.866581 | D172: =AVERAGE('2016'!F173,'2017'!F173,'2018'!F173,'2019'!F173,'2020 '!F173) -> 494.39656 | E172: =AVERAGE('2016'!G173,'2017'!G173,'2018'!G173,'2019'!G173,'2020 '!G173) -> 462.6940632 | F172: =AVERAGE('2016'!H173,'2017'!H173,'2018'!H173,'2019'!H173,'2020 '!H173) -> 8.724704198 | G172: =AVERAGE('2016'!I173,'2017'!I173,'2018'!I173,'2019'!I173,'2020 '!I173) -> 28.64694868
A173: 01/08/2016 04:00 EST | B173: 01/08 | C173: =AVERAGE('2016'!E174,'2017'!E174,'2018'!E174,'2019'!E174,'2020 '!E174) -> 2198.564022 | D173: =AVERAGE('2016'!F174,'2017'!F174,'2018'!F174,'2019'!F174,'2020 '!F174) -> 492.8239729 | E173: =AVERAGE('2016'!G174,'2017'!G174,'2018'!G174,'2019'!G174,'2020 '!G174) -> 461.177143 | F173: =AVERAGE('2016'!H174,'2017'!H174,'2018'!H174,'2019'!H174,'2020 '!H174) -> 8.699501082 | G173: =AVERAGE('2016'!I174,'2017'!I174,'2018'!I174,'2019'!I174,'2020 '!I174) -> 28.5923173
A174: 01/08/2016 05:00 EST | B174: 01/08 | C174: =AVERAGE('2016'!E175,'2017'!E175,'2018'!E175,'2019'!E175,'2020 '!E175) -> 2233.905845 | D174: =AVERAGE('2016'!F175,'2017'!F175,'2018'!F175,'2019'!F175,'2020 '!F175) -> 500.8113966 | E174: =AVERAGE('2016'!G175,'2017'!G175,'2018'!G175,'2019'!G175,'2020 '!G175) -> 468.6992604 | F174: =AVERAGE('2016'!H175,'2017'!H175,'2018'!H175,'2019'!H175,'2020 '!H175) -> 8.843158633 | G174: =AVERAGE('2016'!I175,'2017'!I175,'2018'!I175,'2019'!I175,'2020 '!I175) -> 29.13630792
A175: 01/08/2016 06:00 EST | B175: 01/08 | C175: =AVERAGE('2016'!E176,'2017'!E176,'2018'!E176,'2019'!E176,'2020 '!E176) -> 2352.817264 | D175: =AVERAGE('2016'!F176,'2017'!F176,'2018'!F176,'2019'!F176,'2020 '!F176) -> 527.4743274 | E175: =AVERAGE('2016'!G176,'2017'!G176,'2018'!G176,'2019'!G176,'2020 '!G176) -> 493.1631388 | F175: =AVERAGE('2016'!H176,'2017'!H176,'2018'!H176,'2019'!H176,'2020 '!H176) -> 9.311842736 | G175: =AVERAGE('2016'!I176,'2017'!I176,'2018'!I176,'2019'!I176,'2020 '!I176) -> 30.77371451
A176: 01/08/2016 07:00 EST | B176: 01/08 | C176: =AVERAGE('2016'!E177,'2017'!E177,'2018'!E177,'2019'!E177,'2020 '!E177) -> 2538.61811 | D176: =AVERAGE('2016'!F177,'2017'!F177,'2018'!F177,'2019'!F177,'2020 '!F177) -> 569.1871423 | E176: =AVERAGE('2016'!G177,'2017'!G177,'2018'!G177,'2019'!G177,'2020 '!G177) -> 532.3322163 | F176: =AVERAGE('2016'!H177,'2017'!H177,'2018'!H177,'2019'!H177,'2020 '!H177) -> 10.0500405 | G176: =AVERAGE('2016'!I177,'2017'!I177,'2018'!I177,'2019'!I177,'2020 '!I177) -> 33.44280819
A177: 01/08/2016 08:00 EST | B177: 01/08 | C177: =AVERAGE('2016'!E178,'2017'!E178,'2018'!E178,'2019'!E178,'2020 '!E178) -> 2657.68065 | D177: =AVERAGE('2016'!F178,'2017'!F178,'2018'!F178,'2019'!F178,'2020 '!F178) -> 595.9638956 | E177: =AVERAGE('2016'!G178,'2017'!G178,'2018'!G178,'2019'!G178,'2020 '!G178) -> 557.8644927 | F177: =AVERAGE('2016'!H178,'2017'!H178,'2018'!H178,'2019'!H178,'2020 '!H178) -> 10.52448837 | G177: =AVERAGE('2016'!I178,'2017'!I178,'2018'!I178,'2019'!I178,'2020 '!I178) -> 35.03687099
A178: 01/08/2016 09:00 EST | B178: 01/08 | C178: =AVERAGE('2016'!E179,'2017'!E179,'2018'!E179,'2019'!E179,'2020 '!E179) -> 2615.861249 | D178: =AVERAGE('2016'!F179,'2017'!F179,'2018'!F179,'2019'!F179,'2020 '!F179) -> 586.6763681 | E178: =AVERAGE('2016'!G179,'2017'!G179,'2018'!G179,'2019'!G179,'2020 '!G179) -> 549.3601503 | F178: =AVERAGE('2016'!H179,'2017'!H179,'2018'!H179,'2019'!H179,'2020 '!H179) -> 10.36627182 | G178: =AVERAGE('2016'!I179,'2017'!I179,'2018'!I179,'2019'!I179,'2020 '!I179) -> 34.38258282
A179: 01/08/2016 10:00 EST | B179: 01/08 | C179: =AVERAGE('2016'!E180,'2017'!E180,'2018'!E180,'2019'!E180,'2020 '!E180) -> 2651.003468 | D179: =AVERAGE('2016'!F180,'2017'!F180,'2018'!F180,'2019'!F180,'2020 '!F180) -> 594.7660077 | E179: =AVERAGE('2016'!G180,'2017'!G180,'2018'!G180,'2019'!G180,'2020 '!G180) -> 557.1209673 | F179: =AVERAGE('2016'!H180,'2017'!H180,'2018'!H180,'2019'!H180,'2020 '!H180) -> 10.51683533 | G179: =AVERAGE('2016'!I180,'2017'!I180,'2018'!I180,'2019'!I180,'2020 '!I180) -> 34.73413416
A180: 01/08/2016 11:00 EST | B180: 01/08 | C180: =AVERAGE('2016'!E181,'2017'!E181,'2018'!E181,'2019'!E181,'2020 '!E181) -> 2631.384039 | D180: =AVERAGE('2016'!F181,'2017'!F181,'2018'!F181,'2019'!F181,'2020 '!F181) -> 590.323401 | E180: =AVERAGE('2016'!G181,'2017'!G181,'2018'!G181,'2019'!G181,'2020 '!G181) -> 552.4232121 | F180: =AVERAGE('2016'!H181,'2017'!H181,'2018'!H181,'2019'!H181,'2020 '!H181) -> 10.43653131 | G180: =AVERAGE('2016'!I181,'2017'!I181,'2018'!I181,'2019'!I181,'2020 '!I181) -> 34.24519508
A181: 01/08/2016 12:00 EST | B181: 01/08 | C181: =AVERAGE('2016'!E182,'2017'!E182,'2018'!E182,'2019'!E182,'2020 '!E182) -> 2650.546634 | D181: =AVERAGE('2016'!F182,'2017'!F182,'2018'!F182,'2019'!F182,'2020 '!F182) -> 594.7698266 | E181: =AVERAGE('2016'!G182,'2017'!G182,'2018'!G182,'2019'!G182,'2020 '!G182) -> 557.1703759 | F181: =AVERAGE('2016'!H182,'2017'!H182,'2018'!H182,'2019'!H182,'2020 '!H182) -> 10.51973745 | G181: =AVERAGE('2016'!I182,'2017'!I182,'2018'!I182,'2019'!I182,'2020 '!I182) -> 34.56047597
A182: 01/08/2016 13:00 EST | B182: 01/08 | C182: =AVERAGE('2016'!E183,'2017'!E183,'2018'!E183,'2019'!E183,'2020 '!E183) -> 2609.965505 | D182: =AVERAGE('2016'!F183,'2017'!F183,'2018'!F183,'2019'!F183,'2020 '!F183) -> 585.5755397 | E182: =AVERAGE('2016'!G183,'2017'!G183,'2018'!G183,'2019'!G183,'2020 '!G183) -> 548.026382 | F182: =AVERAGE('2016'!H183,'2017'!H183,'2018'!H183,'2019'!H183,'2020 '!H183) -> 10.35146646 | G182: =AVERAGE('2016'!I183,'2017'!I183,'2018'!I183,'2019'!I183,'2020 '!I183) -> 33.93663641
A183: 01/08/2016 14:00 EST | B183: 01/08 | C183: =AVERAGE('2016'!E184,'2017'!E184,'2018'!E184,'2019'!E184,'2020 '!E184) -> 2558.752249 | D183: =AVERAGE('2016'!F184,'2017'!F184,'2018'!F184,'2019'!F184,'2020 '!F184) -> 574.1867371 | E183: =AVERAGE('2016'!G184,'2017'!G184,'2018'!G184,'2019'!G184,'2020 '!G184) -> 537.6006399 | F183: =AVERAGE('2016'!H184,'2017'!H184,'2018'!H184,'2019'!H184,'2020 '!H184) -> 10.1521706 | G183: =AVERAGE('2016'!I184,'2017'!I184,'2018'!I184,'2019'!I184,'2020 '!I184) -> 33.38420431
A184: 01/08/2016 15:00 EST | B184: 01/08 | C184: =AVERAGE('2016'!E185,'2017'!E185,'2018'!E185,'2019'!E185,'2020 '!E185) -> 2583.991502 | D184: =AVERAGE('2016'!F185,'2017'!F185,'2018'!F185,'2019'!F185,'2020 '!F185) -> 579.8161009 | E184: =AVERAGE('2016'!G185,'2017'!G185,'2018'!G185,'2019'!G185,'2020 '!G185) -> 543.4286634 | F184: =AVERAGE('2016'!H185,'2017'!H185,'2018'!H185,'2019'!H185,'2020 '!H185) -> 10.25299167 | G184: =AVERAGE('2016'!I185,'2017'!I185,'2018'!I185,'2019'!I185,'2020 '!I185) -> 33.78885081
A185: 01/08/2016 16:00 EST | B185: 01/08 | C185: =AVERAGE('2016'!E186,'2017'!E186,'2018'!E186,'2019'!E186,'2020 '!E186) -> 2673.963644 | D185: =AVERAGE('2016'!F186,'2017'!F186,'2018'!F186,'2019'!F186,'2020 '!F186) -> 599.8969128 | E185: =AVERAGE('2016'!G186,'2017'!G186,'2018'!G186,'2019'!G186,'2020 '!G186) -> 561.2314581 | F185: =AVERAGE('2016'!H186,'2017'!H186,'2018'!H186,'2019'!H186,'2020 '!H186) -> 10.60523845 | G185: =AVERAGE('2016'!I186,'2017'!I186,'2018'!I186,'2019'!I186,'2020 '!I186) -> 34.93245226
A186: 01/08/2016 17:00 EST | B186: 01/08 | C186: =AVERAGE('2016'!E187,'2017'!E187,'2018'!E187,'2019'!E187,'2020 '!E187) -> 2967.517063 | D186: =AVERAGE('2016'!F187,'2017'!F187,'2018'!F187,'2019'!F187,'2020 '!F187) -> 665.8542556 | E186: =AVERAGE('2016'!G187,'2017'!G187,'2018'!G187,'2019'!G187,'2020 '!G187) -> 621.6186224 | F186: =AVERAGE('2016'!H187,'2017'!H187,'2018'!H187,'2019'!H187,'2020 '!H187) -> 11.78623376 | G186: =AVERAGE('2016'!I187,'2017'!I187,'2018'!I187,'2019'!I187,'2020 '!I187) -> 38.89796658
A187: 01/08/2016 18:00 EST | B187: 01/08 | C187: =AVERAGE('2016'!E188,'2017'!E188,'2018'!E188,'2019'!E188,'2020 '!E188) -> 3290.246087 | D187: =AVERAGE('2016'!F188,'2017'!F188,'2018'!F188,'2019'!F188,'2020 '!F188) -> 738.2793094 | E187: =AVERAGE('2016'!G188,'2017'!G188,'2018'!G188,'2019'!G188,'2020 '!G188) -> 688.4151251 | F187: =AVERAGE('2016'!H188,'2017'!H188,'2018'!H188,'2019'!H188,'2020 '!H188) -> 13.0633208 | G187: =AVERAGE('2016'!I188,'2017'!I188,'2018'!I188,'2019'!I188,'2020 '!I188) -> 43.10703298
A188: 01/08/2016 19:00 EST | B188: 01/08 | C188: =AVERAGE('2016'!E189,'2017'!E189,'2018'!E189,'2019'!E189,'2020 '!E189) -> 3265.280167 | D188: =AVERAGE('2016'!F189,'2017'!F189,'2018'!F189,'2019'!F189,'2020 '!F189) -> 732.7893386 | E188: =AVERAGE('2016'!G189,'2017'!G189,'2018'!G189,'2019'!G189,'2020 '!G189) -> 683.2895029 | F188: =AVERAGE('2016'!H189,'2017'!H189,'2018'!H189,'2019'!H189,'2020 '!H189) -> 12.96193337 | G188: =AVERAGE('2016'!I189,'2017'!I189,'2018'!I189,'2019'!I189,'2020 '!I189) -> 42.72637011
A189: 01/08/2016 20:00 EST | B189: 01/08 | C189: =AVERAGE('2016'!E190,'2017'!E190,'2018'!E190,'2019'!E190,'2020 '!E190) -> 3203.753349 | D189: =AVERAGE('2016'!F190,'2017'!F190,'2018'!F190,'2019'!F190,'2020 '!F190) -> 718.8207488 | E189: =AVERAGE('2016'!G190,'2017'!G190,'2018'!G190,'2019'!G190,'2020 '!G190) -> 669.1445042 | F189: =AVERAGE('2016'!H190,'2017'!H190,'2018'!H190,'2019'!H190,'2020 '!H190) -> 12.71408027 | G189: =AVERAGE('2016'!I190,'2017'!I190,'2018'!I190,'2019'!I190,'2020 '!I190) -> 41.75118524
A190: 01/08/2016 21:00 EST | B190: 01/08 | C190: =AVERAGE('2016'!E191,'2017'!E191,'2018'!E191,'2019'!E191,'2020 '!E191) -> 3114.384221 | D190: =AVERAGE('2016'!F191,'2017'!F191,'2018'!F191,'2019'!F191,'2020 '!F191) -> 698.7360264 | E190: =AVERAGE('2016'!G191,'2017'!G191,'2018'!G191,'2019'!G191,'2020 '!G191) -> 650.3975399 | F190: =AVERAGE('2016'!H191,'2017'!H191,'2018'!H191,'2019'!H191,'2020 '!H191) -> 12.3539563 | G190: =AVERAGE('2016'!I191,'2017'!I191,'2018'!I191,'2019'!I191,'2020 '!I191) -> 40.60725152
A191: 01/08/2016 22:00 EST | B191: 01/08 | C191: =AVERAGE('2016'!E192,'2017'!E192,'2018'!E192,'2019'!E192,'2020 '!E192) -> 2903.366036 | D191: =AVERAGE('2016'!F192,'2017'!F192,'2018'!F192,'2019'!F192,'2020 '!F192) -> 651.5076328 | E191: =AVERAGE('2016'!G192,'2017'!G192,'2018'!G192,'2019'!G192,'2020 '!G192) -> 607.0316656 | F191: =AVERAGE('2016'!H192,'2017'!H192,'2018'!H192,'2019'!H192,'2020 '!H192) -> 11.52291507 | G191: =AVERAGE('2016'!I192,'2017'!I192,'2018'!I192,'2019'!I192,'2020 '!I192) -> 37.99817881
A192: 01/08/2016 23:00 EST | B192: 01/08 | C192: =AVERAGE('2016'!E193,'2017'!E193,'2018'!E193,'2019'!E193,'2020 '!E193) -> 2605.071292 | D192: =AVERAGE('2016'!F193,'2017'!F193,'2018'!F193,'2019'!F193,'2020 '!F193) -> 584.7432823 | E192: =AVERAGE('2016'!G193,'2017'!G193,'2018'!G193,'2019'!G193,'2020 '!G193) -> 545.3346715 | F192: =AVERAGE('2016'!H193,'2017'!H193,'2018'!H193,'2019'!H193,'2020 '!H193) -> 10.34644791 | G192: =AVERAGE('2016'!I193,'2017'!I193,'2018'!I193,'2019'!I193,'2020 '!I193) -> 34.18170368
A193: 01/09/2016 00:00 EST | B193: 01/09 | C193: =AVERAGE('2016'!E194,'2017'!E194,'2018'!E194,'2019'!E194,'2020 '!E194) -> 2368.089313 | D193: =AVERAGE('2016'!F194,'2017'!F194,'2018'!F194,'2019'!F194,'2020 '!F194) -> 531.671571 | E193: =AVERAGE('2016'!G194,'2017'!G194,'2018'!G194,'2019'!G194,'2020 '!G194) -> 495.6029354 | F193: =AVERAGE('2016'!H194,'2017'!H194,'2018'!H194,'2019'!H194,'2020 '!H194) -> 9.413331365 | G193: =AVERAGE('2016'!I194,'2017'!I194,'2018'!I194,'2019'!I194,'2020 '!I194) -> 31.06174718
A194: 01/09/2016 01:00 EST | B194: =LEFT(A194,5) -> 01/09 | C194: =AVERAGE('2016'!E195,'2017'!E195,'2018'!E195,'2019'!E195,'2020 '!E195) -> 2225.043965 | D194: =AVERAGE('2016'!F195,'2017'!F195,'2018'!F195,'2019'!F195,'2020 '!F195) -> 499.5576867 | E194: =AVERAGE('2016'!G195,'2017'!G195,'2018'!G195,'2019'!G195,'2020 '!G195) -> 465.365228 | F194: =AVERAGE('2016'!H195,'2017'!H195,'2018'!H195,'2019'!H195,'2020 '!H195) -> 8.848503802 | G194: =AVERAGE('2016'!I195,'2017'!I195,'2018'!I195,'2019'!I195,'2020 '!I195) -> 29.13945814
A195: 01/09/2016 02:00 EST | B195: 01/09 | C195: =AVERAGE('2016'!E196,'2017'!E196,'2018'!E196,'2019'!E196,'2020 '!E196) -> 2143.281524 | D195: =AVERAGE('2016'!F196,'2017'!F196,'2018'!F196,'2019'!F196,'2020 '!F196) -> 481.2326185 | E195: =AVERAGE('2016'!G196,'2017'!G196,'2018'!G196,'2019'!G196,'2020 '!G196) -> 447.4967354 | F195: =AVERAGE('2016'!H196,'2017'!H196,'2018'!H196,'2019'!H196,'2020 '!H196) -> 8.528808687 | G195: =AVERAGE('2016'!I196,'2017'!I196,'2018'!I196,'2019'!I196,'2020 '!I196) -> 27.94135686
A196: 01/09/2016 03:00 EST | B196: 01/09 | C196: =AVERAGE('2016'!E197,'2017'!E197,'2018'!E197,'2019'!E197,'2020 '!E197) -> 2113.492215 | D196: =AVERAGE('2016'!F197,'2017'!F197,'2018'!F197,'2019'!F197,'2020 '!F197) -> 474.4738878 | E196: =AVERAGE('2016'!G197,'2017'!G197,'2018'!G197,'2019'!G197,'2020 '!G197) -> 440.8481365 | F196: =AVERAGE('2016'!H197,'2017'!H197,'2018'!H197,'2019'!H197,'2020 '!H197) -> 8.408500555 | G196: =AVERAGE('2016'!I197,'2017'!I197,'2018'!I197,'2019'!I197,'2020 '!I197) -> 27.50281582
A197: 01/09/2016 04:00 EST | B197: 01/09 | C197: =AVERAGE('2016'!E198,'2017'!E198,'2018'!E198,'2019'!E198,'2020 '!E198) -> 2128.058964 | D197: =AVERAGE('2016'!F198,'2017'!F198,'2018'!F198,'2019'!F198,'2020 '!F198) -> 477.7908941 | E197: =AVERAGE('2016'!G198,'2017'!G198,'2018'!G198,'2019'!G198,'2020 '!G198) -> 444.041794 | F197: =AVERAGE('2016'!H198,'2017'!H198,'2018'!H198,'2019'!H198,'2020 '!H198) -> 8.469208694 | G197: =AVERAGE('2016'!I198,'2017'!I198,'2018'!I198,'2019'!I198,'2020 '!I198) -> 27.73244612
A198: 01/09/2016 05:00 EST | B198: 01/09 | C198: =AVERAGE('2016'!E199,'2017'!E199,'2018'!E199,'2019'!E199,'2020 '!E199) -> 2156.092858 | D198: =AVERAGE('2016'!F199,'2017'!F199,'2018'!F199,'2019'!F199,'2020 '!F199) -> 484.1591498 | E198: =AVERAGE('2016'!G199,'2017'!G199,'2018'!G199,'2019'!G199,'2020 '!G199) -> 449.92227 | F198: =AVERAGE('2016'!H199,'2017'!H199,'2018'!H199,'2019'!H199,'2020 '!H199) -> 8.584361433 | G198: =AVERAGE('2016'!I199,'2017'!I199,'2018'!I199,'2019'!I199,'2020 '!I199) -> 28.06175566
A199: 01/09/2016 06:00 EST | B199: 01/09 | C199: =AVERAGE('2016'!E200,'2017'!E200,'2018'!E200,'2019'!E200,'2020 '!E200) -> 2295.974174 | D199: =AVERAGE('2016'!F200,'2017'!F200,'2018'!F200,'2019'!F200,'2020 '!F200) -> 515.3666527 | E199: =AVERAGE('2016'!G200,'2017'!G200,'2018'!G200,'2019'!G200,'2020 '!G200) -> 478.2206162 | F199: =AVERAGE('2016'!H200,'2017'!H200,'2018'!H200,'2019'!H200,'2020 '!H200) -> 9.133469583 | G199: =AVERAGE('2016'!I200,'2017'!I200,'2018'!I200,'2019'!I200,'2020 '!I200) -> 29.65264446
A200: 01/09/2016 07:00 EST | B200: 01/09 | C200: =AVERAGE('2016'!E201,'2017'!E201,'2018'!E201,'2019'!E201,'2020 '!E201) -> 2516.979666 | D200: =AVERAGE('2016'!F201,'2017'!F201,'2018'!F201,'2019'!F201,'2020 '!F201) -> 564.7851739 | E200: =AVERAGE('2016'!G201,'2017'!G201,'2018'!G201,'2019'!G201,'2020 '!G201) -> 524.0568552 | F200: =AVERAGE('2016'!H201,'2017'!H201,'2018'!H201,'2019'!H201,'2020 '!H201) -> 10.00551253 | G200: =AVERAGE('2016'!I201,'2017'!I201,'2018'!I201,'2019'!I201,'2020 '!I201) -> 32.4520588
... 8585 more rows

Sheet Hourly load shapes by class
A1: ALL UNITS IN GWh | E1: 2004 | F1: 2004 Load Shape HydroOne | L1: 2004 | M1: 2023 Load Shape (2016-2020 average)
A2: Month | B2: Day | C2: Hour (EST) | E2: Year | F2: Residential | G2: GS>50kW | H2: Street Lighting | I2: GS<50kW | J2: TOTAL LDC sales | L2: Year | M2: ='5yrAvg'!C1 -> Residential | N2: ='5yrAvg'!D1 -> GS<50 | O2: ='5yrAvg'!E1 -> GS>50 | P2: ='5yrAvg'!F1 -> USL | Q2: ='5yrAvg'!G1 -> SL | R2: =J2 -> TOTAL LDC sales
A3: 1 | B3: 1 | C3: 1 | E3: 2004 | F3: 0.002583334519 | G3: 0.0005912267031 | H3: 7.9037568e-05 | I3: 0.0006915518878 | J3: 0.003945150678 | L3: 2020 Avg | M3: ='5yrAvg'!C2/1000000 -> 0.00240471393 | N3: ='5yrAvg'!D2/1000000 -> 0.0005392516244 | O3: ='5yrAvg'!E2/1000000 -> 0.0005043469271 | P3: ='5yrAvg'!F2/1000000 -> 9.487784889e-06 | Q3: ='5yrAvg'!G2/1000000 -> 3.118112232e-05 | R3: =SUM(M3:Q3) -> 0.003488981388
A4: 1 | B4: 1 | C4: 2 | E4: 2004 | F4: 0.002443453145 | G4: 0.0005815180302 | H4: 7.9037568e-05 | I4: 0.0007061407006 | J4: 0.003810149444 | L4: 2021 Avg | M4: ='5yrAvg'!C3/1000000 -> 0.00228137133 | N4: ='5yrAvg'!D3/1000000 -> 0.0005115453482 | O4: ='5yrAvg'!E3/1000000 -> 0.0004782618574 | P4: ='5yrAvg'!F3/1000000 -> 8.997513406e-06 | Q4: ='5yrAvg'!G3/1000000 -> 2.946072515e-05 | R4: 0.003309636774
A5: 1 | B5: 1 | C5: 3 | E5: 2004 | F5: 0.002443653557 | G5: 0.0005651815314 | H5: 7.9037568e-05 | I5: 0.0006961655787 | J5: 0.003784038235 | L5: 2022 Avg | M5: ='5yrAvg'!C4/1000000 -> 0.002201754545 | N5: ='5yrAvg'!D4/1000000 -> 0.000493670425 | O5: ='5yrAvg'!E4/1000000 -> 0.0004616133808 | P5: ='5yrAvg'!F4/1000000 -> 8.680105223e-06 | Q5: ='5yrAvg'!G4/1000000 -> 2.836180114e-05 | R5: 0.003194080257
A6: 1 | B6: 1 | C6: 4 | E6: 2004 | F6: 0.00249927051 | G6: 0.0005621849338 | H6: 7.9037568e-05 | I6: 0.0006972122524 | J6: 0.003837705264 | L6: 2023 Avg | M6: ='5yrAvg'!C5/1000000 -> 0.002138538398 | N6: ='5yrAvg'!D5/1000000 -> 0.0004795238516 | O6: ='5yrAvg'!E5/1000000 -> 0.0004481648418 | P6: ='5yrAvg'!F5/1000000 -> 8.430478232e-06 | Q6: ='5yrAvg'!G5/1000000 -> 2.756468495e-05 | R6: 0.003102222254
A7: 1 | B7: 1 | C7: 5 | E7: 2004 | F7: 0.002580422173 | G7: 0.0005524243986 | H7: 7.9037568e-05 | I7: 0.0006764881772 | J7: 0.003888372317 | L7: 2024 Avg | M7: ='5yrAvg'!C6/1000000 -> 0.002121792873 | N7: ='5yrAvg'!D6/1000000 -> 0.0004758232327 | O7: ='5yrAvg'!E6/1000000 -> 0.0004447478109 | P7: ='5yrAvg'!F6/1000000 -> 8.366811975e-06 | Q7: ='5yrAvg'!G6/1000000 -> 2.743040316e-05 | R7: 0.003078161132
A8: 1 | B8: 1 | C8: 6 | E8: 2004 | F8: 0.002743624729 | G8: 0.0005818822662 | H8: 7.9037568e-05 | I8: 0.000705941036 | J8: 0.0041104856 | L8: 2025 Avg | M8: ='5yrAvg'!C7/1000000 -> 0.0021657116 | N8: ='5yrAvg'!D7/1000000 -> 0.0004856279209 | O8: ='5yrAvg'!E7/1000000 -> 0.0004539681161 | P8: ='5yrAvg'!F7/1000000 -> 8.538312549e-06 | Q8: ='5yrAvg'!G7/1000000 -> 2.79907412e-05 | R8: 0.003141836691
A9: 1 | B9: 1 | C9: 7 | E9: 2004 | F9: 0.002931850433 | G9: 0.0006277660112 | H9: 7.9037568e-05 | I9: 0.000727389681 | J9: 0.004366043693 | L9: 2026 Avg | M9: ='5yrAvg'!C8/1000000 -> 0.002213427527 | N9: ='5yrAvg'!D8/1000000 -> 0.0004963403529 | O9: ='5yrAvg'!E8/1000000 -> 0.0004643437142 | P9: ='5yrAvg'!F8/1000000 -> 8.726971533e-06 | Q9: ='5yrAvg'!G8/1000000 -> 2.855979511e-05 | R9: 0.003211398361
A10: 1 | B10: 1 | C10: 8 | E10: 2004 | F10: 0.003020804786 | G10: 0.0006737977355 | H10: 7.245742703e-05 | I10: 0.0007477633517 | J10: 0.004514823301 | L10: 2027 Avg | M10: ='5yrAvg'!C9/1000000 -> 0.002265434198 | N10: ='5yrAvg'!D9/1000000 -> 0.0005079583395 | O10: ='5yrAvg'!E9/1000000 -> 0.0004750668433 | P10: ='5yrAvg'!F9/1000000 -> 8.931161662e-06 | Q10: ='5yrAvg'!G9/1000000 -> 2.9205067e-05 | R10: 0.003286595609
A11: 1 | B11: 1 | C11: 9 | E11: 2004 | F11: 0.003143337297 | G11: 0.0006920106362 | H11: 0 | I11: 0.000722253484 | J11: 0.004557601418 | L11: 2028 Avg | M11: ='5yrAvg'!C10/1000000 -> 0.002363820256 | N11: ='5yrAvg'!D10/1000000 -> 0.0005298983476 | O11: ='5yrAvg'!E10/1000000 -> 0.0004953202597 | P11: ='5yrAvg'!F10/1000000 -> 9.320311521e-06 | Q11: ='5yrAvg'!G10/1000000 -> 3.052601714e-05 | R11: 0.003428885192
A12: 1 | B12: 1 | C12: 10 | E12: 2004 | F12: 0.003268758856 | G12: 0.0007149335556 | H12: 0 | I12: 0.0007076881872 | J12: 0.004691380599 | L12: 2029 Avg | M12: ='5yrAvg'!C11/1000000 -> 0.002464748518 | N12: ='5yrAvg'!D11/1000000 -> 0.0005525192518 | O12: ='5yrAvg'!E11/1000000 -> 0.0005151395023 | P12: ='5yrAvg'!F11/1000000 -> 9.72065652e-06 | Q12: ='5yrAvg'!G11/1000000 -> 3.179400882e-05 | R12: 0.003573921938
A13: 1 | B13: 1 | C13: 11 | E13: 2004 | F13: 0.003281275227 | G13: 0.0007236650488 | H13: 0 | I13: 0.0007046623586 | J13: 0.004709602634 | L13: 2030 Avg | M13: ='5yrAvg'!C12/1000000 -> 0.00254717823 | N13: ='5yrAvg'!D12/1000000 -> 0.0005709060258 | O13: ='5yrAvg'!E12/1000000 -> 0.0005322068723 | P13: ='5yrAvg'!F12/1000000 -> 1.004653997e-05 | Q13: ='5yrAvg'!G12/1000000 -> 3.295624585e-05 | R13: 0.003693293914
A14: 1 | B14: 1 | C14: 12 | E14: 2004 | F14: 0.0031728857 | G14: 0.000745062244 | H14: 0 | I14: 0.0007126543434 | J14: 0.004630602288 | L14: 2031 Avg | M14: ='5yrAvg'!C13/1000000 -> 0.0026142002 | N14: ='5yrAvg'!D13/1000000 -> 0.0005858777715 | O14: ='5yrAvg'!E13/1000000 -> 0.000546239228 | P14: ='5yrAvg'!F13/1000000 -> 1.030871724e-05 | Q14: ='5yrAvg'!G13/1000000 -> 3.389910425e-05 | R14: 0.003790525021
A15: 1 | B15: 1 | C15: 13 | E15: 2004 | F15: 0.003028648552 | G15: 0.0007527973639 | H15: 0 | I15: 0.0007411549365 | J15: 0.004522600852 | L15: 2032 Avg | M15: ='5yrAvg'!C14/1000000 -> 0.00258881694 | N15: ='5yrAvg'!D14/1000000 -> 0.0005802093935 | O15: ='5yrAvg'!E14/1000000 -> 0.0005406724753 | P15: ='5yrAvg'!F14/1000000 -> 1.02076979e-05 | Q15: ='5yrAvg'!G14/1000000 -> 3.36145469e-05 | R15: 0.003753521054
A16: 1 | B16: 1 | C16: 14 | E16: 2004 | F16: 0.002892584844 | G16: 0.0007783773116 | H16: 0 | I16: 0.0007599711529 | J16: 0.004430933309 | L16: 2033 Avg | M16: ='5yrAvg'!C15/1000000 -> 0.002595165953 | N16: ='5yrAvg'!D15/1000000 -> 0.0005818731497 | O16: ='5yrAvg'!E15/1000000 -> 0.0005424888187 | P16: ='5yrAvg'!F15/1000000 -> 1.024507003e-05 | Q16: ='5yrAvg'!G15/1000000 -> 3.384743919e-05 | R16: 0.003763620431
A17: 1 | B17: 1 | C17: 15 | E17: 2004 | F17: 0.003061010995 | G17: 0.000742358452 | H17: 0 | I17: 0.000664008829 | J17: 0.004467378276 | L17: 2034 Avg | M17: ='5yrAvg'!C16/1000000 -> 0.002596346374 | N17: ='5yrAvg'!D16/1000000 -> 0.0005819814817 | O17: ='5yrAvg'!E16/1000000 -> 0.0005425095019 | P17: ='5yrAvg'!F16/1000000 -> 1.024148974e-05 | Q17: ='5yrAvg'!G16/1000000 -> 3.374636408e-05 | R17: 0.003764825212
A18: 1 | B18: 1 | C18: 16 | E18: 2004 | F18: 0.003100774972 | G18: 0.0007664563328 | H18: 0 | I18: 0.0007362593518 | J18: 0.004603490657 | L18: 2035 Avg | M18: ='5yrAvg'!C17/1000000 -> 0.002636732576 | N18: ='5yrAvg'!D17/1000000 -> 0.0005909483752 | O18: ='5yrAvg'!E17/1000000 -> 0.0005510308866 | P18: ='5yrAvg'!F17/1000000 -> 1.040260456e-05 | Q18: ='5yrAvg'!G17/1000000 -> 3.426110604e-05 | R18: 0.003823375549
A19: 1 | B19: 1 | C19: 17 | E19: 2004 | F19: 0.003528252264 | G19: 0.0008568035877 | H19: 3.9518784e-06 | I19: 0.0009203788655 | J19: 0.005309386596 | L19: 2036 Avg | M19: ='5yrAvg'!C18/1000000 -> 0.002935228389 | N19: ='5yrAvg'!D18/1000000 -> 0.0006577753605 | O19: ='5yrAvg'!E18/1000000 -> 0.0006133692955 | P19: ='5yrAvg'!F18/1000000 -> 1.158288955e-05 | Q19: ='5yrAvg'!G18/1000000 -> 3.818663183e-05 | R19: 0.004256142567
A20: 1 | B20: 1 | C20: 18 | E20: 2004 | F20: 0.00412067823 | G20: 0.000793866068 | H20: 7.9037568e-05 | I20: 0.0008165873386 | J20: 0.005810169204 | L20: 2037 Avg | M20: ='5yrAvg'!C19/1000000 -> 0.003210606344 | N20: ='5yrAvg'!D19/1000000 -> 0.0007193750962 | O20: ='5yrAvg'!E19/1000000 -> 0.0006710074102 | P20: ='5yrAvg'!F19/1000000 -> 1.266455198e-05 | Q20: ='5yrAvg'!G19/1000000 -> 4.166427411e-05 | R20: 0.004655317676
A21: 1 | B21: 1 | C21: 19 | E21: 2004 | F21: 0.004091480884 | G21: 0.0007512661599 | H21: 7.9037568e-05 | I21: 0.0007582725554 | J21: 0.005680057168 | L21: 2038 Avg | M21: ='5yrAvg'!C20/1000000 -> 0.003119792191 | N21: ='5yrAvg'!D20/1000000 -> 0.0006989769785 | O21: ='5yrAvg'!E20/1000000 -> 0.0006523329663 | P21: ='5yrAvg'!F20/1000000 -> 1.229960477e-05 | Q21: ='5yrAvg'!G20/1000000 -> 4.034521339e-05 | R21: 0.004523746954
A22: 1 | B22: 1 | C22: 20 | E22: 2004 | F22: 0.003986868375 | G22: 0.0007451254833 | H22: 7.9037568e-05 | I22: 0.0008059142304 | J22: 0.005616945657 | L22: 2039 Avg | M22: ='5yrAvg'!C21/1000000 -> 0.003034197769 | N22: ='5yrAvg'!D21/1000000 -> 0.0006798977704 | O22: ='5yrAvg'!E21/1000000 -> 0.0006337998964 | P22: ='5yrAvg'!F21/1000000 -> 1.196561336e-05 | Q22: ='5yrAvg'!G21/1000000 -> 3.918514146e-05 | R22: 0.004399046191
A23: 1 | B23: 1 | C23: 21 | E23: 2004 | F23: 0.003868796264 | G23: 0.0007196567751 | H23: 7.9037568e-05 | I23: 0.0007993424244 | J23: 0.005466833031 | L23: 2040 Avg | M23: ='5yrAvg'!C22/1000000 -> 0.002955872923 | N23: ='5yrAvg'!D22/1000000 -> 0.0006623399854 | O23: ='5yrAvg'!E22/1000000 -> 0.0006177630272 | P23: ='5yrAvg'!F22/1000000 -> 1.165205857e-05 | Q23: ='5yrAvg'!G22/1000000 -> 3.820445453e-05 | R23: 0.004285832449
A24: 1 | B24: 1 | C24: 22 | E24: 2004 | F24: 0.003636745724 | G24: 0.0007109288158 | H24: 7.9037568e-05 | I24: 0.0008130075086 | J24: 0.005239719616 | L24: 2041 Avg | M24: ='5yrAvg'!C23/1000000 -> 0.002832346537 | N24: ='5yrAvg'!D23/1000000 -> 0.0006346965275 | O24: ='5yrAvg'!E23/1000000 -> 0.000592869124 | P24: ='5yrAvg'!F23/1000000 -> 1.116595631e-05 | Q24: ='5yrAvg'!G23/1000000 -> 3.66368635e-05 | R24: 0.004107715008
A25: 1 | B25: 1 | C25: 23 | E25: 2004 | F25: 0.003331541822 | G25: 0.0006829492503 | H25: 7.9037568e-05 | I25: 0.0007777426683 | J25: 0.004871271309 | L25: 2042 Avg | M25: ='5yrAvg'!C24/1000000 -> 0.0026412312 | N25: ='5yrAvg'!D24/1000000 -> 0.0005918080387 | O25: ='5yrAvg'!E24/1000000 -> 0.0005526610631 | P25: ='5yrAvg'!F24/1000000 -> 1.040659252e-05 | Q25: ='5yrAvg'!G24/1000000 -> 3.415969711e-05 | R25: 0.003830266592
A26: 1 | B26: 1 | C26: 24 | E26: 2004 | F26: 0.002738244257 | G26: 0.0006512409802 | H26: 7.9037568e-05 | I26: 0.0007787421626 | J26: 0.004247264968 | L26: 2043 Avg | M26: ='5yrAvg'!C25/1000000 -> 0.00243700837 | N26: ='5yrAvg'!D25/1000000 -> 0.0005459798064 | O26: ='5yrAvg'!E25/1000000 -> 0.0005094991197 | P26: ='5yrAvg'!F25/1000000 -> 9.600819405e-06 | Q26: ='5yrAvg'!G25/1000000 -> 3.144782969e-05 | R26: 0.003533535945
A27: 1 | B27: 2 | C27: 1 | E27: 2004 | F27: 0.002527450807 | G27: 0.0005862152938 | H27: 7.9037568e-05 | I27: 0.0006091090005 | J27: 0.003801812669 | L27: 2044 Avg | M27: ='5yrAvg'!C26/1000000 -> 0.002300243623 | N27: ='5yrAvg'!D26/1000000 -> 0.0005153230248 | O27: ='5yrAvg'!E26/1000000 -> 0.0004815522364 | P27: ='5yrAvg'!F26/1000000 -> 9.060864672e-06 | Q27: ='5yrAvg'!G26/1000000 -> 2.975481837e-05 | R27: 0.003335934568
A28: 1 | B28: 2 | C28: 2 | E28: 2004 | F28: 0.002335765272 | G28: 0.0005791190568 | H28: 7.9037568e-05 | I28: 0.0006424964935 | J28: 0.003636418391 | L28: 2045 Avg | M28: ='5yrAvg'!C27/1000000 -> 0.002237544737 | N28: ='5yrAvg'!D27/1000000 -> 0.0005011176468 | O28: ='5yrAvg'!E27/1000000 -> 0.0004680321001 | P28: ='5yrAvg'!F27/1000000 -> 8.80729761e-06 | Q28: ='5yrAvg'!G27/1000000 -> 2.877590897e-05 | R28: 0.00324427769
A29: 1 | B29: 2 | C29: 3 | E29: 2004 | F29: 0.002321729367 | G29: 0.0005504752306 | H29: 7.9037568e-05 | I29: 0.0005951758509 | J29: 0.003546418017 | L29: 2046 Avg | M29: ='5yrAvg'!C28/1000000 -> 0.002215928761 | N29: ='5yrAvg'!D28/1000000 -> 0.000496290513 | O29: ='5yrAvg'!E28/1000000 -> 0.0004637503002 | P29: ='5yrAvg'!F28/1000000 -> 8.720022556e-06 | Q29: ='5yrAvg'!G28/1000000 -> 2.846472766e-05 | R29: 0.003213154324
A30: 1 | B30: 2 | C30: 4 | E30: 2004 | F30: 0.002341351241 | G30: 0.0005310737087 | H30: 7.9037568e-05 | I30: 0.0005613399777 | J30: 0.003512802496 | L30: 2047 Avg | M30: ='5yrAvg'!C29/1000000 -> 0.002215563708 | N30: ='5yrAvg'!D29/1000000 -> 0.0004961320365 | O30: ='5yrAvg'!E29/1000000 -> 0.0004633746504 | P30: ='5yrAvg'!F29/1000000 -> 8.716629099e-06 | Q30: ='5yrAvg'!G29/1000000 -> 2.845698221e-05 | R30: 0.003212244006
A31: 1 | B31: 2 | C31: 5 | E31: 2004 | F31: 0.002424007965 | G31: 0.0005261647404 | H31: 7.9037568e-05 | I31: 0.0005514683225 | J31: 0.003580678596 | L31: 2048 Avg | M31: ='5yrAvg'!C30/1000000 -> 0.002244135745 | N31: ='5yrAvg'!D30/1000000 -> 0.0005025303605 | O31: ='5yrAvg'!E30/1000000 -> 0.0004693359303 | P31: ='5yrAvg'!F30/1000000 -> 8.830278994e-06 | Q31: ='5yrAvg'!G30/1000000 -> 2.880360558e-05 | R31: 0.003253635921
A32: 1 | B32: 2 | C32: 6 | E32: 2004 | F32: 0.002571779898 | G32: 0.000550780834 | H32: 7.9037568e-05 | I32: 0.0005287941471 | J32: 0.003730392447 | L32: 2049 Avg | M32: ='5yrAvg'!C31/1000000 -> 0.002322891539 | N32: ='5yrAvg'!D31/1000000 -> 0.0005200966475 | O32: ='5yrAvg'!E31/1000000 -> 0.0004853927331 | P32: ='5yrAvg'!F31/1000000 -> 9.139360229e-06 | Q32: ='5yrAvg'!G31/1000000 -> 2.980151412e-05 | R32: 0.003367321794
A33: 1 | B33: 2 | C33: 7 | E33: 2004 | F33: 0.002746882466 | G33: 0.0006121962564 | H33: 7.9037568e-05 | I33: 0.0005172770755 | J33: 0.003955393366 | L33: 2050 Avg | M33: ='5yrAvg'!C32/1000000 -> 0.002432241424 | N33: ='5yrAvg'!D32/1000000 -> 0.0005445802719 | O33: ='5yrAvg'!E32/1000000 -> 0.0005080824485 | P33: ='5yrAvg'!F32/1000000 -> 9.568385689e-06 | Q33: ='5yrAvg'!G32/1000000 -> 3.110729096e-05 | R33: 0.003525579821
A34: 1 | B34: 2 | C34: 8 | E34: 2004 | F34: 0.002780619807 | G34: 0.0006963146628 | H34: 7.245742703e-05 | I34: 0.0005101783029 | J34: 0.0040595702 | L34: 2051 Avg | M34: ='5yrAvg'!C33/1000000 -> 0.002521002298 | N34: ='5yrAvg'!D33/1000000 -> 0.0005644261799 | O34: ='5yrAvg'!E33/1000000 -> 0.0005267710067 | P34: ='5yrAvg'!F33/1000000 -> 9.918847468e-06 | Q34: ='5yrAvg'!G33/1000000 -> 3.235403774e-05 | R34: 0.00365447237
A35: 1 | B35: 2 | C35: 9 | E35: 2004 | F35: 0.002906619198 | G35: 0.0007824933259 | H35: 0 | I35: 0.0005860072624 | J35: 0.004275119787 | L35: 2052 Avg | M35: ='5yrAvg'!C34/1000000 -> 0.002570177743 | N35: ='5yrAvg'!D34/1000000 -> 0.0005755058694 | O35: ='5yrAvg'!E34/1000000 -> 0.0005373130007 | P35: ='5yrAvg'!F34/1000000 -> 1.011805593e-05 | Q35: ='5yrAvg'!G34/1000000 -> 3.307982605e-05 | R35: 0.003726194495
A36: 1 | B36: 2 | C36: 10 | E36: 2004 | F36: 0.002962565434 | G36: 0.000851367191 | H36: 0 | I36: 0.000670185379 | J36: 0.004484118004 | L36: 2053 Avg | M36: ='5yrAvg'!C35/1000000 -> 0.002630255515 | N36: ='5yrAvg'!D35/1000000 -> 0.0005892352026 | O36: ='5yrAvg'!E35/1000000 -> 0.0005507390732 | P36: ='5yrAvg'!F35/1000000 -> 1.036465769e-05 | Q36: ='5yrAvg'!G35/1000000 -> 3.409939412e-05 | R36: 0.003814693843
A37: 1 | B37: 2 | C37: 11 | E37: 2004 | F37: 0.003235720538 | G37: 0.0008382071489 | H37: 0 | I37: 0.0006255244361 | J37: 0.004699452123 | L37: 2054 Avg | M37: ='5yrAvg'!C36/1000000 -> 0.002661561751 | N37: ='5yrAvg'!D36/1000000 -> 0.0005962472394 | O37: ='5yrAvg'!E36/1000000 -> 0.0005572169562 | P37: ='5yrAvg'!F36/1000000 -> 1.048438396e-05 | Q37: ='5yrAvg'!G36/1000000 -> 3.450078905e-05 | R37: 0.003860011119
A38: 1 | B38: 2 | C38: 12 | E38: 2004 | F38: 0.003041259669 | G38: 0.0008832592465 | H38: 0 | I38: 0.0007041578324 | J38: 0.004628676748 | L38: 2055 Avg | M38: ='5yrAvg'!C37/1000000 -> 0.002703541501 | N38: ='5yrAvg'!D37/1000000 -> 0.0006057920351 | O38: ='5yrAvg'!E37/1000000 -> 0.0005663554872 | P38: ='5yrAvg'!F37/1000000 -> 1.065545323e-05 | Q38: ='5yrAvg'!G37/1000000 -> 3.51165165e-05 | R38: 0.003921460993
A39: 1 | B39: 2 | C39: 13 | E39: 2004 | F39: 0.002902987416 | G39: 0.0008835884366 | H39: 0 | I39: 0.000736420333 | J39: 0.004522996186 | L39: 2056 Avg | M39: ='5yrAvg'!C38/1000000 -> 0.002673980833 | N39: ='5yrAvg'!D38/1000000 -> 0.00059926621 | O39: ='5yrAvg'!E38/1000000 -> 0.0005610466296 | P39: ='5yrAvg'!F38/1000000 -> 1.053850187e-05 | Q39: ='5yrAvg'!G38/1000000 -> 3.496181003e-05 | R39: 0.003879793984
A40: 1 | B40: 2 | C40: 14 | E40: 2004 | F40: 0.002832780935 | G40: 0.0008909849871 | H40: 0 | I40: 0.0007234063197 | J40: 0.004447172242 | L40: 2057 Avg | M40: ='5yrAvg'!C39/1000000 -> 0.002634641653 | N40: ='5yrAvg'!D39/1000000 -> 0.0005903920843 | O40: ='5yrAvg'!E39/1000000 -> 0.0005529796793 | P40: ='5yrAvg'!F39/1000000 -> 1.038165299e-05 | Q40: ='5yrAvg'!G39/1000000 -> 3.452650581e-05 | R40: 0.003822921575
A41: 1 | B41: 2 | C41: 15 | E41: 2004 | F41: 0.002877180203 | G41: 0.0008508263144 | H41: 0 | I41: 0.0006482830648 | J41: 0.004376289583 | L41: 2058 Avg | M41: ='5yrAvg'!C40/1000000 -> 0.002634276587 | N41: ='5yrAvg'!D40/1000000 -> 0.0005902565318 | O41: ='5yrAvg'!E40/1000000 -> 0.0005525801379 | P41: ='5yrAvg'!F40/1000000 -> 1.03779045e-05 | Q41: ='5yrAvg'!G40/1000000 -> 3.448400594e-05 | R41: 0.003821975167
A42: 1 | B42: 2 | C42: 16 | E42: 2004 | F42: 0.002938386796 | G42: 0.0008814717236 | H42: 0 | I42: 0.0007609180647 | J42: 0.004580776584 | L42: 2059 Avg | M42: ='5yrAvg'!C41/1000000 -> 0.002686039901 | N42: ='5yrAvg'!D41/1000000 -> 0.0006018229918 | O42: ='5yrAvg'!E41/1000000 -> 0.0005625021244 | P42: ='5yrAvg'!F41/1000000 -> 1.058858288e-05 | Q42: ='5yrAvg'!G41/1000000 -> 3.510141182e-05 | R42: 0.003896055012
A43: 1 | B43: 2 | C43: 17 | E43: 2004 | F43: 0.003333796827 | G43: 0.0009633477662 | H43: 2.634585574e-06 | I43: 0.0009417157901 | J43: 0.005241494968 | L43: 2060 Avg | M43: ='5yrAvg'!C42/1000000 -> 0.003020887492 | N43: ='5yrAvg'!D42/1000000 -> 0.0006766845402 | O43: ='5yrAvg'!E42/1000000 -> 0.0006308205393 | P43: ='5yrAvg'!F42/1000000 -> 1.191448477e-05 | Q43: ='5yrAvg'!G42/1000000 -> 3.932111034e-05 | R43: 0.004379628166
A44: 1 | B44: 2 | C44: 18 | E44: 2004 | F44: 0.00395814966 | G44: 0.0009032470282 | H44: 7.9037568e-05 | I44: 0.0008283888767 | J44: 0.005768823133 | L44: 2061 Avg | M44: ='5yrAvg'!C43/1000000 -> 0.0033203702 | N44: ='5yrAvg'!D43/1000000 -> 0.0007436855272 | O44: ='5yrAvg'!E43/1000000 -> 0.00069345931 | P44: ='5yrAvg'!F43/1000000 -> 1.309436028e-05 | Q44: ='5yrAvg'!G43/1000000 -> 4.312728639e-05 | R44: 0.004813736684
A45: 1 | B45: 2 | C45: 19 | E45: 2004 | F45: 0.003942908817 | G45: 0.000860605435 | H45: 7.9037568e-05 | I45: 0.0007542784635 | J45: 0.005636830284 | L45: 2062 Avg | M45: ='5yrAvg'!C44/1000000 -> 0.003224151579 | N45: ='5yrAvg'!D44/1000000 -> 0.0007221132491 | O45: ='5yrAvg'!E44/1000000 -> 0.0006741738833 | P45: ='5yrAvg'!F44/1000000 -> 1.270446633e-05 | Q45: ='5yrAvg'!G44/1000000 -> 4.181868845e-05 | R45: 0.004674961866
A46: 1 | B46: 2 | C46: 20 | E46: 2004 | F46: 0.003854501855 | G46: 0.0008431125423 | H46: 7.9037568e-05 | I46: 0.0007422541953 | J46: 0.00551890616 | L46: 2063 Avg | M46: ='5yrAvg'!C45/1000000 -> 0.003153816659 | N46: ='5yrAvg'!D45/1000000 -> 0.0007063579696 | O46: ='5yrAvg'!E45/1000000 -> 0.0006590699282 | P46: ='5yrAvg'!F45/1000000 -> 1.242816332e-05 | Q46: ='5yrAvg'!G45/1000000 -> 4.077485577e-05 | R46: 0.004572447576
A47: 1 | B47: 2 | C47: 21 | E47: 2004 | F47: 0.003783526031 | G47: 0.0008144725503 | H47: 7.9037568e-05 | I47: 0.0007256646352 | J47: 0.005402700785 | L47: 2064 Avg | M47: ='5yrAvg'!C46/1000000 -> 0.003053756676 | N47: ='5yrAvg'!D46/1000000 -> 0.0006839579574 | O47: ='5yrAvg'!E46/1000000 -> 0.0006377558567 | P47: ='5yrAvg'!F46/1000000 -> 1.203452969e-05 | Q47: ='5yrAvg'!G46/1000000 -> 3.947491516e-05 | R47: 0.004426979935
A48: 1 | B48: 2 | C48: 22 | E48: 2004 | F48: 0.003458279059 | G48: 0.0007682715023 | H48: 7.9037568e-05 | I48: 0.0007280895971 | J48: 0.005033677727 | L48: 2065 Avg | M48: ='5yrAvg'!C47/1000000 -> 0.00285573243 | N48: ='5yrAvg'!D47/1000000 -> 0.0006395637937 | O48: ='5yrAvg'!E47/1000000 -> 0.0005969853731 | P48: ='5yrAvg'!F47/1000000 -> 1.125065961e-05 | Q48: ='5yrAvg'!G47/1000000 -> 3.693270161e-05 | R48: 0.004140464958
A49: 1 | B49: 2 | C49: 23 | E49: 2004 | F49: 0.003322558682 | G49: 0.0007007590646 | H49: 7.9037568e-05 | I49: 0.0006917157122 | J49: 0.004794071027 | L49: 2066 Avg | M49: ='5yrAvg'!C48/1000000 -> 0.002637276011 | N49: ='5yrAvg'!D48/1000000 -> 0.0005906937855 | O49: ='5yrAvg'!E48/1000000 -> 0.0005515350291 | P49: ='5yrAvg'!F48/1000000 -> 1.039319624e-05 | Q49: ='5yrAvg'!G48/1000000 -> 3.410437203e-05 | R49: 0.003824002393
A50: 1 | B50: 2 | C50: 24 | E50: 2004 | F50: 0.002765496732 | G50: 0.0006367123459 | H50: 7.9037568e-05 | I50: 0.0006827149284 | J50: 0.004163961574 | L50: 2067 Avg | M50: ='5yrAvg'!C49/1000000 -> 0.002380333623 | N50: ='5yrAvg'!D49/1000000 -> 0.0005331505685 | O50: ='5yrAvg'!E49/1000000 -> 0.0004977148407 | P50: ='5yrAvg'!F49/1000000 -> 9.379839325e-06 | Q50: ='5yrAvg'!G49/1000000 -> 3.080751741e-05 | R50: 0.003451386389
A51: 1 | B51: 3 | C51: 1 | E51: 2004 | F51: 0.002127515531 | G51: 0.0005957090617 | H51: 7.9037568e-05 | I51: 0.0007100639534 | J51: 0.003512326114 | L51: 2068 Avg | M51: ='5yrAvg'!C50/1000000 -> 0.002210145156 | N51: ='5yrAvg'!D50/1000000 -> 0.0004949195659 | O51: ='5yrAvg'!E50/1000000 -> 0.000462059002 | P51: ='5yrAvg'!F50/1000000 -> 8.704307061e-06 | Q51: ='5yrAvg'!G50/1000000 -> 2.862151245e-05 | R51: 0.003204449543
A52: 1 | B52: 3 | C52: 2 | E52: 2004 | F52: 0.00200395071 | G52: 0.0005853601521 | H52: 7.9037568e-05 | I52: 0.0007356984614 | J52: 0.003404046892 | L52: 2069 Avg | M52: ='5yrAvg'!C51/1000000 -> 0.002103832505 | N52: ='5yrAvg'!D51/1000000 -> 0.0004710182363 | O52: ='5yrAvg'!E51/1000000 -> 0.0004391936402 | P52: ='5yrAvg'!F51/1000000 -> 8.284244708e-06 | Q52: ='5yrAvg'!G51/1000000 -> 2.722345919e-05 | R52: 0.003049552086
A53: 1 | B53: 3 | C53: 3 | E53: 2004 | F53: 0.002014578874 | G53: 0.0005585734766 | H53: 7.9037568e-05 | I53: 0.0006971226259 | J53: 0.003349312545 | L53: 2070 Avg | M53: ='5yrAvg'!C52/1000000 -> 0.002061206137 | N53: ='5yrAvg'!D52/1000000 -> 0.0004614039179 | O53: ='5yrAvg'!E52/1000000 -> 0.0004301160825 | P53: ='5yrAvg'!F52/1000000 -> 8.116183345e-06 | Q53: ='5yrAvg'!G52/1000000 -> 2.658162027e-05 | R53: 0.002987423941
A54: 1 | B54: 3 | C54: 4 | E54: 2004 | F54: 0.002012081283 | G54: 0.0005516525663 | H54: 7.9037568e-05 | I54: 0.000695137988 | J54: 0.003337909405 | L54: 2071 Avg | M54: ='5yrAvg'!C53/1000000 -> 0.002054865588 | N54: ='5yrAvg'!D53/1000000 -> 0.0004600439517 | O54: ='5yrAvg'!E53/1000000 -> 0.0004291798306 | P54: ='5yrAvg'!F53/1000000 -> 8.093730895e-06 | Q54: ='5yrAvg'!G53/1000000 -> 2.65665409e-05 | R54: 0.002978749642
A55: 1 | B55: 3 | C55: 5 | E55: 2004 | F55: 0.002065530168 | G55: 0.0005467918461 | H55: 7.9037568e-05 | I55: 0.000679667961 | J55: 0.003371027543 | L55: 2072 Avg | M55: ='5yrAvg'!C54/1000000 -> 0.002070363034 | N55: ='5yrAvg'!D54/1000000 -> 0.0004634624519 | O55: ='5yrAvg'!E54/1000000 -> 0.0004321688444 | P55: ='5yrAvg'!F54/1000000 -> 8.154183939e-06 | Q55: ='5yrAvg'!G54/1000000 -> 2.67095336e-05 | R55: 0.003000858048
A56: 1 | B56: 3 | C56: 6 | E56: 2004 | F56: 0.002085307903 | G56: 0.0005764442845 | H56: 7.9037568e-05 | I56: 0.0006980611725 | J56: 0.003438850928 | L56: 2073 Avg | M56: ='5yrAvg'!C55/1000000 -> 0.002160852354 | N56: ='5yrAvg'!D55/1000000 -> 0.0004836681844 | O56: ='5yrAvg'!E55/1000000 -> 0.0004508774933 | P56: ='5yrAvg'!F55/1000000 -> 8.51206717e-06 | Q56: ='5yrAvg'!G55/1000000 -> 2.779837454e-05 | R56: 0.003131708473
A57: 1 | B57: 3 | C57: 7 | E57: 2004 | F57: 0.002335721806 | G57: 0.0005834952669 | H57: 7.9037568e-05 | I57: 0.0006326627941 | J57: 0.003630917435 | L57: 2074 Avg | M57: ='5yrAvg'!C56/1000000 -> 0.002276693937 | N57: ='5yrAvg'!D56/1000000 -> 0.0005096465138 | O57: ='5yrAvg'!E56/1000000 -> 0.0004752056263 | P57: ='5yrAvg'!F56/1000000 -> 8.971543439e-06 | Q57: ='5yrAvg'!G56/1000000 -> 2.927314128e-05 | R57: 0.003299790762
A58: 1 | B58: 3 | C58: 8 | E58: 2004 | F58: 0.002503146523 | G58: 0.0006404709043 | H58: 7.245742703e-05 | I58: 0.0006644199259 | J58: 0.00388049478 | L58: 2075 Avg | M58: ='5yrAvg'!C57/1000000 -> 0.002379094008 | N58: ='5yrAvg'!D57/1000000 -> 0.000532699265 | O58: ='5yrAvg'!E57/1000000 -> 0.0004969129461 | P58: ='5yrAvg'!F57/1000000 -> 9.378430631e-06 | Q58: ='5yrAvg'!G57/1000000 -> 3.06649656e-05 | R58: 0.003448749616
A59: 1 | B59: 3 | C59: 9 | E59: 2004 | F59: 0.002749163734 | G59: 0.0006881695945 | H59: 0 | I59: 0.0006987870999 | J59: 0.004136120428 | L59: 2076 Avg | M59: ='5yrAvg'!C58/1000000 -> 0.002450756736 | N59: ='5yrAvg'!D58/1000000 -> 0.0005488855997 | O59: ='5yrAvg'!E58/1000000 -> 0.0005124436552 | P59: ='5yrAvg'!F58/1000000 -> 9.666218773e-06 | Q59: ='5yrAvg'!G58/1000000 -> 3.179892982e-05 | R59: 0.00355355114
A60: 1 | B60: 3 | C60: 10 | E60: 2004 | F60: 0.002983041837 | G60: 0.0007259472001 | H60: 0 | I60: 0.0007247002098 | J60: 0.004433689247 | L60: 2077 Avg | M60: ='5yrAvg'!C59/1000000 -> 0.002551887086 | N60: ='5yrAvg'!D59/1000000 -> 0.0005716218226 | O60: ='5yrAvg'!E59/1000000 -> 0.000534050824 | P60: ='5yrAvg'!F59/1000000 -> 1.00693668e-05 | Q60: ='5yrAvg'!G59/1000000 -> 3.319242892e-05 | R60: 0.003700821529
A61: 1 | B61: 3 | C61: 11 | E61: 2004 | F61: 0.003211789768 | G61: 0.0006874321505 | H61: 0 | I61: 0.0006487950923 | J61: 0.004548017011 | L61: 2078 Avg | M61: ='5yrAvg'!C60/1000000 -> 0.002600341048 | N61: ='5yrAvg'!D60/1000000 -> 0.0005825205154 | O61: ='5yrAvg'!E60/1000000 -> 0.0005439833605 | P61: ='5yrAvg'!F60/1000000 -> 1.026031176e-05 | Q61: ='5yrAvg'!G60/1000000 -> 3.388819931e-05 | R61: 0.003770993435
A62: 1 | B62: 3 | C62: 12 | E62: 2004 | F62: 0.002989724355 | G62: 0.0007399252526 | H62: 0 | I62: 0.0007495527219 | J62: 0.004479202329 | L62: 2079 Avg | M62: ='5yrAvg'!C61/1000000 -> 0.002626650548 | N62: ='5yrAvg'!D61/1000000 -> 0.0005884759525 | O62: ='5yrAvg'!E61/1000000 -> 0.0005501772093 | P62: ='5yrAvg'!F61/1000000 -> 1.036966735e-05 | Q62: ='5yrAvg'!G61/1000000 -> 3.438328028e-05 | R62: 0.003810056657
A63: 1 | B63: 3 | C63: 13 | E63: 2004 | F63: 0.002916153219 | G63: 0.0007197572847 | H63: 0 | I63: 0.0007120083877 | J63: 0.004347918891 | L63: 2080 Avg | M63: ='5yrAvg'!C62/1000000 -> 0.00263764074 | N63: ='5yrAvg'!D62/1000000 -> 0.0005909686746 | O63: ='5yrAvg'!E62/1000000 -> 0.0005525638739 | P63: ='5yrAvg'!F62/1000000 -> 1.041581407e-05 | Q63: ='5yrAvg'!G62/1000000 -> 3.446287668e-05 | R63: 0.003826051979
A64: 1 | B64: 3 | C64: 14 | E64: 2004 | F64: 0.002641505723 | G64: 0.0007930735841 | H64: 0 | I64: 0.0008479952772 | J64: 0.004282574585 | L64: 2081 Avg | M64: ='5yrAvg'!C63/1000000 -> 0.002595749712 | N64: ='5yrAvg'!D63/1000000 -> 0.0005816901658 | O64: ='5yrAvg'!E63/1000000 -> 0.0005444309765 | P64: ='5yrAvg'!F63/1000000 -> 1.025292012e-05 | Q64: ='5yrAvg'!G63/1000000 -> 3.401570798e-05 | R64: 0.003766139482
A65: 1 | B65: 3 | C65: 15 | E65: 2004 | F65: 0.002630036781 | G65: 0.0007692328622 | H65: 0 | I65: 0.0008147874336 | J65: 0.004214057077 | L65: 2082 Avg | M65: ='5yrAvg'!C64/1000000 -> 0.002598185383 | N65: ='5yrAvg'!D64/1000000 -> 0.0005822574896 | O65: ='5yrAvg'!E64/1000000 -> 0.0005446676834 | P65: ='5yrAvg'!F64/1000000 -> 1.026364072e-05 | Q65: ='5yrAvg'!G64/1000000 -> 3.40766389e-05 | R65: 0.003769450836
A66: 1 | B66: 3 | C66: 16 | E66: 2004 | F66: 0.002782853381 | G66: 0.0007499046347 | H66: 0 | I66: 0.0007814476424 | J66: 0.004314205658 | L66: 2083 Avg | M66: ='5yrAvg'!C65/1000000 -> 0.002674200734 | N66: ='5yrAvg'!D65/1000000 -> 0.0005994580361 | O66: ='5yrAvg'!E65/1000000 -> 0.0005605590684 | P66: ='5yrAvg'!F65/1000000 -> 1.057636035e-05 | Q66: ='5yrAvg'!G65/1000000 -> 3.520002268e-05 | R66: 0.003879994222
A67: 1 | B67: 3 | C67: 17 | E67: 2004 | F67: 0.003115596108 | G67: 0.0007900093175 | H67: 2.634585574e-06 | I67: 0.0008458238855 | J67: 0.004754063897 | L67: 2084 Avg | M67: ='5yrAvg'!C66/1000000 -> 0.002972355184 | N67: ='5yrAvg'!D66/1000000 -> 0.0006663704607 | O67: ='5yrAvg'!E66/1000000 -> 0.000623435045 | P67: ='5yrAvg'!F66/1000000 -> 1.176561301e-05 | Q67: ='5yrAvg'!G66/1000000 -> 3.927806462e-05 | R67: =SUM(M67:Q67) -> 0.004313204367
A68: 1 | B68: 3 | C68: 18 | E68: 2004 | F68: 0.003407070973 | G68: 0.0007794378607 | H68: 7.9037568e-05 | I68: 0.0008213868056 | J68: 0.005086933207 | L68: 2085 Avg | M68: ='5yrAvg'!C67/1000000 -> 0.003289059805 | N68: ='5yrAvg'!D67/1000000 -> 0.0007373221904 | O68: ='5yrAvg'!E67/1000000 -> 0.0006899991414 | P68: ='5yrAvg'!F67/1000000 -> 1.300890533e-05 | Q68: ='5yrAvg'!G67/1000000 -> 4.347091437e-05 | R68: 0.004772860956
A69: 1 | B69: 3 | C69: 19 | E69: 2004 | F69: 0.003437094622 | G69: 0.0007278979755 | H69: 7.9037568e-05 | I69: 0.0007147923564 | J69: 0.004958822522 | L69: 2086 Avg | M69: ='5yrAvg'!C68/1000000 -> 0.003188196553 | N69: ='5yrAvg'!D68/1000000 -> 0.0007146915905 | O69: ='5yrAvg'!E68/1000000 -> 0.0006695486776 | P69: ='5yrAvg'!F68/1000000 -> 1.259847559e-05 | Q69: ='5yrAvg'!G68/1000000 -> 4.216816044e-05 | R69: 0.004627203457
A70: 1 | B70: 3 | C70: 20 | E70: 2004 | F70: 0.003395197216 | G70: 0.0006815097818 | H70: 7.9037568e-05 | I70: 0.0006711006335 | J70: 0.0048268452 | L70: 2087 Avg | M70: ='5yrAvg'!C69/1000000 -> 0.00314010842 | N70: ='5yrAvg'!D69/1000000 -> 0.0007040111858 | O70: ='5yrAvg'!E69/1000000 -> 0.0006597108913 | P70: ='5yrAvg'!F69/1000000 -> 1.241867761e-05 | Q70: ='5yrAvg'!G69/1000000 -> 4.160034452e-05 | R70: 0.004557849519
A71: 1 | B71: 3 | C71: 21 | E71: 2004 | F71: 0.003137561537 | G71: 0.0006934587126 | H71: 7.9037568e-05 | I71: 0.0007405861652 | J71: 0.004650643983 | L71: 2088 Avg | M71: ='5yrAvg'!C70/1000000 -> 0.003029182477 | N71: ='5yrAvg'!D70/1000000 -> 0.0006791481898 | O71: ='5yrAvg'!E70/1000000 -> 0.0006363918309 | P71: ='5yrAvg'!F70/1000000 -> 1.197484819e-05 | Q71: ='5yrAvg'!G70/1000000 -> 4.009371366e-05 | R71: 0.004396791059
A72: 1 | B72: 3 | C72: 22 | E72: 2004 | F72: 0.002992577307 | G72: 0.00064382273 | H72: 7.9037568e-05 | I72: 0.0006828529892 | J72: 0.004398290595 | L72: 2089 Avg | M72: ='5yrAvg'!C71/1000000 -> 0.002821898662 | N72: ='5yrAvg'!D71/1000000 -> 0.0006327237747 | O72: ='5yrAvg'!E71/1000000 -> 0.0005929035126 | P72: ='5yrAvg'!F71/1000000 -> 1.115376328e-05 | Q72: ='5yrAvg'!G71/1000000 -> 3.736123581e-05 | R72: 0.004096040948
A73: 1 | B73: 3 | C73: 23 | E73: 2004 | F73: 0.002805961438 | G73: 0.000565153548 | H73: 7.9037568e-05 | I73: 0.0005786803963 | J73: 0.004028832951 | L73: 2090 Avg | M73: ='5yrAvg'!C72/1000000 -> 0.00259189662 | N73: ='5yrAvg'!D72/1000000 -> 0.0005812445879 | O73: ='5yrAvg'!E72/1000000 -> 0.0005445065062 | P73: ='5yrAvg'!F72/1000000 -> 1.024730004e-05 | Q73: ='5yrAvg'!G72/1000000 -> 3.430845119e-05 | R73: 0.003762203465
A74: 1 | B74: 3 | C74: 24 | E74: 2004 | F74: 0.002291999563 | G74: 0.0006191527418 | H74: 7.9037568e-05 | I74: 0.0007813315623 | J74: 0.003771521435 | L74: 2091 Avg | M74: ='5yrAvg'!C73/1000000 -> 0.002323083594 | N74: ='5yrAvg'!D73/1000000 -> 0.0005210093592 | O74: ='5yrAvg'!E73/1000000 -> 0.000488234655 | P74: ='5yrAvg'!F73/1000000 -> 9.182701625e-06 | Q74: ='5yrAvg'!G73/1000000 -> 3.079918487e-05 | R74: 0.003372309495
A75: 1 | B75: 4 | C75: 1 | E75: 2004 | F75: 0.001900730697 | G75: 0.0005612771396 | H75: 7.9037568e-05 | I75: 0.0006942034605 | J75: 0.003235248865 | L75: 2092 Avg | M75: ='5yrAvg'!C74/1000000 -> 0.00216458528 | N75: ='5yrAvg'!D74/1000000 -> 0.0004854177314 | O75: ='5yrAvg'!E74/1000000 -> 0.0004550427201 | P75: ='5yrAvg'!F74/1000000 -> 8.554370298e-06 | Q75: ='5yrAvg'!G74/1000000 -> 2.878427125e-05 | R75: 0.003142384373
A76: 1 | B76: 4 | C76: 2 | E76: 2004 | F76: 0.001857954918 | G76: 0.0005333285804 | H76: 7.9037568e-05 | I76: 0.0006654758529 | J76: 0.003135796919 | L76: 2093 Avg | M76: ='5yrAvg'!C75/1000000 -> 0.002060781435 | N76: ='5yrAvg'!D75/1000000 -> 0.0004621391084 | O76: ='5yrAvg'!E75/1000000 -> 0.0004332101499 | P76: ='5yrAvg'!F75/1000000 -> 8.148453051e-06 | Q76: ='5yrAvg'!G75/1000000 -> 2.74994203e-05 | R76: 0.002991778567
A77: 1 | B77: 4 | C77: 3 | E77: 2004 | F77: 0.001779721118 | G77: 0.0005378474691 | H77: 7.9037568e-05 | I77: 0.0007012657938 | J77: 0.003097871948 | L77: 2094 Avg | M77: ='5yrAvg'!C76/1000000 -> 0.002034661021 | N77: ='5yrAvg'!D76/1000000 -> 0.0004562630469 | O77: ='5yrAvg'!E76/1000000 -> 0.0004279481789 | P77: ='5yrAvg'!F76/1000000 -> 8.044542065e-06 | Q77: ='5yrAvg'!G76/1000000 -> 2.715866792e-05 | R77: 0.002954075457
A78: 1 | B78: 4 | C78: 4 | E78: 2004 | F78: 0.001782524682 | G78: 0.0005064195571 | H78: 7.9037568e-05 | I78: 0.0006374647799 | J78: 0.003005446587 | L78: 2095 Avg | M78: ='5yrAvg'!C77/1000000 -> 0.002026625067 | N78: ='5yrAvg'!D77/1000000 -> 0.0004545668062 | O78: ='5yrAvg'!E77/1000000 -> 0.0004266785804 | P78: ='5yrAvg'!F77/1000000 -> 8.017416365e-06 | Q78: ='5yrAvg'!G77/1000000 -> 2.718477063e-05 | R78: 0.00294307264
A79: 1 | B79: 4 | C79: 5 | E79: 2004 | F79: 0.001842595419 | G79: 0.000504029911 | H79: 7.9037568e-05 | I79: 0.000633383165 | J79: 0.003059046063 | L79: 2096 Avg | M79: ='5yrAvg'!C78/1000000 -> 0.002053055145 | N79: ='5yrAvg'!D78/1000000 -> 0.0004605042095 | O79: ='5yrAvg'!E78/1000000 -> 0.0004324383038 | P79: ='5yrAvg'!F78/1000000 -> 8.122436676e-06 | Q79: ='5yrAvg'!G78/1000000 -> 2.757714171e-05 | R79: 0.002981697237
A80: 1 | B80: 4 | C80: 6 | E80: 2004 | F80: 0.001918062945 | G80: 0.000525682505 | H80: 7.9037568e-05 | I80: 0.0006471553481 | J80: 0.003169938366 | L80: 2097 Avg | M80: ='5yrAvg'!C79/1000000 -> 0.002172745057 | N80: ='5yrAvg'!D79/1000000 -> 0.0004873960901 | O80: ='5yrAvg'!E79/1000000 -> 0.0004584501763 | P80: ='5yrAvg'!F79/1000000 -> 8.600840743e-06 | Q80: ='5yrAvg'!G79/1000000 -> 2.928202289e-05 | R80: 0.003156474187
A81: 1 | B81: 4 | C81: 7 | E81: 2004 | F81: 0.00198242921 | G81: 0.0005676512978 | H81: 7.9037568e-05 | I81: 0.0006642346286 | J81: 0.003293352705 | L81: 2098 Avg | M81: ='5yrAvg'!C80/1000000 -> 0.002330422854 | N81: ='5yrAvg'!D80/1000000 -> 0.0005230495566 | O81: ='5yrAvg'!E80/1000000 -> 0.0004929101682 | P81: ='5yrAvg'!F80/1000000 -> 9.236458637e-06 | Q81: ='5yrAvg'!G80/1000000 -> 3.169657599e-05 | R81: 0.003387315613
A82: 1 | B82: 4 | C82: 8 | E82: 2004 | F82: 0.002230136161 | G82: 0.0005796255602 | H82: 7.245742703e-05 | I82: 0.0006119287613 | J82: 0.003494147909 | L82: 2099 Avg | M82: ='5yrAvg'!C81/1000000 -> 0.002428102664 | N82: ='5yrAvg'!D81/1000000 -> 0.0005450017299 | O82: ='5yrAvg'!E81/1000000 -> 0.000512717789 | P82: ='5yrAvg'!F81/1000000 -> 9.622611846e-06 | Q82: ='5yrAvg'!G81/1000000 -> 3.301318464e-05 | R82: 0.003528457979
A83: 1 | B83: 4 | C83: 9 | E83: 2004 | F83: 0.002551283978 | G83: 0.0005956773935 | H83: 0 | I83: 0.0005850966593 | J83: 0.00373205803 | L83: 2100 Avg | M83: ='5yrAvg'!C82/1000000 -> 0.002479121271 | N83: ='5yrAvg'!D82/1000000 -> 0.0005563406272 | O83: ='5yrAvg'!E82/1000000 -> 0.0005216319424 | P83: ='5yrAvg'!F82/1000000 -> 9.81986781e-06 | Q83: ='5yrAvg'!G82/1000000 -> 3.338586805e-05 | R83: 0.003600299577
A84: 1 | B84: 4 | C84: 10 | E84: 2004 | F84: 0.002730735244 | G84: 0.0006144829169 | H84: 0 | I84: 0.0005648442922 | J84: 0.003910062453 | L84: 2101 Avg | M84: ='5yrAvg'!C83/1000000 -> 0.002530690871 | N84: ='5yrAvg'!D83/1000000 -> 0.0005678168837 | O84: ='5yrAvg'!E83/1000000 -> 0.0005306852759 | P84: ='5yrAvg'!F83/1000000 -> 1.002204188e-05 | Q84: ='5yrAvg'!G83/1000000 -> 3.384817542e-05 | R84: 0.003673063248
A85: 1 | B85: 4 | C85: 11 | E85: 2004 | F85: 0.002668403041 | G85: 0.0006526239737 | H85: 0 | I85: 0.0006296624954 | J85: 0.00395068951 | L85: 2102 Avg | M85: ='5yrAvg'!C84/1000000 -> 0.002585144685 | N85: ='5yrAvg'!D84/1000000 -> 0.0005799984515 | O85: ='5yrAvg'!E84/1000000 -> 0.0005409580592 | P85: ='5yrAvg'!F84/1000000 -> 1.023711564e-05 | Q85: ='5yrAvg'!G84/1000000 -> 3.43227019e-05 | R85: 0.003750661014
A86: 1 | B86: 4 | C86: 12 | E86: 2004 | F86: 0.002682062095 | G86: 0.0006788449972 | H86: 0 | I86: 0.0006507688678 | J86: 0.004011675959 | L86: 2103 Avg | M86: ='5yrAvg'!C85/1000000 -> 0.002617247455 | N86: ='5yrAvg'!D85/1000000 -> 0.0005870549609 | O86: ='5yrAvg'!E85/1000000 -> 0.000546424613 | P86: ='5yrAvg'!F85/1000000 -> 1.035542658e-05 | Q86: ='5yrAvg'!G85/1000000 -> 3.451185903e-05 | R86: 0.003795594315
A87: 1 | B87: 4 | C87: 13 | E87: 2004 | F87: 0.002551332539 | G87: 0.0006742835774 | H87: 0 | I87: 0.0006509353484 | J87: 0.003876551464 | L87: 2104 Avg | M87: ='5yrAvg'!C86/1000000 -> 0.002595685204 | N87: ='5yrAvg'!D86/1000000 -> 0.0005822151102 | O87: ='5yrAvg'!E86/1000000 -> 0.0005418561188 | P87: ='5yrAvg'!F86/1000000 -> 1.026611312e-05 | Q87: ='5yrAvg'!G86/1000000 -> 3.424673176e-05 | R87: 0.003764269278
A88: 1 | B88: 4 | C88: 14 | E88: 2004 | F88: 0.002381778229 | G88: 0.0006514515689 | H88: 0 | I88: 0.000562261819 | J88: 0.003595491617 | L88: 2105 Avg | M88: ='5yrAvg'!C87/1000000 -> 0.002525165707 | N88: ='5yrAvg'!D87/1000000 -> 0.0005664779013 | O88: ='5yrAvg'!E87/1000000 -> 0.0005270386569 | P88: ='5yrAvg'!F87/1000000 -> 9.989561022e-06 | Q88: ='5yrAvg'!G87/1000000 -> 3.33851962e-05 | R88: 0.003662057023
A89: 1 | B89: 4 | C89: 15 | E89: 2004 | F89: 0.002440546939 | G89: 0.0006602472815 | H89: 0 | I89: 0.0005686558154 | J89: 0.003669450036 | L89: 2106 Avg | M89: ='5yrAvg'!C88/1000000 -> 0.00251072461 | N89: ='5yrAvg'!D88/1000000 -> 0.0005631426782 | O89: ='5yrAvg'!E88/1000000 -> 0.0005245096755 | P89: ='5yrAvg'!F88/1000000 -> 9.931331277e-06 | Q89: ='5yrAvg'!G88/1000000 -> 3.332414272e-05 | R89: 0.003641632438
A90: 1 | B90: 4 | C90: 16 | E90: 2004 | F90: 0.002581990585 | G90: 0.0006599731895 | H90: 0 | I90: 0.0005847713209 | J90: 0.003826735095 | L90: 2107 Avg | M90: ='5yrAvg'!C89/1000000 -> 0.002627934965 | N90: ='5yrAvg'!D89/1000000 -> 0.0005895895658 | O90: ='5yrAvg'!E89/1000000 -> 0.0005505169703 | P90: ='5yrAvg'!F89/1000000 -> 1.040252246e-05 | Q90: ='5yrAvg'!G89/1000000 -> 3.500977114e-05 | R90: 0.003813453795
A91: 1 | B91: 4 | C91: 17 | E91: 2004 | F91: 0.002948876094 | G91: 0.000699259122 | H91: 1.317292826e-06 | I91: 0.0006543634752 | J91: 0.004303815984 | L91: 2108 Avg | M91: ='5yrAvg'!C90/1000000 -> 0.002942315726 | N91: ='5yrAvg'!D90/1000000 -> 0.0006605558927 | O91: ='5yrAvg'!E90/1000000 -> 0.0006178037415 | P91: ='5yrAvg'!F90/1000000 -> 1.167742211e-05 | Q91: ='5yrAvg'!G90/1000000 -> 3.964331217e-05 | R91: 0.004271996094
A92: 1 | B92: 4 | C92: 18 | E92: 2004 | F92: 0.0033649353 | G92: 0.0006615564288 | H92: 7.9037568e-05 | I92: 0.0006056427956 | J92: 0.004711172092 | L92: 2109 Avg | M92: ='5yrAvg'!C91/1000000 -> 0.003264019327 | N92: ='5yrAvg'!D91/1000000 -> 0.0007328089871 | O92: ='5yrAvg'!E91/1000000 -> 0.0006870790401 | P92: ='5yrAvg'!F91/1000000 -> 1.295069707e-05 | Q92: ='5yrAvg'!G91/1000000 -> 4.408921505e-05 | R92: 0.004740947267
A93: 1 | B93: 4 | C93: 19 | E93: 2004 | F93: 0.003382693169 | G93: 0.0006224780407 | H93: 7.9037568e-05 | I93: 0.0005531854792 | J93: 0.004637394257 | L93: 2110 Avg | M93: ='5yrAvg'!C92/1000000 -> 0.003184343948 | N93: ='5yrAvg'!D92/1000000 -> 0.000714833786 | O93: ='5yrAvg'!E92/1000000 -> 0.0006710887157 | P93: ='5yrAvg'!F92/1000000 -> 1.262256385e-05 | Q93: ='5yrAvg'!G92/1000000 -> 4.288504084e-05 | R93: 0.004625774054
A94: 1 | B94: 4 | C94: 20 | E94: 2004 | F94: 0.003354455309 | G94: 0.0005899138547 | H94: 7.9037568e-05 | I94: 0.0005375970578 | J94: 0.00456100379 | L94: 2111 Avg | M94: ='5yrAvg'!C93/1000000 -> 0.00315289804 | N94: ='5yrAvg'!D93/1000000 -> 0.0007077570013 | O94: ='5yrAvg'!E93/1000000 -> 0.0006646651668 | P94: ='5yrAvg'!F93/1000000 -> 1.249430358e-05 | Q94: ='5yrAvg'!G93/1000000 -> 4.240814984e-05 | R94: 0.004580222662
A95: 1 | B95: 4 | C95: 21 | E95: 2004 | F95: 0.003221458945 | G95: 0.0005880549644 | H95: 7.9037568e-05 | I95: 0.0005816484663 | J95: 0.004470199944 | L95: 2112 Avg | M95: ='5yrAvg'!C94/1000000 -> 0.003085068804 | N95: ='5yrAvg'!D94/1000000 -> 0.0006925812466 | O95: ='5yrAvg'!E94/1000000 -> 0.0006510450866 | P95: ='5yrAvg'!F94/1000000 -> 1.222047097e-05 | Q95: ='5yrAvg'!G94/1000000 -> 4.141214537e-05 | R95: 0.004482327753
A96: 1 | B96: 4 | C96: 22 | E96: 2004 | F96: 0.00294725918 | G96: 0.0005655777362 | H96: 7.9037568e-05 | I96: 0.0005623132137 | J96: 0.004154187698 | L96: 2113 Avg | M96: ='5yrAvg'!C95/1000000 -> 0.002911337452 | N96: ='5yrAvg'!D95/1000000 -> 0.0006535937269 | O96: ='5yrAvg'!E95/1000000 -> 0.0006139646106 | P96: ='5yrAvg'!F95/1000000 -> 1.15312485e-05 | Q96: ='5yrAvg'!G95/1000000 -> 3.895493132e-05 | R96: 0.004229381969
A97: 1 | B97: 4 | C97: 23 | E97: 2004 | F97: 0.00250610578 | G97: 0.000582724368 | H97: 7.9037568e-05 | I97: 0.000627608603 | J97: 0.003795476319 | L97: 2114 Avg | M97: ='5yrAvg'!C96/1000000 -> 0.002671908225 | N97: ='5yrAvg'!D96/1000000 -> 0.00059974834 | O97: ='5yrAvg'!E96/1000000 -> 0.00056301019 | P97: ='5yrAvg'!F96/1000000 -> 1.057919542e-05 | Q97: ='5yrAvg'!G96/1000000 -> 3.570164701e-05 | R97: 0.003880947597
A98: 1 | B98: 4 | C98: 24 | E98: 2004 | F98: 0.002073361648 | G98: 0.0005689476167 | H98: 7.9037568e-05 | I98: 0.0006650619006 | J98: 0.003386408733 | L98: 2115 Avg | M98: ='5yrAvg'!C97/1000000 -> 0.002455072242 | N98: ='5yrAvg'!D97/1000000 -> 0.0005511193477 | O98: ='5yrAvg'!E97/1000000 -> 0.0005176061131 | P98: ='5yrAvg'!F97/1000000 -> 9.719388947e-06 | Q98: ='5yrAvg'!G97/1000000 -> 3.2847175e-05 | R98: 0.003566364267
A99: 1 | B99: 5 | C99: 1 | E99: 2004 | F99: 0.002154369375 | G99: 0.000525909597 | H99: 7.9037568e-05 | I99: 0.0005529402058 | J99: 0.003312256746 | L99: 2116 Avg | M99: ='5yrAvg'!C98/1000000 -> 0.002298858193 | N99: ='5yrAvg'!D98/1000000 -> 0.000516065498 | O99: ='5yrAvg'!E98/1000000 -> 0.0004851404105 | P99: ='5yrAvg'!F98/1000000 -> 9.100375087e-06 | Q99: ='5yrAvg'!G98/1000000 -> 3.080679988e-05 | R99: 0.003339971276
A100: 1 | B100: 5 | C100: 2 | E100: 2004 | F100: 0.002092170504 | G100: 0.0005028002036 | H100: 7.9037568e-05 | I100: 0.0005421354411 | J100: 0.003216143716 | L100: 2117 Avg | M100: ='5yrAvg'!C99/1000000 -> 0.002203099581 | N100: ='5yrAvg'!D99/1000000 -> 0.0004946287894 | O100: ='5yrAvg'!E99/1000000 -> 0.0004651984315 | P100: ='5yrAvg'!F99/1000000 -> 8.723597431e-06 | Q100: ='5yrAvg'!G99/1000000 -> 2.961954955e-05 | R100: 0.003201269949
A101: 1 | B101: 5 | C101: 3 | E101: 2004 | F101: 0.002110939555 | G101: 0.0005039792281 | H101: 7.9037568e-05 | I101: 0.0005589222364 | J101: 0.003252878587 | L101: 2118 Avg | M101: ='5yrAvg'!C100/1000000 -> 0.002186569552 | N101: ='5yrAvg'!D100/1000000 -> 0.0004909766079 | O101: ='5yrAvg'!E100/1000000 -> 0.0004620818588 | P101: ='5yrAvg'!F100/1000000 -> 8.657243855e-06 | Q101: ='5yrAvg'!G100/1000000 -> 2.940885187e-05 | R101: 0.003177694115
A102: 1 | B102: 5 | C102: 4 | E102: 2004 | F102: 0.002150863178 | G102: 0.0004957345933 | H102: 7.9037568e-05 | I102: 0.0005491093606 | J102: 0.0032747447 | L102: 2119 Avg | M102: ='5yrAvg'!C101/1000000 -> 0.002200710454 | N102: ='5yrAvg'!D101/1000000 -> 0.0004942495698 | O102: ='5yrAvg'!E101/1000000 -> 0.0004653633216 | P102: ='5yrAvg'!F101/1000000 -> 8.716435804e-06 | Q102: ='5yrAvg'!G101/1000000 -> 2.963715675e-05 | R102: 0.003198676938
A103: 1 | B103: 5 | C103: 5 | E103: 2004 | F103: 0.002250508863 | G103: 0.0004958982378 | H103: 7.9037568e-05 | I103: 0.0005347227418 | J103: 0.003360167411 | L103: 2120 Avg | M103: ='5yrAvg'!C102/1000000 -> 0.002240189197 | N103: ='5yrAvg'!D102/1000000 -> 0.0005032033222 | O103: ='5yrAvg'!E102/1000000 -> 0.0004740736525 | P103: ='5yrAvg'!F102/1000000 -> 8.877173395e-06 | Q103: ='5yrAvg'!G102/1000000 -> 3.020243385e-05 | R103: 0.003256545779
A104: 1 | B104: 5 | C104: 6 | E104: 2004 | F104: 0.002481131869 | G104: 0.0005307467338 | H104: 7.9037568e-05 | I104: 0.0005551608231 | J104: 0.003646076994 | L104: 2121 Avg | M104: ='5yrAvg'!C103/1000000 -> 0.002341183415 | N104: ='5yrAvg'!D103/1000000 -> 0.0005260254898 | O104: ='5yrAvg'!E103/1000000 -> 0.000496267379 | P104: ='5yrAvg'!F103/1000000 -> 9.284607315e-06 | Q104: ='5yrAvg'!G103/1000000 -> 3.168876468e-05 | R104: 0.003404449655
A105: 1 | B105: 5 | C105: 7 | E105: 2004 | F105: 0.0029484988 | G105: 0.0006046528959 | H105: 8.4701088e-05 | I105: 0.0005596353062 | J105: 0.00419748809 | L105: 2122 Avg | M105: ='5yrAvg'!C104/1000000 -> 0.002511333758 | N105: ='5yrAvg'!D104/1000000 -> 0.0005643838465 | O105: ='5yrAvg'!E104/1000000 -> 0.0005331230246 | P105: ='5yrAvg'!F104/1000000 -> 9.966682356e-06 | Q105: ='5yrAvg'!G104/1000000 -> 3.42024581e-05 | R105: 0.00365300977
A106: 1 | B106: 5 | C106: 8 | E106: 2004 | F106: 0.002855669699 | G106: 0.0007235746634 | H106: 7.764944012e-05 | I106: 0.0006358326397 | J106: 0.004292726442 | L106: 2123 Avg | M106: ='5yrAvg'!C105/1000000 -> 0.002631821075 | N106: ='5yrAvg'!D105/1000000 -> 0.0005914007824 | O106: ='5yrAvg'!E105/1000000 -> 0.0005578903464 | P106: ='5yrAvg'!F105/1000000 -> 1.043988254e-05 | Q106: ='5yrAvg'!G105/1000000 -> 3.573906135e-05 | R106: 0.003827291147
A107: 1 | B107: 5 | C107: 9 | E107: 2004 | F107: 0.002670761422 | G107: 0.0007980927006 | H107: 0 | I107: 0.0006883036349 | J107: 0.004157157758 | L107: 2124 Avg | M107: ='5yrAvg'!C106/1000000 -> 0.002714113168 | N107: ='5yrAvg'!D106/1000000 -> 0.0006092727499 | O107: ='5yrAvg'!E106/1000000 -> 0.0005724293542 | P107: ='5yrAvg'!F106/1000000 -> 1.074521627e-05 | Q107: ='5yrAvg'!G106/1000000 -> 3.635245201e-05 | R107: 0.00394291294
A108: 1 | B108: 5 | C108: 10 | E108: 2004 | F108: 0.002548254062 | G108: 0.0008464369971 | H108: 0 | I108: 0.0007210672243 | J108: 0.004115758283 | L108: 2125 Avg | M108: ='5yrAvg'!C107/1000000 -> 0.002762716181 | N108: ='5yrAvg'!D107/1000000 -> 0.000619845104 | O108: ='5yrAvg'!E107/1000000 -> 0.0005801566665 | P108: ='5yrAvg'!F107/1000000 -> 1.092144173e-05 | Q108: ='5yrAvg'!G107/1000000 -> 3.667380626e-05 | R108: 0.004010313199
A109: 1 | B109: 5 | C109: 11 | E109: 2004 | F109: 0.002398536855 | G109: 0.0008500556273 | H109: 0 | I109: 0.0007150760572 | J109: 0.00396366854 | L109: 2126 Avg | M109: ='5yrAvg'!C108/1000000 -> 0.002782897138 | N109: ='5yrAvg'!D108/1000000 -> 0.000624225823 | O109: ='5yrAvg'!E108/1000000 -> 0.0005832363852 | P109: ='5yrAvg'!F108/1000000 -> 1.099342475e-05 | Q109: ='5yrAvg'!G108/1000000 -> 3.679470092e-05 | R109: 0.004038147472
A110: 1 | B110: 5 | C110: 12 | E110: 2004 | F110: 0.002377731474 | G110: 0.0008469345799 | H110: 0 | I110: 0.0006944928166 | J110: 0.00391915887 | L110: 2127 Avg | M110: ='5yrAvg'!C109/1000000 -> 0.002831351273 | N110: ='5yrAvg'!D109/1000000 -> 0.0006350317581 | O110: ='5yrAvg'!E109/1000000 -> 0.0005929810498 | P110: ='5yrAvg'!F109/1000000 -> 1.118651658e-05 | Q110: ='5yrAvg'!G109/1000000 -> 3.730083981e-05 | R110: 0.004107851438
A111: 1 | B111: 5 | C111: 13 | E111: 2004 | F111: 0.002329868971 | G111: 0.0008390429569 | H111: 0 | I111: 0.0006943674319 | J111: 0.00386327936 | L111: 2128 Avg | M111: ='5yrAvg'!C110/1000000 -> 0.00280308958 | N111: ='5yrAvg'!D110/1000000 -> 0.0006286879439 | O111: ='5yrAvg'!E110/1000000 -> 0.0005863505073 | P111: ='5yrAvg'!F110/1000000 -> 1.10738183e-05 | Q111: ='5yrAvg'!G110/1000000 -> 3.677545816e-05 | R111: 0.004065977307
A112: 1 | B112: 5 | C112: 14 | E112: 2004 | F112: 0.002267465809 | G112: 0.0008360229092 | H112: 0 | I112: 0.0006400619359 | J112: 0.003743550654 | L112: 2129 Avg | M112: ='5yrAvg'!C111/1000000 -> 0.002766243215 | N112: ='5yrAvg'!D111/1000000 -> 0.0006204015659 | O112: ='5yrAvg'!E111/1000000 -> 0.0005784601402 | P112: ='5yrAvg'!F111/1000000 -> 1.092589214e-05 | Q112: ='5yrAvg'!G111/1000000 -> 3.619427798e-05 | R112: 0.004012225091
A113: 1 | B113: 5 | C113: 15 | E113: 2004 | F113: 0.002295209027 | G113: 0.0008379771814 | H113: 0 | I113: 0.0006668273536 | J113: 0.003800013562 | L113: 2130 Avg | M113: ='5yrAvg'!C112/1000000 -> 0.002762601798 | N113: ='5yrAvg'!D112/1000000 -> 0.0006196245308 | O113: ='5yrAvg'!E112/1000000 -> 0.0005777810222 | P113: ='5yrAvg'!F112/1000000 -> 1.091725188e-05 | Q113: ='5yrAvg'!G112/1000000 -> 3.613189904e-05 | R113: 0.004007056502
A114: 1 | B114: 5 | C114: 16 | E114: 2004 | F114: 0.002430690127 | G114: 0.0008453167859 | H114: 0 | I114: 0.0007258540935 | J114: 0.004001861006 | L114: 2131 Avg | M114: ='5yrAvg'!C113/1000000 -> 0.00285171813 | N114: ='5yrAvg'!D113/1000000 -> 0.0006397490227 | O114: ='5yrAvg'!E113/1000000 -> 0.000597028374 | P114: ='5yrAvg'!F113/1000000 -> 1.127508705e-05 | Q114: ='5yrAvg'!G113/1000000 -> 3.741717291e-05 | R114: 0.004137187786
A115: 1 | B115: 5 | C115: 17 | E115: 2004 | F115: 0.003004235592 | G115: 0.0008712541732 | H115: 0 | I115: 0.0007904157669 | J115: 0.004665905532 | L115: 2132 Avg | M115: ='5yrAvg'!C114/1000000 -> 0.003177738426 | N115: ='5yrAvg'!D114/1000000 -> 0.000713358425 | O115: ='5yrAvg'!E114/1000000 -> 0.0006665040269 | P115: ='5yrAvg'!F114/1000000 -> 1.25875162e-05 | Q115: ='5yrAvg'!G114/1000000 -> 4.216937687e-05 | R115: 0.004612357771
A116: 1 | B116: 5 | C116: 18 | E116: 2004 | F116: 0.003680987954 | G116: 0.0007711302754 | H116: 8.4701088e-05 | I116: 0.0005950746002 | J116: 0.005131893918 | L116: 2133 Avg | M116: ='5yrAvg'!C115/1000000 -> 0.00349044016 | N116: ='5yrAvg'!D115/1000000 -> 0.0007836176326 | O116: ='5yrAvg'!E115/1000000 -> 0.0007324010792 | P116: ='5yrAvg'!F115/1000000 -> 1.382743767e-05 | Q116: ='5yrAvg'!G115/1000000 -> 4.632623033e-05 | R116: 0.005066612539
A117: 1 | B117: 5 | C117: 19 | E117: 2004 | F117: 0.004020233535 | G117: 0.0006817098125 | H117: 8.4701088e-05 | I117: 0.0003901471855 | J117: 0.005176791621 | L117: 2134 Avg | M117: ='5yrAvg'!C116/1000000 -> 0.003401508283 | N117: ='5yrAvg'!D116/1000000 -> 0.0007635314085 | O117: ='5yrAvg'!E116/1000000 -> 0.0007142919226 | P117: ='5yrAvg'!F116/1000000 -> 1.346311277e-05 | Q117: ='5yrAvg'!G116/1000000 -> 4.50546005e-05 | R117: 0.004937849327
A118: 1 | B118: 5 | C118: 20 | E118: 2004 | F118: 0.003703150576 | G118: 0.0007262168109 | H118: 8.4701088e-05 | I118: 0.0005393993985 | J118: 0.005053467873 | L118: 2135 Avg | M118: ='5yrAvg'!C117/1000000 -> 0.0033364094 | N118: ='5yrAvg'!D117/1000000 -> 0.0007491632567 | O118: ='5yrAvg'!E117/1000000 -> 0.0007016981931 | P118: ='5yrAvg'!F117/1000000 -> 1.321657517e-05 | Q118: ='5yrAvg'!G117/1000000 -> 4.437328229e-05 | R118: 0.004844860708
A119: 1 | B119: 5 | C119: 21 | E119: 2004 | F119: 0.003548148015 | G119: 0.0007117792434 | H119: 8.4701088e-05 | I119: 0.0005601507502 | J119: 0.004904779096 | L119: 2136 Avg | M119: ='5yrAvg'!C118/1000000 -> 0.003213526878 | N119: ='5yrAvg'!D118/1000000 -> 0.0007215712609 | O119: ='5yrAvg'!E118/1000000 -> 0.0006762532848 | P119: ='5yrAvg'!F118/1000000 -> 1.272806966e-05 | Q119: ='5yrAvg'!G118/1000000 -> 4.272250101e-05 | R119: 0.004666801995
A120: 1 | B120: 5 | C120: 22 | E120: 2004 | F120: 0.003261363508 | G120: 0.0006516366316 | H120: 8.4701088e-05 | I120: 0.0005231119165 | J120: 0.004520813144 | L120: 2137 Avg | M120: ='5yrAvg'!C119/1000000 -> 0.003023612179 | N120: ='5yrAvg'!D119/1000000 -> 0.0006788159116 | O120: ='5yrAvg'!E119/1000000 -> 0.0006359193545 | P120: ='5yrAvg'!F119/1000000 -> 1.196849288e-05 | Q120: ='5yrAvg'!G119/1000000 -> 3.999489788e-05 | R120: 0.004390310836
A121: 1 | B121: 5 | C121: 23 | E121: 2004 | F121: 0.002821988869 | G121: 0.0006122413904 | H121: 8.4701088e-05 | I121: 0.0005462922694 | J121: 0.004065223617 | L121: 2138 Avg | M121: ='5yrAvg'!C120/1000000 -> 0.002805636221 | N121: ='5yrAvg'!D120/1000000 -> 0.0006298221863 | O121: ='5yrAvg'!E120/1000000 -> 0.0005900872441 | P121: ='5yrAvg'!F120/1000000 -> 1.109450889e-05 | Q121: ='5yrAvg'!G120/1000000 -> 3.690778901e-05 | R121: 0.004073547949
A122: 1 | B122: 5 | C122: 24 | E122: 2004 | F122: 0.002328304919 | G122: 0.0005716729361 | H122: 8.4701088e-05 | I122: 0.0005615920579 | J122: 0.003546271001 | L122: 2139 Avg | M122: ='5yrAvg'!C121/1000000 -> 0.002566923961 | N122: ='5yrAvg'!D121/1000000 -> 0.0005762877219 | O122: ='5yrAvg'!E121/1000000 -> 0.0005401895288 | P122: ='5yrAvg'!F121/1000000 -> 1.014877795e-05 | Q122: ='5yrAvg'!G121/1000000 -> 3.374710222e-05 | R122: 0.003727297091
A123: 1 | B123: 6 | C123: 1 | E123: 2004 | F123: 0.002497058231 | G123: 0.0006253363112 | H123: 8.4701088e-05 | I123: 0.0006818144589 | J123: 0.003888910089 | L123: 2140 Avg | M123: ='5yrAvg'!C122/1000000 -> 0.002381670905 | N123: ='5yrAvg'!D122/1000000 -> 0.0005346799247 | O123: ='5yrAvg'!E122/1000000 -> 0.0005012672746 | P123: ='5yrAvg'!F122/1000000 -> 9.412771128e-06 | Q123: ='5yrAvg'!G122/1000000 -> 3.13275647e-05 | R123: 0.00345835844
A124: 1 | B124: 6 | C124: 2 | E124: 2004 | F124: 0.002462240385 | G124: 0.0005934355622 | H124: 8.4701088e-05 | I124: 0.0006478467 | J124: 0.003788223735 | L124: 2141 Avg | M124: ='5yrAvg'!C123/1000000 -> 0.002290249889 | N124: ='5yrAvg'!D123/1000000 -> 0.0005141662708 | O124: ='5yrAvg'!E123/1000000 -> 0.0004814748028 | P124: ='5yrAvg'!F123/1000000 -> 9.05349961e-06 | Q124: ='5yrAvg'!G123/1000000 -> 3.006766391e-05 | R124: 0.003325012126
A125: 1 | B125: 6 | C125: 3 | E125: 2004 | F125: 0.00249117691 | G125: 0.0005979684807 | H125: 8.4701088e-05 | I125: 0.0006793358021 | J125: 0.003853182281 | L125: 2142 Avg | M125: ='5yrAvg'!C124/1000000 -> 0.002263579794 | N125: ='5yrAvg'!D124/1000000 -> 0.0005082453606 | O125: ='5yrAvg'!E124/1000000 -> 0.0004761929056 | P125: ='5yrAvg'!F124/1000000 -> 8.949097289e-06 | Q125: ='5yrAvg'!G124/1000000 -> 2.972458827e-05 | R125: 0.003286691746
A126: 1 | B126: 6 | C126: 4 | E126: 2004 | F126: 0.002612534021 | G126: 0.0005852001975 | H126: 8.4701088e-05 | I126: 0.000663929675 | J126: 0.003946364982 | L126: 2143 Avg | M126: ='5yrAvg'!C125/1000000 -> 0.002277224978 | N126: ='5yrAvg'!D125/1000000 -> 0.0005113815818 | O126: ='5yrAvg'!E125/1000000 -> 0.0004793551108 | P126: ='5yrAvg'!F125/1000000 -> 9.009131888e-06 | Q126: ='5yrAvg'!G125/1000000 -> 2.996005771e-05 | R126: 0.00330693086
A127: 1 | B127: 6 | C127: 5 | E127: 2004 | F127: 0.002711726758 | G127: 0.0005796350035 | H127: 8.4701088e-05 | I127: 0.0006389570525 | J127: 0.004015019902 | L127: 2144 Avg | M127: ='5yrAvg'!C126/1000000 -> 0.002298962623 | N127: ='5yrAvg'!D126/1000000 -> 0.0005163290348 | O127: ='5yrAvg'!E126/1000000 -> 0.0004840082221 | P127: ='5yrAvg'!F126/1000000 -> 9.099175098e-06 | Q127: ='5yrAvg'!G126/1000000 -> 3.027689559e-05 | R127: 0.003338675951
A128: 1 | B128: 6 | C128: 6 | E128: 2004 | F128: 0.002999968512 | G128: 0.0006344102049 | H128: 8.4701088e-05 | I128: 0.0006934214761 | J128: 0.004412501281 | L128: 2145 Avg | M128: ='5yrAvg'!C127/1000000 -> 0.002410882599 | N128: ='5yrAvg'!D127/1000000 -> 0.0005416561778 | O128: ='5yrAvg'!E127/1000000 -> 0.0005079661902 | P128: ='5yrAvg'!F127/1000000 -> 9.558486542e-06 | Q128: ='5yrAvg'!G127/1000000 -> 3.191269922e-05 | R128: 0.003501976153
A129: 1 | B129: 6 | C129: 7 | E129: 2004 | F129: 0.003390826032 | G129: 0.0007078766885 | H129: 8.4701088e-05 | I129: 0.0006927695022 | J129: 0.004876173311 | L129: 2146 Avg | M129: ='5yrAvg'!C128/1000000 -> 0.002561818831 | N129: ='5yrAvg'!D128/1000000 -> 0.0005757573918 | O129: ='5yrAvg'!E128/1000000 -> 0.0005397677958 | P129: ='5yrAvg'!F128/1000000 -> 1.016878378e-05 | Q129: ='5yrAvg'!G128/1000000 -> 3.419894074e-05 | R129: 0.003721711743
A130: 1 | B130: 6 | C130: 8 | E130: 2004 | F130: 0.00336655221 | G130: 0.0008184401118 | H130: 7.764944012e-05 | I130: 0.0007446817035 | J130: 0.005007323465 | L130: 2147 Avg | M130: ='5yrAvg'!C129/1000000 -> 0.002681453224 | N130: ='5yrAvg'!D129/1000000 -> 0.0006025069182 | O130: ='5yrAvg'!E129/1000000 -> 0.0005646331774 | P130: ='5yrAvg'!F129/1000000 -> 1.063676062e-05 | Q130: ='5yrAvg'!G129/1000000 -> 3.565688802e-05 | R130: 0.003894886968
A131: 1 | B131: 6 | C131: 9 | E131: 2004 | F131: 0.00312189036 | G131: 0.0008920095079 | H131: 0 | I131: 0.0007893625053 | J131: 0.004803262374 | L131: 2148 Avg | M131: ='5yrAvg'!C130/1000000 -> 0.002752209854 | N131: ='5yrAvg'!D130/1000000 -> 0.000617713653 | O131: ='5yrAvg'!E130/1000000 -> 0.0005776039933 | P131: ='5yrAvg'!F130/1000000 -> 1.088581425e-05 | Q131: ='5yrAvg'!G130/1000000 -> 3.603538097e-05 | R131: =SUM(M131:Q131) -> 0.003994448696
A132: 1 | B132: 6 | C132: 10 | E132: 2004 | F132: 0.002926974395 | G132: 0.0009478028439 | H132: 0 | I132: 0.0008365350178 | J132: 0.004711312257 | L132: 2149 Avg | M132: ='5yrAvg'!C131/1000000 -> 0.00279332613 | N132: ='5yrAvg'!D131/1000000 -> 0.000626451219 | O132: ='5yrAvg'!E131/1000000 -> 0.0005848010769 | P132: ='5yrAvg'!F131/1000000 -> 1.10257261e-05 | Q132: ='5yrAvg'!G131/1000000 -> 3.622888598e-05 | R132: 0.004051833038
A133: 1 | B133: 6 | C133: 11 | E133: 2004 | F133: 0.002771584792 | G133: 0.0009516428956 | H133: 0 | I133: 0.0008343112017 | J133: 0.00455753889 | L133: 2150 Avg | M133: ='5yrAvg'!C132/1000000 -> 0.002811428694 | N133: ='5yrAvg'!D132/1000000 -> 0.000630365688 | O133: ='5yrAvg'!E132/1000000 -> 0.0005879461757 | P133: ='5yrAvg'!F132/1000000 -> 1.108689091e-05 | Q133: ='5yrAvg'!G132/1000000 -> 3.627877142e-05 | R133: 0.00407710622
A134: 1 | B134: 6 | C134: 12 | E134: 2004 | F134: 0.002645767318 | G134: 0.0009357048835 | H134: 0 | I134: 0.0007824217783 | J134: 0.004363893979 | L134: 2151 Avg | M134: ='5yrAvg'!C133/1000000 -> 0.002806618302 | N134: ='5yrAvg'!D133/1000000 -> 0.0006291100277 | O134: ='5yrAvg'!E133/1000000 -> 0.0005862615248 | P134: ='5yrAvg'!F133/1000000 -> 1.105661852e-05 | Q134: ='5yrAvg'!G133/1000000 -> 3.606640085e-05 | R134: 0.004069112874
A135: 1 | B135: 6 | C135: 13 | E135: 2004 | F135: 0.002584323597 | G135: 0.000930964251 | H135: 0 | I135: 0.000797310895 | J135: 0.004312598743 | L135: 2152 Avg | M135: ='5yrAvg'!C134/1000000 -> 0.002773573077 | N135: ='5yrAvg'!D134/1000000 -> 0.0006212704522 | O135: ='5yrAvg'!E134/1000000 -> 0.0005782643193 | P135: ='5yrAvg'!F134/1000000 -> 1.09125957e-05 | Q135: ='5yrAvg'!G134/1000000 -> 3.550695429e-05 | R135: 0.004019527398
A136: 1 | B136: 6 | C136: 14 | E136: 2004 | F136: 0.002489446816 | G136: 0.0009365825615 | H136: 0 | I136: 0.0007871151463 | J136: 0.004213144524 | L136: 2153 Avg | M136: ='5yrAvg'!C135/1000000 -> 0.002752187281 | N136: ='5yrAvg'!D135/1000000 -> 0.0006162956321 | O136: ='5yrAvg'!E135/1000000 -> 0.0005742578626 | P136: ='5yrAvg'!F135/1000000 -> 1.081853181e-05 | Q136: ='5yrAvg'!G135/1000000 -> 3.517642166e-05 | R136: 0.003988735729
A137: 1 | B137: 6 | C137: 15 | E137: 2004 | F137: 0.002609636677 | G137: 0.0009103566496 | H137: 0 | I137: 0.0007475821783 | J137: 0.004267575505 | L137: 2154 Avg | M137: ='5yrAvg'!C136/1000000 -> 0.002743022591 | N137: ='5yrAvg'!D136/1000000 -> 0.0006144611934 | O137: ='5yrAvg'!E136/1000000 -> 0.0005729802784 | P137: ='5yrAvg'!F136/1000000 -> 1.078934854e-05 | Q137: ='5yrAvg'!G136/1000000 -> 3.51612877e-05 | R137: 0.003976414699
A138: 1 | B138: 6 | C138: 16 | E138: 2004 | F138: 0.00285933855 | G138: 0.0008876119537 | H138: 0 | I138: 0.0007297259553 | J138: 0.004476676459 | L138: 2155 Avg | M138: ='5yrAvg'!C137/1000000 -> 0.002833773795 | N138: ='5yrAvg'!D137/1000000 -> 0.0006349508695 | O138: ='5yrAvg'!E137/1000000 -> 0.0005918358656 | P138: ='5yrAvg'!F137/1000000 -> 1.11612767e-05 | Q138: ='5yrAvg'!G137/1000000 -> 3.647800189e-05 | R138: 0.004108199809
